Workbook

Sheet notes (hidden)
H2: =SUM(H3:H8) -> 0
C3: 600 | D3: 24 | E3: 600 | F3: 1000 | G3: =IF(Form!$D$4=D3,1,0) -> 0 | H3: =IF(G3=1,IF(OR(E3>Form!M$5,F3<Form!M$5),1,0),0) -> 0
C4: 800 | D4: 30 | E4: 800 | F4: 1200 | G4: =IF(Form!$D$4=D4,1,0) -> 0 | H4: =IF(G4=1,IF(OR(E4>Form!M$5,F4<Form!M$5),1,0),0) -> 0
C5: 1000 | D5: 36 | E5: 1000 | F5: 1400 | G5: =IF(Form!$D$4=D5,1,0) -> 0 | H5: =IF(G5=1,IF(OR(E5>Form!M$5,F5<Form!M$5),1,0),0) -> 0
C6: 1200 | D6: 42 | E6: 1200 | F6: 1600 | G6: =IF(Form!$D$4=D6,1,0) -> 0 | H6: =IF(G6=1,IF(OR(E6>Form!M$5,F6<Form!M$5),1,0),0) -> 0
C7: 1400 | D7: 48 | E7: 1400 | F7: 1800 | G7: =IF(Form!$D$4=D7,1,0) -> 0 | H7: =IF(G7=1,IF(OR(E7>Form!M$5,F7<Form!M$5),1,0),0) -> 0
C8: 1600 | D8: 60 | E8: 1600 | F8: 2000 | G8: =IF(Form!$D$4=D8,1,0) -> 0 | H8: =IF(G8=1,IF(OR(E8>Form!M$5,F8<Form!M$5),1,0),0) -> 0
C9: 1800
C10: 2000
D13: Total
B14: =Form!M5+Form!M6 -> 0 | E14: =E31 -> 0 | F14: =F31 -> 0 | G14: 0 | H14: 0 | I14: 0 | J14: 0 | K14: 0 | L14: =SUM(E14:K14) -> 0 | P14: 58
E15: =Form!C27 -> 0 | F15: =Form!E27 -> 0 | G15: =Form!G27 -> 0 | H15: =Form!I27 -> 0 | I15: =Form!K27 -> 0 | J15: =Form!M27 -> 0 | K15: =Form!O27 -> 0
A16: =C16+D16 -> 0 | B16: =P16 -> 0 | C16: =Form!A31 -> 0 | D16: =Form!B31 -> 0 | E16: =Form!C31 -> 0 | F16: =Form!E31 -> 0 | G16: =Form!G31 -> 0 | H16: =Form!I31 -> 0 | I16: =Form!K31 -> 0 | J16: =Form!M31 -> 0 | K16: =Form!O31 -> 0 | L16: =Form!$M$5+Form!M$6 -> 0 | M16: =IF(C16+D16=Form!M$5+Form!M$6,1,0) -> 1 | N16: =IF(A16<L16,1,0) -> 0 | O16: =IF(A16>L16,2,0) -> 0 | P16: =IF(AND(N16=1,N17=0),1,0)+IF(AND(O15=0,O16=2),2,0) -> 0
A17: =C17+D17 -> 0 | B17: =P17 -> 0 | C17: =C16 -> 0 | D17: =Form!B32 -> 0 | E17: =Form!C32 -> 0 | F17: =Form!E32 -> 0 | G17: =Form!G32 -> 0 | H17: =Form!I32 -> 0 | I17: =Form!K32 -> 0 | J17: =Form!M32 -> 0 | K17: =Form!O32 -> 0 | L17: =Form!$M$5+Form!M$6 -> 0 | M17: =IF(C17+D17=Form!M$5+Form!M$6,1,0) -> 1 | N17: =IF(A17<L17,1,0) -> 0 | O17: =IF(A17>L17,2,0) -> 0 | P17: =IF(AND(N17=1,N18=0),1,0)+IF(AND(O16=0,O17=2),2,0) -> 0
A18: 0 | B18: 0 | C18: =C17 -> 0 | D18: =Form!B33 -> 0 | E18: =Form!C33 -> 0 | F18: =Form!E33 -> 0 | G18: =Form!G33 -> 0 | H18: =Form!I33 -> 0 | I18: =Form!K33 -> 0 | J18: =Form!M33 -> 0 | K18: =Form!O33 -> 0 | L18: =Form!$M$5+Form!M$6 -> 0 | M18: =IF(C18+D18=Form!M$5+Form!M$6,1,0) -> 1 | N18: 0 | O18: =IF(A18>L18,2,0) -> 0 | P18: =IF(AND(N18=1,N19=0),1,0)+IF(AND(O17=0,O18=2),2,0) -> 0
A19: 0 | B19: 0 | C19: =C18 -> 0 | D19: =Form!B34 -> 0 | E19: =Form!C34 -> 0 | F19: =Form!E34 -> 0 | G19: =Form!G34 -> 0 | H19: =Form!I34 -> 0 | I19: =Form!K34 -> 0 | J19: =Form!M34 -> 0 | K19: =Form!O34 -> 0 | L19: =Form!$M$5+Form!M$6 -> 0 | M19: =IF(C19+D19=Form!M$5+Form!M$6,1,0) -> 1 | N19: 0 | O19: =IF(A19>L19,2,0) -> 0 | P19: =IF(AND(N19=1,N20=0),1,0)+IF(AND(O18=0,O19=2),2,0) -> 0
A20: 0 | B20: 0 | C20: =Form!A35 -> 0 | D20: =Form!B35 -> 0 | E20: =Form!C35 -> 0 | F20: =Form!E35 -> 0 | G20: =Form!G35 -> 0 | H20: =Form!I35 -> 0 | I20: =Form!K35 -> 0 | J20: =Form!M35 -> 0 | K20: =Form!O35 -> 0 | L20: =Form!$M$5+Form!M$6 -> 0 | M20: =IF(C20+D20=Form!M$5+Form!M$6,1,0) -> 1 | N20: 0 | O20: =IF(A20>L20,2,0) -> 0 | P20: =IF(AND(N20=1,N21=0),1,0)+IF(AND(O19=0,O20=2),2,0) -> 0
A21: 0 | B21: 0 | C21: =C20 -> 0 | D21: =Form!B36 -> 0 | E21: =Form!C36 -> 0 | F21: =Form!E36 -> 0 | G21: =Form!G36 -> 0 | H21: =Form!I36 -> 0 | I21: =Form!K36 -> 0 | J21: =Form!M36 -> 0 | K21: =Form!O36 -> 0 | L21: =Form!$M$5+Form!M$6 -> 0 | M21: =IF(C21+D21=Form!M$5+Form!M$6,1,0) -> 1 | N21: 0 | O21: =IF(A21>L21,2,0) -> 0 | P21: =IF(AND(N21=1,N22=0),1,0)+IF(AND(O20=0,O21=2),2,0) -> 0
A22: 0 | B22: 0 | C22: =C21 -> 0 | D22: =Form!B37 -> 0 | E22: =Form!C37 -> 0 | F22: =Form!E37 -> 0 | G22: =Form!G37 -> 0 | H22: =Form!I37 -> 0 | I22: =Form!K37 -> 0 | J22: =Form!M37 -> 0 | K22: =Form!O37 -> 0 | L22: =Form!$M$5+Form!M$6 -> 0 | M22: =IF(C22+D22=Form!M$5+Form!M$6,1,0) -> 1 | N22: 0 | O22: 0 | P22: 0
A23: 0 | B23: 0 | C23: =C22 -> 0 | D23: =Form!B38 -> 0 | E23: =Form!C38 -> 0 | F23: =Form!E38 -> 0 | G23: =Form!G38 -> 0 | H23: =Form!I38 -> 0 | I23: =Form!K38 -> 0 | J23: =Form!M38 -> 0 | K23: =Form!O38 -> 0 | L23: =Form!$M$5+Form!M$6 -> 0 | M23: =IF(C23+D23=Form!M$5+Form!M$6,1,0) -> 1 | N23: 0 | O23: 0 | P23: 0
A24: 0 | B24: 0 | C24: =Form!A39 -> 0 | D24: =Form!B39 -> 0 | E24: =Form!C39 -> 0 | F24: =Form!E39 -> 0 | G24: =Form!G39 -> 0 | H24: =Form!I39 -> 0 | I24: =Form!K39 -> 0 | J24: =Form!M39 -> 0 | K24: =Form!O39 -> 0 | L24: =Form!$M$5+Form!M$6 -> 0 | M24: =IF(C24+D24=Form!M$5+Form!M$6,1,0) -> 1 | N24: 0 | O24: 0 | P24: 0
A25: 0 | B25: 0 | C25: =C24 -> 0 | D25: =Form!B40 -> 0 | E25: =Form!C40 -> 0 | F25: =Form!E40 -> 0 | G25: =Form!G40 -> 0 | H25: =Form!I40 -> 0 | I25: =Form!K40 -> 0 | J25: =Form!M40 -> 0 | K25: =Form!O40 -> 0 | L25: =Form!$M$5+Form!M$6 -> 0 | M25: =IF(C25+D25=Form!M$5+Form!M$6,1,0) -> 1 | N25: 0 | O25: 0 | P25: 0
A26: 0 | B26: 0 | C26: =C25 -> 0 | D26: =Form!B41 -> 0 | E26: =Form!C41 -> 0 | F26: =Form!E41 -> 0 | G26: =Form!G41 -> 0 | H26: =Form!I41 -> 0 | I26: =Form!K41 -> 0 | J26: =Form!M41 -> 0 | K26: =Form!O41 -> 0 | L26: =Form!$M$5+Form!M$6 -> 0 | M26: =IF(C26+D26=Form!M$5+Form!M$6,1,0) -> 1 | N26: 0 | O26: 0 | P26: 0
A27: 0 | B27: 0 | C27: =C26 -> 0 | D27: =Form!B42 -> 0 | E27: =Form!C42 -> 0 | F27: =Form!E42 -> 0 | G27: =Form!G42 -> 0 | H27: =Form!I42 -> 0 | I27: =Form!K42 -> 0 | J27: =Form!M42 -> 0 | K27: =Form!O42 -> 0 | L27: =Form!$M$5+Form!M$6 -> 0 | M27: =IF(C27+D27=Form!M$5+Form!M$6,1,0) -> 1 | N27: 0 | O27: 0 | P27: 0
A28: 0 | B28: =SUM(B16:B27) -> 0
F29: =IF(AND(F15>Form!$M$4,E15<Form!$M$4),2,0) -> 0 | G29: =IF(AND(G15>Form!$M$4,F15<Form!$M$4),2,0) -> 0 | H29: =IF(AND(H15>Form!$M$4,G15<Form!$M$4),2,0) -> 0 | I29: =IF(AND(I15>Form!$M$4,H15<Form!$M$4),2,0) -> 0 | J29: =IF(AND(J15>Form!$M$4,I15<Form!$M$4),2,0) -> 0 | K29: =IF(AND(K15>Form!$M$4,J15<Form!$M$4),2,0) -> 0
C30: =HLOOKUP(1,E14:K15,2,FALSE) ->  | E30: =IF(F29=2,1,0) -> 0 | F30: =IF(G29=2,1,0) -> 0 | G30: 0 | H30: 0 | I30: 0 | J30: 0 | K30: 0
C31: =HLOOKUP(2,E14:K15,2,FALSE) ->  | E31: =SUM(E29:E30) -> 0 | F31: 0 | G31: 0 | H31: 0 | I31: 0 | J31: 0 | K31: 0
B32: =(VLOOKUP(1,B14:K27,3,FALSE)) ->  | C32: =IF(ISERROR(B32),0,B32) -> 0 | E32: =(C34-C35)/(C32-C33)*(Form!$M$6-C33)+C35 ->  | F32: =(C36-C37)/(C32-C33)*(Form!M6-C33)+C37 -> 
B33: =VLOOKUP(2,B14:K27,3,FALSE) ->  | C33: =IF(ISERROR(B33),0,B33) -> 0 | E33: =IF(AND(B28=0,L14=3),VLOOKUP(Form!$M$5+Form!$M$6,notes!A14:K27,MATCH(1,notes!A14:K14,FALSE),FALSE),0) -> 0 | F33: =IF(AND(B28=0,L14=3),VLOOKUP(Form!$M$5+Form!$M$6,notes!A14:K27,MATCH(2,notes!A14:K14,FALSE),FALSE),0) -> 0 | I33: exactly
B34: =VLOOKUP(1,B14:K27,MATCH(1,B14:K14,FALSE),FALSE) ->  | C34: =MIN(B34,B36) ->  | E34: =IF(ISERROR(E32),E33,E32) -> 0 | F34: =IF(ISERROR(F32),F33,F32) -> 0 | I34: x | J34: y | K34: err1 | L34: err2 | M34: err3 | N34: ans
B35: =VLOOKUP(2,B14:K27,MATCH(1,B14:K14,FALSE),FALSE) ->  | C35: =MAX(B35,B37) ->  | E35: =MIN(E34:F34) -> 0 | F35: =MAX(E34:F34) -> 0 | I35: y | J35: y | K35: =IF(ISERROR(VLOOKUP(Form!$M$5+Form!$M$6,notes!A15:K27,MATCH(Form!$M$4,notes!A15:K15,FALSE),FALSE)),0,VLOOKUP(Form!$M$5+Form!$M$6,notes!A15:K27,MATCH(Form!$M$4,notes!A15:K15,FALSE),FALSE)) -> 0 | N35: =SUM(K35:M35) -> 0
B36: =VLOOKUP(1,B14:K27,MATCH(2,B14:K14,FALSE),FALSE) ->  | C36: =MAX(B36,B34) ->  | E36: =(E35-F35)/(C31-C30)*(Form!$M$4-C30)+F35 ->  | I36: y | J36: n | N36: =SUM(K36:M36) -> 0
B37: =VLOOKUP(2,B14:K27,MATCH(2,B14:K14,FALSE),FALSE) ->  | C37: =MIN(B35,B37) ->  | I37: n | J37: n | K37: =IF(OR(E36>100000,E36<=0),0,E36) ->  | L37: =IF(K37<>0,0,MIN(E32:F32)) ->  | M37: =IF(AND(L37=0,K37=0),C34,0) ->  | N37: =SUM(K37:M37) -> 
N38: =IF(ISERROR(N37),N35,N37) -> 0
A41: sens | E41: =E58 -> 0 | F41: =F58 -> 0 | G41: 0 | H41: 0 | I41: 0 | J41: 0 | K41: 0 | L41: =SUM(E41:K41) -> 0
E42: =E15 -> 0 | F42: =F15 -> 0 | G42: 0 | H42: 0 | I42: 0 | J42: 0 | K42: 0
A43: =C43+D43 -> 0 | B43: =P43 -> 0 | C43: =C16 -> 0 | D43: =D16 -> 0 | E43: =Form!D31 -> 0 | F43: =Form!F31 -> 0 | G43: =Form!H31 -> 0 | H43: =Form!J31 -> 0 | I43: =Form!L31 -> 0 | J43: =Form!N31 -> 0 | K43: =Form!P31 -> 0 | L43: =Form!$M$5+Form!M$6 -> 0 | M43: =IF(C43+D43=Form!M$5+Form!M$6,1,0) -> 1 | N43: =IF(A43<L43,1,0) -> 0 | O43: =IF(A43>L43,2,0) -> 0 | P43: =IF(AND(N43=1,N44=0),1,0)+IF(AND(O42=0,O43=2),2,0) -> 0
A44: =C44+D44 -> 0 | B44: =P44 -> 0 | C44: =C17 -> 0 | D44: =D17 -> 0 | E44: =Form!D32 -> 0 | F44: =Form!F32 -> 0 | G44: =Form!H32 -> 0 | H44: =Form!J32 -> 0 | I44: =Form!L32 -> 0 | J44: =Form!N32 -> 0 | K44: =Form!P32 -> 0 | L44: =Form!$M$5+Form!M$6 -> 0 | M44: =IF(C44+D44=Form!M$5+Form!M$6,1,0) -> 1 | N44: =IF(A44<L44,1,0) -> 0 | O44: =IF(A44>L44,2,0) -> 0 | P44: =IF(AND(N44=1,N45=0),1,0)+IF(AND(O43=0,O44=2),2,0) -> 0
A45: =C45+D45 -> 0 | B45: 0 | C45: 0 | D45: 0 | E45: =Form!D33 -> 0 | F45: =Form!F33 -> 0 | G45: =Form!H33 -> 0 | H45: =Form!J33 -> 0 | I45: =Form!L33 -> 0 | J45: =Form!N33 -> 0 | K45: =Form!P33 -> 0 | L45: =Form!$M$5+Form!M$6 -> 0 | M45: =IF(C45+D45=Form!M$5+Form!M$6,1,0) -> 1 | N45: 0 | O45: =IF(A45>L45,2,0) -> 0 | P45: =IF(AND(N45=1,N46=0),1,0)+IF(AND(O44=0,O45=2),2,0) -> 0
A46: 0 | B46: 0 | C46: 0 | D46: 0 | E46: =Form!D34 -> 0 | F46: =Form!F34 -> 0 | G46: =Form!H34 -> 0 | H46: =Form!J34 -> 0 | I46: =Form!L34 -> 0 | J46: =Form!N34 -> 0 | K46: =Form!P34 -> 0 | L46: =Form!$M$5+Form!M$6 -> 0 | M46: =IF(C46+D46=Form!M$5+Form!M$6,1,0) -> 1 | N46: 0 | O46: =IF(A46>L46,2,0) -> 0 | P46: =IF(AND(N46=1,N47=0),1,0)+IF(AND(O45=0,O46=2),2,0) -> 0
A47: 0 | B47: 0 | C47: 0 | D47: 0 | E47: =Form!D35 -> 0 | F47: =Form!F35 -> 0 | G47: =Form!H35 -> 0 | H47: =Form!J35 -> 0 | I47: =Form!L35 -> 0 | J47: =Form!N35 -> 0 | K47: =Form!P35 -> 0 | L47: =Form!$M$5+Form!M$6 -> 0 | M47: =IF(C47+D47=Form!M$5+Form!M$6,1,0) -> 1 | N47: 0 | O47: =IF(A47>L47,2,0) -> 0 | P47: =IF(AND(N47=1,N48=0),1,0)+IF(AND(O46=0,O47=2),2,0) -> 0
A48: 0 | B48: 0 | C48: 0 | D48: 0 | E48: =Form!D36 -> 0 | F48: =Form!F36 -> 0 | G48: =Form!H36 -> 0 | H48: =Form!J36 -> 0 | I48: =Form!L36 -> 0 | J48: =Form!N36 -> 0 | K48: =Form!P36 -> 0 | L48: =Form!$M$5+Form!M$6 -> 0 | M48: =IF(C48+D48=Form!M$5+Form!M$6,1,0) -> 1 | N48: 0 | O48: =IF(A48>L48,2,0) -> 0 | P48: =IF(AND(N48=1,N49=0),1,0)+IF(AND(O47=0,O48=2),2,0) -> 0
A49: 0 | B49: 0 | C49: 0 | D49: 0 | E49: =Form!D37 -> 0 | F49: =Form!F37 -> 0 | G49: =Form!H37 -> 0 | H49: =Form!J37 -> 0 | I49: =Form!L37 -> 0 | J49: =Form!N37 -> 0 | K49: =Form!P37 -> 0 | L49: =Form!$M$5+Form!M$6 -> 0 | M49: =IF(C49+D49=Form!M$5+Form!M$6,1,0) -> 1 | N49: 0 | O49: 0 | P49: 0
A50: 0 | B50: 0 | C50: 0 | D50: 0 | E50: =Form!D38 -> 0 | F50: =Form!F38 -> 0 | G50: =Form!H38 -> 0 | H50: =Form!J38 -> 0 | I50: =Form!L38 -> 0 | J50: =Form!N38 -> 0 | K50: =Form!P38 -> 0 | L50: =Form!$M$5+Form!M$6 -> 0 | M50: =IF(C50+D50=Form!M$5+Form!M$6,1,0) -> 1 | N50: 0 | O50: 0 | P50: 0
A51: 0 | B51: 0 | C51: 0 | D51: 0 | E51: =Form!D39 -> 0 | F51: =Form!F39 -> 0 | G51: =Form!H39 -> 0 | H51: =Form!J39 -> 0 | I51: =Form!L39 -> 0 | J51: =Form!N39 -> 0 | K51: =Form!P39 -> 0 | L51: =Form!$M$5+Form!M$6 -> 0 | M51: =IF(C51+D51=Form!M$5+Form!M$6,1,0) -> 1 | N51: 0 | O51: 0 | P51: 0
A52: 0 | B52: 0 | C52: 0 | D52: 0 | E52: =Form!D40 -> 0 | F52: =Form!F40 -> 0 | G52: =Form!H40 -> 0 | H52: =Form!J40 -> 0 | I52: =Form!L40 -> 0 | J52: =Form!N40 -> 0 | K52: =Form!P40 -> 0 | L52: =Form!$M$5+Form!M$6 -> 0 | M52: =IF(C52+D52=Form!M$5+Form!M$6,1,0) -> 1 | N52: 0 | O52: 0 | P52: 0
A53: 0 | B53: 0 | C53: 0 | D53: 0 | E53: =Form!D41 -> 0 | F53: =Form!F41 -> 0 | G53: =Form!H41 -> 0 | H53: =Form!J41 -> 0 | I53: =Form!L41 -> 0 | J53: =Form!N41 -> 0 | K53: =Form!P41 -> 0 | L53: =Form!$M$5+Form!M$6 -> 0 | M53: =IF(C53+D53=Form!M$5+Form!M$6,1,0) -> 1 | N53: 0 | O53: 0 | P53: 0
A54: 0 | B54: 0 | C54: 0 | D54: 0 | E54: =Form!D42 -> 0 | F54: =Form!F42 -> 0 | G54: =Form!H42 -> 0 | H54: =Form!J42 -> 0 | I54: =Form!L42 -> 0 | J54: =Form!N42 -> 0 | K54: =Form!P42 -> 0 | L54: =Form!$M$5+Form!M$6 -> 0 | M54: =IF(C54+D54=Form!M$5+Form!M$6,1,0) -> 1 | N54: 0 | O54: 0 | P54: 0
A55: 0 | B55: =SUM(B43:B54) -> 0
F56: =IF(AND(F42>Form!$M$4,E42<Form!$M$4),2,0) -> 0 | G56: =IF(AND(G42>Form!$M$4,F42<Form!$M$4),2,0) -> 0 | H56: =IF(AND(H42>Form!$M$4,G42<Form!$M$4),2,0) -> 0 | I56: =IF(AND(I42>Form!$M$4,H42<Form!$M$4),2,0) -> 0 | J56: =IF(AND(J42>Form!$M$4,I42<Form!$M$4),2,0) -> 0 | K56: =IF(AND(K42>Form!$M$4,J42<Form!$M$4),2,0) -> 0
C57: =HLOOKUP(1,E41:K42,2,FALSE) ->  | E57: =IF(F56=2,1,0) -> 0 | F57: =IF(G56=2,1,0) -> 0 | G57: 0 | H57: 0 | I57: 0 | J57: 0 | K57: 0
C58: =HLOOKUP(2,E41:K42,2,FALSE) ->  | E58: =SUM(E56:E57) -> 0 | F58: 0 | G58: 0 | H58: 0 | I58: 0 | J58: 0 | K58: 0
B59: =(VLOOKUP(1,B41:K54,3,FALSE)) ->  | C59: =IF(ISERROR(B59),0,B59) -> 0 | E59: =(C61-C62)/(C59-C60)*(Form!$M$6-C60)+C62 ->  | F59: =(C63-C64)/(C59-C60)*(Form!M6-C60)+C64 -> 
B60: =VLOOKUP(2,B41:K54,3,FALSE) ->  | C60: =IF(ISERROR(B60),0,B60) -> 0 | E60: =IF(AND(B55=0,L41=3),VLOOKUP(Form!$M$5+Form!$M$6,notes!A41:K54,MATCH(1,notes!A41:K41,FALSE),FALSE),0) -> 0 | F60: =IF(AND(B55=0,L41=3),VLOOKUP(Form!$M$5+Form!$M$6,notes!A41:K54,MATCH(2,notes!A41:K41,FALSE),FALSE),0) -> 0 | I60: exactly
B61: =VLOOKUP(1,B41:K54,MATCH(1,B41:K41,FALSE),FALSE) ->  | C61: =MIN(B61,B63) ->  | E61: =IF(ISERROR(E59),E60,E59) -> 0 | F61: =IF(ISERROR(F59),F60,F59) -> 0 | I61: x | J61: y | K61: err1 | L61: err2 | M61: err3 | N61: ans
B62: =VLOOKUP(2,B41:K54,MATCH(1,B41:K41,FALSE),FALSE) ->  | C62: =MAX(B62,B64) ->  | E62: =MIN(E61:F61) -> 0 | F62: =MAX(E61:F61) -> 0 | I62: y | J62: y | K62: =IF(ISERROR(VLOOKUP(Form!$M$5+Form!$M$6,notes!A42:K54,MATCH(Form!$M$4,notes!A42:K42,FALSE),FALSE)),0,VLOOKUP(Form!$M$5+Form!$M$6,notes!A42:K54,MATCH(Form!$M$4,notes!A42:K42,FALSE),FALSE)) -> 0 | N62: =SUM(K62:M62) -> 0
B63: =VLOOKUP(1,B41:K54,MATCH(2,B41:K41,FALSE),FALSE) ->  | C63: =MAX(B63,B61) ->  | E63: =(E62-F62)/(C58-C57)*(Form!$M$4-C57)+F62 ->  | I63: y | J63: n | N63: =SUM(K63:M63) -> 0
B64: =VLOOKUP(2,B41:K54,MATCH(2,B41:K41,FALSE),FALSE) ->  | C64: =MIN(B62,B64) ->  | I64: n | J64: n | K64: =IF(OR(E63>100000,E63<=0),0,E63) ->  | L64: =IF(K64<>0,0,MIN(E59:F59)) ->  | M64: =IF(AND(L64=0,K64=0),C61,0) ->  | N64: =SUM(K64:M64) -> 
B65: =VLOOKUP(Form!M32+Form!M33,A41:K54,MATCH(2,A41:K41,FALSE),FALSE) ->  | N65: =IF(ISERROR(N64),N62,N64) -> 0

Sheet Options (hidden)
A1: CZF
A2: CZH
A3: TCHD
A4: YCD
A5: YCE
A6: YCG
A7: YCJD
A8: YCJF
A9: YCS
A10: YFE
A11: YHJD(3P)
A12: YHJF
A13: YHJR

Sheet Calcs (hidden)
D1: York Condenser : | E1: TCGD36
D2: ADP Evaporator:
D3: Condenser Entering Air Temperature: | E3: 100 | F3: (°F) Dry Bulb, 65°F to 125°F
D4: Evaporator Air Flow: | E4: 1265 | F4: CFM
D5: Entering Evaporator Air (DB): | E5: 77.5 | F5: (°F) Dry Bulb
D6: Entering Evaporator Air (WB): | E6: 60.6 | F6: (°F) Wet Bulb, 57°F to 72°F
A9: Total
A10: 28.55 | B10: 1200 60.6
B12: Diff 200 | C12: =A10-A14 -> 0.308 | D12: Diff 1 cfm | E12: =C12/200 -> 0.00154 | F12: 1265 total | G12: =A10-(65*E12) -> 28.4499
A14: 28.242 | B14: 1400 60.6
A16: Sens
A17: 25.32 | B17: 1200 60.6
B19: Diff 200 | C19: =A17-A21 -> 0.5544 | D19: Diff 1 cfm | E19: =C19/200 -> 0.002772 | F19: 1265 Sens | G19: =A17-(65*E19) -> 25.13982
A21: 24.7656 | B21: 1400 60.6

Sheet CZF_24 (hidden)
A2: CZF_24 | B2: 24
A3: Evaporator Air | C3: Condenser Entering Air Temperature ˚F
A4: 80 | B4: °F DB | C4: 65 | E4: 75 | G4: 85 | I4: 95 | K4: 105 | M4: 115 | O4: 125
A5: CFM | B5: EWB† ˚F | C5: Capacity Mbtuh | E5: Capacity Mbtuh | G5: Capacity Mbtuh | I5: Capacity Mbtuh | K5: Capacity Mbtuh | M5: Capacity Mbtuh | O5: Capacity Mbtuh
C6: Total | D6: Sens. | E6: Total | F6: Sens. | G6: Total | H6: Sens. | I6: Total | J6: Sens. | K6: Total | L6: Sens. | M6: Total | N6: Sens. | O6: Total | P6: Sens.
R7: Total Factors | Y7: Sens. % | AF7: IDB Adj | AM7: Sens Calc
A8: 600 | B8: 72 | C8: =R8*$I$13 -> 28.57627119 | D8: =IF(AM8>C8,C8,AM8) -> 13.62711864 | E8: =S8*$I$13 -> 27.3559322 | F8: =IF(AN8>E8,E8,AN8) -> 13.11864407 | G8: =T8*$I$13 -> 26.13559322 | H8: =IF(AO8>G8,G8,AO8) -> 12.61016949 | I8: =U8*$I$13 -> 24.81355932 | J8: =IF(AP8>I8,I8,AP8) -> 12.10169492 | K8: =V8*$I$13 -> 23.59322034 | L8: =IF(AQ8>K8,K8,AQ8) -> 11.59322034 | M8: =W8*$I$13 -> 22.37288136 | N8: =IF(AR8>M8,M8,AR8) -> 11.08474576 | O8: =X8*$I$13 -> 21.15254237 | P8: =IF(AS8>O8,O8,AS8) -> 10.57627119 | R8: 1.190677966 | S8: 1.139830508 | T8: 1.088983051 | U8: 1.033898305 | V8: 0.9830508475 | W8: 0.9322033898 | X8: 0.8813559322 | Y8: 0.4768683274 | Z8: 0.4795539033 | AA8: 0.4824902724 | AB8: 0.487704918 | AC8: 0.4913793103 | AD8: 0.4954545455 | AE8: 0.5 | AF8: 1.06 | AG8: 1.06 | AH8: 1.06 | AI8: 1.06 | AJ8: 1.06 | AK8: 1.06 | AL8: 1.06 | AM8: =Y8*C8+($A$4-80)*AF8*$A$8/1000 -> 13.62711864 | AN8: =Z8*E8+($A$4-80)*AG8*$A$8/1000 -> 13.11864407 | AO8: =AA8*G8+($A$4-80)*AH8*$A$8/1000 -> 12.61016949 | AP8: =AB8*I8+($A$4-80)*AI8*$A$8/1000 -> 12.10169492 | AQ8: =AC8*K8+($A$4-80)*AJ8*$A$8/1000 -> 11.59322034 | AR8: =AD8*M8+($A$4-80)*AK8*$A$8/1000 -> 11.08474576 | AS8: =AE8*O8+($A$4-80)*AL8*$A$8/1000 -> 10.57627119
B9: 67 | C9: =R9*$I$13 -> 25.62711864 | D9: 16.98305085 | E9: 24.61016949 | F9: =IF(AN9>E9,E9,AN9) -> 16.37288136 | G9: 23.49152542 | H9: =IF(AO9>G9,G9,AO9) -> 15.76271186 | I9: =U9*$I$13 -> 22.37288136 | J9: =IF(AP9>I9,I9,AP9) -> 15.15254237 | K9: 21.15254237 | L9: =IF(AQ9>K9,K9,AQ9) -> 14.6440678 | M9: 19.93220339 | N9: =IF(AR9>M9,M9,AR9) -> 14.13559322 | O9: 18.71186441 | P9: =IF(AS9>O9,O9,AS9) -> 13.62711864 | R9: 1.06779661 | S9: 1.025423729 | T9: 0.9788135593 | U9: 0.9322033898 | V9: 0.8813559322 | W9: 0.8305084746 | X9: 0.7796610169 | Y9: 0.6626984127 | Z9: 0.6652892562 | AA9: 0.670995671 | AB9: 0.6772727273 | AC9: 0.6923076923 | AD9: 0.7091836735 | AE9: 0.7282608696 | AF9: 1.06 | AG9: 1.06 | AH9: 1.06 | AI9: 1.06 | AJ9: 1.06 | AK9: 1.06 | AL9: 1.06 | AM9: =Y9*C9+($A$4-80)*AF9*$A$8/1000 -> 16.98305085 | AN9: =Z9*E9+($A$4-80)*AG9*$A$8/1000 -> 16.37288136 | AO9: =AA9*G9+($A$4-80)*AH9*$A$8/1000 -> 15.76271186 | AP9: =AB9*I9+($A$4-80)*AI9*$A$8/1000 -> 15.15254237 | AQ9: =AC9*K9+($A$4-80)*AJ9*$A$8/1000 -> 14.6440678 | AR9: =AD9*M9+($A$4-80)*AK9*$A$8/1000 -> 14.13559322 | AS9: =AE9*O9+($A$4-80)*AL9*$A$8/1000 -> 13.62711864
B10: 62 | C10: 22.37288136 | D10: 19.42372881 | E10: 21.55932203 | F10: 19.01694915 | G10: 20.6440678 | H10: 18.61016949 | I10: =U10*$I$13 -> 19.83050847 | J10: 18.20338983 | K10: 18.61016949 | L10: 17.49152542 | M10: 17.38983051 | N10: 16.77966102 | O10: 16.16949153 | P10: 16.06779661 | R10: 0.9322033898 | S10: 0.8983050847 | T10: 0.8601694915 | U10: 0.8262711864 | V10: 0.7754237288 | W10: 0.7245762712 | X10: 0.6737288136 | Y10: 0.8681818182 | Z10: 0.8820754717 | AA10: 0.9014778325 | AB10: 0.9179487179 | AC10: 0.9398907104 | AD10: 0.9649122807 | AE10: 0.9937106918 | AF10: 1.06 | AG10: 1.06 | AH10: 1.06 | AI10: 1.06 | AJ10: 1.06 | AK10: 1.06 | AL10: 1.06 | AM10: 19.42372881 | AN10: =Z10*E10+($A$4-80)*AG10*$A$8/1000 -> 19.01694915 | AO10: =AA10*G10+($A$4-80)*AH10*$A$8/1000 -> 18.61016949 | AP10: 18.20338983 | AQ10: 17.49152542 | AR10: 16.77966102 | AS10: 16.06779661
B11: 57 | C11: 20.33898305 | D11: 20.33898305 | E11: 19.3220339 | F11: 19.3220339 | G11: 18.30508475 | H11: 18.30508475 | I11: =U11*$I$13 -> 17.28813559 | J11: 17.28813559 | K11: 16.37288136 | L11: 16.37288136 | M11: 15.45762712 | N11: 15.45762712 | O11: 14.54237288 | P11: 14.54237288 | R11: 0.8474576271 | S11: 0.8050847458 | T11: 0.7627118644 | U11: 0.7203389831 | V11: 0.6822033898 | W11: 0.6440677966 | X11: 0.6059322034 | Y11: 1 | Z11: 1 | AA11: 1 | AB11: 1 | AC11: 1 | AD11: 1 | AE11: 1 | AF11: 1.06 | AG11: 1.06 | AH11: 1.06 | AI11: 1.06 | AJ11: 1.06 | AK11: 1.06 | AL11: 1.06 | AM11: 20.33898305 | AN11: =Z11*E11+($A$4-80)*AG11*$A$8/1000 -> 19.3220339 | AO11: =AA11*G11+($A$4-80)*AH11*$A$8/1000 -> 18.30508475 | AP11: =AB11*I11+($A$4-80)*AI11*$A$8/1000 -> 17.28813559 | AQ11: 16.37288136 | AR11: 15.45762712 | AS11: 14.54237288
A12: 800 | B12: 72 | C12: 30.61016949 | D12: 14.94915254 | E12: 29.38983051 | F12: 14.44067797 | G12: 28.16949153 | H12: 14.03389831 | I12: =U12*$I$13 -> 26.94915254 | J12: 13.62711864 | K12: 25.52542373 | L12: 13.01694915 | M12: 24.10169492 | N12: 12.40677966 | O12: 22.77966102 | P12: 11.79661017 | R12: 1.275423729 | S12: 1.224576271 | T12: 1.173728814 | U12: 1.122881356 | V12: 1.063559322 | W12: 1.004237288 | X12: 0.9491525424 | Y12: 0.488372093 | Z12: 0.491349481 | AA12: 0.4981949458 | AB12: 0.5056603774 | AC12: 0.5099601594 | AD12: 0.5147679325 | AE12: 0.5178571429 | AF12: 1.06 | AG12: 1.06 | AH12: 1.06 | AI12: 1.06 | AJ12: 1.06 | AK12: 1.06 | AL12: 1.06 | AM12: =Y12*C12+($A$4-80)*AF12*$A$12/1000 -> 14.94915254 | AN12: =Z12*E12+($A$4-80)*AG12*$A$12/1000 -> 14.44067797 | AO12: =AA12*G12+($A$4-80)*AH12*$A$12/1000 -> 14.03389831 | AP12: =AB12*I12+($A$4-80)*AI12*$A$12/1000 -> 13.62711864 | AQ12: =AC12*K12+($A$4-80)*AJ12*$A$12/1000 -> 13.01694915 | AR12: =AD12*M12+($A$4-80)*AK12*$A$12/1000 -> 12.40677966 | AS12: =AE12*O12+($A$4-80)*AL12*$A$12/1000 -> 11.79661017
B13: 67 | C13: 27.55932203 | D13: 19.42372881 | E13: 26.44067797 | F13: 18.71186441 | G13: 25.22033898 | H13: 18 | I13: =B2 -> 24 | J13: 17.28813559 | K13: 22.6779661 | L13: 16.77966102 | M13: 21.3559322 | N13: 16.16949153 | O13: 20.13559322 | P13: 15.66101695 | R13: 1.148305085 | S13: 1.101694915 | T13: 1.050847458 | U13: 1 | V13: 0.9449152542 | W13: 0.8898305085 | X13: 0.8389830508 | Y13: 0.704797048 | Z13: 0.7076923077 | AA13: 0.7137096774 | AB13: 0.7203389831 | AC13: 0.7399103139 | AD13: 0.7571428571 | AE13: 0.7777777778 | AF13: 1.06 | AG13: 1.06 | AH13: 1.06 | AI13: 1.06 | AJ13: 1.06 | AK13: 1.06 | AL13: 1.06 | AM13: =Y13*C13+($A$4-80)*AF13*$A$12/1000 -> 19.42372881 | AN13: =Z13*E13+($A$4-80)*AG13*$A$12/1000 -> 18.71186441 | AO13: =AA13*G13+($A$4-80)*AH13*$A$12/1000 -> 18 | AP13: =AB13*I13+($A$4-80)*AI13*$A$12/1000 -> 17.28813559 | AQ13: =AC13*K13+($A$4-80)*AJ13*$A$12/1000 -> 16.77966102 | AR13: =AD13*M13+($A$4-80)*AK13*$A$12/1000 -> 16.16949153 | AS13: =AE13*O13+($A$4-80)*AL13*$A$12/1000 -> 15.66101695
B14: 62 | C14: 23.89830508 | D14: 22.47457627 | E14: 22.98305085 | F14: 21.96610169 | G14: 22.16949153 | H14: 21.45762712 | I14: =U14*$I$13 -> 21.25423729 | J14: 21.05084746 | K14: 19.93220339 | L14: 19.93220339 | M14: 18.61016949 | N14: 18.61016949 | O14: 17.28813559 | P14: 17.28813559 | R14: 0.9957627119 | S14: 0.9576271186 | T14: 0.9237288136 | U14: 0.8855932203 | V14: 0.8305084746 | W14: 0.7754237288 | X14: 0.7203389831 | Y14: 0.9404255319 | Z14: 0.9557522124 | AA14: 0.9678899083 | AB14: 0.990430622 | AC14: 1 | AD14: 1 | AE14: 1 | AF14: 1.06 | AG14: 1.06 | AH14: 1.06 | AI14: 1.06 | AJ14: 1.06 | AK14: 1.06 | AL14: 1.06 | AM14: 22.47457627 | AN14: =Z14*E14+($A$4-80)*AG14*$A$12/1000 -> 21.96610169 | AO14: =AA14*G14+($A$4-80)*AH14*$A$12/1000 -> 21.45762712 | AP14: 21.05084746 | AQ14: 19.93220339 | AR14: 18.61016949 | AS14: 17.28813559
B15: 57 | C15: 22.06779661 | D15: 22.06779661 | E15: 20.94915254 | F15: 20.94915254 | G15: 19.83050847 | H15: 19.83050847 | I15: 18.71186441 | J15: 18.71186441 | K15: 17.69491525 | L15: 17.69491525 | M15: 16.77966102 | N15: 16.77966102 | O15: 15.76271186 | P15: 15.76271186 | R15: 0.9194915254 | S15: 0.8728813559 | T15: 0.8262711864 | U15: 0.7796610169 | V15: 0.7372881356 | W15: 0.6991525424 | X15: 0.656779661 | Y15: 1 | Z15: 1 | AA15: 1 | AB15: 1 | AC15: 1 | AD15: 1 | AE15: 1 | AF15: 1.06 | AG15: 1.06 | AH15: 1.06 | AI15: 1.06 | AJ15: 1.06 | AK15: 1.06 | AL15: 1.06 | AM15: 22.06779661 | AN15: =Z15*E15+($A$4-80)*AG15*$A$12/1000 -> 20.94915254 | AO15: =AA15*G15+($A$4-80)*AH15*$A$12/1000 -> 19.83050847 | AP15: 18.71186441 | AQ15: 17.69491525 | AR15: 16.77966102 | AS15: 15.76271186
A16: 1000 | B16: 72 | C16: 32.6440678 | D16: 16.27118644 | E16: 31.52542373 | F16: 15.86440678 | G16: 30.30508475 | H16: 15.45762712 | I16: 29.08474576 | J16: 15.05084746 | K16: 27.55932203 | L16: 14.33898305 | M16: 25.93220339 | N16: 13.72881356 | O16: 24.40677966 | P16: 13.01694915 | R16: 1.360169492 | S16: 1.313559322 | T16: 1.262711864 | U16: 1.211864407 | V16: 1.148305085 | W16: 1.080508475 | X16: 1.016949153 | Y16: 0.4984423676 | Z16: 0.5032258065 | AA16: 0.5100671141 | AB16: 0.5174825175 | AC16: 0.520295203 | AD16: 0.5294117647 | AE16: 0.5333333333 | AF16: 1.06 | AG16: 1.06 | AH16: 1.06 | AI16: 1.06 | AJ16: 1.06 | AK16: 1.06 | AL16: 1.06 | AM16: =Y16*C16+($A$4-80)*AF16*$A$16/1000 -> 16.27118644 | AN16: =Z16*E16+($A$4-80)*AG16*$A$16/1000 -> 15.86440678 | AO16: =AA16*G16+($A$4-80)*AH16*$A$16/1000 -> 15.45762712 | AP16: =AB16*I16+($A$4-80)*AI16*$A$16/1000 -> 15.05084746 | AQ16: =AC16*K16+($A$4-80)*AJ16*$A$16/1000 -> 14.33898305 | AR16: =AD16*M16+($A$4-80)*AK16*$A$16/1000 -> 13.72881356 | AS16: =AE16*O16+($A$4-80)*AL16*$A$16/1000 -> 13.01694915
B17: 67 | C17: 29.59322034 | D17: 21.76271186 | E17: 28.27118644 | F17: 21.05084746 | G17: 26.94915254 | H17: 20.23728814 | I17: 25.62711864 | J17: 19.42372881 | K17: 24.20338983 | L17: 18.81355932 | M17: 22.88135593 | N17: 18.30508475 | O17: 21.55932203 | P17: 17.79661017 | R17: 1.233050847 | S17: 1.177966102 | T17: 1.122881356 | U17: 1.06779661 | V17: 1.008474576 | W17: 0.9533898305 | X17: 0.8983050847 | Y17: 0.735395189 | Z17: 0.7446043165 | AA17: 0.7509433962 | AB17: 0.7579365079 | AC17: 0.7773109244 | AD17: 0.8 | AE17: 0.8254716981 | AF17: 1.06 | AG17: 1.06 | AH17: 1.06 | AI17: 1.06 | AJ17: 1.06 | AK17: 1.06 | AL17: 1.06 | AM17: =Y17*C17+($A$4-80)*AF17*$A$16/1000 -> 21.76271186 | AN17: =Z17*E17+($A$4-80)*AG17*$A$16/1000 -> 21.05084746 | AO17: =AA17*G17+($A$4-80)*AH17*$A$16/1000 -> 20.23728814 | AP17: =AB17*I17+($A$4-80)*AI17*$A$16/1000 -> 19.42372881 | AQ17: =AC17*K17+($A$4-80)*AJ17*$A$16/1000 -> 18.81355932 | AR17: =AD17*M17+($A$4-80)*AK17*$A$16/1000 -> 18.30508475 | AS17: =AE17*O17+($A$4-80)*AL17*$A$16/1000 -> 17.79661017
B18: 62 | C18: 25.42372881 | D18: 25.42372881 | E18: 24.50847458 | F18: 24.50847458 | G18: 23.59322034 | H18: 23.59322034 | I18: 22.77966102 | J18: 22.77966102 | K18: 21.25423729 | L18: 21.25423729 | M18: 19.83050847 | N18: 19.83050847 | O18: 18.40677966 | P18: 18.40677966 | R18: 1.059322034 | S18: 1.021186441 | T18: 0.9830508475 | U18: 0.9491525424 | V18: 0.8855932203 | W18: 0.8262711864 | X18: 0.7669491525 | Y18: 1 | Z18: 1 | AA18: 1 | AB18: 1 | AC18: 1 | AD18: 1 | AE18: 1 | AF18: 1.06 | AG18: 1.06 | AH18: 1.06 | AI18: 1.06 | AJ18: 1.06 | AK18: 1.06 | AL18: 1.06 | AM18: 25.42372881 | AN18: =Z18*E18+($A$4-80)*AG18*$A$16/1000 -> 24.50847458 | AO18: =AA18*G18+($A$4-80)*AH18*$A$16/1000 -> 23.59322034 | AP18: 22.77966102 | AQ18: 21.25423729 | AR18: 19.83050847 | AS18: 18.40677966
B19: 57 | C19: 23.79661017 | D19: 23.79661017 | E19: 22.57627119 | F19: 22.57627119 | G19: 21.45762712 | H19: 21.45762712 | I19: 20.23728814 | J19: 20.23728814 | K19: 19.11864407 | L19: 19.11864407 | M19: 18.10169492 | N19: 18.10169492 | O19: 16.98305085 | P19: 16.98305085 | R19: 0.9915254237 | S19: 0.9406779661 | T19: 0.8940677966 | U19: 0.843220339 | V19: 0.7966101695 | W19: 0.7542372881 | X19: 0.7076271186 | Y19: 1 | Z19: 1 | AA19: 1 | AB19: 1 | AC19: 1 | AD19: 1 | AE19: 1 | AF19: 1.06 | AG19: 1.06 | AH19: 1.06 | AI19: 1.06 | AJ19: 1.06 | AK19: 1.06 | AL19: 1.06 | AM19: 23.79661017 | AN19: =Z19*E19+($A$4-80)*AG19*$A$16/1000 -> 22.57627119 | AO19: =AA19*G19+($A$4-80)*AH19*$A$16/1000 -> 21.45762712 | AP19: 20.23728814 | AQ19: 19.11864407 | AR19: 18.10169492 | AS19: 16.98305085

Sheet CZF_30 (hidden)
A2: CZF_30 | B2: 30
A3: Evaporator Air | C3: Condenser Entering Air Temperature ˚F
A4: 80 | B4: °F DB | C4: 65 | E4: 75 | G4: 85 | I4: 95 | K4: 105 | M4: 115 | O4: 125
A5: CFM | B5: EWB† ˚F | C5: Capacity Mbtuh | E5: Capacity Mbtuh | G5: Capacity Mbtuh | I5: Capacity Mbtuh | K5: Capacity Mbtuh | M5: Capacity Mbtuh | O5: Capacity Mbtuh
C6: Total | D6: Sens. | E6: Total | F6: Sens. | G6: Total | H6: Sens. | I6: Total | J6: Sens. | K6: Total | L6: Sens. | M6: Total | N6: Sens. | O6: Total | P6: Sens.
R7: Total Factors | Y7: Sens. % | AF7: IDB Adj | AM7: Sens Calc
A8: 800 | B8: 72 | C8: =R8*$I$13 -> 34.3 | D8: =IF(AM8>C8,C8,AM8) -> 15.8 | E8: =S8*$I$13 -> 33.5 | F8: =IF(AN8>E8,E8,AN8) -> 15.4 | G8: =T8*$I$13 -> 32.6 | H8: =IF(AO8>G8,G8,AO8) -> 15.1 | I8: =U8*$I$13 -> 31.7 | J8: =IF(AP8>I8,I8,AP8) -> 14.8 | K8: =V8*$I$13 -> 30 | L8: =IF(AQ8>K8,K8,AQ8) -> 14.1 | M8: =W8*$I$13 -> 28.4 | N8: =IF(AR8>M8,M8,AR8) -> 13.5 | O8: =X8*$I$13 -> 26.7 | P8: =IF(AS8>O8,O8,AS8) -> 12.9 | R8: 1.143333333 | S8: 1.116666667 | T8: 1.086666667 | U8: 1.056666667 | V8: 1 | W8: 0.9466666667 | X8: 0.89 | Y8: 0.4606413994 | Z8: 0.4597014925 | AA8: 0.463190184 | AB8: 0.4668769716 | AC8: 0.47 | AD8: 0.4753521127 | AE8: 0.4831460674 | AF8: 1.06 | AG8: 1.06 | AH8: 1.06 | AI8: 1.06 | AJ8: 1.06 | AK8: 1.06 | AL8: 1.06 | AM8: =Y8*C8+($A$4-80)*AF8*$A$8/1000 -> 15.8 | AN8: =Z8*E8+($A$4-80)*AG8*$A$8/1000 -> 15.4 | AO8: =AA8*G8+($A$4-80)*AH8*$A$8/1000 -> 15.1 | AP8: =AB8*I8+($A$4-80)*AI8*$A$8/1000 -> 14.8 | AQ8: =AC8*K8+($A$4-80)*AJ8*$A$8/1000 -> 14.1 | AR8: =AD8*M8+($A$4-80)*AK8*$A$8/1000 -> 13.5 | AS8: =AE8*O8+($A$4-80)*AL8*$A$8/1000 -> 12.9
B9: 67 | C9: =R9*$I$13 -> 32.1 | D9: 20.5 | E9: 31 | F9: =IF(AN9>E9,E9,AN9) -> 20 | G9: 29.9 | H9: =IF(AO9>G9,G9,AO9) -> 19.4 | I9: =U9*$I$13 -> 28.7 | J9: =IF(AP9>I9,I9,AP9) -> 18.9 | K9: 27.2 | L9: =IF(AQ9>K9,K9,AQ9) -> 18.2 | M9: 25.7 | N9: =IF(AR9>M9,M9,AR9) -> 17.5 | O9: 24.2 | P9: =IF(AS9>O9,O9,AS9) -> 16.8 | R9: 1.07 | S9: 1.033333333 | T9: 0.9966666667 | U9: 0.9566666667 | V9: 0.9066666667 | W9: 0.8566666667 | X9: 0.8066666667 | Y9: 0.6386292835 | Z9: 0.6451612903 | AA9: 0.6488294314 | AB9: 0.6585365854 | AC9: 0.6691176471 | AD9: 0.6809338521 | AE9: 0.694214876 | AF9: 1.06 | AG9: 1.06 | AH9: 1.06 | AI9: 1.06 | AJ9: 1.06 | AK9: 1.06 | AL9: 1.06 | AM9: =Y9*C9+($A$4-80)*AF9*$A$8/1000 -> 20.5 | AN9: =Z9*E9+($A$4-80)*AG9*$A$8/1000 -> 20 | AO9: =AA9*G9+($A$4-80)*AH9*$A$8/1000 -> 19.4 | AP9: =AB9*I9+($A$4-80)*AI9*$A$8/1000 -> 18.9 | AQ9: =AC9*K9+($A$4-80)*AJ9*$A$8/1000 -> 18.2 | AR9: =AD9*M9+($A$4-80)*AK9*$A$8/1000 -> 17.5 | AS9: =AE9*O9+($A$4-80)*AL9*$A$8/1000 -> 16.8
B10: 62 | C10: 29.3 | D10: 24.8 | E10: 27.9 | F10: 23.7 | G10: 26.6 | H10: 22.6 | I10: =U10*$I$13 -> 25.3 | J10: 21.6 | K10: 23.9 | L10: 20.9 | M10: 22.6 | N10: 20.3 | O10: 21.3 | P10: 19.6 | R10: 0.9766666667 | S10: 0.93 | T10: 0.8866666667 | U10: 0.8433333333 | V10: 0.7966666667 | W10: 0.7533333333 | X10: 0.71 | Y10: 0.8464163823 | Z10: 0.8494623656 | AA10: 0.8496240602 | AB10: 0.8537549407 | AC10: 0.8744769874 | AD10: 0.8982300885 | AE10: 0.9201877934 | AF10: 1.06 | AG10: 1.06 | AH10: 1.06 | AI10: 1.06 | AJ10: 1.06 | AK10: 1.06 | AL10: 1.06 | AM10: 24.8 | AN10: =Z10*E10+($A$4-80)*AG10*$A$8/1000 -> 23.7 | AO10: =AA10*G10+($A$4-80)*AH10*$A$8/1000 -> 22.6 | AP10: 21.6 | AQ10: 20.9 | AR10: 20.3 | AS10: 19.6
B11: 57 | C11: 24.6 | D11: 24.6 | E11: 23.8 | F11: 23.8 | G11: 23.1 | H11: 23.1 | I11: =U11*$I$13 -> 22.4 | J11: 22.4 | K11: 21.6 | L11: 21.6 | M11: 20.8 | N11: 20.8 | O11: 20.1 | P11: 20.1 | R11: 0.82 | S11: 0.7933333333 | T11: 0.77 | U11: 0.7466666667 | V11: 0.72 | W11: 0.6933333333 | X11: 0.67 | Y11: 1 | Z11: 1 | AA11: 1 | AB11: 1 | AC11: 1 | AD11: 1 | AE11: 1 | AF11: 1.06 | AG11: 1.06 | AH11: 1.06 | AI11: 1.06 | AJ11: 1.06 | AK11: 1.06 | AL11: 1.06 | AM11: 24.6 | AN11: =Z11*E11+($A$4-80)*AG11*$A$8/1000 -> 23.8 | AO11: =AA11*G11+($A$4-80)*AH11*$A$8/1000 -> 23.1 | AP11: =AB11*I11+($A$4-80)*AI11*$A$8/1000 -> 22.4 | AQ11: 21.6 | AR11: 20.8 | AS11: 20.1
A12: 1000 | B12: 72 | C12: 36 | D12: 16.8 | E12: 35 | F12: 16.5 | G12: 34.1 | H12: 16.3 | I12: =U12*$I$13 -> 33.1 | J12: 16.1 | K12: 31.4 | L12: 15.4 | M12: 29.8 | N12: 14.7 | O12: 28.1 | P12: 14.1 | R12: 1.2 | S12: 1.166666667 | T12: 1.136666667 | U12: 1.103333333 | V12: 1.046666667 | W12: 0.9933333333 | X12: 0.9366666667 | Y12: 0.4666666667 | Z12: 0.4714285714 | AA12: 0.4780058651 | AB12: 0.4864048338 | AC12: 0.4904458599 | AD12: 0.4932885906 | AE12: 0.5017793594 | AF12: 1.06 | AG12: 1.06 | AH12: 1.06 | AI12: 1.06 | AJ12: 1.06 | AK12: 1.06 | AL12: 1.06 | AM12: =Y12*C12+($A$4-80)*AF12*$A$12/1000 -> 16.8 | AN12: =Z12*E12+($A$4-80)*AG12*$A$12/1000 -> 16.5 | AO12: =AA12*G12+($A$4-80)*AH12*$A$12/1000 -> 16.3 | AP12: =AB12*I12+($A$4-80)*AI12*$A$12/1000 -> 16.1 | AQ12: =AC12*K12+($A$4-80)*AJ12*$A$12/1000 -> 15.4 | AR12: =AD12*M12+($A$4-80)*AK12*$A$12/1000 -> 14.7 | AS12: =AE12*O12+($A$4-80)*AL12*$A$12/1000 -> 14.1
B13: 67 | C13: 33 | D13: 22 | E13: 32 | F13: 21.7 | G13: 31 | H13: 21.3 | I13: =B2 -> 30 | J13: 21 | K13: 28.4 | L13: 20.2 | M13: 26.8 | N13: 19.5 | O13: 25.3 | P13: 18.7 | R13: 1.1 | S13: 1.066666667 | T13: 1.033333333 | U13: 1 | V13: 0.9466666667 | W13: 0.8933333333 | X13: 0.8433333333 | Y13: 0.6666666667 | Z13: 0.678125 | AA13: 0.6870967742 | AB13: 0.7 | AC13: 0.7112676056 | AD13: 0.7276119403 | AE13: 0.7391304348 | AF13: 1.06 | AG13: 1.06 | AH13: 1.06 | AI13: 1.06 | AJ13: 1.06 | AK13: 1.06 | AL13: 1.06 | AM13: =Y13*C13+($A$4-80)*AF13*$A$12/1000 -> 22 | AN13: =Z13*E13+($A$4-80)*AG13*$A$12/1000 -> 21.7 | AO13: =AA13*G13+($A$4-80)*AH13*$A$12/1000 -> 21.3 | AP13: =AB13*I13+($A$4-80)*AI13*$A$12/1000 -> 21 | AQ13: =AC13*K13+($A$4-80)*AJ13*$A$12/1000 -> 20.2 | AR13: =AD13*M13+($A$4-80)*AK13*$A$12/1000 -> 19.5 | AS13: =AE13*O13+($A$4-80)*AL13*$A$12/1000 -> 18.7
B14: 62 | C14: 30.5 | D14: 27.5 | E14: 29.2 | F14: 26.4 | G14: 27.9 | H14: 25.2 | I14: =U14*$I$13 -> 26.7 | J14: 24 | K14: 25.3 | L14: 23.3 | M14: 23.9 | N14: 22.7 | O14: 22.6 | P14: 22 | R14: 1.016666667 | S14: 0.9733333333 | T14: 0.93 | U14: 0.89 | V14: 0.8433333333 | W14: 0.7966666667 | X14: 0.7533333333 | Y14: 0.9016393443 | Z14: 0.904109589 | AA14: 0.9032258065 | AB14: 0.8988764045 | AC14: 0.9209486166 | AD14: 0.949790795 | AE14: 0.9734513274 | AF14: 1.06 | AG14: 1.06 | AH14: 1.06 | AI14: 1.06 | AJ14: 1.06 | AK14: 1.06 | AL14: 1.06 | AM14: 27.5 | AN14: =Z14*E14+($A$4-80)*AG14*$A$12/1000 -> 26.4 | AO14: =AA14*G14+($A$4-80)*AH14*$A$12/1000 -> 25.2 | AP14: 24 | AQ14: 23.3 | AR14: 22.7 | AS14: 22
B15: 57 | C15: 26.9 | D15: 26.9 | E15: 25.8 | F15: 25.8 | G15: 24.6 | H15: 24.6 | I15: 23.5 | J15: 23.5 | K15: 22.9 | L15: 22.9 | M15: 22.3 | N15: 22.3 | O15: 21.7 | P15: 21.7 | R15: 0.8966666667 | S15: 0.86 | T15: 0.82 | U15: 0.7833333333 | V15: 0.7633333333 | W15: 0.7433333333 | X15: 0.7233333333 | Y15: 1 | Z15: 1 | AA15: 1 | AB15: 1 | AC15: 1 | AD15: 1 | AE15: 1 | AF15: 1.06 | AG15: 1.06 | AH15: 1.06 | AI15: 1.06 | AJ15: 1.06 | AK15: 1.06 | AL15: 1.06 | AM15: 26.9 | AN15: =Z15*E15+($A$4-80)*AG15*$A$12/1000 -> 25.8 | AO15: =AA15*G15+($A$4-80)*AH15*$A$12/1000 -> 24.6 | AP15: 23.5 | AQ15: 22.9 | AR15: 22.3 | AS15: 21.7
A16: 1200 | B16: 72 | C16: 37.7 | D16: 17.8 | E16: 36.6 | F16: 17.6 | G16: 35.5 | H16: 17.5 | I16: 34.5 | J16: 17.4 | K16: 32.8 | L16: 16.7 | M16: 31.2 | N16: 16 | O16: 29.5 | P16: 15.3 | R16: 1.256666667 | S16: 1.22 | T16: 1.183333333 | U16: 1.15 | V16: 1.093333333 | W16: 1.04 | X16: 0.9833333333 | Y16: 0.4721485411 | Z16: 0.4808743169 | AA16: 0.4929577465 | AB16: 0.5043478261 | AC16: 0.5091463415 | AD16: 0.5128205128 | AE16: 0.5186440678 | AF16: 1.06 | AG16: 1.06 | AH16: 1.06 | AI16: 1.06 | AJ16: 1.06 | AK16: 1.06 | AL16: 1.06 | AM16: =Y16*C16+($A$4-80)*AF16*$A$16/1000 -> 17.8 | AN16: =Z16*E16+($A$4-80)*AG16*$A$16/1000 -> 17.6 | AO16: =AA16*G16+($A$4-80)*AH16*$A$16/1000 -> 17.5 | AP16: =AB16*I16+($A$4-80)*AI16*$A$16/1000 -> 17.4 | AQ16: =AC16*K16+($A$4-80)*AJ16*$A$16/1000 -> 16.7 | AR16: =AD16*M16+($A$4-80)*AK16*$A$16/1000 -> 16 | AS16: =AE16*O16+($A$4-80)*AL16*$A$16/1000 -> 15.3
B17: 67 | C17: 33.9 | D17: 23.5 | E17: 33 | F17: 23.3 | G17: 32.1 | H17: 23.2 | I17: 31.3 | J17: 23.1 | K17: 29.6 | L17: 22.3 | M17: 27.9 | N17: 21.4 | O17: 26.3 | P17: 20.6 | R17: 1.13 | S17: 1.1 | T17: 1.07 | U17: 1.043333333 | V17: 0.9866666667 | W17: 0.93 | X17: 0.8766666667 | Y17: 0.6932153392 | Z17: 0.7060606061 | AA17: 0.722741433 | AB17: 0.7380191693 | AC17: 0.7533783784 | AD17: 0.7670250896 | AE17: 0.783269962 | AF17: 1.06 | AG17: 1.06 | AH17: 1.06 | AI17: 1.06 | AJ17: 1.06 | AK17: 1.06 | AL17: 1.06 | AM17: =Y17*C17+($A$4-80)*AF17*$A$16/1000 -> 23.5 | AN17: =Z17*E17+($A$4-80)*AG17*$A$16/1000 -> 23.3 | AO17: =AA17*G17+($A$4-80)*AH17*$A$16/1000 -> 23.2 | AP17: =AB17*I17+($A$4-80)*AI17*$A$16/1000 -> 23.1 | AQ17: =AC17*K17+($A$4-80)*AJ17*$A$16/1000 -> 22.3 | AR17: =AD17*M17+($A$4-80)*AK17*$A$16/1000 -> 21.4 | AS17: =AE17*O17+($A$4-80)*AL17*$A$16/1000 -> 20.6
B18: 62 | C18: 31.8 | D18: 30.3 | E18: 30.5 | F18: 29 | G18: 29.3 | H18: 27.7 | I18: 28 | J18: 26.5 | K18: 26.6 | L18: 25.7 | M18: 25.2 | N18: 25 | O18: 23.9 | P18: 23.9 | R18: 1.06 | S18: 1.016666667 | T18: 0.9766666667 | U18: 0.9333333333 | V18: 0.8866666667 | W18: 0.84 | X18: 0.7966666667 | Y18: 0.9528301887 | Z18: 0.9508196721 | AA18: 0.9453924915 | AB18: 0.9464285714 | AC18: 0.9661654135 | AD18: 0.9920634921 | AE18: 1 | AF18: 1.06 | AG18: 1.06 | AH18: 1.06 | AI18: 1.06 | AJ18: 1.06 | AK18: 1.06 | AL18: 1.06 | AM18: 30.3 | AN18: =Z18*E18+($A$4-80)*AG18*$A$16/1000 -> 29 | AO18: =AA18*G18+($A$4-80)*AH18*$A$16/1000 -> 27.7 | AP18: 26.5 | AQ18: 25.7 | AR18: 25 | AS18: 23.9
B19: 57 | C19: 29.3 | D19: 29.3 | E19: 27.7 | F19: 27.7 | G19: 26.2 | H19: 26.2 | I19: 24.7 | J19: 24.7 | K19: 24.2 | L19: 24.2 | M19: 23.7 | N19: 23.7 | O19: 23.3 | P19: 23.3 | R19: 0.9766666667 | S19: 0.9233333333 | T19: 0.8733333333 | U19: 0.8233333333 | V19: 0.8066666667 | W19: 0.79 | X19: 0.7766666667 | Y19: 1 | Z19: 1 | AA19: 1 | AB19: 1 | AC19: 1 | AD19: 1 | AE19: 1 | AF19: 1.06 | AG19: 1.06 | AH19: 1.06 | AI19: 1.06 | AJ19: 1.06 | AK19: 1.06 | AL19: 1.06 | AM19: 29.3 | AN19: =Z19*E19+($A$4-80)*AG19*$A$16/1000 -> 27.7 | AO19: =AA19*G19+($A$4-80)*AH19*$A$16/1000 -> 26.2 | AP19: 24.7 | AQ19: 24.2 | AR19: 23.7 | AS19: 23.3

Sheet CZF_36 (hidden)
A2: CZF_36
A3: Evaporator Air | C3: Condenser Entering Air Temperature ˚F
A4: 80 | B4: °F DB | C4: 65 | E4: 75 | G4: 85 | I4: 95 | K4: 105 | M4: 115 | O4: 125
A5: CFM | B5: EWB† ˚F | C5: Capacity Mbtuh | E5: Capacity Mbtuh | G5: Capacity Mbtuh | I5: Capacity Mbtuh | K5: Capacity Mbtuh | M5: Capacity Mbtuh | O5: Capacity Mbtuh
C6: Total | D6: Sens. | E6: Total | F6: Sens. | G6: Total | H6: Sens. | I6: Total | J6: Sens. | K6: Total | L6: Sens. | M6: Total | N6: Sens. | O6: Total | P6: Sens.
R7: Total Factors | Y7: Sens. % | AF7: IDB Adj | AM7: Sens Calc
A8: 1000 | B8: 72 | C8: =R8*$I$13 -> 0 | D8: =IF(AM8>C8,C8,AM8) -> 0 | E8: =S8*$I$13 -> 0 | F8: =IF(AN8>E8,E8,AN8) -> 0 | G8: =T8*$I$13 -> 0 | H8: =IF(AO8>G8,G8,AO8) -> 0 | I8: =U8*$I$13 -> 0 | J8: =IF(AP8>I8,I8,AP8) -> 0 | K8: =V8*$I$13 -> 0 | L8: =IF(AQ8>K8,K8,AQ8) -> 0 | M8: =W8*$I$13 -> 0 | N8: =IF(AR8>M8,M8,AR8) -> 0 | O8: =X8*$I$13 -> 0 | P8: =IF(AS8>O8,O8,AS8) -> 0 | R8: 1.162790698 | S8: 1.127906977 | T8: 1.093023256 | U8: 1.058139535 | V8: 0.9970930233 | W8: 0.9389534884 | X8: 0.8808139535 | Y8: 0.5225 | Z8: 0.5154639175 | AA8: 0.5079787234 | AB8: 0.5 | AC8: 0.5160349854 | AD8: 0.5356037152 | AE8: 0.5577557756 | AF8: 1.06 | AG8: 1.06 | AH8: 1.06 | AI8: 1.06 | AJ8: 1.06 | AK8: 1.06 | AL8: 1.06 | AM8: =Y8*C8+($A$4-80)*AF8*$A$8/1000 -> 0 | AN8: =Z8*E8+($A$4-80)*AG8*$A$8/1000 -> 0 | AO8: =AA8*G8+($A$4-80)*AH8*$A$8/1000 -> 0 | AP8: =AB8*I8+($A$4-80)*AI8*$A$8/1000 -> 0 | AQ8: =AC8*K8+($A$4-80)*AJ8*$A$8/1000 -> 0 | AR8: =AD8*M8+($A$4-80)*AK8*$A$8/1000 -> 0 | AS8: =AE8*O8+($A$4-80)*AL8*$A$8/1000 -> 0
B9: 67 | C9: =R9*$I$13 -> 0 | D9: 0 | E9: 0 | F9: =IF(AN9>E9,E9,AN9) -> 0 | G9: 0 | H9: =IF(AO9>G9,G9,AO9) -> 0 | I9: =U9*$I$13 -> 0 | J9: =IF(AP9>I9,I9,AP9) -> 0 | K9: 0 | L9: =IF(AQ9>K9,K9,AQ9) -> 0 | M9: 0 | N9: =IF(AR9>M9,M9,AR9) -> 0 | O9: 0 | P9: =IF(AS9>O9,O9,AS9) -> 0 | R9: 1.113372093 | S9: 1.069767442 | T9: 1.023255814 | U9: 0.976744186 | V9: 0.9186046512 | W9: 0.863372093 | X9: 0.8081395349 | Y9: 0.6579634465 | Z9: 0.6684782609 | AA9: 0.6818181818 | AB9: 0.6994047619 | AC9: 0.7215189873 | AD9: 0.7474747475 | AE9: 0.773381295 | AF9: 1.06 | AG9: 1.06 | AH9: 1.06 | AI9: 1.06 | AJ9: 1.06 | AK9: 1.06 | AL9: 1.06 | AM9: =Y9*C9+($A$4-80)*AF9*$A$8/1000 -> 0 | AN9: =Z9*E9+($A$4-80)*AG9*$A$8/1000 -> 0 | AO9: =AA9*G9+($A$4-80)*AH9*$A$8/1000 -> 0 | AP9: =AB9*I9+($A$4-80)*AI9*$A$8/1000 -> 0 | AQ9: =AC9*K9+($A$4-80)*AJ9*$A$8/1000 -> 0 | AR9: =AD9*M9+($A$4-80)*AK9*$A$8/1000 -> 0 | AS9: =AE9*O9+($A$4-80)*AL9*$A$8/1000 -> 0
B10: 62 | C10: 0 | D10: 0 | E10: 0 | F10: 0 | G10: 0 | H10: 0 | I10: =U10*$I$13 -> 0 | J10: 0 | K10: 0 | L10: 0 | M10: 0 | N10: 0 | O10: 0 | P10: 0 | R10: 1.01744186 | S10: 0.9796511628 | T10: 0.9418604651 | U10: 0.9011627907 | V10: 0.8546511628 | W10: 0.8081395349 | X10: 0.7645348837 | Y10: 0.86 | Z10: 0.8783382789 | AA10: 0.8981481481 | AB10: 0.9225806452 | AC10: 0.9387755102 | AD10: 0.9532374101 | AE10: 0.969581749 | AF10: 1.06 | AG10: 1.06 | AH10: 1.06 | AI10: 1.06 | AJ10: 1.06 | AK10: 1.06 | AL10: 1.06 | AM10: 0 | AN10: =Z10*E10+($A$4-80)*AG10*$A$8/1000 -> 0 | AO10: =AA10*G10+($A$4-80)*AH10*$A$8/1000 -> 0 | AP10: 0 | AQ10: 0 | AR10: 0 | AS10: 0
B11: 57 | C11: 0 | D11: 0 | E11: 0 | F11: 0 | G11: 0 | H11: 0 | I11: =U11*$I$13 -> 0 | J11: 0 | K11: 0 | L11: 0 | M11: 0 | N11: 0 | O11: 0 | P11: 0 | R11: 0.9622093023 | S11: 0.9360465116 | T11: 0.9098837209 | U11: 0.8837209302 | V11: 0.8372093023 | W11: 0.7936046512 | X11: 0.75 | Y11: 1 | Z11: 1 | AA11: 1 | AB11: 1 | AC11: 1 | AD11: 1 | AE11: 1 | AF11: 1.06 | AG11: 1.06 | AH11: 1.06 | AI11: 1.06 | AJ11: 1.06 | AK11: 1.06 | AL11: 1.06 | AM11: 0 | AN11: =Z11*E11+($A$4-80)*AG11*$A$8/1000 -> 0 | AO11: =AA11*G11+($A$4-80)*AH11*$A$8/1000 -> 0 | AP11: =AB11*I11+($A$4-80)*AI11*$A$8/1000 -> 0 | AQ11: 0 | AR11: 0 | AS11: 0
A12: 1200 | B12: 72 | C12: 0 | D12: 0 | E12: 0 | F12: 0 | G12: 0 | H12: 0 | I12: =U12*$I$13 -> 0 | J12: 0 | K12: 0 | L12: 0 | M12: 0 | N12: 0 | O12: 0 | P12: 0 | R12: 1.206395349 | S12: 1.162790698 | T12: 1.119186047 | U12: 1.078488372 | V12: 1.01744186 | W12: 0.9593023256 | X12: 0.898255814 | Y12: 0.5325301205 | Z12: 0.5325 | AA12: 0.5324675325 | AB12: 0.5283018868 | AC12: 0.5428571429 | AD12: 0.5575757576 | AE12: 0.5760517799 | AF12: 1.06 | AG12: 1.06 | AH12: 1.06 | AI12: 1.06 | AJ12: 1.06 | AK12: 1.06 | AL12: 1.06 | AM12: =Y12*C12+($A$4-80)*AF12*$A$12/1000 -> 0 | AN12: =Z12*E12+($A$4-80)*AG12*$A$12/1000 -> 0 | AO12: =AA12*G12+($A$4-80)*AH12*$A$12/1000 -> 0 | AP12: =AB12*I12+($A$4-80)*AI12*$A$12/1000 -> 0 | AQ12: =AC12*K12+($A$4-80)*AJ12*$A$12/1000 -> 0 | AR12: =AD12*M12+($A$4-80)*AK12*$A$12/1000 -> 0 | AS12: =AE12*O12+($A$4-80)*AL12*$A$12/1000 -> 0
B13: 67 | C13: 0 | D13: 0 | E13: 0 | F13: 0 | G13: 0 | H13: 0 | I13: =B2 -> 0 | J13: 0 | K13: 0 | L13: 0 | M13: 0 | N13: 0 | O13: 0 | P13: 0 | R13: 1.14244186 | S13: 1.095930233 | T13: 1.046511628 | U13: 1 | V13: 0.9389534884 | W13: 0.8808139535 | X13: 0.8197674419 | Y13: 0.6972010178 | Z13: 0.7108753316 | AA13: 0.7277777778 | AB13: 0.7441860465 | AC13: 0.773993808 | AD13: 0.801980198 | AE13: 0.8404255319 | AF13: 1.06 | AG13: 1.06 | AH13: 1.06 | AI13: 1.06 | AJ13: 1.06 | AK13: 1.06 | AL13: 1.06 | AM13: =Y13*C13+($A$4-80)*AF13*$A$12/1000 -> 0 | AN13: =Z13*E13+($A$4-80)*AG13*$A$12/1000 -> 0 | AO13: =AA13*G13+($A$4-80)*AH13*$A$12/1000 -> 0 | AP13: =AB13*I13+($A$4-80)*AI13*$A$12/1000 -> 0 | AQ13: =AC13*K13+($A$4-80)*AJ13*$A$12/1000 -> 0 | AR13: =AD13*M13+($A$4-80)*AK13*$A$12/1000 -> 0 | AS13: =AE13*O13+($A$4-80)*AL13*$A$12/1000 -> 0
B14: 62 | C14: 0 | D14: 0 | E14: 0 | F14: 0 | G14: 0 | H14: 0 | I14: =U14*$I$13 -> 0 | J14: 0 | K14: 0 | L14: 0 | M14: 0 | N14: 0 | O14: 0 | P14: 0 | R14: 1.052325581 | S14: 1.014534884 | T14: 0.976744186 | U14: 0.9389534884 | V14: 0.8895348837 | W14: 0.8459302326 | X14: 0.7994186047 | Y14: 0.9060773481 | Z14: 0.9226361032 | AA14: 0.9375 | AB14: 0.9535603715 | AC14: 0.9640522876 | AD14: 0.9690721649 | AE14: 0.9818181818 | AF14: 1.06 | AG14: 1.06 | AH14: 1.06 | AI14: 1.06 | AJ14: 1.06 | AK14: 1.06 | AL14: 1.06 | AM14: 0 | AN14: =Z14*E14+($A$4-80)*AG14*$A$12/1000 -> 0 | AO14: =AA14*G14+($A$4-80)*AH14*$A$12/1000 -> 0 | AP14: 0 | AQ14: 0 | AR14: 0 | AS14: 0
B15: 57 | C15: 0 | D15: 0 | E15: 0 | F15: 0 | G15: 0 | H15: 0 | I15: 0 | J15: 0 | K15: 0 | L15: 0 | M15: 0 | N15: 0 | O15: 0 | P15: 0 | R15: 0.9941860465 | S15: 0.9709302326 | T15: 0.9476744186 | U15: 0.9244186047 | V15: 0.8779069767 | W15: 0.8284883721 | X15: 0.7819767442 | Y15: 1 | Z15: 1 | AA15: 1 | AB15: 1 | AC15: 1 | AD15: 1 | AE15: 1 | AF15: 1.06 | AG15: 1.06 | AH15: 1.06 | AI15: 1.06 | AJ15: 1.06 | AK15: 1.06 | AL15: 1.06 | AM15: 0 | AN15: =Z15*E15+($A$4-80)*AG15*$A$12/1000 -> 0 | AO15: =AA15*G15+($A$4-80)*AH15*$A$12/1000 -> 0 | AP15: 0 | AQ15: 0 | AR15: 0 | AS15: 0
A16: 1400 | B16: 72 | C16: 0 | D16: 0 | E16: 0 | F16: 0 | G16: 0 | H16: 0 | I16: 0 | J16: 0 | K16: 0 | L16: 0 | M16: 0 | N16: 0 | O16: 0 | P16: 0 | R16: 1.25 | S16: 1.200581395 | T16: 1.148255814 | U16: 1.095930233 | V16: 1.034883721 | W16: 0.976744186 | X16: 0.9186046512 | Y16: 0.5418604651 | Z16: 0.5472154964 | AA16: 0.5518987342 | AB16: 0.5596816976 | AC16: 0.5702247191 | AD16: 0.5833333333 | AE16: 0.5949367089 | AF16: 1.06 | AG16: 1.06 | AH16: 1.06 | AI16: 1.06 | AJ16: 1.06 | AK16: 1.06 | AL16: 1.06 | AM16: =Y16*C16+($A$4-80)*AF16*$A$16/1000 -> 0 | AN16: =Z16*E16+($A$4-80)*AG16*$A$16/1000 -> 0 | AO16: =AA16*G16+($A$4-80)*AH16*$A$16/1000 -> 0 | AP16: =AB16*I16+($A$4-80)*AI16*$A$16/1000 -> 0 | AQ16: =AC16*K16+($A$4-80)*AJ16*$A$16/1000 -> 0 | AR16: =AD16*M16+($A$4-80)*AK16*$A$16/1000 -> 0 | AS16: =AE16*O16+($A$4-80)*AL16*$A$16/1000 -> 0
B17: 67 | C17: 0 | D17: 0 | E17: 0 | F17: 0 | G17: 0 | H17: 0 | I17: 0 | J17: 0 | K17: 0 | L17: 0 | M17: 0 | N17: 0 | O17: 0 | P17: 0 | R17: 1.171511628 | S17: 1.122093023 | T17: 1.072674419 | U17: 1.023255814 | V17: 0.9593023256 | W17: 0.8953488372 | X17: 0.8343023256 | Y17: 0.7344913151 | Z17: 0.7512953368 | AA17: 0.7669376694 | AB17: 0.7869318182 | AC17: 0.8212121212 | AD17: 0.8603896104 | AE17: 0.9024390244 | AF17: 1.06 | AG17: 1.06 | AH17: 1.06 | AI17: 1.06 | AJ17: 1.06 | AK17: 1.06 | AL17: 1.06 | AM17: =Y17*C17+($A$4-80)*AF17*$A$16/1000 -> 0 | AN17: =Z17*E17+($A$4-80)*AG17*$A$16/1000 -> 0 | AO17: =AA17*G17+($A$4-80)*AH17*$A$16/1000 -> 0 | AP17: =AB17*I17+($A$4-80)*AI17*$A$16/1000 -> 0 | AQ17: =AC17*K17+($A$4-80)*AJ17*$A$16/1000 -> 0 | AR17: =AD17*M17+($A$4-80)*AK17*$A$16/1000 -> 0 | AS17: =AE17*O17+($A$4-80)*AL17*$A$16/1000 -> 0
B18: 62 | C18: 0 | D18: 0 | E18: 0 | F18: 0 | G18: 0 | H18: 0 | I18: 0 | J18: 0 | K18: 0 | L18: 0 | M18: 0 | N18: 0 | O18: 0 | P18: 0 | R18: 1.087209302 | S18: 1.049418605 | T18: 1.011627907 | U18: 0.9738372093 | V18: 0.9244186047 | W18: 0.8808139535 | X18: 0.8343023256 | Y18: 0.9518716578 | Z18: 0.9612188366 | AA18: 0.974137931 | AB18: 0.9880597015 | AC18: 0.9905660377 | AD18: 0.9867986799 | AE18: 0.9895470383 | AF18: 1.06 | AG18: 1.06 | AH18: 1.06 | AI18: 1.06 | AJ18: 1.06 | AK18: 1.06 | AL18: 1.06 | AM18: 0 | AN18: =Z18*E18+($A$4-80)*AG18*$A$16/1000 -> 0 | AO18: =AA18*G18+($A$4-80)*AH18*$A$16/1000 -> 0 | AP18: 0 | AQ18: 0 | AR18: 0 | AS18: 0
B19: 57 | C19: 0 | D19: 0 | E19: 0 | F19: 0 | G19: 0 | H19: 0 | I19: 0 | J19: 0 | K19: 0 | L19: 0 | M19: 0 | N19: 0 | O19: 0 | P19: 0 | R19: 1.023255814 | S19: 1.005813953 | T19: 0.9854651163 | U19: 0.9680232558 | V19: 0.9156976744 | W19: 0.8662790698 | X19: 0.8168604651 | Y19: 1 | Z19: 1 | AA19: 1 | AB19: 0.996996997 | AC19: 1 | AD19: 1 | AE19: 1 | AF19: 1.06 | AG19: 1.06 | AH19: 1.06 | AI19: 1.06 | AJ19: 1.06 | AK19: 1.06 | AL19: 1.06 | AM19: 0 | AN19: =Z19*E19+($A$4-80)*AG19*$A$16/1000 -> 0 | AO19: =AA19*G19+($A$4-80)*AH19*$A$16/1000 -> 0 | AP19: 0 | AQ19: 0 | AR19: 0 | AS19: 0

Sheet CZF_42 (hidden)
A2: CZF_42
A3: Evaporator Air | C3: Condenser Entering Air Temperature ˚F
A4: 80 | B4: °F DB | C4: 65 | E4: 75 | G4: 85 | I4: 95 | K4: 105 | M4: 115 | O4: 125
A5: CFM | B5: EWB† ˚F | C5: Capacity Mbtuh | E5: Capacity Mbtuh | G5: Capacity Mbtuh | I5: Capacity Mbtuh | K5: Capacity Mbtuh | M5: Capacity Mbtuh | O5: Capacity Mbtuh
C6: Total | D6: Sens. | E6: Total | F6: Sens. | G6: Total | H6: Sens. | I6: Total | J6: Sens. | K6: Total | L6: Sens. | M6: Total | N6: Sens. | O6: Total | P6: Sens.
R7: Total Factors | Y7: Sens. % | AF7: IDB Adj | AM7: Sens Calc
A8: 1200 | B8: 72 | C8: =R8*$I$13 -> 0 | D8: =IF(AM8>C8,C8,AM8) -> 0 | E8: =S8*$I$13 -> 0 | F8: =IF(AN8>E8,E8,AN8) -> 0 | G8: =T8*$I$13 -> 0 | H8: =IF(AO8>G8,G8,AO8) -> 0 | I8: =U8*$I$13 -> 0 | J8: =IF(AP8>I8,I8,AP8) -> 0 | K8: =V8*$I$13 -> 0 | L8: =IF(AQ8>K8,K8,AQ8) -> 0 | M8: =W8*$I$13 -> 0 | N8: =IF(AR8>M8,M8,AR8) -> 0 | O8: =X8*$I$13 -> 0 | P8: =IF(AS8>O8,O8,AS8) -> 0 | R8: 1.185542169 | S8: 1.146987952 | T8: 1.110843373 | U8: 1.072289157 | V8: 1.012048193 | W8: 0.9518072289 | X8: 0.8915662651 | Y8: 0.487804878 | Z8: 0.493697479 | AA8: 0.4989154013 | AB8: 0.5056179775 | AC8: 0.5142857143 | AD8: 0.5240506329 | AE8: 0.5351351351 | AF8: 1.06 | AG8: 1.06 | AH8: 1.06 | AI8: 1.06 | AJ8: 1.06 | AK8: 1.06 | AL8: 1.06 | AM8: =Y8*C8+($A$4-80)*AF8*$A$8/1000 -> 0 | AN8: =Z8*E8+($A$4-80)*AG8*$A$8/1000 -> 0 | AO8: =AA8*G8+($A$4-80)*AH8*$A$8/1000 -> 0 | AP8: =AB8*I8+($A$4-80)*AI8*$A$8/1000 -> 0 | AQ8: =AC8*K8+($A$4-80)*AJ8*$A$8/1000 -> 0 | AR8: =AD8*M8+($A$4-80)*AK8*$A$8/1000 -> 0 | AS8: =AE8*O8+($A$4-80)*AL8*$A$8/1000 -> 0
B9: 67 | C9: =R9*$I$13 -> 0 | D9: 0 | E9: 0 | F9: =IF(AN9>E9,E9,AN9) -> 0 | G9: 0 | H9: =IF(AO9>G9,G9,AO9) -> 0 | I9: =U9*$I$13 -> 0 | J9: =IF(AP9>I9,I9,AP9) -> 0 | K9: 0 | L9: =IF(AQ9>K9,K9,AQ9) -> 0 | M9: 0 | N9: =IF(AR9>M9,M9,AR9) -> 0 | O9: 0 | P9: =IF(AS9>O9,O9,AS9) -> 0 | R9: 1.108433735 | S9: 1.06746988 | T9: 1.028915663 | U9: 0.9879518072 | V9: 0.9253012048 | W9: 0.865060241 | X9: 0.8048192771 | Y9: 0.6630434783 | Z9: 0.6726862302 | AA9: 0.681498829 | AB9: 0.6902439024 | AC9: 0.7109375 | AD9: 0.7353760446 | AE9: 0.7604790419 | AF9: 1.06 | AG9: 1.06 | AH9: 1.06 | AI9: 1.06 | AJ9: 1.06 | AK9: 1.06 | AL9: 1.06 | AM9: =Y9*C9+($A$4-80)*AF9*$A$8/1000 -> 0 | AN9: =Z9*E9+($A$4-80)*AG9*$A$8/1000 -> 0 | AO9: =AA9*G9+($A$4-80)*AH9*$A$8/1000 -> 0 | AP9: =AB9*I9+($A$4-80)*AI9*$A$8/1000 -> 0 | AQ9: =AC9*K9+($A$4-80)*AJ9*$A$8/1000 -> 0 | AR9: =AD9*M9+($A$4-80)*AK9*$A$8/1000 -> 0 | AS9: =AE9*O9+($A$4-80)*AL9*$A$8/1000 -> 0
B10: 62 | C10: 0 | D10: 0 | E10: 0 | F10: 0 | G10: 0 | H10: 0 | I10: =U10*$I$13 -> 0 | J10: 0 | K10: 0 | L10: 0 | M10: 0 | N10: 0 | O10: 0 | P10: 0 | R10: 1.014457831 | S10: 0.9759036145 | T10: 0.9373493976 | U10: 0.8987951807 | V10: 0.8457831325 | W10: 0.7927710843 | X10: 0.7421686747 | Y10: 0.8479809976 | Z10: 0.8691358025 | AA10: 0.8920308483 | AB10: 0.9168900804 | AC10: 0.943019943 | AD10: 0.9696048632 | AE10: 1 | AF10: 1.06 | AG10: 1.06 | AH10: 1.06 | AI10: 1.06 | AJ10: 1.06 | AK10: 1.06 | AL10: 1.06 | AM10: 0 | AN10: =Z10*E10+($A$4-80)*AG10*$A$8/1000 -> 0 | AO10: =AA10*G10+($A$4-80)*AH10*$A$8/1000 -> 0 | AP10: 0 | AQ10: 0 | AR10: 0 | AS10: 0
B11: 57 | C11: 0 | D11: 0 | E11: 0 | F11: 0 | G11: 0 | H11: 0 | I11: =U11*$I$13 -> 0 | J11: 0 | K11: 0 | L11: 0 | M11: 0 | N11: 0 | O11: 0 | P11: 0 | R11: 0.9493975904 | S11: 0.9277108434 | T11: 0.9060240964 | U11: 0.8819277108 | V11: 0.8385542169 | W11: 0.7951807229 | X11: 0.7542168675 | Y11: 1 | Z11: 1 | AA11: 1 | AB11: 1 | AC11: 1 | AD11: 1 | AE11: 1 | AF11: 1.06 | AG11: 1.06 | AH11: 1.06 | AI11: 1.06 | AJ11: 1.06 | AK11: 1.06 | AL11: 1.06 | AM11: 0 | AN11: =Z11*E11+($A$4-80)*AG11*$A$8/1000 -> 0 | AO11: =AA11*G11+($A$4-80)*AH11*$A$8/1000 -> 0 | AP11: =AB11*I11+($A$4-80)*AI11*$A$8/1000 -> 0 | AQ11: 0 | AR11: 0 | AS11: 0
A12: 1400 | B12: 72 | C12: 0 | D12: 0 | E12: 0 | F12: 0 | G12: 0 | H12: 0 | I12: =U12*$I$13 -> 0 | J12: 0 | K12: 0 | L12: 0 | M12: 0 | N12: 0 | O12: 0 | P12: 0 | R12: 1.214457831 | S12: 1.173493976 | T12: 1.130120482 | U12: 1.086746988 | V12: 1.024096386 | W12: 0.9638554217 | X12: 0.9036144578 | Y12: 0.5 | Z12: 0.5071868583 | AA12: 0.5159914712 | AB12: 0.5254988914 | AC12: 0.5364705882 | AD12: 0.55 | AE12: 0.5626666667 | AF12: 1.06 | AG12: 1.06 | AH12: 1.06 | AI12: 1.06 | AJ12: 1.06 | AK12: 1.06 | AL12: 1.06 | AM12: =Y12*C12+($A$4-80)*AF12*$A$12/1000 -> 0 | AN12: =Z12*E12+($A$4-80)*AG12*$A$12/1000 -> 0 | AO12: =AA12*G12+($A$4-80)*AH12*$A$12/1000 -> 0 | AP12: =AB12*I12+($A$4-80)*AI12*$A$12/1000 -> 0 | AQ12: =AC12*K12+($A$4-80)*AJ12*$A$12/1000 -> 0 | AR12: =AD12*M12+($A$4-80)*AK12*$A$12/1000 -> 0 | AS12: =AE12*O12+($A$4-80)*AL12*$A$12/1000 -> 0
B13: 67 | C13: 0 | D13: 0 | E13: 0 | F13: 0 | G13: 0 | H13: 0 | I13: =B2 -> 0 | J13: 0 | K13: 0 | L13: 0 | M13: 0 | N13: 0 | O13: 0 | P13: 0 | R13: 1.13253012 | S13: 1.089156627 | T13: 1.043373494 | U13: 1 | V13: 0.9373493976 | W13: 0.8771084337 | X13: 0.8144578313 | Y13: 0.6914893617 | Z13: 0.703539823 | AA13: 0.7159353349 | AB13: 0.7277108434 | AC13: 0.7506426735 | AD13: 0.7774725275 | AE13: 0.8076923077 | AF13: 1.06 | AG13: 1.06 | AH13: 1.06 | AI13: 1.06 | AJ13: 1.06 | AK13: 1.06 | AL13: 1.06 | AM13: =Y13*C13+($A$4-80)*AF13*$A$12/1000 -> 0 | AN13: =Z13*E13+($A$4-80)*AG13*$A$12/1000 -> 0 | AO13: =AA13*G13+($A$4-80)*AH13*$A$12/1000 -> 0 | AP13: =AB13*I13+($A$4-80)*AI13*$A$12/1000 -> 0 | AQ13: =AC13*K13+($A$4-80)*AJ13*$A$12/1000 -> 0 | AR13: =AD13*M13+($A$4-80)*AK13*$A$12/1000 -> 0 | AS13: =AE13*O13+($A$4-80)*AL13*$A$12/1000 -> 0
B14: 62 | C14: 0 | D14: 0 | E14: 0 | F14: 0 | G14: 0 | H14: 0 | I14: =U14*$I$13 -> 0 | J14: 0 | K14: 0 | L14: 0 | M14: 0 | N14: 0 | O14: 0 | P14: 0 | R14: 1.028915663 | S14: 0.9927710843 | T14: 0.956626506 | U14: 0.9180722892 | V14: 0.865060241 | W14: 0.8144578313 | X14: 0.7614457831 | Y14: 0.8969555035 | Z14: 0.9174757282 | AA14: 0.9395465995 | AB14: 0.9632545932 | AC14: 0.9777158774 | AD14: 0.9911242604 | AE14: 1 | AF14: 1.06 | AG14: 1.06 | AH14: 1.06 | AI14: 1.06 | AJ14: 1.06 | AK14: 1.06 | AL14: 1.06 | AM14: 0 | AN14: =Z14*E14+($A$4-80)*AG14*$A$12/1000 -> 0 | AO14: =AA14*G14+($A$4-80)*AH14*$A$12/1000 -> 0 | AP14: 0 | AQ14: 0 | AR14: 0 | AS14: 0
B15: 57 | C15: 0 | D15: 0 | E15: 0 | F15: 0 | G15: 0 | H15: 0 | I15: 0 | J15: 0 | K15: 0 | L15: 0 | M15: 0 | N15: 0 | O15: 0 | P15: 0 | R15: 0.9927710843 | S15: 0.9662650602 | T15: 0.9397590361 | U15: 0.9156626506 | V15: 0.8698795181 | W15: 0.8265060241 | X15: 0.7807228916 | Y15: 1 | Z15: 1 | AA15: 1 | AB15: 1 | AC15: 1 | AD15: 1 | AE15: 1 | AF15: 1.06 | AG15: 1.06 | AH15: 1.06 | AI15: 1.06 | AJ15: 1.06 | AK15: 1.06 | AL15: 1.06 | AM15: 0 | AN15: =Z15*E15+($A$4-80)*AG15*$A$12/1000 -> 0 | AO15: =AA15*G15+($A$4-80)*AH15*$A$12/1000 -> 0 | AP15: 0 | AQ15: 0 | AR15: 0 | AS15: 0
A16: 1600 | B16: 72 | C16: 0 | D16: 0 | E16: 0 | F16: 0 | G16: 0 | H16: 0 | I16: 0 | J16: 0 | K16: 0 | L16: 0 | M16: 0 | N16: 0 | O16: 0 | P16: 0 | R16: 1.245783133 | S16: 1.197590361 | T16: 1.14939759 | U16: 1.101204819 | V16: 1.038554217 | W16: 0.978313253 | X16: 0.9156626506 | Y16: 0.5106382979 | Z16: 0.5211267606 | AA16: 0.534591195 | AB16: 0.5470459519 | AC16: 0.5591647332 | AD16: 0.5714285714 | AE16: 0.5894736842 | AF16: 1.06 | AG16: 1.06 | AH16: 1.06 | AI16: 1.06 | AJ16: 1.06 | AK16: 1.06 | AL16: 1.06 | AM16: =Y16*C16+($A$4-80)*AF16*$A$16/1000 -> 0 | AN16: =Z16*E16+($A$4-80)*AG16*$A$16/1000 -> 0 | AO16: =AA16*G16+($A$4-80)*AH16*$A$16/1000 -> 0 | AP16: =AB16*I16+($A$4-80)*AI16*$A$16/1000 -> 0 | AQ16: =AC16*K16+($A$4-80)*AJ16*$A$16/1000 -> 0 | AR16: =AD16*M16+($A$4-80)*AK16*$A$16/1000 -> 0 | AS16: =AE16*O16+($A$4-80)*AL16*$A$16/1000 -> 0
B17: 67 | C17: 0 | D17: 0 | E17: 0 | F17: 0 | G17: 0 | H17: 0 | I17: 0 | J17: 0 | K17: 0 | L17: 0 | M17: 0 | N17: 0 | O17: 0 | P17: 0 | R17: 1.156626506 | S17: 1.108433735 | T17: 1.060240964 | U17: 1.012048193 | V17: 0.9493975904 | W17: 0.886746988 | X17: 0.8265060241 | Y17: 0.71875 | Z17: 0.7326086957 | AA17: 0.7477272727 | AB17: 0.7642857143 | AC17: 0.7893401015 | AD17: 0.8179347826 | AE17: 0.8513119534 | AF17: 1.06 | AG17: 1.06 | AH17: 1.06 | AI17: 1.06 | AJ17: 1.06 | AK17: 1.06 | AL17: 1.06 | AM17: =Y17*C17+($A$4-80)*AF17*$A$16/1000 -> 0 | AN17: =Z17*E17+($A$4-80)*AG17*$A$16/1000 -> 0 | AO17: =AA17*G17+($A$4-80)*AH17*$A$16/1000 -> 0 | AP17: =AB17*I17+($A$4-80)*AI17*$A$16/1000 -> 0 | AQ17: =AC17*K17+($A$4-80)*AJ17*$A$16/1000 -> 0 | AR17: =AD17*M17+($A$4-80)*AK17*$A$16/1000 -> 0 | AS17: =AE17*O17+($A$4-80)*AL17*$A$16/1000 -> 0
B18: 62 | C18: 0 | D18: 0 | E18: 0 | F18: 0 | G18: 0 | H18: 0 | I18: 0 | J18: 0 | K18: 0 | L18: 0 | M18: 0 | N18: 0 | O18: 0 | P18: 0 | R18: 1.043373494 | S18: 1.009638554 | T18: 0.9734939759 | U18: 0.9397590361 | V18: 0.886746988 | W18: 0.8337349398 | X18: 0.7807228916 | Y18: 0.9468822171 | Z18: 0.9642004773 | AA18: 0.9851485149 | AB18: 1 | AC18: 1 | AD18: 1 | AE18: 1 | AF18: 1.06 | AG18: 1.06 | AH18: 1.06 | AI18: 1.06 | AJ18: 1.06 | AK18: 1.06 | AL18: 1.06 | AM18: 0 | AN18: =Z18*E18+($A$4-80)*AG18*$A$16/1000 -> 0 | AO18: =AA18*G18+($A$4-80)*AH18*$A$16/1000 -> 0 | AP18: 0 | AQ18: 0 | AR18: 0 | AS18: 0
B19: 57 | C19: 0 | D19: 0 | E19: 0 | F19: 0 | G19: 0 | H19: 0 | I19: 0 | J19: 0 | K19: 0 | L19: 0 | M19: 0 | N19: 0 | O19: 0 | P19: 0 | R19: 1.036144578 | S19: 1.007228916 | T19: 0.9759036145 | U19: 0.9469879518 | V19: 0.9012048193 | W19: 0.8554216867 | X19: 0.8096385542 | Y19: 0.9976744186 | Z19: 1 | AA19: 1 | AB19: 1 | AC19: 1 | AD19: 1 | AE19: 1 | AF19: 1.06 | AG19: 1.06 | AH19: 1.06 | AI19: 1.06 | AJ19: 1.06 | AK19: 1.06 | AL19: 1.06 | AM19: 0 | AN19: =Z19*E19+($A$4-80)*AG19*$A$16/1000 -> 0 | AO19: =AA19*G19+($A$4-80)*AH19*$A$16/1000 -> 0 | AP19: 0 | AQ19: 0 | AR19: 0 | AS19: 0

Sheet CZF_48 (hidden)
A2: CZF_48
A3: Evaporator Air | C3: Condenser Entering Air Temperature ˚F
A4: 80 | B4: °F DB | C4: 65 | E4: 75 | G4: 85 | I4: 95 | K4: 105 | M4: 115 | O4: 125
A5: CFM | B5: EWB† ˚F | C5: Capacity Mbtuh | E5: Capacity Mbtuh | G5: Capacity Mbtuh | I5: Capacity Mbtuh | K5: Capacity Mbtuh | M5: Capacity Mbtuh | O5: Capacity Mbtuh
C6: Total | D6: Sens. | E6: Total | F6: Sens. | G6: Total | H6: Sens. | I6: Total | J6: Sens. | K6: Total | L6: Sens. | M6: Total | N6: Sens. | O6: Total | P6: Sens.
R7: Total Factors | Y7: Sens. % | AF7: IDB Adj | AM7: Sens Calc
A8: 1400 | B8: 72 | C8: =R8*$I$13 -> 0 | D8: =IF(AM8>C8,C8,AM8) -> 0 | E8: =S8*$I$13 -> 0 | F8: =IF(AN8>E8,E8,AN8) -> 0 | G8: =T8*$I$13 -> 0 | H8: =IF(AO8>G8,G8,AO8) -> 0 | I8: =U8*$I$13 -> 0 | J8: =IF(AP8>I8,I8,AP8) -> 0 | K8: =V8*$I$13 -> 0 | L8: =IF(AQ8>K8,K8,AQ8) -> 0 | M8: =W8*$I$13 -> 0 | N8: =IF(AR8>M8,M8,AR8) -> 0 | O8: =X8*$I$13 -> 0 | P8: =IF(AS8>O8,O8,AS8) -> 0 | R8: 1.2 | S8: 1.158333333 | T8: 1.11875 | U8: 1.077083333 | V8: 1.020833333 | W8: 0.9645833333 | X8: 0.9083333333 | Y8: 0.4600694444 | Z8: 0.4694244604 | AA8: 0.4767225326 | AB8: 0.4874274662 | AC8: 0.493877551 | AD8: 0.5032397408 | AE8: 0.5114678899 | AF8: 1.06 | AG8: 1.06 | AH8: 1.06 | AI8: 1.06 | AJ8: 1.06 | AK8: 1.06 | AL8: 1.06 | AM8: =Y8*C8+($A$4-80)*AF8*$A$8/1000 -> 0 | AN8: =Z8*E8+($A$4-80)*AG8*$A$8/1000 -> 0 | AO8: =AA8*G8+($A$4-80)*AH8*$A$8/1000 -> 0 | AP8: =AB8*I8+($A$4-80)*AI8*$A$8/1000 -> 0 | AQ8: =AC8*K8+($A$4-80)*AJ8*$A$8/1000 -> 0 | AR8: =AD8*M8+($A$4-80)*AK8*$A$8/1000 -> 0 | AS8: =AE8*O8+($A$4-80)*AL8*$A$8/1000 -> 0
B9: 67 | C9: =R9*$I$13 -> 0 | D9: 0 | E9: 0 | F9: =IF(AN9>E9,E9,AN9) -> 0 | G9: 0 | H9: =IF(AO9>G9,G9,AO9) -> 0 | I9: =U9*$I$13 -> 0 | J9: =IF(AP9>I9,I9,AP9) -> 0 | K9: 0 | L9: =IF(AQ9>K9,K9,AQ9) -> 0 | M9: 0 | N9: =IF(AR9>M9,M9,AR9) -> 0 | O9: 0 | P9: =IF(AS9>O9,O9,AS9) -> 0 | R9: 1.10625 | S9: 1.066666667 | T9: 1.027083333 | U9: 0.9875 | V9: 0.9354166667 | W9: 0.8833333333 | X9: 0.83125 | Y9: 0.6516007533 | Z9: 0.6640625 | AA9: 0.6754563895 | AB9: 0.6898734177 | AC9: 0.7082405345 | AD9: 0.7311320755 | AE9: 0.7568922306 | AF9: 1.06 | AG9: 1.06 | AH9: 1.06 | AI9: 1.06 | AJ9: 1.06 | AK9: 1.06 | AL9: 1.06 | AM9: =Y9*C9+($A$4-80)*AF9*$A$8/1000 -> 0 | AN9: =Z9*E9+($A$4-80)*AG9*$A$8/1000 -> 0 | AO9: =AA9*G9+($A$4-80)*AH9*$A$8/1000 -> 0 | AP9: =AB9*I9+($A$4-80)*AI9*$A$8/1000 -> 0 | AQ9: =AC9*K9+($A$4-80)*AJ9*$A$8/1000 -> 0 | AR9: =AD9*M9+($A$4-80)*AK9*$A$8/1000 -> 0 | AS9: =AE9*O9+($A$4-80)*AL9*$A$8/1000 -> 0
B10: 62 | C10: 0 | D10: 0 | E10: 0 | F10: 0 | G10: 0 | H10: 0 | I10: =U10*$I$13 -> 0 | J10: 0 | K10: 0 | L10: 0 | M10: 0 | N10: 0 | O10: 0 | P10: 0 | R10: 1.016666667 | S10: 0.9854166667 | T10: 0.9541666667 | U10: 0.9229166667 | V10: 0.8645833333 | W10: 0.8104166667 | X10: 0.7541666667 | Y10: 0.8422131148 | Z10: 0.8646934461 | AA10: 0.8886462882 | AB10: 0.914221219 | AC10: 0.9445783133 | AD10: 0.9742930591 | AE10: 1 | AF10: 1.06 | AG10: 1.06 | AH10: 1.06 | AI10: 1.06 | AJ10: 1.06 | AK10: 1.06 | AL10: 1.06 | AM10: 0 | AN10: =Z10*E10+($A$4-80)*AG10*$A$8/1000 -> 0 | AO10: =AA10*G10+($A$4-80)*AH10*$A$8/1000 -> 0 | AP10: 0 | AQ10: 0 | AR10: 0 | AS10: 0
B11: 57 | C11: 0 | D11: 0 | E11: 0 | F11: 0 | G11: 0 | H11: 0 | I11: =U11*$I$13 -> 0 | J11: 0 | K11: 0 | L11: 0 | M11: 0 | N11: 0 | O11: 0 | P11: 0 | R11: 0.9666666667 | S11: 0.9375 | T11: 0.9083333333 | U11: 0.8770833333 | V11: 0.8375 | W11: 0.8 | X11: 0.7604166667 | Y11: 1 | Z11: 1 | AA11: 1 | AB11: 1 | AC11: 1 | AD11: 1 | AE11: 1 | AF11: 1.06 | AG11: 1.06 | AH11: 1.06 | AI11: 1.06 | AJ11: 1.06 | AK11: 1.06 | AL11: 1.06 | AM11: 0 | AN11: =Z11*E11+($A$4-80)*AG11*$A$8/1000 -> 0 | AO11: =AA11*G11+($A$4-80)*AH11*$A$8/1000 -> 0 | AP11: =AB11*I11+($A$4-80)*AI11*$A$8/1000 -> 0 | AQ11: 0 | AR11: 0 | AS11: 0
A12: 1600 | B12: 72 | C12: 0 | D12: 0 | E12: 0 | F12: 0 | G12: 0 | H12: 0 | I12: =U12*$I$13 -> 0 | J12: 0 | K12: 0 | L12: 0 | M12: 0 | N12: 0 | O12: 0 | P12: 0 | R12: 1.210416667 | S12: 1.170833333 | T12: 1.13125 | U12: 1.091666667 | V12: 1.035416667 | W12: 0.9791666667 | X12: 0.925 | Y12: 0.4819277108 | Z12: 0.4893238434 | AA12: 0.4953959484 | AB12: 0.5038167939 | AC12: 0.5150905433 | AD12: 0.5276595745 | AE12: 0.5405405405 | AF12: 1.06 | AG12: 1.06 | AH12: 1.06 | AI12: 1.06 | AJ12: 1.06 | AK12: 1.06 | AL12: 1.06 | AM12: =Y12*C12+($A$4-80)*AF12*$A$12/1000 -> 0 | AN12: =Z12*E12+($A$4-80)*AG12*$A$12/1000 -> 0 | AO12: =AA12*G12+($A$4-80)*AH12*$A$12/1000 -> 0 | AP12: =AB12*I12+($A$4-80)*AI12*$A$12/1000 -> 0 | AQ12: =AC12*K12+($A$4-80)*AJ12*$A$12/1000 -> 0 | AR12: =AD12*M12+($A$4-80)*AK12*$A$12/1000 -> 0 | AS12: =AE12*O12+($A$4-80)*AL12*$A$12/1000 -> 0
B13: 67 | C13: 0 | D13: 0 | E13: 0 | F13: 0 | G13: 0 | H13: 0 | I13: =B2 -> 0 | J13: 0 | K13: 0 | L13: 0 | M13: 0 | N13: 0 | O13: 0 | P13: 0 | R13: 1.133333333 | S13: 1.0875 | T13: 1.04375 | U13: 1 | V13: 0.9458333333 | W13: 0.8958333333 | X13: 0.84375 | Y13: 0.6801470588 | Z13: 0.69348659 | AA13: 0.7065868263 | AB13: 0.7208333333 | AC13: 0.7444933921 | AD13: 0.7697674419 | AE13: 0.8 | AF13: 1.06 | AG13: 1.06 | AH13: 1.06 | AI13: 1.06 | AJ13: 1.06 | AK13: 1.06 | AL13: 1.06 | AM13: =Y13*C13+($A$4-80)*AF13*$A$12/1000 -> 0 | AN13: =Z13*E13+($A$4-80)*AG13*$A$12/1000 -> 0 | AO13: =AA13*G13+($A$4-80)*AH13*$A$12/1000 -> 0 | AP13: =AB13*I13+($A$4-80)*AI13*$A$12/1000 -> 0 | AQ13: =AC13*K13+($A$4-80)*AJ13*$A$12/1000 -> 0 | AR13: =AD13*M13+($A$4-80)*AK13*$A$12/1000 -> 0 | AS13: =AE13*O13+($A$4-80)*AL13*$A$12/1000 -> 0
B14: 62 | C14: 0 | D14: 0 | E14: 0 | F14: 0 | G14: 0 | H14: 0 | I14: =U14*$I$13 -> 0 | J14: 0 | K14: 0 | L14: 0 | M14: 0 | N14: 0 | O14: 0 | P14: 0 | R14: 1.04375 | S14: 1.00625 | T14: 0.9708333333 | U14: 0.9354166667 | V14: 0.8833333333 | W14: 0.8333333333 | X14: 0.7833333333 | Y14: 0.878243513 | Z14: 0.9047619048 | AA14: 0.9291845494 | AB14: 0.9576837416 | AC14: 0.9740566038 | AD14: 0.9925 | AE14: 1 | AF14: 1.06 | AG14: 1.06 | AH14: 1.06 | AI14: 1.06 | AJ14: 1.06 | AK14: 1.06 | AL14: 1.06 | AM14: 0 | AN14: =Z14*E14+($A$4-80)*AG14*$A$12/1000 -> 0 | AO14: =AA14*G14+($A$4-80)*AH14*$A$12/1000 -> 0 | AP14: 0 | AQ14: 0 | AR14: 0 | AS14: 0
B15: 57 | C15: 0 | D15: 0 | E15: 0 | F15: 0 | G15: 0 | H15: 0 | I15: 0 | J15: 0 | K15: 0 | L15: 0 | M15: 0 | N15: 0 | O15: 0 | P15: 0 | R15: 1.002083333 | S15: 0.9708333333 | T15: 0.9395833333 | U15: 0.9083333333 | V15: 0.8666666667 | W15: 0.8270833333 | X15: 0.7854166667 | Y15: 1 | Z15: 1 | AA15: 1 | AB15: 1 | AC15: 1 | AD15: 1 | AE15: 1 | AF15: 1.06 | AG15: 1.06 | AH15: 1.06 | AI15: 1.06 | AJ15: 1.06 | AK15: 1.06 | AL15: 1.06 | AM15: 0 | AN15: =Z15*E15+($A$4-80)*AG15*$A$12/1000 -> 0 | AO15: =AA15*G15+($A$4-80)*AH15*$A$12/1000 -> 0 | AP15: 0 | AQ15: 0 | AR15: 0 | AS15: 0
A16: 1800 | B16: 72 | C16: 0 | D16: 0 | E16: 0 | F16: 0 | G16: 0 | H16: 0 | I16: 0 | J16: 0 | K16: 0 | L16: 0 | M16: 0 | N16: 0 | O16: 0 | P16: 0 | R16: 1.220833333 | S16: 1.183333333 | T16: 1.14375 | U16: 1.10625 | V16: 1.05 | W16: 0.9958333333 | X16: 0.9416666667 | Y16: 0.5051194539 | Z16: 0.5088028169 | AA16: 0.5154826958 | AB16: 0.5197740113 | AC16: 0.5357142857 | AD16: 0.5523012552 | AE16: 0.5707964602 | AF16: 1.06 | AG16: 1.06 | AH16: 1.06 | AI16: 1.06 | AJ16: 1.06 | AK16: 1.06 | AL16: 1.06 | AM16: =Y16*C16+($A$4-80)*AF16*$A$16/1000 -> 0 | AN16: =Z16*E16+($A$4-80)*AG16*$A$16/1000 -> 0 | AO16: =AA16*G16+($A$4-80)*AH16*$A$16/1000 -> 0 | AP16: =AB16*I16+($A$4-80)*AI16*$A$16/1000 -> 0 | AQ16: =AC16*K16+($A$4-80)*AJ16*$A$16/1000 -> 0 | AR16: =AD16*M16+($A$4-80)*AK16*$A$16/1000 -> 0 | AS16: =AE16*O16+($A$4-80)*AL16*$A$16/1000 -> 0
B17: 67 | C17: 0 | D17: 0 | E17: 0 | F17: 0 | G17: 0 | H17: 0 | I17: 0 | J17: 0 | K17: 0 | L17: 0 | M17: 0 | N17: 0 | O17: 0 | P17: 0 | R17: 1.158333333 | S17: 1.110416667 | T17: 1.060416667 | U17: 1.0125 | V17: 0.9583333333 | W17: 0.9083333333 | X17: 0.85625 | Y17: 0.7068345324 | Z17: 0.7204502814 | AA17: 0.7367387033 | AB17: 0.7510288066 | AC17: 0.7804347826 | AD17: 0.8073394495 | AE17: 0.8418491484 | AF17: 1.06 | AG17: 1.06 | AH17: 1.06 | AI17: 1.06 | AJ17: 1.06 | AK17: 1.06 | AL17: 1.06 | AM17: =Y17*C17+($A$4-80)*AF17*$A$16/1000 -> 0 | AN17: =Z17*E17+($A$4-80)*AG17*$A$16/1000 -> 0 | AO17: =AA17*G17+($A$4-80)*AH17*$A$16/1000 -> 0 | AP17: =AB17*I17+($A$4-80)*AI17*$A$16/1000 -> 0 | AQ17: =AC17*K17+($A$4-80)*AJ17*$A$16/1000 -> 0 | AR17: =AD17*M17+($A$4-80)*AK17*$A$16/1000 -> 0 | AS17: =AE17*O17+($A$4-80)*AL17*$A$16/1000 -> 0
B18: 62 | C18: 0 | D18: 0 | E18: 0 | F18: 0 | G18: 0 | H18: 0 | I18: 0 | J18: 0 | K18: 0 | L18: 0 | M18: 0 | N18: 0 | O18: 0 | P18: 0 | R18: 1.06875 | S18: 1.029166667 | T18: 0.9875 | U18: 0.9479166667 | V18: 0.9 | W18: 0.85625 | X18: 0.8104166667 | Y18: 0.9161793372 | Z18: 0.9412955466 | AA18: 0.970464135 | AB18: 1 | AC18: 1 | AD18: 1 | AE18: 1 | AF18: 1.06 | AG18: 1.06 | AH18: 1.06 | AI18: 1.06 | AJ18: 1.06 | AK18: 1.06 | AL18: 1.06 | AM18: 0 | AN18: =Z18*E18+($A$4-80)*AG18*$A$16/1000 -> 0 | AO18: =AA18*G18+($A$4-80)*AH18*$A$16/1000 -> 0 | AP18: 0 | AQ18: 0 | AR18: 0 | AS18: 0
B19: 57 | C19: 0 | D19: 0 | E19: 0 | F19: 0 | G19: 0 | H19: 0 | I19: 0 | J19: 0 | K19: 0 | L19: 0 | M19: 0 | N19: 0 | O19: 0 | P19: 0 | R19: 1.0375 | S19: 1.004166667 | T19: 0.9708333333 | U19: 0.9395833333 | V19: 0.8958333333 | W19: 0.8541666667 | X19: 0.8104166667 | Y19: 1 | Z19: 1 | AA19: 1 | AB19: 1 | AC19: 1 | AD19: 1 | AE19: 1 | AF19: 1.06 | AG19: 1.06 | AH19: 1.06 | AI19: 1.06 | AJ19: 1.06 | AK19: 1.06 | AL19: 1.06 | AM19: 0 | AN19: =Z19*E19+($A$4-80)*AG19*$A$16/1000 -> 0 | AO19: =AA19*G19+($A$4-80)*AH19*$A$16/1000 -> 0 | AP19: 0 | AQ19: 0 | AR19: 0 | AS19: 0

Sheet CZF_60 (hidden)
A2: CZF_60
A3: Evaporator Air | C3: Condenser Entering Air Temperature ˚F
A4: 80 | B4: °F DB | C4: 65 | E4: 75 | G4: 85 | I4: 95 | K4: 105 | M4: 115 | O4: 125
A5: CFM | B5: EWB† ˚F | C5: Capacity Mbtuh | E5: Capacity Mbtuh | G5: Capacity Mbtuh | I5: Capacity Mbtuh | K5: Capacity Mbtuh | M5: Capacity Mbtuh | O5: Capacity Mbtuh
C6: Total | D6: Sens. | E6: Total | F6: Sens. | G6: Total | H6: Sens. | I6: Total | J6: Sens. | K6: Total | L6: Sens. | M6: Total | N6: Sens. | O6: Total | P6: Sens.
R7: Total Factors | Y7: Sens. % | AF7: IDB Adj | AM7: Sens Calc
A8: 1500 | B8: 72 | C8: =R8*$I$13 -> 0 | D8: =IF(AM8>C8,C8,AM8) -> 0 | E8: =S8*$I$13 -> 0 | F8: =IF(AN8>E8,E8,AN8) -> 0 | G8: =T8*$I$13 -> 0 | H8: =IF(AO8>G8,G8,AO8) -> 0 | I8: =U8*$I$13 -> 0 | J8: =IF(AP8>I8,I8,AP8) -> 0 | K8: =V8*$I$13 -> 0 | L8: =IF(AQ8>K8,K8,AQ8) -> 0 | M8: =W8*$I$13 -> 0 | N8: =IF(AR8>M8,M8,AR8) -> 0 | O8: =X8*$I$13 -> 0 | P8: =IF(AS8>O8,O8,AS8) -> 0 | R8: 1.194392523 | S8: 1.153271028 | T8: 1.110280374 | U8: 1.069158879 | V8: 1.022429907 | W8: 0.9775700935 | X8: 0.9327102804 | Y8: 0.4726134585 | Z8: 0.4764991896 | AA8: 0.4814814815 | AB8: 0.486013986 | AC8: 0.4826325411 | AD8: 0.4799235182 | AE8: 0.4769539078 | AF8: 1.06 | AG8: 1.06 | AH8: 1.06 | AI8: 1.06 | AJ8: 1.06 | AK8: 1.06 | AL8: 1.06 | AM8: =Y8*C8+($A$4-80)*AF8*$A$8/1000 -> 0 | AN8: =Z8*E8+($A$4-80)*AG8*$A$8/1000 -> 0 | AO8: =AA8*G8+($A$4-80)*AH8*$A$8/1000 -> 0 | AP8: =AB8*I8+($A$4-80)*AI8*$A$8/1000 -> 0 | AQ8: =AC8*K8+($A$4-80)*AJ8*$A$8/1000 -> 0 | AR8: =AD8*M8+($A$4-80)*AK8*$A$8/1000 -> 0 | AS8: =AE8*O8+($A$4-80)*AL8*$A$8/1000 -> 0
B9: 67 | C9: =R9*$I$13 -> 0 | D9: 0 | E9: 0 | F9: =IF(AN9>E9,E9,AN9) -> 0 | G9: 0 | H9: =IF(AO9>G9,G9,AO9) -> 0 | I9: =U9*$I$13 -> 0 | J9: =IF(AP9>I9,I9,AP9) -> 0 | K9: 0 | L9: =IF(AQ9>K9,K9,AQ9) -> 0 | M9: 0 | N9: =IF(AR9>M9,M9,AR9) -> 0 | O9: 0 | P9: =IF(AS9>O9,O9,AS9) -> 0 | R9: 1.102803738 | S9: 1.056074766 | T9: 1.009345794 | U9: 0.9626168224 | V9: 0.9140186916 | W9: 0.8672897196 | X9: 0.8205607477 | Y9: 0.6322033898 | Z9: 0.6460176991 | AA9: 0.662962963 | AB9: 0.6815533981 | AC9: 0.691206544 | AD9: 0.7025862069 | AE9: 0.715261959 | AF9: 1.06 | AG9: 1.06 | AH9: 1.06 | AI9: 1.06 | AJ9: 1.06 | AK9: 1.06 | AL9: 1.06 | AM9: =Y9*C9+($A$4-80)*AF9*$A$8/1000 -> 0 | AN9: =Z9*E9+($A$4-80)*AG9*$A$8/1000 -> 0 | AO9: =AA9*G9+($A$4-80)*AH9*$A$8/1000 -> 0 | AP9: =AB9*I9+($A$4-80)*AI9*$A$8/1000 -> 0 | AQ9: =AC9*K9+($A$4-80)*AJ9*$A$8/1000 -> 0 | AR9: =AD9*M9+($A$4-80)*AK9*$A$8/1000 -> 0 | AS9: =AE9*O9+($A$4-80)*AL9*$A$8/1000 -> 0
B10: 62 | C10: 0 | D10: 0 | E10: 0 | F10: 0 | G10: 0 | H10: 0 | I10: =U10*$I$13 -> 0 | J10: 0 | K10: 0 | L10: 0 | M10: 0 | N10: 0 | O10: 0 | P10: 0 | R10: 1.08411215 | S10: 1.026168224 | T10: 0.9663551402 | U10: 0.908411215 | V10: 0.8373831776 | W10: 0.7682242991 | X10: 0.6990654206 | Y10: 0.7775862069 | Z10: 0.8051001821 | AA10: 0.8375241779 | AB10: 0.8724279835 | AC10: 0.8950892857 | AD10: 0.9221411192 | AE10: 0.9545454545 | AF10: 1.06 | AG10: 1.06 | AH10: 1.06 | AI10: 1.06 | AJ10: 1.06 | AK10: 1.06 | AL10: 1.06 | AM10: 0 | AN10: =Z10*E10+($A$4-80)*AG10*$A$8/1000 -> 0 | AO10: =AA10*G10+($A$4-80)*AH10*$A$8/1000 -> 0 | AP10: 0 | AQ10: 0 | AR10: 0 | AS10: 0
B11: 57 | C11: 0 | D11: 0 | E11: 0 | F11: 0 | G11: 0 | H11: 0 | I11: =U11*$I$13 -> 0 | J11: 0 | K11: 0 | L11: 0 | M11: 0 | N11: 0 | O11: 0 | P11: 0 | R11: 1.026168224 | S11: 0.9700934579 | T11: 0.9121495327 | U11: 0.8542056075 | V11: 0.8186915888 | W11: 0.785046729 | X11: 0.7514018692 | Y11: 0.9471766849 | Z11: 0.9479768786 | AA11: 0.9508196721 | AB11: 0.95404814 | AC11: 0.9520547945 | AD11: 0.95 | AE11: 0.947761194 | AF11: 1.06 | AG11: 1.06 | AH11: 1.06 | AI11: 1.06 | AJ11: 1.06 | AK11: 1.06 | AL11: 1.06 | AM11: 0 | AN11: =Z11*E11+($A$4-80)*AG11*$A$8/1000 -> 0 | AO11: =AA11*G11+($A$4-80)*AH11*$A$8/1000 -> 0 | AP11: =AB11*I11+($A$4-80)*AI11*$A$8/1000 -> 0 | AQ11: 0 | AR11: 0 | AS11: 0
A12: 1700 | B12: 72 | C12: 0 | D12: 0 | E12: 0 | F12: 0 | G12: 0 | H12: 0 | I12: =U12*$I$13 -> 0 | J12: 0 | K12: 0 | L12: 0 | M12: 0 | N12: 0 | O12: 0 | P12: 0 | R12: 1.244859813 | S12: 1.186915888 | T12: 1.130841121 | U12: 1.072897196 | V12: 1.03364486 | W12: 0.9962616822 | X12: 0.9570093458 | Y12: 0.4774774775 | Z12: 0.4866141732 | AA12: 0.4958677686 | AB12: 0.5069686411 | AC12: 0.5009041591 | AD12: 0.4953095685 | AE12: 0.490234375 | AF12: 1.06 | AG12: 1.06 | AH12: 1.06 | AI12: 1.06 | AJ12: 1.06 | AK12: 1.06 | AL12: 1.06 | AM12: =Y12*C12+($A$4-80)*AF12*$A$12/1000 -> 0 | AN12: =Z12*E12+($A$4-80)*AG12*$A$12/1000 -> 0 | AO12: =AA12*G12+($A$4-80)*AH12*$A$12/1000 -> 0 | AP12: =AB12*I12+($A$4-80)*AI12*$A$12/1000 -> 0 | AQ12: =AC12*K12+($A$4-80)*AJ12*$A$12/1000 -> 0 | AR12: =AD12*M12+($A$4-80)*AK12*$A$12/1000 -> 0 | AS12: =AE12*O12+($A$4-80)*AL12*$A$12/1000 -> 0
B13: 67 | C13: 0 | D13: 0 | E13: 0 | F13: 0 | G13: 0 | H13: 0 | I13: =B2 -> 0 | J13: 0 | K13: 0 | L13: 0 | M13: 0 | N13: 0 | O13: 0 | P13: 0 | R13: 1.123364486 | S13: 1.082242991 | T13: 1.041121495 | U13: 1 | V13: 0.9439252336 | W13: 0.891588785 | X13: 0.8373831776 | Y13: 0.6572379368 | Z13: 0.6701208981 | AA13: 0.684021544 | AB13: 0.6990654206 | AC13: 0.7128712871 | AD13: 0.7274633124 | AE13: 0.7455357143 | AF13: 1.06 | AG13: 1.06 | AH13: 1.06 | AI13: 1.06 | AJ13: 1.06 | AK13: 1.06 | AL13: 1.06 | AM13: =Y13*C13+($A$4-80)*AF13*$A$12/1000 -> 0 | AN13: =Z13*E13+($A$4-80)*AG13*$A$12/1000 -> 0 | AO13: =AA13*G13+($A$4-80)*AH13*$A$12/1000 -> 0 | AP13: =AB13*I13+($A$4-80)*AI13*$A$12/1000 -> 0 | AQ13: =AC13*K13+($A$4-80)*AJ13*$A$12/1000 -> 0 | AR13: =AD13*M13+($A$4-80)*AK13*$A$12/1000 -> 0 | AS13: =AE13*O13+($A$4-80)*AL13*$A$12/1000 -> 0
B14: 62 | C14: 0 | D14: 0 | E14: 0 | F14: 0 | G14: 0 | H14: 0 | I14: =U14*$I$13 -> 0 | J14: 0 | K14: 0 | L14: 0 | M14: 0 | N14: 0 | O14: 0 | P14: 0 | R14: 1.100934579 | S14: 1.041121495 | T14: 0.9794392523 | U14: 0.9196261682 | V14: 0.8485981308 | W14: 0.7813084112 | X14: 0.7121495327 | Y14: 0.818336163 | Z14: 0.8456014363 | AA14: 0.8778625954 | AB14: 0.912601626 | AC14: 0.9251101322 | AD14: 0.9377990431 | AE14: 0.9553805774 | AF14: 1.06 | AG14: 1.06 | AH14: 1.06 | AI14: 1.06 | AJ14: 1.06 | AK14: 1.06 | AL14: 1.06 | AM14: 0 | AN14: =Z14*E14+($A$4-80)*AG14*$A$12/1000 -> 0 | AO14: =AA14*G14+($A$4-80)*AH14*$A$12/1000 -> 0 | AP14: 0 | AQ14: 0 | AR14: 0 | AS14: 0
B15: 57 | C15: 0 | D15: 0 | E15: 0 | F15: 0 | G15: 0 | H15: 0 | I15: 0 | J15: 0 | K15: 0 | L15: 0 | M15: 0 | N15: 0 | O15: 0 | P15: 0 | R15: 1.061682243 | S15: 1.005607477 | T15: 0.9495327103 | U15: 0.8934579439 | V15: 0.8542056075 | W15: 0.814953271 | X15: 0.7757009346 | Y15: 0.9419014085 | Z15: 0.9460966543 | AA15: 0.9507874016 | AB15: 0.9539748954 | AC15: 0.9518599562 | AD15: 0.9518348624 | AE15: 0.9518072289 | AF15: 1.06 | AG15: 1.06 | AH15: 1.06 | AI15: 1.06 | AJ15: 1.06 | AK15: 1.06 | AL15: 1.06 | AM15: 0 | AN15: =Z15*E15+($A$4-80)*AG15*$A$12/1000 -> 0 | AO15: =AA15*G15+($A$4-80)*AH15*$A$12/1000 -> 0 | AP15: 0 | AQ15: 0 | AR15: 0 | AS15: 0
A16: 1900 | B16: 72 | C16: 0 | D16: 0 | E16: 0 | F16: 0 | G16: 0 | H16: 0 | I16: 0 | J16: 0 | K16: 0 | L16: 0 | M16: 0 | N16: 0 | O16: 0 | P16: 0 | R16: 1.295327103 | S16: 1.222429907 | T16: 1.151401869 | U16: 1.078504673 | V16: 1.044859813 | W16: 1.013084112 | X16: 0.9813084112 | Y16: 0.4834054834 | Z16: 0.495412844 | AA16: 0.5097402597 | AB16: 0.5251299827 | AC16: 0.518783542 | AD16: 0.5110701107 | AE16: 0.5028571429 | AF16: 1.06 | AG16: 1.06 | AH16: 1.06 | AI16: 1.06 | AJ16: 1.06 | AK16: 1.06 | AL16: 1.06 | AM16: =Y16*C16+($A$4-80)*AF16*$A$16/1000 -> 0 | AN16: =Z16*E16+($A$4-80)*AG16*$A$16/1000 -> 0 | AO16: =AA16*G16+($A$4-80)*AH16*$A$16/1000 -> 0 | AP16: =AB16*I16+($A$4-80)*AI16*$A$16/1000 -> 0 | AQ16: =AC16*K16+($A$4-80)*AJ16*$A$16/1000 -> 0 | AR16: =AD16*M16+($A$4-80)*AK16*$A$16/1000 -> 0 | AS16: =AE16*O16+($A$4-80)*AL16*$A$16/1000 -> 0
B17: 67 | C17: 0 | D17: 0 | E17: 0 | F17: 0 | G17: 0 | H17: 0 | I17: 0 | J17: 0 | K17: 0 | L17: 0 | M17: 0 | N17: 0 | O17: 0 | P17: 0 | R17: 1.145794393 | S17: 1.108411215 | T17: 1.072897196 | U17: 1.037383178 | V17: 0.9757009346 | W17: 0.9140186916 | X17: 0.8542056075 | Y17: 0.6818923328 | Z17: 0.6930860034 | AA17: 0.7038327526 | AB17: 0.7153153153 | AC17: 0.7318007663 | AD17: 0.7525562372 | AE17: 0.7746170678 | AF17: 1.06 | AG17: 1.06 | AH17: 1.06 | AI17: 1.06 | AJ17: 1.06 | AK17: 1.06 | AL17: 1.06 | AM17: =Y17*C17+($A$4-80)*AF17*$A$16/1000 -> 0 | AN17: =Z17*E17+($A$4-80)*AG17*$A$16/1000 -> 0 | AO17: =AA17*G17+($A$4-80)*AH17*$A$16/1000 -> 0 | AP17: =AB17*I17+($A$4-80)*AI17*$A$16/1000 -> 0 | AQ17: =AC17*K17+($A$4-80)*AJ17*$A$16/1000 -> 0 | AR17: =AD17*M17+($A$4-80)*AK17*$A$16/1000 -> 0 | AS17: =AE17*O17+($A$4-80)*AL17*$A$16/1000 -> 0
B18: 62 | C18: 0 | D18: 0 | E18: 0 | F18: 0 | G18: 0 | H18: 0 | I18: 0 | J18: 0 | K18: 0 | L18: 0 | M18: 0 | N18: 0 | O18: 0 | P18: 0 | R18: 1.11588785 | S18: 1.054205607 | T18: 0.9925233645 | U18: 0.9308411215 | V18: 0.861682243 | W18: 0.7943925234 | X18: 0.7271028037 | Y18: 0.8576214405 | Z18: 0.8865248227 | AA18: 0.9171374765 | AB18: 0.953815261 | AC18: 0.9544468547 | AD18: 0.9529411765 | AE18: 0.9537275064 | AF18: 1.06 | AG18: 1.06 | AH18: 1.06 | AI18: 1.06 | AJ18: 1.06 | AK18: 1.06 | AL18: 1.06 | AM18: 0 | AN18: =Z18*E18+($A$4-80)*AG18*$A$16/1000 -> 0 | AO18: =AA18*G18+($A$4-80)*AH18*$A$16/1000 -> 0 | AP18: 0 | AQ18: 0 | AR18: 0 | AS18: 0
B19: 57 | C19: 0 | D19: 0 | E19: 0 | F19: 0 | G19: 0 | H19: 0 | I19: 0 | J19: 0 | K19: 0 | L19: 0 | M19: 0 | N19: 0 | O19: 0 | P19: 0 | R19: 1.095327103 | S19: 1.042990654 | T19: 0.9887850467 | U19: 0.9345794393 | V19: 0.8878504673 | W19: 0.8448598131 | X19: 0.8 | Y19: 0.9402730375 | Z19: 0.9426523297 | AA19: 0.9489603025 | AB19: 0.954 | AC19: 0.9536842105 | AD19: 0.953539823 | AE19: 0.953271028 | AF19: 1.06 | AG19: 1.06 | AH19: 1.06 | AI19: 1.06 | AJ19: 1.06 | AK19: 1.06 | AL19: 1.06 | AM19: 0 | AN19: =Z19*E19+($A$4-80)*AG19*$A$16/1000 -> 0 | AO19: =AA19*G19+($A$4-80)*AH19*$A$16/1000 -> 0 | AP19: 0 | AQ19: 0 | AR19: 0 | AS19: 0

Sheet CZH_24 (hidden)
A2: CZH_24
A3: Evaporator Air | C3: Condenser Entering Air Temperature ˚F
A4: 80 | B4: °F DB | C4: 65 | E4: 75 | G4: 85 | I4: 95 | K4: 105 | M4: 115 | O4: 125
A5: CFM | B5: EWB† ˚F | C5: Capacity Mbtuh | E5: Capacity Mbtuh | G5: Capacity Mbtuh | I5: Capacity Mbtuh | K5: Capacity Mbtuh | M5: Capacity Mbtuh | O5: Capacity Mbtuh
C6: Total | D6: Sens. | E6: Total | F6: Sens. | G6: Total | H6: Sens. | I6: Total | J6: Sens. | K6: Total | L6: Sens. | M6: Total | N6: Sens. | O6: Total | P6: Sens.
R7: Total Factors | Y7: Sens. % | AF7: IDB Adj | AM7: Sens Calc
A8: 800 | B8: 72 | C8: =R8*$I$13 -> 0 | D8: =IF(AM8>C8,C8,AM8) -> 0 | E8: =S8*$I$13 -> 0 | F8: =IF(AN8>E8,E8,AN8) -> 0 | G8: =T8*$I$13 -> 0 | H8: =IF(AO8>G8,G8,AO8) -> 0 | I8: =U8*$I$13 -> 0 | J8: =IF(AP8>I8,I8,AP8) -> 0 | K8: =V8*$I$13 -> 0 | L8: =IF(AQ8>K8,K8,AQ8) -> 0 | M8: =W8*$I$13 -> 0 | N8: =IF(AR8>M8,M8,AR8) -> 0 | O8: =X8*$I$13 -> 0 | P8: =IF(AS8>O8,O8,AS8) -> 0 | R8: 1.2625 | S8: 1.2 | T8: 1.1375 | U8: 1.075 | V8: 1.020833333 | W8: 0.9708333333 | X8: 0.9166666667 | Y8: 0.495049505 | Z8: 0.4930555556 | AA8: 0.4945054945 | AB8: 0.492248062 | AC8: 0.506122449 | AD8: 0.5236051502 | AE8: 0.5409090909 | AF8: 1.06 | AG8: 1.06 | AH8: 1.06 | AI8: 1.06 | AJ8: 1.06 | AK8: 1.06 | AL8: 1.06 | AM8: =Y8*C8+($A$4-80)*AF8*$A$8/1000 -> 0 | AN8: =Z8*E8+($A$4-80)*AG8*$A$8/1000 -> 0 | AO8: =AA8*G8+($A$4-80)*AH8*$A$8/1000 -> 0 | AP8: =AB8*I8+($A$4-80)*AI8*$A$8/1000 -> 0 | AQ8: =AC8*K8+($A$4-80)*AJ8*$A$8/1000 -> 0 | AR8: =AD8*M8+($A$4-80)*AK8*$A$8/1000 -> 0 | AS8: =AE8*O8+($A$4-80)*AL8*$A$8/1000 -> 0
B9: 67 | C9: =R9*$I$13 -> 0 | D9: 0 | E9: 0 | F9: =IF(AN9>E9,E9,AN9) -> 0 | G9: 0 | H9: =IF(AO9>G9,G9,AO9) -> 0 | I9: =U9*$I$13 -> 0 | J9: =IF(AP9>I9,I9,AP9) -> 0 | K9: 0 | L9: =IF(AQ9>K9,K9,AQ9) -> 0 | M9: 0 | N9: =IF(AR9>M9,M9,AR9) -> 0 | O9: 0 | P9: =IF(AS9>O9,O9,AS9) -> 0 | R9: 1.120833333 | S9: 1.070833333 | T9: 1.020833333 | U9: 0.9708333333 | V9: 0.925 | W9: 0.8833333333 | X9: 0.8375 | Y9: 0.6468401487 | Z9: 0.6575875486 | AA9: 0.6734693878 | AB9: 0.6909871245 | AC9: 0.7162162162 | AD9: 0.7405660377 | AE9: 0.7711442786 | AF9: 1.06 | AG9: 1.06 | AH9: 1.06 | AI9: 1.06 | AJ9: 1.06 | AK9: 1.06 | AL9: 1.06 | AM9: =Y9*C9+($A$4-80)*AF9*$A$8/1000 -> 0 | AN9: =Z9*E9+($A$4-80)*AG9*$A$8/1000 -> 0 | AO9: =AA9*G9+($A$4-80)*AH9*$A$8/1000 -> 0 | AP9: =AB9*I9+($A$4-80)*AI9*$A$8/1000 -> 0 | AQ9: =AC9*K9+($A$4-80)*AJ9*$A$8/1000 -> 0 | AR9: =AD9*M9+($A$4-80)*AK9*$A$8/1000 -> 0 | AS9: =AE9*O9+($A$4-80)*AL9*$A$8/1000 -> 0
B10: 62 | C10: 0 | D10: 0 | E10: 0 | F10: 0 | G10: 0 | H10: 0 | I10: =U10*$I$13 -> 0 | J10: 0 | K10: 0 | L10: 0 | M10: 0 | N10: 0 | O10: 0 | P10: 0 | R10: 1.041666667 | S10: 1 | T10: 0.9583333333 | U10: 0.9166666667 | V10: 0.8791666667 | W10: 0.8375 | X10: 0.8 | Y10: 0.848 | Z10: 0.8583333333 | AA10: 0.8695652174 | AB10: 0.8818181818 | AC10: 0.9004739336 | AD10: 0.92039801 | AE10: 0.9427083333 | AF10: 1.06 | AG10: 1.06 | AH10: 1.06 | AI10: 1.06 | AJ10: 1.06 | AK10: 1.06 | AL10: 1.06 | AM10: 0 | AN10: =Z10*E10+($A$4-80)*AG10*$A$8/1000 -> 0 | AO10: =AA10*G10+($A$4-80)*AH10*$A$8/1000 -> 0 | AP10: 0 | AQ10: 0 | AR10: 0 | AS10: 0
B11: 57 | C11: 0 | D11: 0 | E11: 0 | F11: 0 | G11: 0 | H11: 0 | I11: =U11*$I$13 -> 0 | J11: 0 | K11: 0 | L11: 0 | M11: 0 | N11: 0 | O11: 0 | P11: 0 | R11: 0.975 | S11: 0.95 | T11: 0.925 | U11: 0.9041666667 | V11: 0.8708333333 | W11: 0.8375 | X11: 0.8083333333 | Y11: 0.9358974359 | Z11: 0.9254385965 | AA11: 0.9189189189 | AB11: 0.9032258065 | AC11: 0.9043062201 | AD11: 0.9054726368 | AE11: 0.9020618557 | AF11: 1.06 | AG11: 1.06 | AH11: 1.06 | AI11: 1.06 | AJ11: 1.06 | AK11: 1.06 | AL11: 1.06 | AM11: 0 | AN11: =Z11*E11+($A$4-80)*AG11*$A$8/1000 -> 0 | AO11: =AA11*G11+($A$4-80)*AH11*$A$8/1000 -> 0 | AP11: =AB11*I11+($A$4-80)*AI11*$A$8/1000 -> 0 | AQ11: 0 | AR11: 0 | AS11: 0
A12: 900 | B12: 72 | C12: 0 | D12: 0 | E12: 0 | F12: 0 | G12: 0 | H12: 0 | I12: =U12*$I$13 -> 0 | J12: 0 | K12: 0 | L12: 0 | M12: 0 | N12: 0 | O12: 0 | P12: 0 | R12: 1.283333333 | S12: 1.225 | T12: 1.1625 | U12: 1.104166667 | V12: 1.045833333 | W12: 0.9958333333 | X12: 0.9416666667 | Y12: 0.5064935065 | Z12: 0.5068027211 | AA12: 0.5089605735 | AB12: 0.5094339623 | AC12: 0.5298804781 | AD12: 0.5439330544 | AE12: 0.5663716814 | AF12: 1.06 | AG12: 1.06 | AH12: 1.06 | AI12: 1.06 | AJ12: 1.06 | AK12: 1.06 | AL12: 1.06 | AM12: =Y12*C12+($A$4-80)*AF12*$A$12/1000 -> 0 | AN12: =Z12*E12+($A$4-80)*AG12*$A$12/1000 -> 0 | AO12: =AA12*G12+($A$4-80)*AH12*$A$12/1000 -> 0 | AP12: =AB12*I12+($A$4-80)*AI12*$A$12/1000 -> 0 | AQ12: =AC12*K12+($A$4-80)*AJ12*$A$12/1000 -> 0 | AR12: =AD12*M12+($A$4-80)*AK12*$A$12/1000 -> 0 | AS12: =AE12*O12+($A$4-80)*AL12*$A$12/1000 -> 0
B13: 67 | C13: 0 | D13: 0 | E13: 0 | F13: 0 | G13: 0 | H13: 0 | I13: =B2 -> 0 | J13: 0 | K13: 0 | L13: 0 | M13: 0 | N13: 0 | O13: 0 | P13: 0 | R13: 1.15 | S13: 1.1 | T13: 1.05 | U13: 1 | V13: 0.95 | W13: 0.9 | X13: 0.85 | Y13: 0.6775362319 | Z13: 0.6931818182 | AA13: 0.7063492063 | AB13: 0.7208333333 | AC13: 0.75 | AD13: 0.7824074074 | AE13: 0.818627451 | AF13: 1.06 | AG13: 1.06 | AH13: 1.06 | AI13: 1.06 | AJ13: 1.06 | AK13: 1.06 | AL13: 1.06 | AM13: =Y13*C13+($A$4-80)*AF13*$A$12/1000 -> 0 | AN13: =Z13*E13+($A$4-80)*AG13*$A$12/1000 -> 0 | AO13: =AA13*G13+($A$4-80)*AH13*$A$12/1000 -> 0 | AP13: =AB13*I13+($A$4-80)*AI13*$A$12/1000 -> 0 | AQ13: =AC13*K13+($A$4-80)*AJ13*$A$12/1000 -> 0 | AR13: =AD13*M13+($A$4-80)*AK13*$A$12/1000 -> 0 | AS13: =AE13*O13+($A$4-80)*AL13*$A$12/1000 -> 0
B14: 62 | C14: 0 | D14: 0 | E14: 0 | F14: 0 | G14: 0 | H14: 0 | I14: =U14*$I$13 -> 0 | J14: 0 | K14: 0 | L14: 0 | M14: 0 | N14: 0 | O14: 0 | P14: 0 | R14: 1.066666667 | S14: 1.029166667 | T14: 0.9875 | U14: 0.95 | V14: 0.9083333333 | W14: 0.8708333333 | X14: 0.8333333333 | Y14: 0.875 | Z14: 0.8785425101 | AA14: 0.8860759494 | AB14: 0.8947368421 | AC14: 0.9082568807 | AD14: 0.9186602871 | AE14: 0.93 | AF14: 1.06 | AG14: 1.06 | AH14: 1.06 | AI14: 1.06 | AJ14: 1.06 | AK14: 1.06 | AL14: 1.06 | AM14: 0 | AN14: =Z14*E14+($A$4-80)*AG14*$A$12/1000 -> 0 | AO14: =AA14*G14+($A$4-80)*AH14*$A$12/1000 -> 0 | AP14: 0 | AQ14: 0 | AR14: 0 | AS14: 0
B15: 57 | C15: 0 | D15: 0 | E15: 0 | F15: 0 | G15: 0 | H15: 0 | I15: 0 | J15: 0 | K15: 0 | L15: 0 | M15: 0 | N15: 0 | O15: 0 | P15: 0 | R15: 1.0375 | S15: 1.004166667 | T15: 0.975 | U15: 0.9416666667 | V15: 0.9083333333 | W15: 0.8791666667 | X15: 0.8458333333 | Y15: 0.9277108434 | Z15: 0.9211618257 | AA15: 0.9102564103 | AB15: 0.9026548673 | AC15: 0.9036697248 | AD15: 0.9004739336 | AE15: 0.9014778325 | AF15: 1.06 | AG15: 1.06 | AH15: 1.06 | AI15: 1.06 | AJ15: 1.06 | AK15: 1.06 | AL15: 1.06 | AM15: 0 | AN15: =Z15*E15+($A$4-80)*AG15*$A$12/1000 -> 0 | AO15: =AA15*G15+($A$4-80)*AH15*$A$12/1000 -> 0 | AP15: 0 | AQ15: 0 | AR15: 0 | AS15: 0
A16: 1000 | B16: 72 | C16: 0 | D16: 0 | E16: 0 | F16: 0 | G16: 0 | H16: 0 | I16: 0 | J16: 0 | K16: 0 | L16: 0 | M16: 0 | N16: 0 | O16: 0 | P16: 0 | R16: 1.308333333 | S16: 1.25 | T16: 1.191666667 | U16: 1.129166667 | V16: 1.075 | W16: 1.020833333 | X16: 0.9625 | Y16: 0.5191082803 | Z16: 0.52 | AA16: 0.5244755245 | AB16: 0.5276752768 | AC16: 0.5465116279 | AD16: 0.5632653061 | AE16: 0.5887445887 | AF16: 1.06 | AG16: 1.06 | AH16: 1.06 | AI16: 1.06 | AJ16: 1.06 | AK16: 1.06 | AL16: 1.06 | AM16: =Y16*C16+($A$4-80)*AF16*$A$16/1000 -> 0 | AN16: =Z16*E16+($A$4-80)*AG16*$A$16/1000 -> 0 | AO16: =AA16*G16+($A$4-80)*AH16*$A$16/1000 -> 0 | AP16: =AB16*I16+($A$4-80)*AI16*$A$16/1000 -> 0 | AQ16: =AC16*K16+($A$4-80)*AJ16*$A$16/1000 -> 0 | AR16: =AD16*M16+($A$4-80)*AK16*$A$16/1000 -> 0 | AS16: =AE16*O16+($A$4-80)*AL16*$A$16/1000 -> 0
B17: 67 | C17: 0 | D17: 0 | E17: 0 | F17: 0 | G17: 0 | H17: 0 | I17: 0 | J17: 0 | K17: 0 | L17: 0 | M17: 0 | N17: 0 | O17: 0 | P17: 0 | R17: 1.175 | S17: 1.129166667 | T17: 1.079166667 | U17: 1.029166667 | V17: 0.9708333333 | W17: 0.9208333333 | X17: 0.8666666667 | Y17: 0.7127659574 | Z17: 0.7195571956 | AA17: 0.7335907336 | AB17: 0.7489878543 | AC17: 0.7811158798 | AD17: 0.814479638 | AE17: 0.8557692308 | AF17: 1.06 | AG17: 1.06 | AH17: 1.06 | AI17: 1.06 | AJ17: 1.06 | AK17: 1.06 | AL17: 1.06 | AM17: =Y17*C17+($A$4-80)*AF17*$A$16/1000 -> 0 | AN17: =Z17*E17+($A$4-80)*AG17*$A$16/1000 -> 0 | AO17: =AA17*G17+($A$4-80)*AH17*$A$16/1000 -> 0 | AP17: =AB17*I17+($A$4-80)*AI17*$A$16/1000 -> 0 | AQ17: =AC17*K17+($A$4-80)*AJ17*$A$16/1000 -> 0 | AR17: =AD17*M17+($A$4-80)*AK17*$A$16/1000 -> 0 | AS17: =AE17*O17+($A$4-80)*AL17*$A$16/1000 -> 0
B18: 62 | C18: 0 | D18: 0 | E18: 0 | F18: 0 | G18: 0 | H18: 0 | I18: 0 | J18: 0 | K18: 0 | L18: 0 | M18: 0 | N18: 0 | O18: 0 | P18: 0 | R18: 1.091666667 | S18: 1.054166667 | T18: 1.016666667 | U18: 0.9791666667 | V18: 0.9416666667 | W18: 0.9041666667 | X18: 0.8666666667 | Y18: 0.9007633588 | Z18: 0.9011857708 | AA18: 0.9057377049 | AB18: 0.9063829787 | AC18: 0.9115044248 | AD18: 0.9124423963 | AE18: 0.9182692308 | AF18: 1.06 | AG18: 1.06 | AH18: 1.06 | AI18: 1.06 | AJ18: 1.06 | AK18: 1.06 | AL18: 1.06 | AM18: 0 | AN18: =Z18*E18+($A$4-80)*AG18*$A$16/1000 -> 0 | AO18: =AA18*G18+($A$4-80)*AH18*$A$16/1000 -> 0 | AP18: 0 | AQ18: 0 | AR18: 0 | AS18: 0
B19: 57 | C19: 0 | D19: 0 | E19: 0 | F19: 0 | G19: 0 | H19: 0 | I19: 0 | J19: 0 | K19: 0 | L19: 0 | M19: 0 | N19: 0 | O19: 0 | P19: 0 | R19: 1.095833333 | S19: 1.058333333 | T19: 1.020833333 | U19: 0.9833333333 | V19: 0.95 | W19: 0.9166666667 | X19: 0.8833333333 | Y19: 0.927756654 | Z19: 0.9173228346 | AA19: 0.9102040816 | AB19: 0.8983050847 | AC19: 0.899122807 | AD19: 0.9 | AE19: 0.9009433962 | AF19: 1.06 | AG19: 1.06 | AH19: 1.06 | AI19: 1.06 | AJ19: 1.06 | AK19: 1.06 | AL19: 1.06 | AM19: 0 | AN19: =Z19*E19+($A$4-80)*AG19*$A$16/1000 -> 0 | AO19: =AA19*G19+($A$4-80)*AH19*$A$16/1000 -> 0 | AP19: 0 | AQ19: 0 | AR19: 0 | AS19: 0

Sheet CZH_36 (hidden)
A2: CZH_36
A3: Evaporator Air | C3: Condenser Entering Air Temperature ˚F
A4: 80 | B4: °F DB | C4: 65 | E4: 75 | G4: 85 | I4: 95 | K4: 105 | M4: 115 | O4: 125
A5: CFM | B5: EWB† ˚F | C5: Capacity Mbtuh | E5: Capacity Mbtuh | G5: Capacity Mbtuh | I5: Capacity Mbtuh | K5: Capacity Mbtuh | M5: Capacity Mbtuh | O5: Capacity Mbtuh
C6: Total | D6: Sens. | E6: Total | F6: Sens. | G6: Total | H6: Sens. | I6: Total | J6: Sens. | K6: Total | L6: Sens. | M6: Total | N6: Sens. | O6: Total | P6: Sens.
R7: Total Factors | Y7: Sens. % | AF7: IDB Adj | AM7: Sens Calc
A8: 1125 | B8: 72 | C8: =R8*$I$13 -> 0 | D8: =IF(AM8>C8,C8,AM8) -> 0 | E8: =S8*$I$13 -> 0 | F8: =IF(AN8>E8,E8,AN8) -> 0 | G8: =T8*$I$13 -> 0 | H8: =IF(AO8>G8,G8,AO8) -> 0 | I8: =U8*$I$13 -> 0 | J8: =IF(AP8>I8,I8,AP8) -> 0 | K8: =V8*$I$13 -> 0 | L8: =IF(AQ8>K8,K8,AQ8) -> 0 | M8: =W8*$I$13 -> 0 | N8: =IF(AR8>M8,M8,AR8) -> 0 | O8: =X8*$I$13 -> 0 | P8: =IF(AS8>O8,O8,AS8) -> 0 | R8: 1.2 | S8: 1.158333333 | T8: 1.113888889 | U8: 1.072222222 | V8: 1.013888889 | W8: 0.9583333333 | X8: 0.9 | Y8: 0.4837962963 | Z8: 0.4868105516 | AA8: 0.493765586 | AB8: 0.5 | AC8: 0.5095890411 | AD8: 0.5217391304 | AE8: 0.537037037 | AF8: 1.06 | AG8: 1.06 | AH8: 1.06 | AI8: 1.06 | AJ8: 1.06 | AK8: 1.06 | AL8: 1.06 | AM8: =Y8*C8+($A$4-80)*AF8*$A$8/1000 -> 0 | AN8: =Z8*E8+($A$4-80)*AG8*$A$8/1000 -> 0 | AO8: =AA8*G8+($A$4-80)*AH8*$A$8/1000 -> 0 | AP8: =AB8*I8+($A$4-80)*AI8*$A$8/1000 -> 0 | AQ8: =AC8*K8+($A$4-80)*AJ8*$A$8/1000 -> 0 | AR8: =AD8*M8+($A$4-80)*AK8*$A$8/1000 -> 0 | AS8: =AE8*O8+($A$4-80)*AL8*$A$8/1000 -> 0
B9: 67 | C9: =R9*$I$13 -> 0 | D9: 0 | E9: 0 | F9: =IF(AN9>E9,E9,AN9) -> 0 | G9: 0 | H9: =IF(AO9>G9,G9,AO9) -> 0 | I9: =U9*$I$13 -> 0 | J9: =IF(AP9>I9,I9,AP9) -> 0 | K9: 0 | L9: =IF(AQ9>K9,K9,AQ9) -> 0 | M9: 0 | N9: =IF(AR9>M9,M9,AR9) -> 0 | O9: 0 | P9: =IF(AS9>O9,O9,AS9) -> 0 | R9: 1.122222222 | S9: 1.075 | T9: 1.027777778 | U9: 0.9833333333 | V9: 0.9305555556 | W9: 0.8805555556 | X9: 0.8277777778 | Y9: 0.6534653465 | Z9: 0.6666666667 | AA9: 0.6783783784 | AB9: 0.6892655367 | AC9: 0.7074626866 | AD9: 0.7255520505 | AE9: 0.7483221477 | AF9: 1.06 | AG9: 1.06 | AH9: 1.06 | AI9: 1.06 | AJ9: 1.06 | AK9: 1.06 | AL9: 1.06 | AM9: =Y9*C9+($A$4-80)*AF9*$A$8/1000 -> 0 | AN9: =Z9*E9+($A$4-80)*AG9*$A$8/1000 -> 0 | AO9: =AA9*G9+($A$4-80)*AH9*$A$8/1000 -> 0 | AP9: =AB9*I9+($A$4-80)*AI9*$A$8/1000 -> 0 | AQ9: =AC9*K9+($A$4-80)*AJ9*$A$8/1000 -> 0 | AR9: =AD9*M9+($A$4-80)*AK9*$A$8/1000 -> 0 | AS9: =AE9*O9+($A$4-80)*AL9*$A$8/1000 -> 0
B10: 62 | C10: 0 | D10: 0 | E10: 0 | F10: 0 | G10: 0 | H10: 0 | I10: =U10*$I$13 -> 0 | J10: 0 | K10: 0 | L10: 0 | M10: 0 | N10: 0 | O10: 0 | P10: 0 | R10: 1.016666667 | S10: 0.9833333333 | T10: 0.9472222222 | U10: 0.9138888889 | V10: 0.875 | W10: 0.8388888889 | X10: 0.8027777778 | Y10: 0.849726776 | Z10: 0.8615819209 | AA10: 0.8797653959 | AB10: 0.8936170213 | AC10: 0.8857142857 | AD10: 0.8741721854 | AE10: 0.8615916955 | AF10: 1.06 | AG10: 1.06 | AH10: 1.06 | AI10: 1.06 | AJ10: 1.06 | AK10: 1.06 | AL10: 1.06 | AM10: 0 | AN10: =Z10*E10+($A$4-80)*AG10*$A$8/1000 -> 0 | AO10: =AA10*G10+($A$4-80)*AH10*$A$8/1000 -> 0 | AP10: 0 | AQ10: 0 | AR10: 0 | AS10: 0
B11: 57 | C11: 0 | D11: 0 | E11: 0 | F11: 0 | G11: 0 | H11: 0 | I11: =U11*$I$13 -> 0 | J11: 0 | K11: 0 | L11: 0 | M11: 0 | N11: 0 | O11: 0 | P11: 0 | R11: 1.072222222 | S11: 1.022222222 | T11: 0.9722222222 | U11: 0.9222222222 | V11: 0.8805555556 | W11: 0.8388888889 | X11: 0.7944444444 | Y11: 0.8626943005 | Z11: 0.875 | AA11: 0.8857142857 | AB11: 0.8975903614 | AC11: 0.8927444795 | AD11: 0.8907284768 | AE11: 0.8916083916 | AF11: 1.06 | AG11: 1.06 | AH11: 1.06 | AI11: 1.06 | AJ11: 1.06 | AK11: 1.06 | AL11: 1.06 | AM11: 0 | AN11: =Z11*E11+($A$4-80)*AG11*$A$8/1000 -> 0 | AO11: =AA11*G11+($A$4-80)*AH11*$A$8/1000 -> 0 | AP11: =AB11*I11+($A$4-80)*AI11*$A$8/1000 -> 0 | AQ11: 0 | AR11: 0 | AS11: 0
A12: 1225 | B12: 72 | C12: 0 | D12: 0 | E12: 0 | F12: 0 | G12: 0 | H12: 0 | I12: =U12*$I$13 -> 0 | J12: 0 | K12: 0 | L12: 0 | M12: 0 | N12: 0 | O12: 0 | P12: 0 | R12: 1.219444444 | S12: 1.177777778 | T12: 1.133333333 | U12: 1.088888889 | V12: 1.027777778 | W12: 0.9666666667 | X12: 0.9055555556 | Y12: 0.4920273349 | Z12: 0.4952830189 | AA12: 0.5024509804 | AB12: 0.5102040816 | AC12: 0.5216216216 | AD12: 0.5373563218 | AE12: 0.5521472393 | AF12: 1.06 | AG12: 1.06 | AH12: 1.06 | AI12: 1.06 | AJ12: 1.06 | AK12: 1.06 | AL12: 1.06 | AM12: =Y12*C12+($A$4-80)*AF12*$A$12/1000 -> 0 | AN12: =Z12*E12+($A$4-80)*AG12*$A$12/1000 -> 0 | AO12: =AA12*G12+($A$4-80)*AH12*$A$12/1000 -> 0 | AP12: =AB12*I12+($A$4-80)*AI12*$A$12/1000 -> 0 | AQ12: =AC12*K12+($A$4-80)*AJ12*$A$12/1000 -> 0 | AR12: =AD12*M12+($A$4-80)*AK12*$A$12/1000 -> 0 | AS12: =AE12*O12+($A$4-80)*AL12*$A$12/1000 -> 0
B13: 67 | C13: 0 | D13: 0 | E13: 0 | F13: 0 | G13: 0 | H13: 0 | I13: =B2 -> 0 | J13: 0 | K13: 0 | L13: 0 | M13: 0 | N13: 0 | O13: 0 | P13: 0 | R13: 1.141666667 | S13: 1.094444444 | T13: 1.047222222 | U13: 1 | V13: 0.9444444444 | W13: 0.8916666667 | X13: 0.8388888889 | Y13: 0.6715328467 | Z13: 0.6827411168 | AA13: 0.6949602122 | AB13: 0.7111111111 | AC13: 0.7294117647 | AD13: 0.7476635514 | AE13: 0.7715231788 | AF13: 1.06 | AG13: 1.06 | AH13: 1.06 | AI13: 1.06 | AJ13: 1.06 | AK13: 1.06 | AL13: 1.06 | AM13: =Y13*C13+($A$4-80)*AF13*$A$12/1000 -> 0 | AN13: =Z13*E13+($A$4-80)*AG13*$A$12/1000 -> 0 | AO13: =AA13*G13+($A$4-80)*AH13*$A$12/1000 -> 0 | AP13: =AB13*I13+($A$4-80)*AI13*$A$12/1000 -> 0 | AQ13: =AC13*K13+($A$4-80)*AJ13*$A$12/1000 -> 0 | AR13: =AD13*M13+($A$4-80)*AK13*$A$12/1000 -> 0 | AS13: =AE13*O13+($A$4-80)*AL13*$A$12/1000 -> 0
B14: 62 | C14: 0 | D14: 0 | E14: 0 | F14: 0 | G14: 0 | H14: 0 | I14: =U14*$I$13 -> 0 | J14: 0 | K14: 0 | L14: 0 | M14: 0 | N14: 0 | O14: 0 | P14: 0 | R14: 1.038888889 | S14: 1.002777778 | T14: 0.9666666667 | U14: 0.9305555556 | V14: 0.8944444444 | W14: 0.8583333333 | X14: 0.8222222222 | Y14: 0.8636363636 | Z14: 0.8781163435 | AA14: 0.8936781609 | AB14: 0.9074626866 | AC14: 0.8944099379 | AD14: 0.8802588997 | AE14: 0.8682432432 | AF14: 1.06 | AG14: 1.06 | AH14: 1.06 | AI14: 1.06 | AJ14: 1.06 | AK14: 1.06 | AL14: 1.06 | AM14: 0 | AN14: =Z14*E14+($A$4-80)*AG14*$A$12/1000 -> 0 | AO14: =AA14*G14+($A$4-80)*AH14*$A$12/1000 -> 0 | AP14: 0 | AQ14: 0 | AR14: 0 | AS14: 0
B15: 57 | C15: 0 | D15: 0 | E15: 0 | F15: 0 | G15: 0 | H15: 0 | I15: 0 | J15: 0 | K15: 0 | L15: 0 | M15: 0 | N15: 0 | O15: 0 | P15: 0 | R15: 1.111111111 | S15: 1.058333333 | T15: 1.005555556 | U15: 0.95 | V15: 0.9055555556 | W15: 0.8611111111 | X15: 0.8166666667 | Y15: 0.8625 | Z15: 0.8713910761 | AA15: 0.8839779006 | AB15: 0.8976608187 | AC15: 0.8926380368 | AD15: 0.8903225806 | AE15: 0.887755102 | AF15: 1.06 | AG15: 1.06 | AH15: 1.06 | AI15: 1.06 | AJ15: 1.06 | AK15: 1.06 | AL15: 1.06 | AM15: 0 | AN15: =Z15*E15+($A$4-80)*AG15*$A$12/1000 -> 0 | AO15: =AA15*G15+($A$4-80)*AH15*$A$12/1000 -> 0 | AP15: 0 | AQ15: 0 | AR15: 0 | AS15: 0
A16: 1325 | B16: 72 | C16: 0 | D16: 0 | E16: 0 | F16: 0 | G16: 0 | H16: 0 | I16: 0 | J16: 0 | K16: 0 | L16: 0 | M16: 0 | N16: 0 | O16: 0 | P16: 0 | R16: 1.241666667 | S16: 1.197222222 | T16: 1.152777778 | U16: 1.105555556 | V16: 1.041666667 | W16: 0.975 | X16: 0.9111111111 | Y16: 0.4966442953 | Z16: 0.5034802784 | AA16: 0.5108433735 | AB16: 0.5201005025 | AC16: 0.5333333333 | AD16: 0.5498575499 | AE16: 0.5701219512 | AF16: 1.06 | AG16: 1.06 | AH16: 1.06 | AI16: 1.06 | AJ16: 1.06 | AK16: 1.06 | AL16: 1.06 | AM16: =Y16*C16+($A$4-80)*AF16*$A$16/1000 -> 0 | AN16: =Z16*E16+($A$4-80)*AG16*$A$16/1000 -> 0 | AO16: =AA16*G16+($A$4-80)*AH16*$A$16/1000 -> 0 | AP16: =AB16*I16+($A$4-80)*AI16*$A$16/1000 -> 0 | AQ16: =AC16*K16+($A$4-80)*AJ16*$A$16/1000 -> 0 | AR16: =AD16*M16+($A$4-80)*AK16*$A$16/1000 -> 0 | AS16: =AE16*O16+($A$4-80)*AL16*$A$16/1000 -> 0
B17: 67 | C17: 0 | D17: 0 | E17: 0 | F17: 0 | G17: 0 | H17: 0 | I17: 0 | J17: 0 | K17: 0 | L17: 0 | M17: 0 | N17: 0 | O17: 0 | P17: 0 | R17: 1.163888889 | S17: 1.113888889 | T17: 1.066666667 | U17: 1.016666667 | V17: 0.9611111111 | W17: 0.9055555556 | X17: 0.85 | Y17: 0.6849642005 | Z17: 0.6982543641 | AA17: 0.7135416667 | AB17: 0.7295081967 | AC17: 0.7485549133 | AD17: 0.7699386503 | AE17: 0.7941176471 | AF17: 1.06 | AG17: 1.06 | AH17: 1.06 | AI17: 1.06 | AJ17: 1.06 | AK17: 1.06 | AL17: 1.06 | AM17: =Y17*C17+($A$4-80)*AF17*$A$16/1000 -> 0 | AN17: =Z17*E17+($A$4-80)*AG17*$A$16/1000 -> 0 | AO17: =AA17*G17+($A$4-80)*AH17*$A$16/1000 -> 0 | AP17: =AB17*I17+($A$4-80)*AI17*$A$16/1000 -> 0 | AQ17: =AC17*K17+($A$4-80)*AJ17*$A$16/1000 -> 0 | AR17: =AD17*M17+($A$4-80)*AK17*$A$16/1000 -> 0 | AS17: =AE17*O17+($A$4-80)*AL17*$A$16/1000 -> 0
B18: 62 | C18: 0 | D18: 0 | E18: 0 | F18: 0 | G18: 0 | H18: 0 | I18: 0 | J18: 0 | K18: 0 | L18: 0 | M18: 0 | N18: 0 | O18: 0 | P18: 0 | R18: 1.061111111 | S18: 1.022222222 | T18: 0.9833333333 | U18: 0.9444444444 | V18: 0.9111111111 | W18: 0.875 | X18: 0.8416666667 | Y18: 0.8769633508 | Z18: 0.8913043478 | AA18: 0.9096045198 | AB18: 0.9264705882 | AC18: 0.9054878049 | AD18: 0.8888888889 | AE18: 0.8679867987 | AF18: 1.06 | AG18: 1.06 | AH18: 1.06 | AI18: 1.06 | AJ18: 1.06 | AK18: 1.06 | AL18: 1.06 | AM18: 0 | AN18: =Z18*E18+($A$4-80)*AG18*$A$16/1000 -> 0 | AO18: =AA18*G18+($A$4-80)*AH18*$A$16/1000 -> 0 | AP18: 0 | AQ18: 0 | AR18: 0 | AS18: 0
B19: 57 | C19: 0 | D19: 0 | E19: 0 | F19: 0 | G19: 0 | H19: 0 | I19: 0 | J19: 0 | K19: 0 | L19: 0 | M19: 0 | N19: 0 | O19: 0 | P19: 0 | R19: 1.147222222 | S19: 1.091666667 | T19: 1.036111111 | U19: 0.9777777778 | V19: 0.9305555556 | W19: 0.8861111111 | X19: 0.8388888889 | Y19: 0.8644067797 | Z19: 0.8727735369 | AA19: 0.8820375335 | AB19: 0.8948863636 | AC19: 0.8925373134 | AD19: 0.8871473354 | AE19: 0.8874172185 | AF19: 1.06 | AG19: 1.06 | AH19: 1.06 | AI19: 1.06 | AJ19: 1.06 | AK19: 1.06 | AL19: 1.06 | AM19: 0 | AN19: =Z19*E19+($A$4-80)*AG19*$A$16/1000 -> 0 | AO19: =AA19*G19+($A$4-80)*AH19*$A$16/1000 -> 0 | AP19: 0 | AQ19: 0 | AR19: 0 | AS19: 0

Sheet CZH_48 (hidden)
A2: CZH_48
A3: Evaporator Air | C3: Condenser Entering Air Temperature ˚F
A4: 80 | B4: °F DB | C4: 65 | E4: 75 | G4: 85 | I4: 95 | K4: 105 | M4: 115 | O4: 125
A5: CFM | B5: EWB† ˚F | C5: Capacity Mbtuh | E5: Capacity Mbtuh | G5: Capacity Mbtuh | I5: Capacity Mbtuh | K5: Capacity Mbtuh | M5: Capacity Mbtuh | O5: Capacity Mbtuh
C6: Total | D6: Sens. | E6: Total | F6: Sens. | G6: Total | H6: Sens. | I6: Total | J6: Sens. | K6: Total | L6: Sens. | M6: Total | N6: Sens. | O6: Total | P6: Sens.
R7: Total Factors | Y7: Sens. % | AF7: IDB Adj | AM7: Sens Calc
A8: 1600 | B8: 72 | C8: =R8*$I$13 -> 0 | D8: =IF(AM8>C8,C8,AM8) -> 0 | E8: =S8*$I$13 -> 0 | F8: =IF(AN8>E8,E8,AN8) -> 0 | G8: =T8*$I$13 -> 0 | H8: =IF(AO8>G8,G8,AO8) -> 0 | I8: =U8*$I$13 -> 0 | J8: =IF(AP8>I8,I8,AP8) -> 0 | K8: =V8*$I$13 -> 0 | L8: =IF(AQ8>K8,K8,AQ8) -> 0 | M8: =W8*$I$13 -> 0 | N8: =IF(AR8>M8,M8,AR8) -> 0 | O8: =X8*$I$13 -> 0 | P8: =IF(AS8>O8,O8,AS8) -> 0 | R8: 1.217021277 | S8: 1.168085106 | T8: 1.119148936 | U8: 1.070212766 | V8: 1.008510638 | W8: 0.9489361702 | X8: 0.8893617021 | Y8: 0.4895104895 | Z8: 0.4936247723 | AA8: 0.4980988593 | AB8: 0.5029821074 | AC8: 0.5105485232 | AD8: 0.5179372197 | AE8: 0.5263157895 | AF8: 1.06 | AG8: 1.06 | AH8: 1.06 | AI8: 1.06 | AJ8: 1.06 | AK8: 1.06 | AL8: 1.06 | AM8: =Y8*C8+($A$4-80)*AF8*$A$8/1000 -> 0 | AN8: =Z8*E8+($A$4-80)*AG8*$A$8/1000 -> 0 | AO8: =AA8*G8+($A$4-80)*AH8*$A$8/1000 -> 0 | AP8: =AB8*I8+($A$4-80)*AI8*$A$8/1000 -> 0 | AQ8: =AC8*K8+($A$4-80)*AJ8*$A$8/1000 -> 0 | AR8: =AD8*M8+($A$4-80)*AK8*$A$8/1000 -> 0 | AS8: =AE8*O8+($A$4-80)*AL8*$A$8/1000 -> 0
B9: 67 | C9: =R9*$I$13 -> 0 | D9: 0 | E9: 0 | F9: =IF(AN9>E9,E9,AN9) -> 0 | G9: 0 | H9: =IF(AO9>G9,G9,AO9) -> 0 | I9: =U9*$I$13 -> 0 | J9: =IF(AP9>I9,I9,AP9) -> 0 | K9: 0 | L9: =IF(AQ9>K9,K9,AQ9) -> 0 | M9: 0 | N9: =IF(AR9>M9,M9,AR9) -> 0 | O9: 0 | P9: =IF(AS9>O9,O9,AS9) -> 0 | R9: 1.121276596 | S9: 1.078723404 | T9: 1.034042553 | U9: 0.9914893617 | V9: 0.9340425532 | W9: 0.8787234043 | X9: 0.8234042553 | Y9: 0.6660341556 | Z9: 0.6765285996 | AA9: 0.6872427984 | AB9: 0.6995708155 | AC9: 0.715261959 | AD9: 0.7312348668 | AE9: 0.7493540052 | AF9: 1.06 | AG9: 1.06 | AH9: 1.06 | AI9: 1.06 | AJ9: 1.06 | AK9: 1.06 | AL9: 1.06 | AM9: =Y9*C9+($A$4-80)*AF9*$A$8/1000 -> 0 | AN9: =Z9*E9+($A$4-80)*AG9*$A$8/1000 -> 0 | AO9: =AA9*G9+($A$4-80)*AH9*$A$8/1000 -> 0 | AP9: =AB9*I9+($A$4-80)*AI9*$A$8/1000 -> 0 | AQ9: =AC9*K9+($A$4-80)*AJ9*$A$8/1000 -> 0 | AR9: =AD9*M9+($A$4-80)*AK9*$A$8/1000 -> 0 | AS9: =AE9*O9+($A$4-80)*AL9*$A$8/1000 -> 0
B10: 62 | C10: 0 | D10: 0 | E10: 0 | F10: 0 | G10: 0 | H10: 0 | I10: =U10*$I$13 -> 0 | J10: 0 | K10: 0 | L10: 0 | M10: 0 | N10: 0 | O10: 0 | P10: 0 | R10: 1.029787234 | S10: 0.9978723404 | T10: 0.9659574468 | U10: 0.9319148936 | V10: 0.8765957447 | W10: 0.8191489362 | X10: 0.7638297872 | Y10: 0.8657024793 | Z10: 0.8784648188 | AA10: 0.8898678414 | AB10: 0.9063926941 | AC10: 0.9223300971 | AD10: 0.9454545455 | AE10: 0.9693593315 | AF10: 1.06 | AG10: 1.06 | AH10: 1.06 | AI10: 1.06 | AJ10: 1.06 | AK10: 1.06 | AL10: 1.06 | AM10: 0 | AN10: =Z10*E10+($A$4-80)*AG10*$A$8/1000 -> 0 | AO10: =AA10*G10+($A$4-80)*AH10*$A$8/1000 -> 0 | AP10: 0 | AQ10: 0 | AR10: 0 | AS10: 0
B11: 57 | C11: 0 | D11: 0 | E11: 0 | F11: 0 | G11: 0 | H11: 0 | I11: =U11*$I$13 -> 0 | J11: 0 | K11: 0 | L11: 0 | M11: 0 | N11: 0 | O11: 0 | P11: 0 | R11: 1.00212766 | S11: 0.9680851064 | T11: 0.9319148936 | U11: 0.8978723404 | V11: 0.8617021277 | W11: 0.8276595745 | X11: 0.7936170213 | Y11: 0.9723991507 | Z11: 0.9692307692 | AA11: 0.9703196347 | AB11: 0.9668246445 | AC11: 0.9580246914 | AD11: 0.9485861183 | AE11: 0.9383378016 | AF11: 1.06 | AG11: 1.06 | AH11: 1.06 | AI11: 1.06 | AJ11: 1.06 | AK11: 1.06 | AL11: 1.06 | AM11: 0 | AN11: =Z11*E11+($A$4-80)*AG11*$A$8/1000 -> 0 | AO11: =AA11*G11+($A$4-80)*AH11*$A$8/1000 -> 0 | AP11: =AB11*I11+($A$4-80)*AI11*$A$8/1000 -> 0 | AQ11: 0 | AR11: 0 | AS11: 0
A12: 1700 | B12: 72 | C12: 0 | D12: 0 | E12: 0 | F12: 0 | G12: 0 | H12: 0 | I12: =U12*$I$13 -> 0 | J12: 0 | K12: 0 | L12: 0 | M12: 0 | N12: 0 | O12: 0 | P12: 0 | R12: 1.225531915 | S12: 1.176595745 | T12: 1.127659574 | U12: 1.078723404 | V12: 1.014893617 | W12: 0.9553191489 | X12: 0.8936170213 | Y12: 0.4895833333 | Z12: 0.4954792043 | AA12: 0.5018867925 | AB12: 0.5088757396 | AC12: 0.5157232704 | AD12: 0.5233853007 | AE12: 0.5333333333 | AF12: 1.06 | AG12: 1.06 | AH12: 1.06 | AI12: 1.06 | AJ12: 1.06 | AK12: 1.06 | AL12: 1.06 | AM12: =Y12*C12+($A$4-80)*AF12*$A$12/1000 -> 0 | AN12: =Z12*E12+($A$4-80)*AG12*$A$12/1000 -> 0 | AO12: =AA12*G12+($A$4-80)*AH12*$A$12/1000 -> 0 | AP12: =AB12*I12+($A$4-80)*AI12*$A$12/1000 -> 0 | AQ12: =AC12*K12+($A$4-80)*AJ12*$A$12/1000 -> 0 | AR12: =AD12*M12+($A$4-80)*AK12*$A$12/1000 -> 0 | AS12: =AE12*O12+($A$4-80)*AL12*$A$12/1000 -> 0
B13: 67 | C13: 0 | D13: 0 | E13: 0 | F13: 0 | G13: 0 | H13: 0 | I13: =B2 -> 0 | J13: 0 | K13: 0 | L13: 0 | M13: 0 | N13: 0 | O13: 0 | P13: 0 | R13: 1.131914894 | S13: 1.087234043 | T13: 1.044680851 | U13: 1 | V13: 0.9404255319 | W13: 0.8829787234 | X13: 0.8255319149 | Y13: 0.6748120301 | Z13: 0.686888454 | AA13: 0.6965376782 | AB13: 0.7106382979 | AC13: 0.7262443439 | AD13: 0.7469879518 | AE13: 0.7680412371 | AF13: 1.06 | AG13: 1.06 | AH13: 1.06 | AI13: 1.06 | AJ13: 1.06 | AK13: 1.06 | AL13: 1.06 | AM13: =Y13*C13+($A$4-80)*AF13*$A$12/1000 -> 0 | AN13: =Z13*E13+($A$4-80)*AG13*$A$12/1000 -> 0 | AO13: =AA13*G13+($A$4-80)*AH13*$A$12/1000 -> 0 | AP13: =AB13*I13+($A$4-80)*AI13*$A$12/1000 -> 0 | AQ13: =AC13*K13+($A$4-80)*AJ13*$A$12/1000 -> 0 | AR13: =AD13*M13+($A$4-80)*AK13*$A$12/1000 -> 0 | AS13: =AE13*O13+($A$4-80)*AL13*$A$12/1000 -> 0
B14: 62 | C14: 0 | D14: 0 | E14: 0 | F14: 0 | G14: 0 | H14: 0 | I14: =U14*$I$13 -> 0 | J14: 0 | K14: 0 | L14: 0 | M14: 0 | N14: 0 | O14: 0 | P14: 0 | R14: 1.046808511 | S14: 1.012765957 | T14: 0.9787234043 | U14: 0.9446808511 | V14: 0.8829787234 | W14: 0.8255319149 | X14: 0.7680851064 | Y14: 0.8719512195 | Z14: 0.8844537815 | AA14: 0.897826087 | AB14: 0.9144144144 | AC14: 0.9325301205 | AD14: 0.9536082474 | AE14: 0.9750692521 | AF14: 1.06 | AG14: 1.06 | AH14: 1.06 | AI14: 1.06 | AJ14: 1.06 | AK14: 1.06 | AL14: 1.06 | AM14: 0 | AN14: =Z14*E14+($A$4-80)*AG14*$A$12/1000 -> 0 | AO14: =AA14*G14+($A$4-80)*AH14*$A$12/1000 -> 0 | AP14: 0 | AQ14: 0 | AR14: 0 | AS14: 0
B15: 57 | C15: 0 | D15: 0 | E15: 0 | F15: 0 | G15: 0 | H15: 0 | I15: 0 | J15: 0 | K15: 0 | L15: 0 | M15: 0 | N15: 0 | O15: 0 | P15: 0 | R15: 1.019148936 | S15: 0.9829787234 | T15: 0.9468085106 | U15: 0.9106382979 | V15: 0.8744680851 | W15: 0.8404255319 | X15: 0.8063829787 | Y15: 0.9749478079 | Z15: 0.974025974 | AA15: 0.9707865169 | AB15: 0.9696261682 | AC15: 0.9586374696 | AD15: 0.946835443 | AE15: 0.9340369393 | AF15: 1.06 | AG15: 1.06 | AH15: 1.06 | AI15: 1.06 | AJ15: 1.06 | AK15: 1.06 | AL15: 1.06 | AM15: 0 | AN15: =Z15*E15+($A$4-80)*AG15*$A$12/1000 -> 0 | AO15: =AA15*G15+($A$4-80)*AH15*$A$12/1000 -> 0 | AP15: 0 | AQ15: 0 | AR15: 0 | AS15: 0
A16: 1800 | B16: 72 | C16: 0 | D16: 0 | E16: 0 | F16: 0 | G16: 0 | H16: 0 | I16: 0 | J16: 0 | K16: 0 | L16: 0 | M16: 0 | N16: 0 | O16: 0 | P16: 0 | R16: 1.234042553 | S16: 1.185106383 | T16: 1.136170213 | U16: 1.085106383 | V16: 1.023404255 | W16: 0.9617021277 | X16: 0.9 | Y16: 0.4896551724 | Z16: 0.4973070018 | AA16: 0.5056179775 | AB16: 0.5156862745 | AC16: 0.5218295218 | AD16: 0.5287610619 | AE16: 0.536643026 | AF16: 1.06 | AG16: 1.06 | AH16: 1.06 | AI16: 1.06 | AJ16: 1.06 | AK16: 1.06 | AL16: 1.06 | AM16: =Y16*C16+($A$4-80)*AF16*$A$16/1000 -> 0 | AN16: =Z16*E16+($A$4-80)*AG16*$A$16/1000 -> 0 | AO16: =AA16*G16+($A$4-80)*AH16*$A$16/1000 -> 0 | AP16: =AB16*I16+($A$4-80)*AI16*$A$16/1000 -> 0 | AQ16: =AC16*K16+($A$4-80)*AJ16*$A$16/1000 -> 0 | AR16: =AD16*M16+($A$4-80)*AK16*$A$16/1000 -> 0 | AS16: =AE16*O16+($A$4-80)*AL16*$A$16/1000 -> 0
B17: 67 | C17: 0 | D17: 0 | E17: 0 | F17: 0 | G17: 0 | H17: 0 | I17: 0 | J17: 0 | K17: 0 | L17: 0 | M17: 0 | N17: 0 | O17: 0 | P17: 0 | R17: 1.142553191 | S17: 1.09787234 | T17: 1.053191489 | U17: 1.008510638 | V17: 0.9468085106 | W17: 0.8893617021 | X17: 0.829787234 | Y17: 0.6834264432 | Z17: 0.6957364341 | AA17: 0.7070707071 | AB17: 0.7215189873 | AC17: 0.7393258427 | AD17: 0.7583732057 | AE17: 0.7820512821 | AF17: 1.06 | AG17: 1.06 | AH17: 1.06 | AI17: 1.06 | AJ17: 1.06 | AK17: 1.06 | AL17: 1.06 | AM17: =Y17*C17+($A$4-80)*AF17*$A$16/1000 -> 0 | AN17: =Z17*E17+($A$4-80)*AG17*$A$16/1000 -> 0 | AO17: =AA17*G17+($A$4-80)*AH17*$A$16/1000 -> 0 | AP17: =AB17*I17+($A$4-80)*AI17*$A$16/1000 -> 0 | AQ17: =AC17*K17+($A$4-80)*AJ17*$A$16/1000 -> 0 | AR17: =AD17*M17+($A$4-80)*AK17*$A$16/1000 -> 0 | AS17: =AE17*O17+($A$4-80)*AL17*$A$16/1000 -> 0
B18: 62 | C18: 0 | D18: 0 | E18: 0 | F18: 0 | G18: 0 | H18: 0 | I18: 0 | J18: 0 | K18: 0 | L18: 0 | M18: 0 | N18: 0 | O18: 0 | P18: 0 | R18: 1.063829787 | S18: 1.027659574 | T18: 0.9914893617 | U18: 0.9531914894 | V18: 0.8914893617 | W18: 0.829787234 | X18: 0.770212766 | Y18: 0.878 | Z18: 0.8923395445 | AA18: 0.9077253219 | AB18: 0.9241071429 | AC18: 0.9427207637 | AD18: 0.9615384615 | AE18: 0.9834254144 | AF18: 1.06 | AG18: 1.06 | AH18: 1.06 | AI18: 1.06 | AJ18: 1.06 | AK18: 1.06 | AL18: 1.06 | AM18: 0 | AN18: =Z18*E18+($A$4-80)*AG18*$A$16/1000 -> 0 | AO18: =AA18*G18+($A$4-80)*AH18*$A$16/1000 -> 0 | AP18: 0 | AQ18: 0 | AR18: 0 | AS18: 0
B19: 57 | C19: 0 | D19: 0 | E19: 0 | F19: 0 | G19: 0 | H19: 0 | I19: 0 | J19: 0 | K19: 0 | L19: 0 | M19: 0 | N19: 0 | O19: 0 | P19: 0 | R19: 1.036170213 | S19: 0.9978723404 | T19: 0.9617021277 | U19: 0.9234042553 | V19: 0.8872340426 | W19: 0.8531914894 | X19: 0.8191489362 | Y19: 0.977412731 | Z19: 0.9765458422 | AA19: 0.9734513274 | AB19: 0.9723502304 | AC19: 0.9592326139 | AD19: 0.9451371571 | AE19: 0.9324675325 | AF19: 1.06 | AG19: 1.06 | AH19: 1.06 | AI19: 1.06 | AJ19: 1.06 | AK19: 1.06 | AL19: 1.06 | AM19: 0 | AN19: =Z19*E19+($A$4-80)*AG19*$A$16/1000 -> 0 | AO19: =AA19*G19+($A$4-80)*AH19*$A$16/1000 -> 0 | AP19: 0 | AQ19: 0 | AR19: 0 | AS19: 0

Sheet CZH_60 (hidden)
A2: CZH_60
A3: Evaporator Air | C3: Condenser Entering Air Temperature ˚F
A4: 80 | B4: °F DB | C4: 65 | E4: 75 | G4: 85 | I4: 95 | K4: 105 | M4: 115 | O4: 125
A5: CFM | B5: EWB† ˚F | C5: Capacity Mbtuh | E5: Capacity Mbtuh | G5: Capacity Mbtuh | I5: Capacity Mbtuh | K5: Capacity Mbtuh | M5: Capacity Mbtuh | O5: Capacity Mbtuh
C6: Total | D6: Sens. | E6: Total | F6: Sens. | G6: Total | H6: Sens. | I6: Total | J6: Sens. | K6: Total | L6: Sens. | M6: Total | N6: Sens. | O6: Total | P6: Sens.
R7: Total Factors | Y7: Sens. % | AF7: IDB Adj | AM7: Sens Calc
A8: 1775 | B8: 72 | C8: =R8*$I$13 -> 0 | D8: =IF(AM8>C8,C8,AM8) -> 0 | E8: =S8*$I$13 -> 0 | F8: =IF(AN8>E8,E8,AN8) -> 0 | G8: =T8*$I$13 -> 0 | H8: =IF(AO8>G8,G8,AO8) -> 0 | I8: =U8*$I$13 -> 0 | J8: =IF(AP8>I8,I8,AP8) -> 0 | K8: =V8*$I$13 -> 0 | L8: =IF(AQ8>K8,K8,AQ8) -> 0 | M8: =W8*$I$13 -> 0 | N8: =IF(AR8>M8,M8,AR8) -> 0 | O8: =X8*$I$13 -> 0 | P8: =IF(AS8>O8,O8,AS8) -> 0 | R8: 1.206896552 | S8: 1.163793103 | T8: 1.118965517 | U8: 1.074137931 | V8: 1.006896552 | W8: 0.9431034483 | X8: 0.8775862069 | Y8: 0.4885714286 | Z8: 0.4933333333 | AA8: 0.500770416 | AB8: 0.5088282504 | AC8: 0.5154109589 | AD8: 0.5228519196 | AE8: 0.5304518664 | AF8: 1.06 | AG8: 1.06 | AH8: 1.06 | AI8: 1.06 | AJ8: 1.06 | AK8: 1.06 | AL8: 1.06 | AM8: =Y8*C8+($A$4-80)*AF8*$A$8/1000 -> 0 | AN8: =Z8*E8+($A$4-80)*AG8*$A$8/1000 -> 0 | AO8: =AA8*G8+($A$4-80)*AH8*$A$8/1000 -> 0 | AP8: =AB8*I8+($A$4-80)*AI8*$A$8/1000 -> 0 | AQ8: =AC8*K8+($A$4-80)*AJ8*$A$8/1000 -> 0 | AR8: =AD8*M8+($A$4-80)*AK8*$A$8/1000 -> 0 | AS8: =AE8*O8+($A$4-80)*AL8*$A$8/1000 -> 0
B9: 67 | C9: =R9*$I$13 -> 0 | D9: 0 | E9: 0 | F9: =IF(AN9>E9,E9,AN9) -> 0 | G9: 0 | H9: =IF(AO9>G9,G9,AO9) -> 0 | I9: =U9*$I$13 -> 0 | J9: =IF(AP9>I9,I9,AP9) -> 0 | K9: 0 | L9: =IF(AQ9>K9,K9,AQ9) -> 0 | M9: 0 | N9: =IF(AR9>M9,M9,AR9) -> 0 | O9: 0 | P9: =IF(AS9>O9,O9,AS9) -> 0 | R9: 1.098275862 | S9: 1.062068966 | T9: 1.025862069 | U9: 0.9896551724 | V9: 0.9293103448 | W9: 0.8706896552 | X9: 0.8137931034 | Y9: 0.6263736264 | Z9: 0.6493506494 | AA9: 0.6739495798 | AB9: 0.7003484321 | AC9: 0.7179962894 | AD9: 0.7366336634 | AE9: 0.7584745763 | AF9: 1.06 | AG9: 1.06 | AH9: 1.06 | AI9: 1.06 | AJ9: 1.06 | AK9: 1.06 | AL9: 1.06 | AM9: =Y9*C9+($A$4-80)*AF9*$A$8/1000 -> 0 | AN9: =Z9*E9+($A$4-80)*AG9*$A$8/1000 -> 0 | AO9: =AA9*G9+($A$4-80)*AH9*$A$8/1000 -> 0 | AP9: =AB9*I9+($A$4-80)*AI9*$A$8/1000 -> 0 | AQ9: =AC9*K9+($A$4-80)*AJ9*$A$8/1000 -> 0 | AR9: =AD9*M9+($A$4-80)*AK9*$A$8/1000 -> 0 | AS9: =AE9*O9+($A$4-80)*AL9*$A$8/1000 -> 0
B10: 62 | C10: 0 | D10: 0 | E10: 0 | F10: 0 | G10: 0 | H10: 0 | I10: =U10*$I$13 -> 0 | J10: 0 | K10: 0 | L10: 0 | M10: 0 | N10: 0 | O10: 0 | P10: 0 | R10: 1.075862069 | S10: 1.024137931 | T10: 0.9724137931 | U10: 0.9206896552 | V10: 0.8689655172 | W10: 0.8189655172 | X10: 0.7689655172 | Y10: 0.8846153846 | Z10: 0.8939393939 | AA10: 0.9060283688 | AB10: 0.9176029963 | AC10: 0.9384920635 | AD10: 0.96 | AE10: 0.9865470852 | AF10: 1.06 | AG10: 1.06 | AH10: 1.06 | AI10: 1.06 | AJ10: 1.06 | AK10: 1.06 | AL10: 1.06 | AM10: 0 | AN10: =Z10*E10+($A$4-80)*AG10*$A$8/1000 -> 0 | AO10: =AA10*G10+($A$4-80)*AH10*$A$8/1000 -> 0 | AP10: 0 | AQ10: 0 | AR10: 0 | AS10: 0
B11: 57 | C11: 0 | D11: 0 | E11: 0 | F11: 0 | G11: 0 | H11: 0 | I11: =U11*$I$13 -> 0 | J11: 0 | K11: 0 | L11: 0 | M11: 0 | N11: 0 | O11: 0 | P11: 0 | R11: 1.027586207 | S11: 0.9965517241 | T11: 0.9655172414 | U11: 0.9344827586 | V11: 0.8706896552 | W11: 0.8086206897 | X11: 0.7465517241 | Y11: 0.9697986577 | Z11: 0.9688581315 | AA11: 0.9660714286 | AB11: 0.963099631 | AC11: 0.9702970297 | AD11: 0.9786780384 | AE11: 0.9861431871 | AF11: 1.06 | AG11: 1.06 | AH11: 1.06 | AI11: 1.06 | AJ11: 1.06 | AK11: 1.06 | AL11: 1.06 | AM11: 0 | AN11: =Z11*E11+($A$4-80)*AG11*$A$8/1000 -> 0 | AO11: =AA11*G11+($A$4-80)*AH11*$A$8/1000 -> 0 | AP11: =AB11*I11+($A$4-80)*AI11*$A$8/1000 -> 0 | AQ11: 0 | AR11: 0 | AS11: 0
A12: 1875 | B12: 72 | C12: 0 | D12: 0 | E12: 0 | F12: 0 | G12: 0 | H12: 0 | I12: =U12*$I$13 -> 0 | J12: 0 | K12: 0 | L12: 0 | M12: 0 | N12: 0 | O12: 0 | P12: 0 | R12: 1.215517241 | S12: 1.168965517 | T12: 1.124137931 | U12: 1.077586207 | V12: 1.012068966 | W12: 0.9482758621 | X12: 0.8844827586 | Y12: 0.4907801418 | Z12: 0.4970501475 | AA12: 0.5030674847 | AB12: 0.5104 | AC12: 0.5178875639 | AD12: 0.5272727273 | AE12: 0.5360623782 | AF12: 1.06 | AG12: 1.06 | AH12: 1.06 | AI12: 1.06 | AJ12: 1.06 | AK12: 1.06 | AL12: 1.06 | AM12: =Y12*C12+($A$4-80)*AF12*$A$12/1000 -> 0 | AN12: =Z12*E12+($A$4-80)*AG12*$A$12/1000 -> 0 | AO12: =AA12*G12+($A$4-80)*AH12*$A$12/1000 -> 0 | AP12: =AB12*I12+($A$4-80)*AI12*$A$12/1000 -> 0 | AQ12: =AC12*K12+($A$4-80)*AJ12*$A$12/1000 -> 0 | AR12: =AD12*M12+($A$4-80)*AK12*$A$12/1000 -> 0 | AS12: =AE12*O12+($A$4-80)*AL12*$A$12/1000 -> 0
B13: 67 | C13: 0 | D13: 0 | E13: 0 | F13: 0 | G13: 0 | H13: 0 | I13: =B2 -> 0 | J13: 0 | K13: 0 | L13: 0 | M13: 0 | N13: 0 | O13: 0 | P13: 0 | R13: 1.125862069 | S13: 1.084482759 | T13: 1.04137931 | U13: 1 | V13: 0.9379310345 | W13: 0.8775862069 | X13: 0.8189655172 | Y13: 0.6554364472 | Z13: 0.6724960254 | AA13: 0.690397351 | AB13: 0.7103448276 | AC13: 0.7279411765 | AD13: 0.7485265226 | AE13: 0.7684210526 | AF13: 1.06 | AG13: 1.06 | AH13: 1.06 | AI13: 1.06 | AJ13: 1.06 | AK13: 1.06 | AL13: 1.06 | AM13: =Y13*C13+($A$4-80)*AF13*$A$12/1000 -> 0 | AN13: =Z13*E13+($A$4-80)*AG13*$A$12/1000 -> 0 | AO13: =AA13*G13+($A$4-80)*AH13*$A$12/1000 -> 0 | AP13: =AB13*I13+($A$4-80)*AI13*$A$12/1000 -> 0 | AQ13: =AC13*K13+($A$4-80)*AJ13*$A$12/1000 -> 0 | AR13: =AD13*M13+($A$4-80)*AK13*$A$12/1000 -> 0 | AS13: =AE13*O13+($A$4-80)*AL13*$A$12/1000 -> 0
B14: 62 | C14: 0 | D14: 0 | E14: 0 | F14: 0 | G14: 0 | H14: 0 | I14: =U14*$I$13 -> 0 | J14: 0 | K14: 0 | L14: 0 | M14: 0 | N14: 0 | O14: 0 | P14: 0 | R14: 1.077586207 | S14: 1.027586207 | T14: 0.9775862069 | U14: 0.9293103448 | V14: 0.8793103448 | W14: 0.8293103448 | X14: 0.7810344828 | Y14: 0.8944 | Z14: 0.9060402685 | AA14: 0.9171075838 | AB14: 0.9294990724 | AC14: 0.9450980392 | AD14: 0.9667359667 | AE14: 0.9867549669 | AF14: 1.06 | AG14: 1.06 | AH14: 1.06 | AI14: 1.06 | AJ14: 1.06 | AK14: 1.06 | AL14: 1.06 | AM14: 0 | AN14: =Z14*E14+($A$4-80)*AG14*$A$12/1000 -> 0 | AO14: =AA14*G14+($A$4-80)*AH14*$A$12/1000 -> 0 | AP14: 0 | AQ14: 0 | AR14: 0 | AS14: 0
B15: 57 | C15: 0 | D15: 0 | E15: 0 | F15: 0 | G15: 0 | H15: 0 | I15: 0 | J15: 0 | K15: 0 | L15: 0 | M15: 0 | N15: 0 | O15: 0 | P15: 0 | R15: 1.046551724 | S15: 1.013793103 | T15: 0.9810344828 | U15: 0.9482758621 | V15: 0.8862068966 | W15: 0.8275862069 | X15: 0.7672413793 | Y15: 0.9670510708 | Z15: 0.9659863946 | AA15: 0.9630931459 | AB15: 0.9618181818 | AC15: 0.9688715953 | AD15: 0.975 | AE15: 0.9842696629 | AF15: 1.06 | AG15: 1.06 | AH15: 1.06 | AI15: 1.06 | AJ15: 1.06 | AK15: 1.06 | AL15: 1.06 | AM15: 0 | AN15: =Z15*E15+($A$4-80)*AG15*$A$12/1000 -> 0 | AO15: =AA15*G15+($A$4-80)*AH15*$A$12/1000 -> 0 | AP15: 0 | AQ15: 0 | AR15: 0 | AS15: 0
A16: 1975 | B16: 72 | C16: 0 | D16: 0 | E16: 0 | F16: 0 | G16: 0 | H16: 0 | I16: 0 | J16: 0 | K16: 0 | L16: 0 | M16: 0 | N16: 0 | O16: 0 | P16: 0 | R16: 1.222413793 | S16: 1.174137931 | T16: 1.127586207 | U16: 1.079310345 | V16: 1.015517241 | W16: 0.9534482759 | X16: 0.8896551724 | Y16: 0.4936530324 | Z16: 0.4992657856 | AA16: 0.506116208 | AB16: 0.5143769968 | AC16: 0.5212224109 | AD16: 0.5298372514 | AE16: 0.5406976744 | AF16: 1.06 | AG16: 1.06 | AH16: 1.06 | AI16: 1.06 | AJ16: 1.06 | AK16: 1.06 | AL16: 1.06 | AM16: =Y16*C16+($A$4-80)*AF16*$A$16/1000 -> 0 | AN16: =Z16*E16+($A$4-80)*AG16*$A$16/1000 -> 0 | AO16: =AA16*G16+($A$4-80)*AH16*$A$16/1000 -> 0 | AP16: =AB16*I16+($A$4-80)*AI16*$A$16/1000 -> 0 | AQ16: =AC16*K16+($A$4-80)*AJ16*$A$16/1000 -> 0 | AR16: =AD16*M16+($A$4-80)*AK16*$A$16/1000 -> 0 | AS16: =AE16*O16+($A$4-80)*AL16*$A$16/1000 -> 0
B17: 67 | C17: 0 | D17: 0 | E17: 0 | F17: 0 | G17: 0 | H17: 0 | I17: 0 | J17: 0 | K17: 0 | L17: 0 | M17: 0 | N17: 0 | O17: 0 | P17: 0 | R17: 1.155172414 | S17: 1.106896552 | T17: 1.05862069 | U17: 1.010344828 | V17: 0.9465517241 | W17: 0.8844827586 | X17: 0.8224137931 | Y17: 0.6820895522 | Z17: 0.6931464174 | AA17: 0.7052117264 | AB17: 0.7201365188 | AC17: 0.737704918 | AD17: 0.7582846004 | AE17: 0.7819706499 | AF17: 1.06 | AG17: 1.06 | AH17: 1.06 | AI17: 1.06 | AJ17: 1.06 | AK17: 1.06 | AL17: 1.06 | AM17: =Y17*C17+($A$4-80)*AF17*$A$16/1000 -> 0 | AN17: =Z17*E17+($A$4-80)*AG17*$A$16/1000 -> 0 | AO17: =AA17*G17+($A$4-80)*AH17*$A$16/1000 -> 0 | AP17: =AB17*I17+($A$4-80)*AI17*$A$16/1000 -> 0 | AQ17: =AC17*K17+($A$4-80)*AJ17*$A$16/1000 -> 0 | AR17: =AD17*M17+($A$4-80)*AK17*$A$16/1000 -> 0 | AS17: =AE17*O17+($A$4-80)*AL17*$A$16/1000 -> 0
B18: 62 | C18: 0 | D18: 0 | E18: 0 | F18: 0 | G18: 0 | H18: 0 | I18: 0 | J18: 0 | K18: 0 | L18: 0 | M18: 0 | N18: 0 | O18: 0 | P18: 0 | R18: 1.077586207 | S18: 1.031034483 | T18: 0.9827586207 | U18: 0.9362068966 | V18: 0.8879310345 | W18: 0.8396551724 | X18: 0.7913793103 | Y18: 0.9056 | Z18: 0.9163879599 | AA18: 0.9298245614 | AB18: 0.9429097606 | AC18: 0.9553398058 | AD18: 0.9691991786 | AE18: 0.9869281046 | AF18: 1.06 | AG18: 1.06 | AH18: 1.06 | AI18: 1.06 | AJ18: 1.06 | AK18: 1.06 | AL18: 1.06 | AM18: 0 | AN18: =Z18*E18+($A$4-80)*AG18*$A$16/1000 -> 0 | AO18: =AA18*G18+($A$4-80)*AH18*$A$16/1000 -> 0 | AP18: 0 | AQ18: 0 | AR18: 0 | AS18: 0
B19: 57 | C19: 0 | D19: 0 | E19: 0 | F19: 0 | G19: 0 | H19: 0 | I19: 0 | J19: 0 | K19: 0 | L19: 0 | M19: 0 | N19: 0 | O19: 0 | P19: 0 | R19: 1.063793103 | S19: 1.029310345 | T19: 0.9948275862 | U19: 0.9603448276 | V19: 0.9017241379 | W19: 0.8448275862 | X19: 0.7896551724 | Y19: 0.9643435981 | Z19: 0.9631490787 | AA19: 0.9618717504 | AB19: 0.960502693 | AC19: 0.9674952199 | AD19: 0.9734693878 | AE19: 0.9781659389 | AF19: 1.06 | AG19: 1.06 | AH19: 1.06 | AI19: 1.06 | AJ19: 1.06 | AK19: 1.06 | AL19: 1.06 | AM19: 0 | AN19: =Z19*E19+($A$4-80)*AG19*$A$16/1000 -> 0 | AO19: =AA19*G19+($A$4-80)*AH19*$A$16/1000 -> 0 | AP19: 0 | AQ19: 0 | AR19: 0 | AS19: 0

Sheet TCHD_18 (hidden)
A2: TCHD_18
A3: Evaporator Air | C3: Condenser Entering Air Temperature ˚F
A4: 80 | B4: °F DB | C4: 65 | E4: 75 | G4: 85 | I4: 95 | K4: 105 | M4: 115 | O4: 125
A5: CFM | B5: EWB† ˚F | C5: Capacity Mbtuh | E5: Capacity Mbtuh | G5: Capacity Mbtuh | I5: Capacity Mbtuh | K5: Capacity Mbtuh | M5: Capacity Mbtuh | O5: Capacity Mbtuh
C6: Total | D6: Sens. | E6: Total | F6: Sens. | G6: Total | H6: Sens. | I6: Total | J6: Sens. | K6: Total | L6: Sens. | M6: Total | N6: Sens. | O6: Total | P6: Sens.
R7: Total Factors | Y7: Sens. % | AF7: IDB Adj | AM7: Sens Calc
A8: 450 | B8: 72 | C8: =R8*$I$13 -> 0 | D8: =IF(AM8>C8,C8,AM8) -> 0 | E8: =S8*$I$13 -> 0 | F8: =IF(AN8>E8,E8,AN8) -> 0 | G8: =T8*$I$13 -> 0 | H8: =IF(AO8>G8,G8,AO8) -> 0 | I8: =U8*$I$13 -> 0 | J8: =IF(AP8>I8,I8,AP8) -> 0 | K8: =V8*$I$13 -> 0 | L8: =IF(AQ8>K8,K8,AQ8) -> 0 | M8: =W8*$I$13 -> 0 | N8: =IF(AR8>M8,M8,AR8) -> 0 | O8: =X8*$I$13 -> 0 | P8: =IF(AS8>O8,O8,AS8) -> 0 | R8: 1.194444444 | S8: 1.15 | T8: 1.111111111 | U8: 1.066666667 | V8: 1.005555556 | W8: 0.9388888889 | X8: 0.8777777778 | Y8: 0.4604651163 | Z8: 0.4637681159 | AA8: 0.465 | AB8: 0.4635416667 | AC8: 0.4696132597 | AD8: 0.4733727811 | AE8: 0.4810126582 | AF8: 1.06 | AG8: 1.06 | AH8: 1.06 | AI8: 1.06 | AJ8: 1.06 | AK8: 1.06 | AL8: 1.06 | AM8: =Y8*C8+($A$4-80)*AF8*$A$8/1000 -> 0 | AN8: =Z8*E8+($A$4-80)*AG8*$A$8/1000 -> 0 | AO8: =AA8*G8+($A$4-80)*AH8*$A$8/1000 -> 0 | AP8: =AB8*I8+($A$4-80)*AI8*$A$8/1000 -> 0 | AQ8: =AC8*K8+($A$4-80)*AJ8*$A$8/1000 -> 0 | AR8: =AD8*M8+($A$4-80)*AK8*$A$8/1000 -> 0 | AS8: =AE8*O8+($A$4-80)*AL8*$A$8/1000 -> 0
B9: 67 | C9: =R9*$I$13 -> 0 | D9: 0 | E9: 0 | F9: =IF(AN9>E9,E9,AN9) -> 0 | G9: 0 | H9: =IF(AO9>G9,G9,AO9) -> 0 | I9: =U9*$I$13 -> 0 | J9: =IF(AP9>I9,I9,AP9) -> 0 | K9: 0 | L9: =IF(AQ9>K9,K9,AQ9) -> 0 | M9: 0 | N9: =IF(AR9>M9,M9,AR9) -> 0 | O9: 0 | P9: =IF(AS9>O9,O9,AS9) -> 0 | R9: 1.094444444 | S9: 1.05 | T9: 1.005555556 | U9: 0.9611111111 | V9: 0.8888888889 | W9: 0.8166666667 | X9: 0.7444444444 | Y9: 0.6192893401 | Z9: 0.6243386243 | AA9: 0.6298342541 | AB9: 0.6358381503 | AC9: 0.65 | AD9: 0.6666666667 | AE9: 0.6865671642 | AF9: 1.06 | AG9: 1.06 | AH9: 1.06 | AI9: 1.06 | AJ9: 1.06 | AK9: 1.06 | AL9: 1.06 | AM9: =Y9*C9+($A$4-80)*AF9*$A$8/1000 -> 0 | AN9: =Z9*E9+($A$4-80)*AG9*$A$8/1000 -> 0 | AO9: =AA9*G9+($A$4-80)*AH9*$A$8/1000 -> 0 | AP9: =AB9*I9+($A$4-80)*AI9*$A$8/1000 -> 0 | AQ9: =AC9*K9+($A$4-80)*AJ9*$A$8/1000 -> 0 | AR9: =AD9*M9+($A$4-80)*AK9*$A$8/1000 -> 0 | AS9: =AE9*O9+($A$4-80)*AL9*$A$8/1000 -> 0
B10: 62 | C10: 0 | D10: 0 | E10: 0 | F10: 0 | G10: 0 | H10: 0 | I10: =U10*$I$13 -> 0 | J10: 0 | K10: 0 | L10: 0 | M10: 0 | N10: 0 | O10: 0 | P10: 0 | R10: 1.011111111 | S10: 0.9611111111 | T10: 0.9166666667 | U10: 0.8722222222 | V10: 0.8055555556 | W10: 0.75 | X10: 0.6888888889 | Y10: 0.7967032967 | Z10: 0.8034682081 | AA10: 0.8060606061 | AB10: 0.8089171975 | AC10: 0.8413793103 | AD10: 0.8592592593 | AE10: 0.8951612903 | AF10: 1.06 | AG10: 1.06 | AH10: 1.06 | AI10: 1.06 | AJ10: 1.06 | AK10: 1.06 | AL10: 1.06 | AM10: 0 | AN10: =Z10*E10+($A$4-80)*AG10*$A$8/1000 -> 0 | AO10: =AA10*G10+($A$4-80)*AH10*$A$8/1000 -> 0 | AP10: 0 | AQ10: 0 | AR10: 0 | AS10: 0
B11: 57 | C11: 0 | D11: 0 | E11: 0 | F11: 0 | G11: 0 | H11: 0 | I11: =U11*$I$13 -> 0 | J11: 0 | K11: 0 | L11: 0 | M11: 0 | N11: 0 | O11: 0 | P11: 0 | R11: 0.9611111111 | S11: 0.9 | T11: 0.8388888889 | U11: 0.7777777778 | V11: 0.7444444444 | W11: 0.7055555556 | X11: 0.6722222222 | Y11: 0.9595375723 | Z11: 0.9691358025 | AA11: 0.9801324503 | AB11: 1 | AC11: 0.9925373134 | AD11: 0.9921259843 | AE11: 0.9917355372 | AF11: 1.06 | AG11: 1.06 | AH11: 1.06 | AI11: 1.06 | AJ11: 1.06 | AK11: 1.06 | AL11: 1.06 | AM11: 0 | AN11: =Z11*E11+($A$4-80)*AG11*$A$8/1000 -> 0 | AO11: =AA11*G11+($A$4-80)*AH11*$A$8/1000 -> 0 | AP11: =AB11*I11+($A$4-80)*AI11*$A$8/1000 -> 0 | AQ11: 0 | AR11: 0 | AS11: 0
A12: 600 | B12: 72 | C12: 0 | D12: 0 | E12: 0 | F12: 0 | G12: 0 | H12: 0 | I12: =U12*$I$13 -> 0 | J12: 0 | K12: 0 | L12: 0 | M12: 0 | N12: 0 | O12: 0 | P12: 0 | R12: 1.25 | S12: 1.194444444 | T12: 1.138888889 | U12: 1.088888889 | V12: 1.027777778 | W12: 0.9666666667 | X12: 0.9055555556 | Y12: 0.4755555556 | Z12: 0.488372093 | AA12: 0.4975609756 | AB12: 0.5102040816 | AC12: 0.5135135135 | AD12: 0.5172413793 | AE12: 0.5214723926 | AF12: 1.06 | AG12: 1.06 | AH12: 1.06 | AI12: 1.06 | AJ12: 1.06 | AK12: 1.06 | AL12: 1.06 | AM12: =Y12*C12+($A$4-80)*AF12*$A$12/1000 -> 0 | AN12: =Z12*E12+($A$4-80)*AG12*$A$12/1000 -> 0 | AO12: =AA12*G12+($A$4-80)*AH12*$A$12/1000 -> 0 | AP12: =AB12*I12+($A$4-80)*AI12*$A$12/1000 -> 0 | AQ12: =AC12*K12+($A$4-80)*AJ12*$A$12/1000 -> 0 | AR12: =AD12*M12+($A$4-80)*AK12*$A$12/1000 -> 0 | AS12: =AE12*O12+($A$4-80)*AL12*$A$12/1000 -> 0
B13: 67 | C13: 0 | D13: 0 | E13: 0 | F13: 0 | G13: 0 | H13: 0 | I13: =B2 -> 0 | J13: 0 | K13: 0 | L13: 0 | M13: 0 | N13: 0 | O13: 0 | P13: 0 | R13: 1.144444444 | S13: 1.094444444 | T13: 1.05 | U13: 1 | V13: 0.9333333333 | W13: 0.8666666667 | X13: 0.8 | Y13: 0.6893203883 | Z13: 0.6954314721 | AA13: 0.6931216931 | AB13: 0.7 | AC13: 0.7142857143 | AD13: 0.7371794872 | AE13: 0.7569444444 | AF13: 1.06 | AG13: 1.06 | AH13: 1.06 | AI13: 1.06 | AJ13: 1.06 | AK13: 1.06 | AL13: 1.06 | AM13: =Y13*C13+($A$4-80)*AF13*$A$12/1000 -> 0 | AN13: =Z13*E13+($A$4-80)*AG13*$A$12/1000 -> 0 | AO13: =AA13*G13+($A$4-80)*AH13*$A$12/1000 -> 0 | AP13: =AB13*I13+($A$4-80)*AI13*$A$12/1000 -> 0 | AQ13: =AC13*K13+($A$4-80)*AJ13*$A$12/1000 -> 0 | AR13: =AD13*M13+($A$4-80)*AK13*$A$12/1000 -> 0 | AS13: =AE13*O13+($A$4-80)*AL13*$A$12/1000 -> 0
B14: 62 | C14: 0 | D14: 0 | E14: 0 | F14: 0 | G14: 0 | H14: 0 | I14: =U14*$I$13 -> 0 | J14: 0 | K14: 0 | L14: 0 | M14: 0 | N14: 0 | O14: 0 | P14: 0 | R14: 1.055555556 | S14: 1.011111111 | T14: 0.9722222222 | U14: 0.9333333333 | V14: 0.8666666667 | W14: 0.8055555556 | X14: 0.7444444444 | Y14: 0.8894736842 | Z14: 0.9010989011 | AA14: 0.9028571429 | AB14: 0.9107142857 | AC14: 0.9294871795 | AD14: 0.9379310345 | AE14: 0.9552238806 | AF14: 1.06 | AG14: 1.06 | AH14: 1.06 | AI14: 1.06 | AJ14: 1.06 | AK14: 1.06 | AL14: 1.06 | AM14: 0 | AN14: =Z14*E14+($A$4-80)*AG14*$A$12/1000 -> 0 | AO14: =AA14*G14+($A$4-80)*AH14*$A$12/1000 -> 0 | AP14: 0 | AQ14: 0 | AR14: 0 | AS14: 0
B15: 57 | C15: 0 | D15: 0 | E15: 0 | F15: 0 | G15: 0 | H15: 0 | I15: 0 | J15: 0 | K15: 0 | L15: 0 | M15: 0 | N15: 0 | O15: 0 | P15: 0 | R15: 1.05 | S15: 0.9888888889 | T15: 0.9277777778 | U15: 0.8666666667 | V15: 0.8222222222 | W15: 0.7777777778 | X15: 0.7333333333 | Y15: 0.9523809524 | Z15: 0.9662921348 | AA15: 0.9820359281 | AB15: 1 | AC15: 1 | AD15: 1 | AE15: 0.9924242424 | AF15: 1.06 | AG15: 1.06 | AH15: 1.06 | AI15: 1.06 | AJ15: 1.06 | AK15: 1.06 | AL15: 1.06 | AM15: 0 | AN15: =Z15*E15+($A$4-80)*AG15*$A$12/1000 -> 0 | AO15: =AA15*G15+($A$4-80)*AH15*$A$12/1000 -> 0 | AP15: 0 | AQ15: 0 | AR15: 0 | AS15: 0
A16: 750 | B16: 72 | C16: 0 | D16: 0 | E16: 0 | F16: 0 | G16: 0 | H16: 0 | I16: 0 | J16: 0 | K16: 0 | L16: 0 | M16: 0 | N16: 0 | O16: 0 | P16: 0 | R16: 1.3 | S16: 1.238888889 | T16: 1.172222222 | U16: 1.105555556 | V16: 1.05 | W16: 0.9944444444 | X16: 0.9333333333 | Y16: 0.4957264957 | Z16: 0.5112107623 | AA16: 0.5308056872 | AB16: 0.5527638191 | AC16: 0.5555555556 | AD16: 0.5586592179 | AE16: 0.5654761905 | AF16: 1.06 | AG16: 1.06 | AH16: 1.06 | AI16: 1.06 | AJ16: 1.06 | AK16: 1.06 | AL16: 1.06 | AM16: =Y16*C16+($A$4-80)*AF16*$A$16/1000 -> 0 | AN16: =Z16*E16+($A$4-80)*AG16*$A$16/1000 -> 0 | AO16: =AA16*G16+($A$4-80)*AH16*$A$16/1000 -> 0 | AP16: =AB16*I16+($A$4-80)*AI16*$A$16/1000 -> 0 | AQ16: =AC16*K16+($A$4-80)*AJ16*$A$16/1000 -> 0 | AR16: =AD16*M16+($A$4-80)*AK16*$A$16/1000 -> 0 | AS16: =AE16*O16+($A$4-80)*AL16*$A$16/1000 -> 0
B17: 67 | C17: 0 | D17: 0 | E17: 0 | F17: 0 | G17: 0 | H17: 0 | I17: 0 | J17: 0 | K17: 0 | L17: 0 | M17: 0 | N17: 0 | O17: 0 | P17: 0 | R17: 1.194444444 | S17: 1.138888889 | T17: 1.088888889 | U17: 1.038888889 | V17: 0.9777777778 | W17: 0.9166666667 | X17: 0.8611111111 | Y17: 0.7534883721 | Z17: 0.7609756098 | AA17: 0.7602040816 | AB17: 0.7593582888 | AC17: 0.7784090909 | AD17: 0.8 | AE17: 0.8193548387 | AF17: 1.06 | AG17: 1.06 | AH17: 1.06 | AI17: 1.06 | AJ17: 1.06 | AK17: 1.06 | AL17: 1.06 | AM17: =Y17*C17+($A$4-80)*AF17*$A$16/1000 -> 0 | AN17: =Z17*E17+($A$4-80)*AG17*$A$16/1000 -> 0 | AO17: =AA17*G17+($A$4-80)*AH17*$A$16/1000 -> 0 | AP17: =AB17*I17+($A$4-80)*AI17*$A$16/1000 -> 0 | AQ17: =AC17*K17+($A$4-80)*AJ17*$A$16/1000 -> 0 | AR17: =AD17*M17+($A$4-80)*AK17*$A$16/1000 -> 0 | AS17: =AE17*O17+($A$4-80)*AL17*$A$16/1000 -> 0
B18: 62 | C18: 0 | D18: 0 | E18: 0 | F18: 0 | G18: 0 | H18: 0 | I18: 0 | J18: 0 | K18: 0 | L18: 0 | M18: 0 | N18: 0 | O18: 0 | P18: 0 | R18: 1.094444444 | S18: 1.061111111 | T18: 1.027777778 | U18: 1 | V18: 0.9277777778 | W18: 0.8666666667 | X18: 0.8 | Y18: 0.9796954315 | Z18: 0.9842931937 | AA18: 0.9945945946 | AB18: 0.9944444444 | AC18: 1 | AD18: 1 | AE18: 1 | AF18: 1.06 | AG18: 1.06 | AH18: 1.06 | AI18: 1.06 | AJ18: 1.06 | AK18: 1.06 | AL18: 1.06 | AM18: 0 | AN18: =Z18*E18+($A$4-80)*AG18*$A$16/1000 -> 0 | AO18: =AA18*G18+($A$4-80)*AH18*$A$16/1000 -> 0 | AP18: 0 | AQ18: 0 | AR18: 0 | AS18: 0
B19: 57 | C19: 0 | D19: 0 | E19: 0 | F19: 0 | G19: 0 | H19: 0 | I19: 0 | J19: 0 | K19: 0 | L19: 0 | M19: 0 | N19: 0 | O19: 0 | P19: 0 | R19: 1.133333333 | S19: 1.077777778 | T19: 1.016666667 | U19: 0.9611111111 | V19: 0.9055555556 | W19: 0.85 | X19: 0.7944444444 | Y19: 0.9509803922 | Z19: 0.9639175258 | AA19: 0.9836065574 | AB19: 1 | AC19: 1 | AD19: 1 | AE19: 1 | AF19: 1.06 | AG19: 1.06 | AH19: 1.06 | AI19: 1.06 | AJ19: 1.06 | AK19: 1.06 | AL19: 1.06 | AM19: 0 | AN19: =Z19*E19+($A$4-80)*AG19*$A$16/1000 -> 0 | AO19: =AA19*G19+($A$4-80)*AH19*$A$16/1000 -> 0 | AP19: 0 | AQ19: 0 | AR19: 0 | AS19: 0

Sheet TCHD_24 (hidden)
A2: TCHD_24 | B2: 24
A3: Evaporator Air | C3: Condenser Entering Air Temperature ˚F
A4: 80 | B4: °F DB | C4: 65 | E4: 75 | G4: 85 | I4: 95 | K4: 105 | M4: 115 | O4: 125
A5: CFM | B5: EWB† ˚F | C5: Capacity Mbtuh | E5: Capacity Mbtuh | G5: Capacity Mbtuh | I5: Capacity Mbtuh | K5: Capacity Mbtuh | M5: Capacity Mbtuh | O5: Capacity Mbtuh
C6: Total | D6: Sens. | E6: Total | F6: Sens. | G6: Total | H6: Sens. | I6: Total | J6: Sens. | K6: Total | L6: Sens. | M6: Total | N6: Sens. | O6: Total | P6: Sens.
R7: Total Factors | Y7: Sens. % | AF7: IDB Adj | AM7: Sens Calc
A8: 600 | B8: 72 | C8: =R8*$I$13 -> 28.30769231 | D8: =IF(AM8>C8,C8,AM8) -> 12.51282051 | E8: =S8*$I$13 -> 27.38461538 | F8: =IF(AN8>E8,E8,AN8) -> 12.20512821 | G8: =T8*$I$13 -> 26.46153846 | H8: =IF(AO8>G8,G8,AO8) -> 11.8974359 | I8: =U8*$I$13 -> 25.64102564 | J8: =IF(AP8>I8,I8,AP8) -> 11.69230769 | K8: =V8*$I$13 -> 24.1025641 | L8: =IF(AQ8>K8,K8,AQ8) -> 11.07692308 | M8: =W8*$I$13 -> 22.56410256 | N8: =IF(AR8>M8,M8,AR8) -> 10.56410256 | O8: =X8*$I$13 -> 21.12820513 | P8: =IF(AS8>O8,O8,AS8) -> 10.05128205 | R8: 1.179487179 | S8: 1.141025641 | T8: 1.102564103 | U8: 1.068376068 | V8: 1.004273504 | W8: 0.9401709402 | X8: 0.8803418803 | Y8: 0.4420289855 | Z8: 0.4456928839 | AA8: 0.4496124031 | AB8: 0.456 | AC8: 0.4595744681 | AD8: 0.4681818182 | AE8: 0.4757281553 | AF8: 1.06 | AG8: 1.06 | AH8: 1.06 | AI8: 1.06 | AJ8: 1.06 | AK8: 1.06 | AL8: 1.06 | AM8: =Y8*C8+($A$4-80)*AF8*$A$8/1000 -> 12.51282051 | AN8: =Z8*E8+($A$4-80)*AG8*$A$8/1000 -> 12.20512821 | AO8: =AA8*G8+($A$4-80)*AH8*$A$8/1000 -> 11.8974359 | AP8: =AB8*I8+($A$4-80)*AI8*$A$8/1000 -> 11.69230769 | AQ8: =AC8*K8+($A$4-80)*AJ8*$A$8/1000 -> 11.07692308 | AR8: =AD8*M8+($A$4-80)*AK8*$A$8/1000 -> 10.56410256 | AS8: =AE8*O8+($A$4-80)*AL8*$A$8/1000 -> 10.05128205
B9: 67 | C9: =R9*$I$13 -> 26.15384615 | D9: 16.1025641 | E9: 25.23076923 | F9: =IF(AN9>E9,E9,AN9) -> 15.69230769 | G9: 24.20512821 | H9: =IF(AO9>G9,G9,AO9) -> 15.17948718 | I9: =U9*$I$13 -> 23.28205128 | J9: =IF(AP9>I9,I9,AP9) -> 14.76923077 | K9: 21.84615385 | L9: =IF(AQ9>K9,K9,AQ9) -> 14.15384615 | M9: 20.30769231 | N9: =IF(AR9>M9,M9,AR9) -> 13.43589744 | O9: 18.87179487 | P9: =IF(AS9>O9,O9,AS9) -> 12.82051282 | R9: 1.08974359 | S9: 1.051282051 | T9: 1.008547009 | U9: 0.9700854701 | V9: 0.9102564103 | W9: 0.8461538462 | X9: 0.7863247863 | Y9: 0.6156862745 | Z9: 0.6219512195 | AA9: 0.6271186441 | AB9: 0.6343612335 | AC9: 0.6478873239 | AD9: 0.6616161616 | AE9: 0.6793478261 | AF9: 1.06 | AG9: 1.06 | AH9: 1.06 | AI9: 1.06 | AJ9: 1.06 | AK9: 1.06 | AL9: 1.06 | AM9: =Y9*C9+($A$4-80)*AF9*$A$8/1000 -> 16.1025641 | AN9: =Z9*E9+($A$4-80)*AG9*$A$8/1000 -> 15.69230769 | AO9: =AA9*G9+($A$4-80)*AH9*$A$8/1000 -> 15.17948718 | AP9: =AB9*I9+($A$4-80)*AI9*$A$8/1000 -> 14.76923077 | AQ9: =AC9*K9+($A$4-80)*AJ9*$A$8/1000 -> 14.15384615 | AR9: =AD9*M9+($A$4-80)*AK9*$A$8/1000 -> 13.43589744 | AS9: =AE9*O9+($A$4-80)*AL9*$A$8/1000 -> 12.82051282
B10: 62 | C10: 23.79487179 | D10: 18.76923077 | E10: 22.76923077 | F10: 18.35897436 | G10: 21.84615385 | H10: 17.94871795 | I10: =U10*$I$13 -> 20.92307692 | J10: 17.53846154 | K10: 19.69230769 | L10: 17.02564103 | M10: 18.56410256 | N10: 16.51282051 | O10: 17.43589744 | P10: 16.1025641 | R10: 0.9914529915 | S10: 0.9487179487 | T10: 0.9102564103 | U10: 0.8717948718 | V10: 0.8205128205 | W10: 0.7735042735 | X10: 0.7264957265 | Y10: 0.7887931034 | Z10: 0.8063063063 | AA10: 0.8215962441 | AB10: 0.8382352941 | AC10: 0.8645833333 | AD10: 0.8895027624 | AE10: 0.9235294118 | AF10: 1.06 | AG10: 1.06 | AH10: 1.06 | AI10: 1.06 | AJ10: 1.06 | AK10: 1.06 | AL10: 1.06 | AM10: 18.76923077 | AN10: =Z10*E10+($A$4-80)*AG10*$A$8/1000 -> 18.35897436 | AO10: =AA10*G10+($A$4-80)*AH10*$A$8/1000 -> 17.94871795 | AP10: 17.53846154 | AQ10: 17.02564103 | AR10: 16.51282051 | AS10: 16.1025641
B11: 57 | C11: 20.92307692 | D11: 20.51282051 | E11: 20.61538462 | F11: 20.1025641 | G11: 20.20512821 | H11: 19.58974359 | I11: =U11*$I$13 -> 19.8974359 | J11: 19.17948718 | K11: 18.97435897 | L11: 18.25641026 | M11: 18.05128205 | N11: 17.33333333 | O11: 17.12820513 | P11: 16.41025641 | R11: 0.8717948718 | S11: 0.858974359 | T11: 0.8418803419 | U11: 0.8290598291 | V11: 0.7905982906 | W11: 0.7521367521 | X11: 0.7136752137 | Y11: 0.9803921569 | Z11: 0.9751243781 | AA11: 0.9695431472 | AB11: 0.9639175258 | AC11: 0.9621621622 | AD11: 0.9602272727 | AE11: 0.9580838323 | AF11: 1.06 | AG11: 1.06 | AH11: 1.06 | AI11: 1.06 | AJ11: 1.06 | AK11: 1.06 | AL11: 1.06 | AM11: 20.51282051 | AN11: =Z11*E11+($A$4-80)*AG11*$A$8/1000 -> 20.1025641 | AO11: =AA11*G11+($A$4-80)*AH11*$A$8/1000 -> 19.58974359 | AP11: =AB11*I11+($A$4-80)*AI11*$A$8/1000 -> 19.17948718 | AQ11: 18.25641026 | AR11: 17.33333333 | AS11: 16.41025641
A12: 800 | B12: 72 | C12: 29.43589744 | D12: 13.74358974 | E12: 28.51282051 | F12: 13.53846154 | G12: 27.58974359 | H12: 13.33333333 | I12: =U12*$I$13 -> 26.56410256 | J12: 13.12820513 | K12: 25.02564103 | L12: 12.51282051 | M12: 23.48717949 | N12: 12 | O12: 21.94871795 | P12: 11.48717949 | R12: 1.226495726 | S12: 1.188034188 | T12: 1.14957265 | U12: 1.106837607 | V12: 1.042735043 | W12: 0.9786324786 | X12: 0.9145299145 | Y12: 0.4668989547 | Z12: 0.4748201439 | AA12: 0.4832713755 | AB12: 0.4942084942 | AC12: 0.5 | AD12: 0.5109170306 | AE12: 0.523364486 | AF12: 1.06 | AG12: 1.06 | AH12: 1.06 | AI12: 1.06 | AJ12: 1.06 | AK12: 1.06 | AL12: 1.06 | AM12: =Y12*C12+($A$4-80)*AF12*$A$12/1000 -> 13.74358974 | AN12: =Z12*E12+($A$4-80)*AG12*$A$12/1000 -> 13.53846154 | AO12: =AA12*G12+($A$4-80)*AH12*$A$12/1000 -> 13.33333333 | AP12: =AB12*I12+($A$4-80)*AI12*$A$12/1000 -> 13.12820513 | AQ12: =AC12*K12+($A$4-80)*AJ12*$A$12/1000 -> 12.51282051 | AR12: =AD12*M12+($A$4-80)*AK12*$A$12/1000 -> 12 | AS12: =AE12*O12+($A$4-80)*AL12*$A$12/1000 -> 11.48717949
B13: 67 | C13: 27.38461538 | D13: 18.25641026 | E13: 26.25641026 | F13: 17.64102564 | G13: 25.12820513 | H13: 17.12820513 | I13: =B2 -> 24 | J13: 16.51282051 | K13: 22.46153846 | L13: 16 | M13: 21.02564103 | N13: 15.48717949 | O13: 19.58974359 | P13: 14.87179487 | R13: 1.141025641 | S13: 1.094017094 | T13: 1.047008547 | U13: 1 | V13: 0.9358974359 | W13: 0.8760683761 | X13: 0.8162393162 | Y13: 0.6666666667 | Z13: 0.671875 | AA13: 0.6816326531 | AB13: 0.688034188 | AC13: 0.7123287671 | AD13: 0.7365853659 | AE13: 0.7591623037 | AF13: 1.06 | AG13: 1.06 | AH13: 1.06 | AI13: 1.06 | AJ13: 1.06 | AK13: 1.06 | AL13: 1.06 | AM13: =Y13*C13+($A$4-80)*AF13*$A$12/1000 -> 18.25641026 | AN13: =Z13*E13+($A$4-80)*AG13*$A$12/1000 -> 17.64102564 | AO13: =AA13*G13+($A$4-80)*AH13*$A$12/1000 -> 17.12820513 | AP13: =AB13*I13+($A$4-80)*AI13*$A$12/1000 -> 16.51282051 | AQ13: =AC13*K13+($A$4-80)*AJ13*$A$12/1000 -> 16 | AR13: =AD13*M13+($A$4-80)*AK13*$A$12/1000 -> 15.48717949 | AS13: =AE13*O13+($A$4-80)*AL13*$A$12/1000 -> 14.87179487
B14: 62 | C14: 24.92307692 | D14: 21.33333333 | E14: 24 | F14: 21.02564103 | G14: 22.97435897 | H14: 20.71794872 | I14: =U14*$I$13 -> 22.05128205 | J14: 20.41025641 | K14: 20.92307692 | L14: 19.38461538 | M14: 19.79487179 | N14: 18.46153846 | O14: 18.66666667 | P14: 17.43589744 | R14: 1.038461538 | S14: 1 | T14: 0.9572649573 | U14: 0.9188034188 | V14: 0.8717948718 | W14: 0.8247863248 | X14: 0.7777777778 | Y14: 0.8559670782 | Z14: 0.8760683761 | AA14: 0.9017857143 | AB14: 0.9255813953 | AC14: 0.9264705882 | AD14: 0.932642487 | AE14: 0.9340659341 | AF14: 1.06 | AG14: 1.06 | AH14: 1.06 | AI14: 1.06 | AJ14: 1.06 | AK14: 1.06 | AL14: 1.06 | AM14: 21.33333333 | AN14: =Z14*E14+($A$4-80)*AG14*$A$12/1000 -> 21.02564103 | AO14: =AA14*G14+($A$4-80)*AH14*$A$12/1000 -> 20.71794872 | AP14: 20.41025641 | AQ14: 19.38461538 | AR14: 18.46153846 | AS14: 17.43589744
B15: 57 | C15: 23.07692308 | D15: 22.46153846 | E15: 22.56410256 | F15: 21.94871795 | G15: 22.05128205 | H15: 21.33333333 | I15: 21.53846154 | J15: 20.82051282 | K15: 20.51282051 | L15: 19.69230769 | M15: 19.38461538 | N15: 18.66666667 | O15: 18.35897436 | P15: 17.64102564 | R15: 0.9615384615 | S15: 0.9401709402 | T15: 0.9188034188 | U15: 0.8974358974 | V15: 0.8547008547 | W15: 0.8076923077 | X15: 0.764957265 | Y15: 0.9733333333 | Z15: 0.9727272727 | AA15: 0.9674418605 | AB15: 0.9666666667 | AC15: 0.96 | AD15: 0.962962963 | AE15: 0.9608938547 | AF15: 1.06 | AG15: 1.06 | AH15: 1.06 | AI15: 1.06 | AJ15: 1.06 | AK15: 1.06 | AL15: 1.06 | AM15: 22.46153846 | AN15: =Z15*E15+($A$4-80)*AG15*$A$12/1000 -> 21.94871795 | AO15: =AA15*G15+($A$4-80)*AH15*$A$12/1000 -> 21.33333333 | AP15: 20.82051282 | AQ15: 19.69230769 | AR15: 18.66666667 | AS15: 17.64102564
A16: 1000 | B16: 72 | C16: 30.56410256 | D16: 14.97435897 | E16: 29.64102564 | F16: 14.87179487 | G16: 28.61538462 | H16: 14.66666667 | I16: 27.58974359 | J16: 14.56410256 | K16: 25.94871795 | L16: 13.94871795 | M16: 24.30769231 | N16: 13.43589744 | O16: 22.66666667 | P16: 12.82051282 | R16: 1.273504274 | S16: 1.235042735 | T16: 1.192307692 | U16: 1.14957265 | V16: 1.081196581 | W16: 1.012820513 | X16: 0.9444444444 | Y16: 0.4899328859 | Z16: 0.5017301038 | AA16: 0.5125448029 | AB16: 0.5278810409 | AC16: 0.5375494071 | AD16: 0.552742616 | AE16: 0.5656108597 | AF16: 1.06 | AG16: 1.06 | AH16: 1.06 | AI16: 1.06 | AJ16: 1.06 | AK16: 1.06 | AL16: 1.06 | AM16: =Y16*C16+($A$4-80)*AF16*$A$16/1000 -> 14.97435897 | AN16: =Z16*E16+($A$4-80)*AG16*$A$16/1000 -> 14.87179487 | AO16: =AA16*G16+($A$4-80)*AH16*$A$16/1000 -> 14.66666667 | AP16: =AB16*I16+($A$4-80)*AI16*$A$16/1000 -> 14.56410256 | AQ16: =AC16*K16+($A$4-80)*AJ16*$A$16/1000 -> 13.94871795 | AR16: =AD16*M16+($A$4-80)*AK16*$A$16/1000 -> 13.43589744 | AS16: =AE16*O16+($A$4-80)*AL16*$A$16/1000 -> 12.82051282
B17: 67 | C17: 28.61538462 | D17: 20.41025641 | E17: 27.28205128 | F17: 19.69230769 | G17: 26.05128205 | H17: 18.97435897 | I17: 24.71794872 | J17: 18.25641026 | K17: 23.17948718 | L17: 17.84615385 | M17: 21.74358974 | N17: 17.43589744 | O17: 20.30769231 | P17: 16.92307692 | R17: 1.192307692 | S17: 1.136752137 | T17: 1.085470085 | U17: 1.02991453 | V17: 0.9658119658 | W17: 0.905982906 | X17: 0.8461538462 | Y17: 0.7132616487 | Z17: 0.7218045113 | AA17: 0.7283464567 | AB17: 0.7385892116 | AC17: 0.7699115044 | AD17: 0.8018867925 | AE17: 0.8333333333 | AF17: 1.06 | AG17: 1.06 | AH17: 1.06 | AI17: 1.06 | AJ17: 1.06 | AK17: 1.06 | AL17: 1.06 | AM17: =Y17*C17+($A$4-80)*AF17*$A$16/1000 -> 20.41025641 | AN17: =Z17*E17+($A$4-80)*AG17*$A$16/1000 -> 19.69230769 | AO17: =AA17*G17+($A$4-80)*AH17*$A$16/1000 -> 18.97435897 | AP17: =AB17*I17+($A$4-80)*AI17*$A$16/1000 -> 18.25641026 | AQ17: =AC17*K17+($A$4-80)*AJ17*$A$16/1000 -> 17.84615385 | AR17: =AD17*M17+($A$4-80)*AK17*$A$16/1000 -> 17.43589744 | AS17: =AE17*O17+($A$4-80)*AL17*$A$16/1000 -> 16.92307692
B18: 62 | C18: 26.05128205 | D18: 23.8974359 | E18: 25.12820513 | F18: 23.69230769 | G18: 24.20512821 | H18: 23.48717949 | I18: 23.28205128 | J18: 23.17948718 | K18: 22.15384615 | L18: 21.74358974 | M18: 21.02564103 | N18: 20.30769231 | O18: 19.8974359 | P18: 18.87179487 | R18: 1.085470085 | S18: 1.047008547 | T18: 1.008547009 | U18: 0.9700854701 | V18: 0.9230769231 | W18: 0.8760683761 | X18: 0.8290598291 | Y18: 0.9173228346 | Z18: 0.9428571429 | AA18: 0.9703389831 | AB18: 0.9955947137 | AC18: 0.9814814815 | AD18: 0.9658536585 | AE18: 0.9484536082 | AF18: 1.06 | AG18: 1.06 | AH18: 1.06 | AI18: 1.06 | AJ18: 1.06 | AK18: 1.06 | AL18: 1.06 | AM18: 23.8974359 | AN18: =Z18*E18+($A$4-80)*AG18*$A$16/1000 -> 23.69230769 | AO18: =AA18*G18+($A$4-80)*AH18*$A$16/1000 -> 23.48717949 | AP18: 23.17948718 | AQ18: 21.74358974 | AR18: 20.30769231 | AS18: 18.87179487
B19: 57 | C19: 25.33333333 | D19: 24.41025641 | E19: 24.61538462 | F19: 23.79487179 | G19: 23.8974359 | H19: 23.17948718 | I19: 23.17948718 | J19: 22.46153846 | K19: 21.94871795 | L19: 21.23076923 | M19: 20.82051282 | N19: 20.1025641 | O19: 19.58974359 | P19: 18.87179487 | R19: 1.055555556 | S19: 1.025641026 | T19: 0.9957264957 | U19: 0.9658119658 | V19: 0.9145299145 | W19: 0.8675213675 | X19: 0.8162393162 | Y19: 0.963562753 | Z19: 0.9666666667 | AA19: 0.9699570815 | AB19: 0.9690265487 | AC19: 0.9672897196 | AD19: 0.9655172414 | AE19: 0.9633507853 | AF19: 1.06 | AG19: 1.06 | AH19: 1.06 | AI19: 1.06 | AJ19: 1.06 | AK19: 1.06 | AL19: 1.06 | AM19: 24.41025641 | AN19: =Z19*E19+($A$4-80)*AG19*$A$16/1000 -> 23.79487179 | AO19: =AA19*G19+($A$4-80)*AH19*$A$16/1000 -> 23.17948718 | AP19: 22.46153846 | AQ19: 21.23076923 | AR19: 20.1025641 | AS19: 18.87179487

Sheet TCHD_30 (hidden)
A2: TCHD_30
A3: Evaporator Air | C3: Condenser Entering Air Temperature ˚F
A4: 80 | B4: °F DB | C4: 65 | E4: 75 | G4: 85 | I4: 95 | K4: 105 | M4: 115 | O4: 125
A5: CFM | B5: EWB† ˚F | C5: Capacity Mbtuh | E5: Capacity Mbtuh | G5: Capacity Mbtuh | I5: Capacity Mbtuh | K5: Capacity Mbtuh | M5: Capacity Mbtuh | O5: Capacity Mbtuh
C6: Total | D6: Sens. | E6: Total | F6: Sens. | G6: Total | H6: Sens. | I6: Total | J6: Sens. | K6: Total | L6: Sens. | M6: Total | N6: Sens. | O6: Total | P6: Sens.
R7: Total Factors | Y7: Sens. % | AF7: IDB Adj | AM7: Sens Calc
A8: 800 | B8: 72 | C8: =R8*$I$13 -> 0 | D8: =IF(AM8>C8,C8,AM8) -> 0 | E8: =S8*$I$13 -> 0 | F8: =IF(AN8>E8,E8,AN8) -> 0 | G8: =T8*$I$13 -> 0 | H8: =IF(AO8>G8,G8,AO8) -> 0 | I8: =U8*$I$13 -> 0 | J8: =IF(AP8>I8,I8,AP8) -> 0 | K8: =V8*$I$13 -> 0 | L8: =IF(AQ8>K8,K8,AQ8) -> 0 | M8: =W8*$I$13 -> 0 | N8: =IF(AR8>M8,M8,AR8) -> 0 | O8: =X8*$I$13 -> 0 | P8: =IF(AS8>O8,O8,AS8) -> 0 | R8: 1.135714286 | S8: 1.114285714 | T8: 1.092857143 | U8: 1.071428571 | V8: 0.9928571429 | W8: 0.9142857143 | X8: 0.8357142857 | Y8: 0.5 | Z8: 0.4935897436 | AA8: 0.4901960784 | AB8: 0.4833333333 | AC8: 0.5 | AD8: 0.5234375 | AE8: 0.547008547 | AF8: 1.06 | AG8: 1.06 | AH8: 1.06 | AI8: 1.06 | AJ8: 1.06 | AK8: 1.06 | AL8: 1.06 | AM8: =Y8*C8+($A$4-80)*AF8*$A$8/1000 -> 0 | AN8: =Z8*E8+($A$4-80)*AG8*$A$8/1000 -> 0 | AO8: =AA8*G8+($A$4-80)*AH8*$A$8/1000 -> 0 | AP8: =AB8*I8+($A$4-80)*AI8*$A$8/1000 -> 0 | AQ8: =AC8*K8+($A$4-80)*AJ8*$A$8/1000 -> 0 | AR8: =AD8*M8+($A$4-80)*AK8*$A$8/1000 -> 0 | AS8: =AE8*O8+($A$4-80)*AL8*$A$8/1000 -> 0
B9: 67 | C9: =R9*$I$13 -> 0 | D9: 0 | E9: 0 | F9: =IF(AN9>E9,E9,AN9) -> 0 | G9: 0 | H9: =IF(AO9>G9,G9,AO9) -> 0 | I9: =U9*$I$13 -> 0 | J9: =IF(AP9>I9,I9,AP9) -> 0 | K9: 0 | L9: =IF(AQ9>K9,K9,AQ9) -> 0 | M9: 0 | N9: =IF(AR9>M9,M9,AR9) -> 0 | O9: 0 | P9: =IF(AS9>O9,O9,AS9) -> 0 | R9: 1.089285714 | S9: 1.05 | T9: 1.010714286 | U9: 0.9714285714 | V9: 0.8928571429 | W9: 0.8178571429 | X9: 0.7392857143 | Y9: 0.6721311475 | Z9: 0.6734693878 | AA9: 0.6784452297 | AB9: 0.6801470588 | AC9: 0.712 | AD9: 0.7467248908 | AE9: 0.7922705314 | AF9: 1.06 | AG9: 1.06 | AH9: 1.06 | AI9: 1.06 | AJ9: 1.06 | AK9: 1.06 | AL9: 1.06 | AM9: =Y9*C9+($A$4-80)*AF9*$A$8/1000 -> 0 | AN9: =Z9*E9+($A$4-80)*AG9*$A$8/1000 -> 0 | AO9: =AA9*G9+($A$4-80)*AH9*$A$8/1000 -> 0 | AP9: =AB9*I9+($A$4-80)*AI9*$A$8/1000 -> 0 | AQ9: =AC9*K9+($A$4-80)*AJ9*$A$8/1000 -> 0 | AR9: =AD9*M9+($A$4-80)*AK9*$A$8/1000 -> 0 | AS9: =AE9*O9+($A$4-80)*AL9*$A$8/1000 -> 0
B10: 62 | C10: 0 | D10: 0 | E10: 0 | F10: 0 | G10: 0 | H10: 0 | I10: =U10*$I$13 -> 0 | J10: 0 | K10: 0 | L10: 0 | M10: 0 | N10: 0 | O10: 0 | P10: 0 | R10: 1.025 | S10: 0.9642857143 | T10: 0.9035714286 | U10: 0.8464285714 | V10: 0.8071428571 | W10: 0.7678571429 | X10: 0.7285714286 | Y10: 0.8536585366 | Z10: 0.8851851852 | AA10: 0.9169960474 | AB10: 0.9535864979 | AC10: 0.9513274336 | AD10: 0.9488372093 | AE10: 0.9460784314 | AF10: 1.06 | AG10: 1.06 | AH10: 1.06 | AI10: 1.06 | AJ10: 1.06 | AK10: 1.06 | AL10: 1.06 | AM10: 0 | AN10: =Z10*E10+($A$4-80)*AG10*$A$8/1000 -> 0 | AO10: =AA10*G10+($A$4-80)*AH10*$A$8/1000 -> 0 | AP10: 0 | AQ10: 0 | AR10: 0 | AS10: 0
B11: 57 | C11: 0 | D11: 0 | E11: 0 | F11: 0 | G11: 0 | H11: 0 | I11: =U11*$I$13 -> 0 | J11: 0 | K11: 0 | L11: 0 | M11: 0 | N11: 0 | O11: 0 | P11: 0 | R11: 0.975 | S11: 0.9357142857 | T11: 0.8964285714 | U11: 0.8535714286 | V11: 0.8 | W11: 0.7464285714 | X11: 0.6964285714 | Y11: 0.9743589744 | Z11: 0.9770992366 | AA11: 0.9760956175 | AB11: 0.9832635983 | AC11: 0.9776785714 | AD11: 0.980861244 | AE11: 0.9743589744 | AF11: 1.06 | AG11: 1.06 | AH11: 1.06 | AI11: 1.06 | AJ11: 1.06 | AK11: 1.06 | AL11: 1.06 | AM11: 0 | AN11: =Z11*E11+($A$4-80)*AG11*$A$8/1000 -> 0 | AO11: =AA11*G11+($A$4-80)*AH11*$A$8/1000 -> 0 | AP11: =AB11*I11+($A$4-80)*AI11*$A$8/1000 -> 0 | AQ11: 0 | AR11: 0 | AS11: 0
A12: 1000 | B12: 72 | C12: 0 | D12: 0 | E12: 0 | F12: 0 | G12: 0 | H12: 0 | I12: =U12*$I$13 -> 0 | J12: 0 | K12: 0 | L12: 0 | M12: 0 | N12: 0 | O12: 0 | P12: 0 | R12: 1.192857143 | S12: 1.15 | T12: 1.107142857 | U12: 1.064285714 | V12: 0.9928571429 | W12: 0.9285714286 | X12: 0.8607142857 | Y12: 0.5149700599 | Z12: 0.5217391304 | AA12: 0.5258064516 | AB12: 0.533557047 | AC12: 0.5503597122 | AD12: 0.5653846154 | AE12: 0.5892116183 | AF12: 1.06 | AG12: 1.06 | AH12: 1.06 | AI12: 1.06 | AJ12: 1.06 | AK12: 1.06 | AL12: 1.06 | AM12: =Y12*C12+($A$4-80)*AF12*$A$12/1000 -> 0 | AN12: =Z12*E12+($A$4-80)*AG12*$A$12/1000 -> 0 | AO12: =AA12*G12+($A$4-80)*AH12*$A$12/1000 -> 0 | AP12: =AB12*I12+($A$4-80)*AI12*$A$12/1000 -> 0 | AQ12: =AC12*K12+($A$4-80)*AJ12*$A$12/1000 -> 0 | AR12: =AD12*M12+($A$4-80)*AK12*$A$12/1000 -> 0 | AS12: =AE12*O12+($A$4-80)*AL12*$A$12/1000 -> 0
B13: 67 | C13: 0 | D13: 0 | E13: 0 | F13: 0 | G13: 0 | H13: 0 | I13: =B2 -> 0 | J13: 0 | K13: 0 | L13: 0 | M13: 0 | N13: 0 | O13: 0 | P13: 0 | R13: 1.128571429 | S13: 1.085714286 | T13: 1.042857143 | U13: 1 | V13: 0.9321428571 | W13: 0.8714285714 | X13: 0.8071428571 | Y13: 0.7151898734 | Z13: 0.7236842105 | AA13: 0.7294520548 | AB13: 0.7392857143 | AC13: 0.7662835249 | AD13: 0.7909836066 | AE13: 0.8230088496 | AF13: 1.06 | AG13: 1.06 | AH13: 1.06 | AI13: 1.06 | AJ13: 1.06 | AK13: 1.06 | AL13: 1.06 | AM13: =Y13*C13+($A$4-80)*AF13*$A$12/1000 -> 0 | AN13: =Z13*E13+($A$4-80)*AG13*$A$12/1000 -> 0 | AO13: =AA13*G13+($A$4-80)*AH13*$A$12/1000 -> 0 | AP13: =AB13*I13+($A$4-80)*AI13*$A$12/1000 -> 0 | AQ13: =AC13*K13+($A$4-80)*AJ13*$A$12/1000 -> 0 | AR13: =AD13*M13+($A$4-80)*AK13*$A$12/1000 -> 0 | AS13: =AE13*O13+($A$4-80)*AL13*$A$12/1000 -> 0
B14: 62 | C14: 0 | D14: 0 | E14: 0 | F14: 0 | G14: 0 | H14: 0 | I14: =U14*$I$13 -> 0 | J14: 0 | K14: 0 | L14: 0 | M14: 0 | N14: 0 | O14: 0 | P14: 0 | R14: 1.067857143 | S14: 1.010714286 | T14: 0.9535714286 | U14: 0.8964285714 | V14: 0.8607142857 | W14: 0.825 | X14: 0.7892857143 | Y14: 0.9163879599 | Z14: 0.9328621908 | AA14: 0.9475655431 | AB14: 0.96812749 | AC14: 0.9585062241 | AD14: 0.9523809524 | AE14: 0.9457013575 | AF14: 1.06 | AG14: 1.06 | AH14: 1.06 | AI14: 1.06 | AJ14: 1.06 | AK14: 1.06 | AL14: 1.06 | AM14: 0 | AN14: =Z14*E14+($A$4-80)*AG14*$A$12/1000 -> 0 | AO14: =AA14*G14+($A$4-80)*AH14*$A$12/1000 -> 0 | AP14: 0 | AQ14: 0 | AR14: 0 | AS14: 0
B15: 57 | C15: 0 | D15: 0 | E15: 0 | F15: 0 | G15: 0 | H15: 0 | I15: 0 | J15: 0 | K15: 0 | L15: 0 | M15: 0 | N15: 0 | O15: 0 | P15: 0 | R15: 1.028571429 | S15: 0.9928571429 | T15: 0.9571428571 | U15: 0.9214285714 | V15: 0.8678571429 | W15: 0.8142857143 | X15: 0.7607142857 | Y15: 0.9791666667 | Z15: 0.9784172662 | AA15: 0.9776119403 | AB15: 0.980620155 | AC15: 0.975308642 | AD15: 0.9736842105 | AE15: 0.9718309859 | AF15: 1.06 | AG15: 1.06 | AH15: 1.06 | AI15: 1.06 | AJ15: 1.06 | AK15: 1.06 | AL15: 1.06 | AM15: 0 | AN15: =Z15*E15+($A$4-80)*AG15*$A$12/1000 -> 0 | AO15: =AA15*G15+($A$4-80)*AH15*$A$12/1000 -> 0 | AP15: 0 | AQ15: 0 | AR15: 0 | AS15: 0
A16: 1200 | B16: 72 | C16: 0 | D16: 0 | E16: 0 | F16: 0 | G16: 0 | H16: 0 | I16: 0 | J16: 0 | K16: 0 | L16: 0 | M16: 0 | N16: 0 | O16: 0 | P16: 0 | R16: 1.25 | S16: 1.185714286 | T16: 1.121428571 | U16: 1.057142857 | V16: 0.9964285714 | W16: 0.9392857143 | X16: 0.8821428571 | Y16: 0.5285714286 | Z16: 0.5451807229 | AA16: 0.5636942675 | AB16: 0.5844594595 | AC16: 0.5985663082 | AD16: 0.6121673004 | AE16: 0.6275303644 | AF16: 1.06 | AG16: 1.06 | AH16: 1.06 | AI16: 1.06 | AJ16: 1.06 | AK16: 1.06 | AL16: 1.06 | AM16: =Y16*C16+($A$4-80)*AF16*$A$16/1000 -> 0 | AN16: =Z16*E16+($A$4-80)*AG16*$A$16/1000 -> 0 | AO16: =AA16*G16+($A$4-80)*AH16*$A$16/1000 -> 0 | AP16: =AB16*I16+($A$4-80)*AI16*$A$16/1000 -> 0 | AQ16: =AC16*K16+($A$4-80)*AJ16*$A$16/1000 -> 0 | AR16: =AD16*M16+($A$4-80)*AK16*$A$16/1000 -> 0 | AS16: =AE16*O16+($A$4-80)*AL16*$A$16/1000 -> 0
B17: 67 | C17: 0 | D17: 0 | E17: 0 | F17: 0 | G17: 0 | H17: 0 | I17: 0 | J17: 0 | K17: 0 | L17: 0 | M17: 0 | N17: 0 | O17: 0 | P17: 0 | R17: 1.171428571 | S17: 1.125 | T17: 1.075 | U17: 1.028571429 | V17: 0.975 | W17: 0.9214285714 | X17: 0.8714285714 | Y17: 0.7530487805 | Z17: 0.7650793651 | AA17: 0.780730897 | AB17: 0.7951388889 | AC17: 0.8131868132 | AD17: 0.8333333333 | AE17: 0.8524590164 | AF17: 1.06 | AG17: 1.06 | AH17: 1.06 | AI17: 1.06 | AJ17: 1.06 | AK17: 1.06 | AL17: 1.06 | AM17: =Y17*C17+($A$4-80)*AF17*$A$16/1000 -> 0 | AN17: =Z17*E17+($A$4-80)*AG17*$A$16/1000 -> 0 | AO17: =AA17*G17+($A$4-80)*AH17*$A$16/1000 -> 0 | AP17: =AB17*I17+($A$4-80)*AI17*$A$16/1000 -> 0 | AQ17: =AC17*K17+($A$4-80)*AJ17*$A$16/1000 -> 0 | AR17: =AD17*M17+($A$4-80)*AK17*$A$16/1000 -> 0 | AS17: =AE17*O17+($A$4-80)*AL17*$A$16/1000 -> 0
B18: 62 | C18: 0 | D18: 0 | E18: 0 | F18: 0 | G18: 0 | H18: 0 | I18: 0 | J18: 0 | K18: 0 | L18: 0 | M18: 0 | N18: 0 | O18: 0 | P18: 0 | R18: 1.107142857 | S18: 1.053571429 | T18: 1 | U18: 0.9464285714 | V18: 0.9142857143 | W18: 0.8821428571 | X18: 0.8535714286 | Y18: 0.9806451613 | Z18: 0.9796610169 | AA18: 0.9785714286 | AB18: 0.9773584906 | AC18: 0.96875 | AD18: 0.955465587 | AE18: 0.9414225941 | AF18: 1.06 | AG18: 1.06 | AH18: 1.06 | AI18: 1.06 | AJ18: 1.06 | AK18: 1.06 | AL18: 1.06 | AM18: 0 | AN18: =Z18*E18+($A$4-80)*AG18*$A$16/1000 -> 0 | AO18: =AA18*G18+($A$4-80)*AH18*$A$16/1000 -> 0 | AP18: 0 | AQ18: 0 | AR18: 0 | AS18: 0
B19: 57 | C19: 0 | D19: 0 | E19: 0 | F19: 0 | G19: 0 | H19: 0 | I19: 0 | J19: 0 | K19: 0 | L19: 0 | M19: 0 | N19: 0 | O19: 0 | P19: 0 | R19: 1.082142857 | S19: 1.053571429 | T19: 1.021428571 | U19: 0.9928571429 | V19: 0.9357142857 | W19: 0.8821428571 | X19: 0.8285714286 | Y19: 0.9801980198 | Z19: 0.9762711864 | AA19: 0.979020979 | AB19: 0.9748201439 | AC19: 0.9732824427 | AD19: 0.971659919 | AE19: 0.9655172414 | AF19: 1.06 | AG19: 1.06 | AH19: 1.06 | AI19: 1.06 | AJ19: 1.06 | AK19: 1.06 | AL19: 1.06 | AM19: 0 | AN19: =Z19*E19+($A$4-80)*AG19*$A$16/1000 -> 0 | AO19: =AA19*G19+($A$4-80)*AH19*$A$16/1000 -> 0 | AP19: 0 | AQ19: 0 | AR19: 0 | AS19: 0

Sheet TCHD_36 (hidden)
A2: TCHD_36
A3: Evaporator Air | C3: Condenser Entering Air Temperature ˚F
A4: 80 | B4: °F DB | C4: 65 | E4: 75 | G4: 85 | I4: 95 | K4: 105 | M4: 115 | O4: 125
A5: CFM | B5: EWB† ˚F | C5: Capacity Mbtuh | E5: Capacity Mbtuh | G5: Capacity Mbtuh | I5: Capacity Mbtuh | K5: Capacity Mbtuh | M5: Capacity Mbtuh | O5: Capacity Mbtuh
C6: Total | D6: Sens. | E6: Total | F6: Sens. | G6: Total | H6: Sens. | I6: Total | J6: Sens. | K6: Total | L6: Sens. | M6: Total | N6: Sens. | O6: Total | P6: Sens.
R7: Total Factors | Y7: Sens. % | AF7: IDB Adj | AM7: Sens Calc
A8: 1000 | B8: 72 | C8: =R8*$I$13 -> 0 | D8: =IF(AM8>C8,C8,AM8) -> 0 | E8: =S8*$I$13 -> 0 | F8: =IF(AN8>E8,E8,AN8) -> 0 | G8: =T8*$I$13 -> 0 | H8: =IF(AO8>G8,G8,AO8) -> 0 | I8: =U8*$I$13 -> 0 | J8: =IF(AP8>I8,I8,AP8) -> 0 | K8: =V8*$I$13 -> 0 | L8: =IF(AQ8>K8,K8,AQ8) -> 0 | M8: =W8*$I$13 -> 0 | N8: =IF(AR8>M8,M8,AR8) -> 0 | O8: =X8*$I$13 -> 0 | P8: =IF(AS8>O8,O8,AS8) -> 0 | R8: 1.115384615 | S8: 1.056213018 | T8: 0.9970414201 | U8: 0.9349112426 | V8: 0.8786982249 | W8: 0.8224852071 | X8: 0.7662721893 | Y8: 0.4721485411 | Z8: 0.4789915966 | AA8: 0.4896142433 | AB8: 0.503164557 | AC8: 0.5117845118 | AD8: 0.5251798561 | AE8: 0.5405405405 | AF8: 1.06 | AG8: 1.06 | AH8: 1.06 | AI8: 1.06 | AJ8: 1.06 | AK8: 1.06 | AL8: 1.06 | AM8: =Y8*C8+($A$4-80)*AF8*$A$8/1000 -> 0 | AN8: =Z8*E8+($A$4-80)*AG8*$A$8/1000 -> 0 | AO8: =AA8*G8+($A$4-80)*AH8*$A$8/1000 -> 0 | AP8: =AB8*I8+($A$4-80)*AI8*$A$8/1000 -> 0 | AQ8: =AC8*K8+($A$4-80)*AJ8*$A$8/1000 -> 0 | AR8: =AD8*M8+($A$4-80)*AK8*$A$8/1000 -> 0 | AS8: =AE8*O8+($A$4-80)*AL8*$A$8/1000 -> 0
B9: 67 | C9: =R9*$I$13 -> 0 | D9: 0 | E9: 0 | F9: =IF(AN9>E9,E9,AN9) -> 0 | G9: 0 | H9: =IF(AO9>G9,G9,AO9) -> 0 | I9: =U9*$I$13 -> 0 | J9: =IF(AP9>I9,I9,AP9) -> 0 | K9: 0 | L9: =IF(AQ9>K9,K9,AQ9) -> 0 | M9: 0 | N9: =IF(AR9>M9,M9,AR9) -> 0 | O9: 0 | P9: =IF(AS9>O9,O9,AS9) -> 0 | R9: 1.115384615 | S9: 1.044378698 | T9: 0.9763313609 | U9: 0.9053254438 | V9: 0.8579881657 | W9: 0.8076923077 | X9: 0.7603550296 | Y9: 0.6710875332 | Z9: 0.6827195467 | AA9: 0.6939393939 | AB9: 0.7124183007 | AC9: 0.7310344828 | AD9: 0.7545787546 | AE9: 0.7782101167 | AF9: 1.06 | AG9: 1.06 | AH9: 1.06 | AI9: 1.06 | AJ9: 1.06 | AK9: 1.06 | AL9: 1.06 | AM9: =Y9*C9+($A$4-80)*AF9*$A$8/1000 -> 0 | AN9: =Z9*E9+($A$4-80)*AG9*$A$8/1000 -> 0 | AO9: =AA9*G9+($A$4-80)*AH9*$A$8/1000 -> 0 | AP9: =AB9*I9+($A$4-80)*AI9*$A$8/1000 -> 0 | AQ9: =AC9*K9+($A$4-80)*AJ9*$A$8/1000 -> 0 | AR9: =AD9*M9+($A$4-80)*AK9*$A$8/1000 -> 0 | AS9: =AE9*O9+($A$4-80)*AL9*$A$8/1000 -> 0
B10: 62 | C10: 0 | D10: 0 | E10: 0 | F10: 0 | G10: 0 | H10: 0 | I10: =U10*$I$13 -> 0 | J10: 0 | K10: 0 | L10: 0 | M10: 0 | N10: 0 | O10: 0 | P10: 0 | R10: 1.059171598 | S10: 1.014792899 | T10: 0.9704142012 | U10: 0.926035503 | V10: 0.8698224852 | W10: 0.8165680473 | X10: 0.7603550296 | Y10: 0.843575419 | Z10: 0.8513119534 | AA10: 0.8597560976 | AB10: 0.8690095847 | AC10: 0.9013605442 | AD10: 0.9384057971 | AE10: 0.9844357977 | AF10: 1.06 | AG10: 1.06 | AH10: 1.06 | AI10: 1.06 | AJ10: 1.06 | AK10: 1.06 | AL10: 1.06 | AM10: 0 | AN10: =Z10*E10+($A$4-80)*AG10*$A$8/1000 -> 0 | AO10: =AA10*G10+($A$4-80)*AH10*$A$8/1000 -> 0 | AP10: 0 | AQ10: 0 | AR10: 0 | AS10: 0
B11: 57 | C11: 0 | D11: 0 | E11: 0 | F11: 0 | G11: 0 | H11: 0 | I11: =U11*$I$13 -> 0 | J11: 0 | K11: 0 | L11: 0 | M11: 0 | N11: 0 | O11: 0 | P11: 0 | R11: 1.053254438 | S11: 1.01183432 | T11: 0.9704142012 | U11: 0.9289940828 | V11: 0.8846153846 | W11: 0.8402366864 | X11: 0.7958579882 | Y11: 0.9241573034 | Z11: 0.9210526316 | AA11: 0.9146341463 | AB11: 0.9108280255 | AC11: 0.9130434783 | AD11: 0.911971831 | AE11: 0.9144981413 | AF11: 1.06 | AG11: 1.06 | AH11: 1.06 | AI11: 1.06 | AJ11: 1.06 | AK11: 1.06 | AL11: 1.06 | AM11: 0 | AN11: =Z11*E11+($A$4-80)*AG11*$A$8/1000 -> 0 | AO11: =AA11*G11+($A$4-80)*AH11*$A$8/1000 -> 0 | AP11: =AB11*I11+($A$4-80)*AI11*$A$8/1000 -> 0 | AQ11: 0 | AR11: 0 | AS11: 0
A12: 1200 | B12: 72 | C12: 0 | D12: 0 | E12: 0 | F12: 0 | G12: 0 | H12: 0 | I12: =U12*$I$13 -> 0 | J12: 0 | K12: 0 | L12: 0 | M12: 0 | N12: 0 | O12: 0 | P12: 0 | R12: 1.24852071 | S12: 1.192307692 | T12: 1.136094675 | U12: 1.079881657 | V12: 1.014792899 | W12: 0.949704142 | X12: 0.8816568047 | Y12: 0.4786729858 | Z12: 0.4863523573 | AA12: 0.4947916667 | AB12: 0.504109589 | AC12: 0.5160349854 | AD12: 0.5264797508 | AE12: 0.5436241611 | AF12: 1.06 | AG12: 1.06 | AH12: 1.06 | AI12: 1.06 | AJ12: 1.06 | AK12: 1.06 | AL12: 1.06 | AM12: =Y12*C12+($A$4-80)*AF12*$A$12/1000 -> 0 | AN12: =Z12*E12+($A$4-80)*AG12*$A$12/1000 -> 0 | AO12: =AA12*G12+($A$4-80)*AH12*$A$12/1000 -> 0 | AP12: =AB12*I12+($A$4-80)*AI12*$A$12/1000 -> 0 | AQ12: =AC12*K12+($A$4-80)*AJ12*$A$12/1000 -> 0 | AR12: =AD12*M12+($A$4-80)*AK12*$A$12/1000 -> 0 | AS12: =AE12*O12+($A$4-80)*AL12*$A$12/1000 -> 0
B13: 67 | C13: 0 | D13: 0 | E13: 0 | F13: 0 | G13: 0 | H13: 0 | I13: =B2 -> 0 | J13: 0 | K13: 0 | L13: 0 | M13: 0 | N13: 0 | O13: 0 | P13: 0 | R13: 1.192307692 | S13: 1.127218935 | T13: 1.065088757 | U13: 1 | V13: 0.9437869822 | W13: 0.8905325444 | X13: 0.8372781065 | Y13: 0.6873449132 | Z13: 0.7007874016 | AA13: 0.7138888889 | AB13: 0.7307692308 | AC13: 0.7523510972 | AD13: 0.7774086379 | AE13: 0.8021201413 | AF13: 1.06 | AG13: 1.06 | AH13: 1.06 | AI13: 1.06 | AJ13: 1.06 | AK13: 1.06 | AL13: 1.06 | AM13: =Y13*C13+($A$4-80)*AF13*$A$12/1000 -> 0 | AN13: =Z13*E13+($A$4-80)*AG13*$A$12/1000 -> 0 | AO13: =AA13*G13+($A$4-80)*AH13*$A$12/1000 -> 0 | AP13: =AB13*I13+($A$4-80)*AI13*$A$12/1000 -> 0 | AQ13: =AC13*K13+($A$4-80)*AJ13*$A$12/1000 -> 0 | AR13: =AD13*M13+($A$4-80)*AK13*$A$12/1000 -> 0 | AS13: =AE13*O13+($A$4-80)*AL13*$A$12/1000 -> 0
B14: 62 | C14: 0 | D14: 0 | E14: 0 | F14: 0 | G14: 0 | H14: 0 | I14: =U14*$I$13 -> 0 | J14: 0 | K14: 0 | L14: 0 | M14: 0 | N14: 0 | O14: 0 | P14: 0 | R14: 1.118343195 | S14: 1.073964497 | T14: 1.029585799 | U14: 0.9852071006 | V14: 0.9201183432 | W14: 0.8579881657 | X14: 0.798816568 | Y14: 0.873015873 | Z14: 0.8815426997 | AA14: 0.8908045977 | AB14: 0.9009009009 | AC14: 0.9260450161 | AD14: 0.9551724138 | AE14: 0.9851851852 | AF14: 1.06 | AG14: 1.06 | AH14: 1.06 | AI14: 1.06 | AJ14: 1.06 | AK14: 1.06 | AL14: 1.06 | AM14: 0 | AN14: =Z14*E14+($A$4-80)*AG14*$A$12/1000 -> 0 | AO14: =AA14*G14+($A$4-80)*AH14*$A$12/1000 -> 0 | AP14: 0 | AQ14: 0 | AR14: 0 | AS14: 0
B15: 57 | C15: 0 | D15: 0 | E15: 0 | F15: 0 | G15: 0 | H15: 0 | I15: 0 | J15: 0 | K15: 0 | L15: 0 | M15: 0 | N15: 0 | O15: 0 | P15: 0 | R15: 1.088757396 | S15: 1.047337278 | T15: 1.00591716 | U15: 0.9674556213 | V15: 0.9171597633 | W15: 0.8698224852 | X15: 0.8224852071 | Y15: 0.9375 | Z15: 0.9378531073 | AA15: 0.9352941176 | AB15: 0.9296636086 | AC15: 0.9322580645 | AD15: 0.9319727891 | AE15: 0.9352517986 | AF15: 1.06 | AG15: 1.06 | AH15: 1.06 | AI15: 1.06 | AJ15: 1.06 | AK15: 1.06 | AL15: 1.06 | AM15: 0 | AN15: =Z15*E15+($A$4-80)*AG15*$A$12/1000 -> 0 | AO15: =AA15*G15+($A$4-80)*AH15*$A$12/1000 -> 0 | AP15: 0 | AQ15: 0 | AR15: 0 | AS15: 0
A16: 1400 | B16: 72 | C16: 0 | D16: 0 | E16: 0 | F16: 0 | G16: 0 | H16: 0 | I16: 0 | J16: 0 | K16: 0 | L16: 0 | M16: 0 | N16: 0 | O16: 0 | P16: 0 | R16: 1.381656805 | S16: 1.328402367 | T16: 1.278106509 | U16: 1.224852071 | V16: 1.147928994 | W16: 1.073964497 | X16: 1 | Y16: 0.4860813704 | Z16: 0.4922048998 | AA16: 0.5 | AB16: 0.5072463768 | AC16: 0.5180412371 | AD16: 0.5289256198 | AE16: 0.5414201183 | AF16: 1.06 | AG16: 1.06 | AH16: 1.06 | AI16: 1.06 | AJ16: 1.06 | AK16: 1.06 | AL16: 1.06 | AM16: =Y16*C16+($A$4-80)*AF16*$A$16/1000 -> 0 | AN16: =Z16*E16+($A$4-80)*AG16*$A$16/1000 -> 0 | AO16: =AA16*G16+($A$4-80)*AH16*$A$16/1000 -> 0 | AP16: =AB16*I16+($A$4-80)*AI16*$A$16/1000 -> 0 | AQ16: =AC16*K16+($A$4-80)*AJ16*$A$16/1000 -> 0 | AR16: =AD16*M16+($A$4-80)*AK16*$A$16/1000 -> 0 | AS16: =AE16*O16+($A$4-80)*AL16*$A$16/1000 -> 0
B17: 67 | C17: 0 | D17: 0 | E17: 0 | F17: 0 | G17: 0 | H17: 0 | I17: 0 | J17: 0 | K17: 0 | L17: 0 | M17: 0 | N17: 0 | O17: 0 | P17: 0 | R17: 1.266272189 | S17: 1.210059172 | T17: 1.150887574 | U17: 1.094674556 | V17: 1.032544379 | W17: 0.9733727811 | X17: 0.9142011834 | Y17: 0.703271028 | Z17: 0.7163814181 | AA17: 0.7300771208 | AB17: 0.7459459459 | AC17: 0.770773639 | AD17: 0.7933130699 | AE17: 0.8220064725 | AF17: 1.06 | AG17: 1.06 | AH17: 1.06 | AI17: 1.06 | AJ17: 1.06 | AK17: 1.06 | AL17: 1.06 | AM17: =Y17*C17+($A$4-80)*AF17*$A$16/1000 -> 0 | AN17: =Z17*E17+($A$4-80)*AG17*$A$16/1000 -> 0 | AO17: =AA17*G17+($A$4-80)*AH17*$A$16/1000 -> 0 | AP17: =AB17*I17+($A$4-80)*AI17*$A$16/1000 -> 0 | AQ17: =AC17*K17+($A$4-80)*AJ17*$A$16/1000 -> 0 | AR17: =AD17*M17+($A$4-80)*AK17*$A$16/1000 -> 0 | AS17: =AE17*O17+($A$4-80)*AL17*$A$16/1000 -> 0
B18: 62 | C18: 0 | D18: 0 | E18: 0 | F18: 0 | G18: 0 | H18: 0 | I18: 0 | J18: 0 | K18: 0 | L18: 0 | M18: 0 | N18: 0 | O18: 0 | P18: 0 | R18: 1.174556213 | S18: 1.133136095 | T18: 1.088757396 | U18: 1.044378698 | V18: 0.9733727811 | W18: 0.9023668639 | X18: 0.8343195266 | Y18: 0.8992443325 | Z18: 0.9060052219 | AA18: 0.9184782609 | AB18: 0.9291784703 | AC18: 0.9452887538 | AD18: 0.9672131148 | AE18: 0.9858156028 | AF18: 1.06 | AG18: 1.06 | AH18: 1.06 | AI18: 1.06 | AJ18: 1.06 | AK18: 1.06 | AL18: 1.06 | AM18: 0 | AN18: =Z18*E18+($A$4-80)*AG18*$A$16/1000 -> 0 | AO18: =AA18*G18+($A$4-80)*AH18*$A$16/1000 -> 0 | AP18: 0 | AQ18: 0 | AR18: 0 | AS18: 0
B19: 57 | C19: 0 | D19: 0 | E19: 0 | F19: 0 | G19: 0 | H19: 0 | I19: 0 | J19: 0 | K19: 0 | L19: 0 | M19: 0 | N19: 0 | O19: 0 | P19: 0 | R19: 1.127218935 | S19: 1.085798817 | T19: 1.044378698 | U19: 1.00295858 | V19: 0.9526627219 | W19: 0.9023668639 | X19: 0.8520710059 | Y19: 0.9501312336 | Z19: 0.9509536785 | AA19: 0.9518413598 | AB19: 0.9498525074 | AC19: 0.9472049689 | AD19: 0.9475409836 | AE19: 0.9479166667 | AF19: 1.06 | AG19: 1.06 | AH19: 1.06 | AI19: 1.06 | AJ19: 1.06 | AK19: 1.06 | AL19: 1.06 | AM19: 0 | AN19: =Z19*E19+($A$4-80)*AG19*$A$16/1000 -> 0 | AO19: =AA19*G19+($A$4-80)*AH19*$A$16/1000 -> 0 | AP19: 0 | AQ19: 0 | AR19: 0 | AS19: 0

Sheet TCHD_48 (hidden)
A2: TCHD_48
A3: Evaporator Air | C3: Condenser Entering Air Temperature ˚F
A4: 80 | B4: °F DB | C4: 65 | E4: 75 | G4: 85 | I4: 95 | K4: 105 | M4: 115 | O4: 125
A5: CFM | B5: EWB† ˚F | C5: Capacity Mbtuh | E5: Capacity Mbtuh | G5: Capacity Mbtuh | I5: Capacity Mbtuh | K5: Capacity Mbtuh | M5: Capacity Mbtuh | O5: Capacity Mbtuh
C6: Total | D6: Sens. | E6: Total | F6: Sens. | G6: Total | H6: Sens. | I6: Total | J6: Sens. | K6: Total | L6: Sens. | M6: Total | N6: Sens. | O6: Total | P6: Sens.
R7: Total Factors | Y7: Sens. % | AF7: IDB Adj | AM7: Sens Calc
A8: 1400 | B8: 72 | C8: =R8*$I$13 -> 0 | D8: =IF(AM8>C8,C8,AM8) -> 0 | E8: =S8*$I$13 -> 0 | F8: =IF(AN8>E8,E8,AN8) -> 0 | G8: =T8*$I$13 -> 0 | H8: =IF(AO8>G8,G8,AO8) -> 0 | I8: =U8*$I$13 -> 0 | J8: =IF(AP8>I8,I8,AP8) -> 0 | K8: =V8*$I$13 -> 0 | L8: =IF(AQ8>K8,K8,AQ8) -> 0 | M8: =W8*$I$13 -> 0 | N8: =IF(AR8>M8,M8,AR8) -> 0 | O8: =X8*$I$13 -> 0 | P8: =IF(AS8>O8,O8,AS8) -> 0 | R8: 1.208510638 | S8: 1.163829787 | T8: 1.117021277 | U8: 1.070212766 | V8: 1.012765957 | W8: 0.9553191489 | X8: 0.9 | Y8: 0.4718309859 | Z8: 0.4753199269 | AA8: 0.48 | AB8: 0.4850894632 | AC8: 0.4915966387 | AD8: 0.5033407572 | AE8: 0.5130023641 | AF8: 1.06 | AG8: 1.06 | AH8: 1.06 | AI8: 1.06 | AJ8: 1.06 | AK8: 1.06 | AL8: 1.06 | AM8: =Y8*C8+($A$4-80)*AF8*$A$8/1000 -> 0 | AN8: =Z8*E8+($A$4-80)*AG8*$A$8/1000 -> 0 | AO8: =AA8*G8+($A$4-80)*AH8*$A$8/1000 -> 0 | AP8: =AB8*I8+($A$4-80)*AI8*$A$8/1000 -> 0 | AQ8: =AC8*K8+($A$4-80)*AJ8*$A$8/1000 -> 0 | AR8: =AD8*M8+($A$4-80)*AK8*$A$8/1000 -> 0 | AS8: =AE8*O8+($A$4-80)*AL8*$A$8/1000 -> 0
B9: 67 | C9: =R9*$I$13 -> 0 | D9: 0 | E9: 0 | F9: =IF(AN9>E9,E9,AN9) -> 0 | G9: 0 | H9: =IF(AO9>G9,G9,AO9) -> 0 | I9: =U9*$I$13 -> 0 | J9: =IF(AP9>I9,I9,AP9) -> 0 | K9: 0 | L9: =IF(AQ9>K9,K9,AQ9) -> 0 | M9: 0 | N9: =IF(AR9>M9,M9,AR9) -> 0 | O9: 0 | P9: =IF(AS9>O9,O9,AS9) -> 0 | R9: 1.110638298 | S9: 1.068085106 | T9: 1.025531915 | U9: 0.9829787234 | V9: 0.9234042553 | W9: 0.8638297872 | X9: 0.8042553191 | Y9: 0.6590038314 | Z9: 0.6693227092 | AA9: 0.6804979253 | AB9: 0.6926406926 | AC9: 0.7096774194 | AD9: 0.7315270936 | AE9: 0.7592592593 | AF9: 1.06 | AG9: 1.06 | AH9: 1.06 | AI9: 1.06 | AJ9: 1.06 | AK9: 1.06 | AL9: 1.06 | AM9: =Y9*C9+($A$4-80)*AF9*$A$8/1000 -> 0 | AN9: =Z9*E9+($A$4-80)*AG9*$A$8/1000 -> 0 | AO9: =AA9*G9+($A$4-80)*AH9*$A$8/1000 -> 0 | AP9: =AB9*I9+($A$4-80)*AI9*$A$8/1000 -> 0 | AQ9: =AC9*K9+($A$4-80)*AJ9*$A$8/1000 -> 0 | AR9: =AD9*M9+($A$4-80)*AK9*$A$8/1000 -> 0 | AS9: =AE9*O9+($A$4-80)*AL9*$A$8/1000 -> 0
B10: 62 | C10: 0 | D10: 0 | E10: 0 | F10: 0 | G10: 0 | H10: 0 | I10: =U10*$I$13 -> 0 | J10: 0 | K10: 0 | L10: 0 | M10: 0 | N10: 0 | O10: 0 | P10: 0 | R10: 1.006382979 | S10: 0.970212766 | T10: 0.9361702128 | U10: 0.9021276596 | V10: 0.8234042553 | W10: 0.7489361702 | X10: 0.6744680851 | Y10: 0.8520084567 | Z10: 0.8793859649 | AA10: 0.9090909091 | AB10: 0.9386792453 | AC10: 0.9612403101 | AD10: 0.9829545455 | AE10: 1 | AF10: 1.06 | AG10: 1.06 | AH10: 1.06 | AI10: 1.06 | AJ10: 1.06 | AK10: 1.06 | AL10: 1.06 | AM10: 0 | AN10: =Z10*E10+($A$4-80)*AG10*$A$8/1000 -> 0 | AO10: =AA10*G10+($A$4-80)*AH10*$A$8/1000 -> 0 | AP10: 0 | AQ10: 0 | AR10: 0 | AS10: 0
B11: 57 | C11: 0 | D11: 0 | E11: 0 | F11: 0 | G11: 0 | H11: 0 | I11: =U11*$I$13 -> 0 | J11: 0 | K11: 0 | L11: 0 | M11: 0 | N11: 0 | O11: 0 | P11: 0 | R11: 0.9531914894 | S11: 0.9234042553 | T11: 0.8936170213 | U11: 0.8617021277 | V11: 0.8063829787 | W11: 0.7531914894 | X11: 0.7 | Y11: 1 | Z11: 1 | AA11: 1 | AB11: 1 | AC11: 1 | AD11: 1 | AE11: 1 | AF11: 1.06 | AG11: 1.06 | AH11: 1.06 | AI11: 1.06 | AJ11: 1.06 | AK11: 1.06 | AL11: 1.06 | AM11: 0 | AN11: =Z11*E11+($A$4-80)*AG11*$A$8/1000 -> 0 | AO11: =AA11*G11+($A$4-80)*AH11*$A$8/1000 -> 0 | AP11: =AB11*I11+($A$4-80)*AI11*$A$8/1000 -> 0 | AQ11: 0 | AR11: 0 | AS11: 0
A12: 1600 | B12: 72 | C12: 0 | D12: 0 | E12: 0 | F12: 0 | G12: 0 | H12: 0 | I12: =U12*$I$13 -> 0 | J12: 0 | K12: 0 | L12: 0 | M12: 0 | N12: 0 | O12: 0 | P12: 0 | R12: 1.236170213 | S12: 1.189361702 | T12: 1.142553191 | U12: 1.095744681 | V12: 1.036170213 | W12: 0.9765957447 | X12: 0.9191489362 | Y12: 0.4819277108 | Z12: 0.4847942755 | AA12: 0.4897579143 | AB12: 0.4951456311 | AC12: 0.5051334702 | AD12: 0.5185185185 | AE12: 0.5300925926 | AF12: 1.06 | AG12: 1.06 | AH12: 1.06 | AI12: 1.06 | AJ12: 1.06 | AK12: 1.06 | AL12: 1.06 | AM12: =Y12*C12+($A$4-80)*AF12*$A$12/1000 -> 0 | AN12: =Z12*E12+($A$4-80)*AG12*$A$12/1000 -> 0 | AO12: =AA12*G12+($A$4-80)*AH12*$A$12/1000 -> 0 | AP12: =AB12*I12+($A$4-80)*AI12*$A$12/1000 -> 0 | AQ12: =AC12*K12+($A$4-80)*AJ12*$A$12/1000 -> 0 | AR12: =AD12*M12+($A$4-80)*AK12*$A$12/1000 -> 0 | AS12: =AE12*O12+($A$4-80)*AL12*$A$12/1000 -> 0
B13: 67 | C13: 0 | D13: 0 | E13: 0 | F13: 0 | G13: 0 | H13: 0 | I13: =B2 -> 0 | J13: 0 | K13: 0 | L13: 0 | M13: 0 | N13: 0 | O13: 0 | P13: 0 | R13: 1.131914894 | S13: 1.089361702 | T13: 1.044680851 | U13: 1 | V13: 0.9382978723 | W13: 0.8787234043 | X13: 0.8212765957 | Y13: 0.6898496241 | Z13: 0.697265625 | AA13: 0.7087576375 | AB13: 0.7191489362 | AC13: 0.7437641723 | AD13: 0.7675544794 | AE13: 0.792746114 | AF13: 1.06 | AG13: 1.06 | AH13: 1.06 | AI13: 1.06 | AJ13: 1.06 | AK13: 1.06 | AL13: 1.06 | AM13: =Y13*C13+($A$4-80)*AF13*$A$12/1000 -> 0 | AN13: =Z13*E13+($A$4-80)*AG13*$A$12/1000 -> 0 | AO13: =AA13*G13+($A$4-80)*AH13*$A$12/1000 -> 0 | AP13: =AB13*I13+($A$4-80)*AI13*$A$12/1000 -> 0 | AQ13: =AC13*K13+($A$4-80)*AJ13*$A$12/1000 -> 0 | AR13: =AD13*M13+($A$4-80)*AK13*$A$12/1000 -> 0 | AS13: =AE13*O13+($A$4-80)*AL13*$A$12/1000 -> 0
B14: 62 | C14: 0 | D14: 0 | E14: 0 | F14: 0 | G14: 0 | H14: 0 | I14: =U14*$I$13 -> 0 | J14: 0 | K14: 0 | L14: 0 | M14: 0 | N14: 0 | O14: 0 | P14: 0 | R14: 1.025531915 | S14: 0.9893617021 | T14: 0.9553191489 | U14: 0.9212765957 | V14: 0.8553191489 | W14: 0.7914893617 | X14: 0.7276595745 | Y14: 0.8900414938 | Z14: 0.9182795699 | AA14: 0.9465478842 | AB14: 0.9792147806 | AC14: 0.9875621891 | AD14: 1 | AE14: 1 | AF14: 1.06 | AG14: 1.06 | AH14: 1.06 | AI14: 1.06 | AJ14: 1.06 | AK14: 1.06 | AL14: 1.06 | AM14: 0 | AN14: =Z14*E14+($A$4-80)*AG14*$A$12/1000 -> 0 | AO14: =AA14*G14+($A$4-80)*AH14*$A$12/1000 -> 0 | AP14: 0 | AQ14: 0 | AR14: 0 | AS14: 0
B15: 57 | C15: 0 | D15: 0 | E15: 0 | F15: 0 | G15: 0 | H15: 0 | I15: 0 | J15: 0 | K15: 0 | L15: 0 | M15: 0 | N15: 0 | O15: 0 | P15: 0 | R15: 0.985106383 | S15: 0.9531914894 | T15: 0.9212765957 | U15: 0.8893617021 | V15: 0.8340425532 | W15: 0.7808510638 | X15: 0.7276595745 | Y15: 1 | Z15: 1 | AA15: 1 | AB15: 1 | AC15: 1 | AD15: 1 | AE15: 1 | AF15: 1.06 | AG15: 1.06 | AH15: 1.06 | AI15: 1.06 | AJ15: 1.06 | AK15: 1.06 | AL15: 1.06 | AM15: 0 | AN15: =Z15*E15+($A$4-80)*AG15*$A$12/1000 -> 0 | AO15: =AA15*G15+($A$4-80)*AH15*$A$12/1000 -> 0 | AP15: 0 | AQ15: 0 | AR15: 0 | AS15: 0
A16: 1800 | B16: 72 | C16: 0 | D16: 0 | E16: 0 | F16: 0 | G16: 0 | H16: 0 | I16: 0 | J16: 0 | K16: 0 | L16: 0 | M16: 0 | N16: 0 | O16: 0 | P16: 0 | R16: 1.263829787 | S16: 1.217021277 | T16: 1.168085106 | U16: 1.121276596 | V16: 1.059574468 | W16: 0.9978723404 | X16: 0.9382978723 | Y16: 0.4915824916 | Z16: 0.4947552448 | AA16: 0.4990892532 | AB16: 0.504743833 | AC16: 0.516064257 | AD16: 0.5309168443 | AE16: 0.5464852608 | AF16: 1.06 | AG16: 1.06 | AH16: 1.06 | AI16: 1.06 | AJ16: 1.06 | AK16: 1.06 | AL16: 1.06 | AM16: =Y16*C16+($A$4-80)*AF16*$A$16/1000 -> 0 | AN16: =Z16*E16+($A$4-80)*AG16*$A$16/1000 -> 0 | AO16: =AA16*G16+($A$4-80)*AH16*$A$16/1000 -> 0 | AP16: =AB16*I16+($A$4-80)*AI16*$A$16/1000 -> 0 | AQ16: =AC16*K16+($A$4-80)*AJ16*$A$16/1000 -> 0 | AR16: =AD16*M16+($A$4-80)*AK16*$A$16/1000 -> 0 | AS16: =AE16*O16+($A$4-80)*AL16*$A$16/1000 -> 0
B17: 67 | C17: 0 | D17: 0 | E17: 0 | F17: 0 | G17: 0 | H17: 0 | I17: 0 | J17: 0 | K17: 0 | L17: 0 | M17: 0 | N17: 0 | O17: 0 | P17: 0 | R17: 1.155319149 | S17: 1.108510638 | T17: 1.061702128 | U17: 1.017021277 | V17: 0.9553191489 | W17: 0.8957446809 | X17: 0.8361702128 | Y17: 0.7182320442 | Z17: 0.7274472169 | AA17: 0.7374749499 | AB17: 0.7468619247 | AC17: 0.7728285078 | AD17: 0.7980997625 | AE17: 0.8295165394 | AF17: 1.06 | AG17: 1.06 | AH17: 1.06 | AI17: 1.06 | AJ17: 1.06 | AK17: 1.06 | AL17: 1.06 | AM17: =Y17*C17+($A$4-80)*AF17*$A$16/1000 -> 0 | AN17: =Z17*E17+($A$4-80)*AG17*$A$16/1000 -> 0 | AO17: =AA17*G17+($A$4-80)*AH17*$A$16/1000 -> 0 | AP17: =AB17*I17+($A$4-80)*AI17*$A$16/1000 -> 0 | AQ17: =AC17*K17+($A$4-80)*AJ17*$A$16/1000 -> 0 | AR17: =AD17*M17+($A$4-80)*AK17*$A$16/1000 -> 0 | AS17: =AE17*O17+($A$4-80)*AL17*$A$16/1000 -> 0
B18: 62 | C18: 0 | D18: 0 | E18: 0 | F18: 0 | G18: 0 | H18: 0 | I18: 0 | J18: 0 | K18: 0 | L18: 0 | M18: 0 | N18: 0 | O18: 0 | P18: 0 | R18: 1.044680851 | S18: 1.008510638 | T18: 0.9744680851 | U18: 0.9382978723 | V18: 0.885106383 | W18: 0.8319148936 | X18: 0.7808510638 | Y18: 0.9266802444 | Z18: 0.9556962025 | AA18: 0.9847161572 | AB18: 1 | AC18: 1 | AD18: 1 | AE18: 1 | AF18: 1.06 | AG18: 1.06 | AH18: 1.06 | AI18: 1.06 | AJ18: 1.06 | AK18: 1.06 | AL18: 1.06 | AM18: 0 | AN18: =Z18*E18+($A$4-80)*AG18*$A$16/1000 -> 0 | AO18: =AA18*G18+($A$4-80)*AH18*$A$16/1000 -> 0 | AP18: 0 | AQ18: 0 | AR18: 0 | AS18: 0
B19: 57 | C19: 0 | D19: 0 | E19: 0 | F19: 0 | G19: 0 | H19: 0 | I19: 0 | J19: 0 | K19: 0 | L19: 0 | M19: 0 | N19: 0 | O19: 0 | P19: 0 | R19: 1.017021277 | S19: 0.9829787234 | T19: 0.9489361702 | U19: 0.914893617 | V19: 0.8617021277 | W19: 0.8106382979 | X19: 0.7574468085 | Y19: 1 | Z19: 1 | AA19: 1 | AB19: 1 | AC19: 1 | AD19: 1 | AE19: 1 | AF19: 1.06 | AG19: 1.06 | AH19: 1.06 | AI19: 1.06 | AJ19: 1.06 | AK19: 1.06 | AL19: 1.06 | AM19: 0 | AN19: =Z19*E19+($A$4-80)*AG19*$A$16/1000 -> 0 | AO19: =AA19*G19+($A$4-80)*AH19*$A$16/1000 -> 0 | AP19: 0 | AQ19: 0 | AR19: 0 | AS19: 0

Sheet TCHD_60 (hidden)
A2: TCHD_48
A3: Evaporator Air | C3: Condenser Entering Air Temperature ˚F
A4: 80 | B4: °F DB | C4: 65 | E4: 75 | G4: 85 | I4: 95 | K4: 105 | M4: 115 | O4: 125
A5: CFM | B5: EWB† ˚F | C5: Capacity Mbtuh | E5: Capacity Mbtuh | G5: Capacity Mbtuh | I5: Capacity Mbtuh | K5: Capacity Mbtuh | M5: Capacity Mbtuh | O5: Capacity Mbtuh
C6: Total | D6: Sens. | E6: Total | F6: Sens. | G6: Total | H6: Sens. | I6: Total | J6: Sens. | K6: Total | L6: Sens. | M6: Total | N6: Sens. | O6: Total | P6: Sens.
R7: Total Factors | Y7: Sens. % | AF7: IDB Adj | AM7: Sens Calc
A8: 1600 | B8: 72 | C8: =R8*$I$13 -> 0 | D8: =IF(AM8>C8,C8,AM8) -> 0 | E8: =S8*$I$13 -> 0 | F8: =IF(AN8>E8,E8,AN8) -> 0 | G8: =T8*$I$13 -> 0 | H8: =IF(AO8>G8,G8,AO8) -> 0 | I8: =U8*$I$13 -> 0 | J8: =IF(AP8>I8,I8,AP8) -> 0 | K8: =V8*$I$13 -> 0 | L8: =IF(AQ8>K8,K8,AQ8) -> 0 | M8: =W8*$I$13 -> 0 | N8: =IF(AR8>M8,M8,AR8) -> 0 | O8: =X8*$I$13 -> 0 | P8: =IF(AS8>O8,O8,AS8) -> 0 | R8: 1.201754386 | S8: 1.159649123 | T8: 1.119298246 | U8: 1.077192982 | V8: 1.022807018 | W8: 0.9684210526 | X8: 0.9140350877 | Y8: 0.4627737226 | Z8: 0.4659606657 | AA8: 0.4670846395 | AB8: 0.4706840391 | AC8: 0.4768439108 | AD8: 0.4855072464 | AE8: 0.4932821497 | AF8: 1.06 | AG8: 1.06 | AH8: 1.06 | AI8: 1.06 | AJ8: 1.06 | AK8: 1.06 | AL8: 1.06 | AM8: =Y8*C8+($A$4-80)*AF8*$A$8/1000 -> 0 | AN8: =Z8*E8+($A$4-80)*AG8*$A$8/1000 -> 0 | AO8: =AA8*G8+($A$4-80)*AH8*$A$8/1000 -> 0 | AP8: =AB8*I8+($A$4-80)*AI8*$A$8/1000 -> 0 | AQ8: =AC8*K8+($A$4-80)*AJ8*$A$8/1000 -> 0 | AR8: =AD8*M8+($A$4-80)*AK8*$A$8/1000 -> 0 | AS8: =AE8*O8+($A$4-80)*AL8*$A$8/1000 -> 0
B9: 67 | C9: =R9*$I$13 -> 0 | D9: 0 | E9: 0 | F9: =IF(AN9>E9,E9,AN9) -> 0 | G9: 0 | H9: =IF(AO9>G9,G9,AO9) -> 0 | I9: =U9*$I$13 -> 0 | J9: =IF(AP9>I9,I9,AP9) -> 0 | K9: 0 | L9: =IF(AQ9>K9,K9,AQ9) -> 0 | M9: 0 | N9: =IF(AR9>M9,M9,AR9) -> 0 | O9: 0 | P9: =IF(AS9>O9,O9,AS9) -> 0 | R9: 1.103508772 | S9: 1.063157895 | T9: 1.022807018 | U9: 0.9807017544 | V9: 0.9263157895 | W9: 0.8736842105 | X9: 0.8210526316 | Y9: 0.6550079491 | Z9: 0.6584158416 | AA9: 0.6620926244 | AB9: 0.6690518784 | AC9: 0.6818181818 | AD9: 0.6967871486 | AE9: 0.7136752137 | AF9: 1.06 | AG9: 1.06 | AH9: 1.06 | AI9: 1.06 | AJ9: 1.06 | AK9: 1.06 | AL9: 1.06 | AM9: =Y9*C9+($A$4-80)*AF9*$A$8/1000 -> 0 | AN9: =Z9*E9+($A$4-80)*AG9*$A$8/1000 -> 0 | AO9: =AA9*G9+($A$4-80)*AH9*$A$8/1000 -> 0 | AP9: =AB9*I9+($A$4-80)*AI9*$A$8/1000 -> 0 | AQ9: =AC9*K9+($A$4-80)*AJ9*$A$8/1000 -> 0 | AR9: =AD9*M9+($A$4-80)*AK9*$A$8/1000 -> 0 | AS9: =AE9*O9+($A$4-80)*AL9*$A$8/1000 -> 0
B10: 62 | C10: 0 | D10: 0 | E10: 0 | F10: 0 | G10: 0 | H10: 0 | I10: =U10*$I$13 -> 0 | J10: 0 | K10: 0 | L10: 0 | M10: 0 | N10: 0 | O10: 0 | P10: 0 | R10: 1.021052632 | S10: 0.9771929825 | T10: 0.9350877193 | U10: 0.8912280702 | V10: 0.8350877193 | W10: 0.7789473684 | X10: 0.7245614035 | Y10: 0.8453608247 | Z10: 0.8581687612 | AA10: 0.8705440901 | AB10: 0.8858267717 | AC10: 0.9054621849 | AD10: 0.9301801802 | AE10: 0.9564164649 | AF10: 1.06 | AG10: 1.06 | AH10: 1.06 | AI10: 1.06 | AJ10: 1.06 | AK10: 1.06 | AL10: 1.06 | AM10: 0 | AN10: =Z10*E10+($A$4-80)*AG10*$A$8/1000 -> 0 | AO10: =AA10*G10+($A$4-80)*AH10*$A$8/1000 -> 0 | AP10: 0 | AQ10: 0 | AR10: 0 | AS10: 0
B11: 57 | C11: 0 | D11: 0 | E11: 0 | F11: 0 | G11: 0 | H11: 0 | I11: =U11*$I$13 -> 0 | J11: 0 | K11: 0 | L11: 0 | M11: 0 | N11: 0 | O11: 0 | P11: 0 | R11: 0.9473684211 | S11: 0.9087719298 | T11: 0.8719298246 | U11: 0.8350877193 | V11: 0.7859649123 | W11: 0.7368421053 | X11: 0.6894736842 | Y11: 1 | Z11: 1 | AA11: 1 | AB11: 1 | AC11: 1 | AD11: 1 | AE11: 1 | AF11: 1.06 | AG11: 1.06 | AH11: 1.06 | AI11: 1.06 | AJ11: 1.06 | AK11: 1.06 | AL11: 1.06 | AM11: 0 | AN11: =Z11*E11+($A$4-80)*AG11*$A$8/1000 -> 0 | AO11: =AA11*G11+($A$4-80)*AH11*$A$8/1000 -> 0 | AP11: =AB11*I11+($A$4-80)*AI11*$A$8/1000 -> 0 | AQ11: 0 | AR11: 0 | AS11: 0
A12: 1800 | B12: 72 | C12: 0 | D12: 0 | E12: 0 | F12: 0 | G12: 0 | H12: 0 | I12: =U12*$I$13 -> 0 | J12: 0 | K12: 0 | L12: 0 | M12: 0 | N12: 0 | O12: 0 | P12: 0 | R12: 1.224561404 | S12: 1.180701754 | T12: 1.138596491 | U12: 1.094736842 | V12: 1.040350877 | W12: 0.9877192982 | X12: 0.9333333333 | Y12: 0.4699140401 | Z12: 0.4739970282 | AA12: 0.4776579353 | AB12: 0.4823717949 | AC12: 0.4890387858 | AD12: 0.4955595027 | AE12: 0.5056390977 | AF12: 1.06 | AG12: 1.06 | AH12: 1.06 | AI12: 1.06 | AJ12: 1.06 | AK12: 1.06 | AL12: 1.06 | AM12: =Y12*C12+($A$4-80)*AF12*$A$12/1000 -> 0 | AN12: =Z12*E12+($A$4-80)*AG12*$A$12/1000 -> 0 | AO12: =AA12*G12+($A$4-80)*AH12*$A$12/1000 -> 0 | AP12: =AB12*I12+($A$4-80)*AI12*$A$12/1000 -> 0 | AQ12: =AC12*K12+($A$4-80)*AJ12*$A$12/1000 -> 0 | AR12: =AD12*M12+($A$4-80)*AK12*$A$12/1000 -> 0 | AS12: =AE12*O12+($A$4-80)*AL12*$A$12/1000 -> 0
B13: 67 | C13: 0 | D13: 0 | E13: 0 | F13: 0 | G13: 0 | H13: 0 | I13: =B2 -> 0 | J13: 0 | K13: 0 | L13: 0 | M13: 0 | N13: 0 | O13: 0 | P13: 0 | R13: 1.126315789 | S13: 1.084210526 | T13: 1.042105263 | U13: 1 | V13: 0.9438596491 | W13: 0.8912280702 | X13: 0.8368421053 | Y13: 0.6697819315 | Z13: 0.6763754045 | AA13: 0.6835016835 | AB13: 0.6894736842 | AC13: 0.7063197026 | AD13: 0.7204724409 | AE13: 0.7400419287 | AF13: 1.06 | AG13: 1.06 | AH13: 1.06 | AI13: 1.06 | AJ13: 1.06 | AK13: 1.06 | AL13: 1.06 | AM13: =Y13*C13+($A$4-80)*AF13*$A$12/1000 -> 0 | AN13: =Z13*E13+($A$4-80)*AG13*$A$12/1000 -> 0 | AO13: =AA13*G13+($A$4-80)*AH13*$A$12/1000 -> 0 | AP13: =AB13*I13+($A$4-80)*AI13*$A$12/1000 -> 0 | AQ13: =AC13*K13+($A$4-80)*AJ13*$A$12/1000 -> 0 | AR13: =AD13*M13+($A$4-80)*AK13*$A$12/1000 -> 0 | AS13: =AE13*O13+($A$4-80)*AL13*$A$12/1000 -> 0
B14: 62 | C14: 0 | D14: 0 | E14: 0 | F14: 0 | G14: 0 | H14: 0 | I14: =U14*$I$13 -> 0 | J14: 0 | K14: 0 | L14: 0 | M14: 0 | N14: 0 | O14: 0 | P14: 0 | R14: 1.042105263 | S14: 0.998245614 | T14: 0.9526315789 | U14: 0.9087719298 | V14: 0.8526315789 | W14: 0.8 | X14: 0.7456140351 | Y14: 0.8737373737 | Z14: 0.8857644991 | AA14: 0.9023941068 | AB14: 0.9189189189 | AC14: 0.9403292181 | AD14: 0.9605263158 | AE14: 0.9858823529 | AF14: 1.06 | AG14: 1.06 | AH14: 1.06 | AI14: 1.06 | AJ14: 1.06 | AK14: 1.06 | AL14: 1.06 | AM14: 0 | AN14: =Z14*E14+($A$4-80)*AG14*$A$12/1000 -> 0 | AO14: =AA14*G14+($A$4-80)*AH14*$A$12/1000 -> 0 | AP14: 0 | AQ14: 0 | AR14: 0 | AS14: 0
B15: 57 | C15: 0 | D15: 0 | E15: 0 | F15: 0 | G15: 0 | H15: 0 | I15: 0 | J15: 0 | K15: 0 | L15: 0 | M15: 0 | N15: 0 | O15: 0 | P15: 0 | R15: 0.9719298246 | S15: 0.9350877193 | T15: 0.898245614 | U15: 0.8631578947 | V15: 0.8122807018 | W15: 0.7631578947 | X15: 0.7140350877 | Y15: 1 | Z15: 1 | AA15: 1 | AB15: 1 | AC15: 1 | AD15: 1 | AE15: 1 | AF15: 1.06 | AG15: 1.06 | AH15: 1.06 | AI15: 1.06 | AJ15: 1.06 | AK15: 1.06 | AL15: 1.06 | AM15: 0 | AN15: =Z15*E15+($A$4-80)*AG15*$A$12/1000 -> 0 | AO15: =AA15*G15+($A$4-80)*AH15*$A$12/1000 -> 0 | AP15: 0 | AQ15: 0 | AR15: 0 | AS15: 0
A16: 2000 | B16: 72 | C16: 0 | D16: 0 | E16: 0 | F16: 0 | G16: 0 | H16: 0 | I16: 0 | J16: 0 | K16: 0 | L16: 0 | M16: 0 | N16: 0 | O16: 0 | P16: 0 | R16: 1.245614035 | S16: 1.201754386 | T16: 1.157894737 | U16: 1.112280702 | V16: 1.057894737 | W16: 1.007017544 | X16: 0.9543859649 | Y16: 0.4788732394 | Z16: 0.4832116788 | AA16: 0.4863636364 | AB16: 0.4921135647 | AC16: 0.4991708126 | AD16: 0.5069686411 | AE16: 0.5165441176 | AF16: 1.06 | AG16: 1.06 | AH16: 1.06 | AI16: 1.06 | AJ16: 1.06 | AK16: 1.06 | AL16: 1.06 | AM16: =Y16*C16+($A$4-80)*AF16*$A$16/1000 -> 0 | AN16: =Z16*E16+($A$4-80)*AG16*$A$16/1000 -> 0 | AO16: =AA16*G16+($A$4-80)*AH16*$A$16/1000 -> 0 | AP16: =AB16*I16+($A$4-80)*AI16*$A$16/1000 -> 0 | AQ16: =AC16*K16+($A$4-80)*AJ16*$A$16/1000 -> 0 | AR16: =AD16*M16+($A$4-80)*AK16*$A$16/1000 -> 0 | AS16: =AE16*O16+($A$4-80)*AL16*$A$16/1000 -> 0
B17: 67 | C17: 0 | D17: 0 | E17: 0 | F17: 0 | G17: 0 | H17: 0 | I17: 0 | J17: 0 | K17: 0 | L17: 0 | M17: 0 | N17: 0 | O17: 0 | P17: 0 | R17: 1.147368421 | S17: 1.105263158 | T17: 1.061403509 | U17: 1.019298246 | V17: 0.9631578947 | W17: 0.9070175439 | X17: 0.8526315789 | Y17: 0.6850152905 | Z17: 0.6936507937 | AA17: 0.7024793388 | AB17: 0.7108433735 | AC17: 0.7267759563 | AD17: 0.746615087 | AE17: 0.7654320988 | AF17: 1.06 | AG17: 1.06 | AH17: 1.06 | AI17: 1.06 | AJ17: 1.06 | AK17: 1.06 | AL17: 1.06 | AM17: =Y17*C17+($A$4-80)*AF17*$A$16/1000 -> 0 | AN17: =Z17*E17+($A$4-80)*AG17*$A$16/1000 -> 0 | AO17: =AA17*G17+($A$4-80)*AH17*$A$16/1000 -> 0 | AP17: =AB17*I17+($A$4-80)*AI17*$A$16/1000 -> 0 | AQ17: =AC17*K17+($A$4-80)*AJ17*$A$16/1000 -> 0 | AR17: =AD17*M17+($A$4-80)*AK17*$A$16/1000 -> 0 | AS17: =AE17*O17+($A$4-80)*AL17*$A$16/1000 -> 0
B18: 62 | C18: 0 | D18: 0 | E18: 0 | F18: 0 | G18: 0 | H18: 0 | I18: 0 | J18: 0 | K18: 0 | L18: 0 | M18: 0 | N18: 0 | O18: 0 | P18: 0 | R18: 1.063157895 | S18: 1.01754386 | T18: 0.9719298246 | U18: 0.9263157895 | V18: 0.8719298246 | W18: 0.8192982456 | X18: 0.7666666667 | Y18: 0.899339934 | Z18: 0.9155172414 | AA18: 0.9332129964 | AB18: 0.9507575758 | AC18: 0.9698189135 | AD18: 0.9914346895 | AE18: 1 | AF18: 1.06 | AG18: 1.06 | AH18: 1.06 | AI18: 1.06 | AJ18: 1.06 | AK18: 1.06 | AL18: 1.06 | AM18: 0 | AN18: =Z18*E18+($A$4-80)*AG18*$A$16/1000 -> 0 | AO18: =AA18*G18+($A$4-80)*AH18*$A$16/1000 -> 0 | AP18: 0 | AQ18: 0 | AR18: 0 | AS18: 0
B19: 57 | C19: 0 | D19: 0 | E19: 0 | F19: 0 | G19: 0 | H19: 0 | I19: 0 | J19: 0 | K19: 0 | L19: 0 | M19: 0 | N19: 0 | O19: 0 | P19: 0 | R19: 0.998245614 | S19: 0.9614035088 | T19: 0.9263157895 | U19: 0.8894736842 | V19: 0.8385964912 | W19: 0.7894736842 | X19: 0.7385964912 | Y19: 1 | Z19: 1 | AA19: 1 | AB19: 1 | AC19: 1 | AD19: 1 | AE19: 1 | AF19: 1.06 | AG19: 1.06 | AH19: 1.06 | AI19: 1.06 | AJ19: 1.06 | AK19: 1.06 | AL19: 1.06 | AM19: 0 | AN19: =Z19*E19+($A$4-80)*AG19*$A$16/1000 -> 0 | AO19: =AA19*G19+($A$4-80)*AH19*$A$16/1000 -> 0 | AP19: 0 | AQ19: 0 | AR19: 0 | AS19: 0

Sheet YCD_18 (hidden)
A2: YCD_18 | B2: 18
A3: Evaporator Air | C3: Condenser Entering Air Temperature ˚F
A4: 80 | B4: °F DB | C4: 55 | E4: 65 | G4: 75 | I4: 85 | K4: 95 | M4: 105 | O4: 115
A5: CFM | B5: EWB† ˚F | C5: Capacity Mbtuh | E5: Capacity Mbtuh | G5: Capacity Mbtuh | I5: Capacity Mbtuh | K5: Capacity Mbtuh | M5: Capacity Mbtuh | O5: Capacity Mbtuh
C6: Total | D6: Sens. | E6: Total | F6: Sens. | G6: Total | H6: Sens. | I6: Total | J6: Sens. | K6: Total | L6: Sens. | M6: Total | N6: Sens. | O6: Total | P6: Sens.
R7: Total Factors | Y7: Sens. % | AF7: IDB Adj | AM7: Sens Calc
A8: 450 | B8: 72 | C8: =R8*$K$13 -> 17.31521739 | D8: =IF(AM8>C8,C8,AM8) -> 9 | E8: =S8*$K$13 -> 18.09782609 | F8: =IF(AN8>E8,E8,AN8) -> 9.391304348 | G8: =T8*$K$13 -> 18.97826087 | H8: =IF(AO8>G8,G8,AO8) -> 9.684782609 | I8: =U8*$K$13 -> 18.58695652 | J8: =IF(AP8>I8,I8,AP8) -> 9.586956522 | K8: =V8*$K$13 -> 18.29347826 | L8: =IF(AQ8>K8,K8,AQ8) -> 9.489130435 | M8: =W8*$K$13 -> 16.43478261 | N8: =IF(AR8>M8,M8,AR8) -> 8.804347826 | O8: =X8*$K$13 -> 14.57608696 | P8: =IF(AS8>O8,O8,AS8) -> 8.119565217 | R8: 0.9619565217 | S8: 1.005434783 | T8: 1.054347826 | U8: 1.032608696 | V8: 1.016304348 | W8: 0.9130434783 | X8: 0.8097826087 | Y8: 0.5197740113 | Z8: 0.5189189189 | AA8: 0.5103092784 | AB8: 0.5157894737 | AC8: 0.5187165775 | AD8: 0.5357142857 | AE8: 0.5570469799 | AF8: 1.06 | AG8: 1.06 | AH8: 1.06 | AI8: 1.06 | AJ8: 1.06 | AK8: 1.06 | AL8: 1.06 | AM8: =Y8*C8+($A$4-80)*AF8*$A$8/1000 -> 9 | AN8: =Z8*E8+($A$4-80)*AG8*$A$8/1000 -> 9.391304348 | AO8: =AA8*G8+($A$4-80)*AH8*$A$8/1000 -> 9.684782609 | AP8: =AB8*I8+($A$4-80)*AI8*$A$8/1000 -> 9.586956522 | AQ8: =AC8*K8+($A$4-80)*AJ8*$A$8/1000 -> 9.489130435 | AR8: =AD8*M8+($A$4-80)*AK8*$A$8/1000 -> 8.804347826 | AS8: =AE8*O8+($A$4-80)*AL8*$A$8/1000 -> 8.119565217
B9: 67 | C9: 17.41304348 | D9: 11.34782609 | E9: 17.90217391 | F9: =IF(AN9>E9,E9,AN9) -> 11.73913043 | G9: 18.48913043 | H9: =IF(AO9>G9,G9,AO9) -> 12.13043478 | I9: 17.31521739 | J9: =IF(AP9>I9,I9,AP9) -> 11.73913043 | K9: =V9*$K$13 -> 16.14130435 | L9: =IF(AQ9>K9,K9,AQ9) -> 11.34782609 | M9: 13.98913043 | N9: =IF(AR9>M9,M9,AR9) -> 10.56521739 | O9: 11.73913043 | P9: =IF(AS9>O9,O9,AS9) -> 9.684782609 | R9: 0.9673913043 | S9: 0.9945652174 | T9: 1.027173913 | U9: 0.9619565217 | V9: 0.8967391304 | W9: 0.777173913 | X9: 0.652173913 | Y9: 0.6516853933 | Z9: 0.6557377049 | AA9: 0.6560846561 | AB9: 0.6779661017 | AC9: 0.703030303 | AD9: 0.7552447552 | AE9: 0.825 | AF9: 1.06 | AG9: 1.06 | AH9: 1.06 | AI9: 1.06 | AJ9: 1.06 | AK9: 1.06 | AL9: 1.06 | AM9: =Y9*C9+($A$4-80)*AF9*$A$8/1000 -> 11.34782609 | AN9: =Z9*E9+($A$4-80)*AG9*$A$8/1000 -> 11.73913043 | AO9: =AA9*G9+($A$4-80)*AH9*$A$8/1000 -> 12.13043478 | AP9: =AB9*I9+($A$4-80)*AI9*$A$8/1000 -> 11.73913043 | AQ9: =AC9*K9+($A$4-80)*AJ9*$A$8/1000 -> 11.34782609 | AR9: =AD9*M9+($A$4-80)*AK9*$A$8/1000 -> 10.56521739 | AS9: =AE9*O9+($A$4-80)*AL9*$A$8/1000 -> 9.684782609
B10: 62 | C10: 16.92391304 | D10: 13.30434783 | E10: 17.02173913 | F10: 13.79347826 | G10: 17.2173913 | H10: 14.2826087 | I10: 15.65217391 | J10: 13.79347826 | K10: =V10*$K$13 -> 14.18478261 | L10: 13.20652174 | M10: 12.52173913 | N10: 11.83695652 | O10: 10.76086957 | P10: 10.36956522 | R10: 0.9402173913 | S10: 0.9456521739 | T10: 0.9565217391 | U10: 0.8695652174 | V10: 0.7880434783 | W10: 0.6956521739 | X10: 0.597826087 | Y10: 0.7861271676 | Z10: 0.8103448276 | AA10: 0.8295454545 | AB10: 0.88125 | AC10: 0.9310344828 | AD10: 0.9453125 | AE10: 0.9636363636 | AF10: 1.06 | AG10: 1.06 | AH10: 1.06 | AI10: 1.06 | AJ10: 1.06 | AK10: 1.06 | AL10: 1.06 | AM10: 13.30434783 | AN10: =Z10*E10+($A$4-80)*AG10*$A$8/1000 -> 13.79347826 | AO10: =AA10*G10+($A$4-80)*AH10*$A$8/1000 -> 14.2826087 | AP10: 13.79347826 | AQ10: 13.20652174 | AR10: 11.83695652 | AS10: 10.36956522
B11: 57 | C11: 16.23913043 | D11: 15.75 | E11: 16.04347826 | F11: 15.75 | G11: 15.84782609 | H11: 15.75 | I11: 14.67391304 | J11: 14.57608696 | K11: =V11*$K$13 -> 13.5 | L11: 13.40217391 | M11: 12.0326087 | N11: 11.93478261 | O11: 10.56521739 | P11: 10.36956522 | R11: 0.902173913 | S11: 0.8913043478 | T11: 0.8804347826 | U11: 0.8152173913 | V11: 0.75 | W11: 0.6684782609 | X11: 0.5869565217 | Y11: 0.9698795181 | Z11: 0.9817073171 | AA11: 0.9938271605 | AB11: 0.9933333333 | AC11: 0.9927536232 | AD11: 0.9918699187 | AE11: 0.9814814815 | AF11: 1.06 | AG11: 1.06 | AH11: 1.06 | AI11: 1.06 | AJ11: 1.06 | AK11: 1.06 | AL11: 1.06 | AM11: 15.75 | AN11: =Z11*E11+($A$4-80)*AG11*$A$8/1000 -> 15.75 | AO11: =AA11*G11+($A$4-80)*AH11*$A$8/1000 -> 15.75 | AP11: =AB11*I11+($A$4-80)*AI11*$A$8/1000 -> 14.57608696 | AQ11: 13.40217391 | AR11: 11.93478261 | AS11: 10.36956522
A12: 600 | B12: 72 | C12: 17.51086957 | D12: 9.391304348 | E12: 18.39130435 | F12: 9.782608696 | G12: 19.27173913 | H12: 10.27173913 | I12: 18.97826087 | J12: 10.36956522 | K12: =V12*$K$13 -> 18.68478261 | L12: 10.4673913 | M12: 17.02173913 | N12: 9.880434783 | O12: 15.35869565 | P12: 9.391304348 | R12: 0.972826087 | S12: 1.02173913 | T12: 1.070652174 | U12: 1.054347826 | V12: 1.038043478 | W12: 0.9456521739 | X12: 0.8532608696 | Y12: 0.5363128492 | Z12: 0.5319148936 | AA12: 0.5329949239 | AB12: 0.5463917526 | AC12: 0.5602094241 | AD12: 0.5804597701 | AE12: 0.6114649682 | AF12: 1.06 | AG12: 1.06 | AH12: 1.06 | AI12: 1.06 | AJ12: 1.06 | AK12: 1.06 | AL12: 1.06 | AM12: =Y12*C12+($A$4-80)*AF12*$A$12/1000 -> 9.391304348 | AN12: =Z12*E12+($A$4-80)*AG12*$A$12/1000 -> 9.782608696 | AO12: =AA12*G12+($A$4-80)*AH12*$A$12/1000 -> 10.27173913 | AP12: =AB12*I12+($A$4-80)*AI12*$A$12/1000 -> 10.36956522 | AQ12: =AC12*K12+($A$4-80)*AJ12*$A$12/1000 -> 10.4673913 | AR12: =AD12*M12+($A$4-80)*AK12*$A$12/1000 -> 9.880434783 | AS12: =AE12*O12+($A$4-80)*AL12*$A$12/1000 -> 9.391304348
B13: 67 | C13: 17.70652174 | D13: 11.83695652 | E13: 18.29347826 | F13: 12.42391304 | G13: 18.88043478 | H13: 12.91304348 | I13: 18 | J13: 13.01086957 | K13: =B2 -> 18 | L13: 13.68 | M13: 14.86956522 | N13: 12.32608696 | O13: 12.7173913 | P13: 11.64130435 | R13: 0.9836956522 | S13: 1.016304348 | T13: 1.048913043 | U13: 1 | V13: 0.9510869565 | W13: 0.8260869565 | X13: 0.7065217391 | Y13: 0.6685082873 | Z13: 0.679144385 | AA13: 0.6839378238 | AB13: 0.722826087 | AC13: 0.76 | AD13: 0.8289473684 | AE13: 0.9153846154 | AF13: 1.06 | AG13: 1.06 | AH13: 1.06 | AI13: 1.06 | AJ13: 1.06 | AK13: 1.06 | AL13: 1.06 | AM13: =Y13*C13+($A$4-80)*AF13*$A$12/1000 -> 11.83695652 | AN13: =Z13*E13+($A$4-80)*AG13*$A$12/1000 -> 12.42391304 | AO13: =AA13*G13+($A$4-80)*AH13*$A$12/1000 -> 12.91304348 | AP13: =AB13*I13+($A$4-80)*AI13*$A$12/1000 -> 13.01086957 | AQ13: =AC13*K13+($A$4-80)*AJ13*$A$12/1000 -> 13.68 | AR13: =AD13*M13+($A$4-80)*AK13*$A$12/1000 -> 12.32608696 | AS13: =AE13*O13+($A$4-80)*AL13*$A$12/1000 -> 11.64130435
B14: 62 | C14: 17.51086957 | D14: 14.08695652 | E14: 17.70652174 | F14: 14.86956522 | G14: 17.90217391 | H14: 15.75 | I14: 16.72826087 | J14: 15.35869565 | K14: =V14*$K$13 -> 15.55434783 | L14: 15.06521739 | M14: 13.79347826 | N14: 13.40217391 | O14: 12.13043478 | P14: 11.83695652 | R14: 0.972826087 | S14: 0.9836956522 | T14: 0.9945652174 | U14: 0.9293478261 | V14: 0.8641304348 | W14: 0.7663043478 | X14: 0.6739130435 | Y14: 0.8044692737 | Z14: 0.8397790055 | AA14: 0.8797814208 | AB14: 0.918128655 | AC14: 0.9685534591 | AD14: 0.9716312057 | AE14: 0.9758064516 | AF14: 1.06 | AG14: 1.06 | AH14: 1.06 | AI14: 1.06 | AJ14: 1.06 | AK14: 1.06 | AL14: 1.06 | AM14: 14.08695652 | AN14: =Z14*E14+($A$4-80)*AG14*$A$12/1000 -> 14.86956522 | AO14: =AA14*G14+($A$4-80)*AH14*$A$12/1000 -> 15.75 | AP14: 15.35869565 | AQ14: 15.06521739 | AR14: 13.40217391 | AS14: 11.83695652
B15: 57 | C15: 15.75 | D15: 15.45652174 | E15: 16.33695652 | F15: 16.14130435 | G15: 16.92391304 | H15: 16.82608696 | I15: 15.94565217 | J15: 15.84782609 | K15: 14.86956522 | L15: 14.77173913 | M15: 13.20652174 | N15: 13.10869565 | O15: 11.54347826 | P15: 11.34782609 | R15: 0.875 | S15: 0.9076086957 | T15: 0.9402173913 | U15: 0.8858695652 | V15: 0.8260869565 | W15: 0.7336956522 | X15: 0.6413043478 | Y15: 0.9813664596 | Z15: 0.9880239521 | AA15: 0.9942196532 | AB15: 0.9938650307 | AC15: 0.9934210526 | AD15: 0.9925925926 | AE15: 0.9830508475 | AF15: 1.06 | AG15: 1.06 | AH15: 1.06 | AI15: 1.06 | AJ15: 1.06 | AK15: 1.06 | AL15: 1.06 | AM15: 15.45652174 | AN15: =Z15*E15+($A$4-80)*AG15*$A$12/1000 -> 16.14130435 | AO15: =AA15*G15+($A$4-80)*AH15*$A$12/1000 -> 16.82608696 | AP15: 15.84782609 | AQ15: 14.77173913 | AR15: 13.10869565 | AS15: 11.34782609
A16: 750 | B16: 72 | C16: 17.70652174 | D16: 9.782608696 | E16: 18.68478261 | F16: 10.27173913 | G16: 19.66304348 | H16: 10.76086957 | I16: 19.36956522 | J16: 11.15217391 | K16: 19.17391304 | L16: 11.44565217 | M16: 17.70652174 | N16: 11.05434783 | O16: 16.14130435 | P16: 10.56521739 | R16: 0.9836956522 | S16: 1.038043478 | T16: 1.092391304 | U16: 1.076086957 | V16: 1.065217391 | W16: 0.9836956522 | X16: 0.8967391304 | Y16: 0.5524861878 | Z16: 0.5497382199 | AA16: 0.5472636816 | AB16: 0.5757575758 | AC16: 0.5969387755 | AD16: 0.6243093923 | AE16: 0.6545454545 | AF16: 1.06 | AG16: 1.06 | AH16: 1.06 | AI16: 1.06 | AJ16: 1.06 | AK16: 1.06 | AL16: 1.06 | AM16: =Y16*C16+($A$4-80)*AF16*$A$16/1000 -> 9.782608696 | AN16: =Z16*E16+($A$4-80)*AG16*$A$16/1000 -> 10.27173913 | AO16: =AA16*G16+($A$4-80)*AH16*$A$16/1000 -> 10.76086957 | AP16: =AB16*I16+($A$4-80)*AI16*$A$16/1000 -> 11.15217391 | AQ16: =AC16*K16+($A$4-80)*AJ16*$A$16/1000 -> 11.44565217 | AR16: =AD16*M16+($A$4-80)*AK16*$A$16/1000 -> 11.05434783 | AS16: =AE16*O16+($A$4-80)*AL16*$A$16/1000 -> 10.56521739
B17: 67 | C17: 18 | D17: 12.32608696 | E17: 18.58695652 | F17: 13.01086957 | G17: 19.27173913 | H17: 13.69565217 | I17: 18.68478261 | J17: 14.18478261 | K17: 18.09782609 | L17: 14.67391304 | M17: 15.84782609 | N17: 14.08695652 | O17: 13.59782609 | P17: 13.5 | R17: 1 | S17: 1.032608696 | T17: 1.070652174 | U17: 1.038043478 | V17: 1.005434783 | W17: 0.8804347826 | X17: 0.7554347826 | Y17: 0.6847826087 | Z17: 0.7 | AA17: 0.7106598985 | AB17: 0.7591623037 | AC17: 0.8108108108 | AD17: 0.8888888889 | AE17: 0.9928057554 | AF17: 1.06 | AG17: 1.06 | AH17: 1.06 | AI17: 1.06 | AJ17: 1.06 | AK17: 1.06 | AL17: 1.06 | AM17: =Y17*C17+($A$4-80)*AF17*$A$16/1000 -> 12.32608696 | AN17: =Z17*E17+($A$4-80)*AG17*$A$16/1000 -> 13.01086957 | AO17: =AA17*G17+($A$4-80)*AH17*$A$16/1000 -> 13.69565217 | AP17: =AB17*I17+($A$4-80)*AI17*$A$16/1000 -> 14.18478261 | AQ17: =AC17*K17+($A$4-80)*AJ17*$A$16/1000 -> 14.67391304 | AR17: =AD17*M17+($A$4-80)*AK17*$A$16/1000 -> 14.08695652 | AS17: =AE17*O17+($A$4-80)*AL17*$A$16/1000 -> 13.5
B18: 62 | C18: 18 | D18: 14.86956522 | E18: 18.29347826 | F18: 16.04347826 | G18: 18.68478261 | H18: 17.11956522 | I18: 17.80434783 | J18: 17.02173913 | K18: 16.92391304 | L18: 16.82608696 | M18: 15.16304348 | N18: 15.06521739 | O18: 13.40217391 | P18: 13.20652174 | R18: 1 | S18: 1.016304348 | T18: 1.038043478 | U18: 0.9891304348 | V18: 0.9402173913 | W18: 0.8423913043 | X18: 0.7445652174 | Y18: 0.8260869565 | Z18: 0.8770053476 | AA18: 0.9162303665 | AB18: 0.956043956 | AC18: 0.9942196532 | AD18: 0.9935483871 | AE18: 0.9854014599 | AF18: 1.06 | AG18: 1.06 | AH18: 1.06 | AI18: 1.06 | AJ18: 1.06 | AK18: 1.06 | AL18: 1.06 | AM18: 14.86956522 | AN18: =Z18*E18+($A$4-80)*AG18*$A$16/1000 -> 16.04347826 | AO18: =AA18*G18+($A$4-80)*AH18*$A$16/1000 -> 17.11956522 | AP18: 17.02173913 | AQ18: 16.82608696 | AR18: 15.06521739 | AS18: 13.20652174
B19: 57 | C19: 15.26086957 | D19: 15.16304348 | E19: 16.63043478 | F19: 16.5326087 | G19: 18.09782609 | H19: 17.90217391 | I19: 17.2173913 | J19: 17.02173913 | K19: 16.23913043 | L19: 16.14130435 | M19: 14.38043478 | N19: 14.2826087 | O19: 12.42391304 | P19: 12.32608696 | R19: 0.847826087 | S19: 0.9239130435 | T19: 1.005434783 | U19: 0.9565217391 | V19: 0.902173913 | W19: 0.7989130435 | X19: 0.6902173913 | Y19: 0.9935897436 | Z19: 0.9941176471 | AA19: 0.9891891892 | AB19: 0.9886363636 | AC19: 0.9939759036 | AD19: 0.9931972789 | AE19: 0.9921259843 | AF19: 1.06 | AG19: 1.06 | AH19: 1.06 | AI19: 1.06 | AJ19: 1.06 | AK19: 1.06 | AL19: 1.06 | AM19: 15.16304348 | AN19: =Z19*E19+($A$4-80)*AG19*$A$16/1000 -> 16.5326087 | AO19: =AA19*G19+($A$4-80)*AH19*$A$16/1000 -> 17.90217391 | AP19: 17.02173913 | AQ19: 16.14130435 | AR19: 14.2826087 | AS19: 12.32608696

Sheet YCD_24 (hidden)
A2: YCD_24 | B2: 24
A3: Evaporator Air | C3: Condenser Entering Air Temperature ˚F
A4: 80 | B4: °F DB | C4: 55 | E4: 65 | G4: 75 | I4: 85 | K4: 95 | M4: 105 | O4: 115
A5: CFM | B5: EWB† ˚F | C5: Capacity Mbtuh | E5: Capacity Mbtuh | G5: Capacity Mbtuh | I5: Capacity Mbtuh | K5: Capacity Mbtuh | M5: Capacity Mbtuh | O5: Capacity Mbtuh
C6: Total | D6: Sens. | E6: Total | F6: Sens. | G6: Total | H6: Sens. | I6: Total | J6: Sens. | K6: Total | L6: Sens. | M6: Total | N6: Sens. | O6: Total | P6: Sens.
R7: Total Factors | Y7: Sens. % | AF7: IDB Adj | AM7: Sens Calc
A8: 600 | B8: 72 | C8: =R8*$K$13 -> 25.1659919 | D8: =IF(AM8>C8,C8,AM8) -> 12.72874494 | E8: =S8*$K$13 -> 25.45748988 | F8: =IF(AN8>E8,E8,AN8) -> 12.92307692 | G8: =T8*$K$13 -> 25.84615385 | H8: =IF(AO8>G8,G8,AO8) -> 13.02024291 | I8: =U8*$K$13 -> 25.06882591 | J8: =IF(AP8>I8,I8,AP8) -> 12.72874494 | K8: =V8*$K$13 -> 24.29149798 | L8: =IF(AQ8>K8,K8,AQ8) -> 12.43724696 | M8: =W8*$K$13 -> 21.95951417 | N8: =IF(AR8>M8,M8,AR8) -> 11.46558704 | O8: =X8*$K$13 -> 19.62753036 | P8: =IF(AS8>O8,O8,AS8) -> 10.59109312 | R8: 1.048582996 | S8: 1.060728745 | T8: 1.076923077 | U8: 1.044534413 | V8: 1.012145749 | W8: 0.9149797571 | X8: 0.8178137652 | Y8: 0.5057915058 | Z8: 0.5076335878 | AA8: 0.5037593985 | AB8: 0.507751938 | AC8: 0.512 | AD8: 0.5221238938 | AE8: 0.5396039604 | AF8: 1.06 | AG8: 1.06 | AH8: 1.06 | AI8: 1.06 | AJ8: 1.06 | AK8: 1.06 | AL8: 1.06 | AM8: =Y8*C8+($A$4-80)*AF8*$A$8/1000 -> 12.72874494 | AN8: =Z8*E8+($A$4-80)*AG8*$A$8/1000 -> 12.92307692 | AO8: =AA8*G8+($A$4-80)*AH8*$A$8/1000 -> 13.02024291 | AP8: =AB8*I8+($A$4-80)*AI8*$A$8/1000 -> 12.72874494 | AQ8: =AC8*K8+($A$4-80)*AJ8*$A$8/1000 -> 12.43724696 | AR8: =AD8*M8+($A$4-80)*AK8*$A$8/1000 -> 11.46558704 | AS8: =AE8*O8+($A$4-80)*AL8*$A$8/1000 -> 10.59109312
B9: 67 | C9: 24.97165992 | D9: 15.6437247 | E9: 24.68016194 | F9: =IF(AN9>E9,E9,AN9) -> 15.6437247 | G9: 24.29149798 | H9: =IF(AO9>G9,G9,AO9) -> 15.5465587 | I9: 23.02834008 | J9: =IF(AP9>I9,I9,AP9) -> 15.15789474 | K9: =V9*$K$13 -> 21.76518219 | L9: =IF(AQ9>K9,K9,AQ9) -> 14.67206478 | M9: 18.85020243 | N9: =IF(AR9>M9,M9,AR9) -> 13.50607287 | O9: 15.93522267 | P9: =IF(AS9>O9,O9,AS9) -> 12.34008097 | R9: 1.04048583 | S9: 1.028340081 | T9: 1.012145749 | U9: 0.95951417 | V9: 0.9068825911 | W9: 0.7854251012 | X9: 0.6639676113 | Y9: 0.626459144 | Z9: 0.6338582677 | AA9: 0.64 | AB9: 0.6582278481 | AC9: 0.6741071429 | AD9: 0.7164948454 | AE9: 0.7743902439 | AF9: 1.06 | AG9: 1.06 | AH9: 1.06 | AI9: 1.06 | AJ9: 1.06 | AK9: 1.06 | AL9: 1.06 | AM9: =Y9*C9+($A$4-80)*AF9*$A$8/1000 -> 15.6437247 | AN9: =Z9*E9+($A$4-80)*AG9*$A$8/1000 -> 15.6437247 | AO9: =AA9*G9+($A$4-80)*AH9*$A$8/1000 -> 15.5465587 | AP9: =AB9*I9+($A$4-80)*AI9*$A$8/1000 -> 15.15789474 | AQ9: =AC9*K9+($A$4-80)*AJ9*$A$8/1000 -> 14.67206478 | AR9: =AD9*M9+($A$4-80)*AK9*$A$8/1000 -> 13.50607287 | AS9: =AE9*O9+($A$4-80)*AL9*$A$8/1000 -> 12.34008097
B10: 62 | C10: 18.26720648 | D10: 17.87854251 | E10: 18.36437247 | F10: 17.9757085 | G10: 18.46153846 | H10: 18.07287449 | I10: 17.39271255 | J10: 17.00404858 | K10: =V10*$K$13 -> 16.42105263 | L10: 16.03238866 | M10: 15.15789474 | N10: 14.86639676 | O10: 13.99190283 | P10: 13.70040486 | R10: 0.7611336032 | S10: 0.7651821862 | T10: 0.7692307692 | U10: 0.7246963563 | V10: 0.6842105263 | W10: 0.6315789474 | X10: 0.5829959514 | Y10: 0.9787234043 | Z10: 0.9788359788 | AA10: 0.9789473684 | AB10: 0.9776536313 | AC10: 0.9763313609 | AD10: 0.9807692308 | AE10: 0.9791666667 | AF10: 1.06 | AG10: 1.06 | AH10: 1.06 | AI10: 1.06 | AJ10: 1.06 | AK10: 1.06 | AL10: 1.06 | AM10: 17.87854251 | AN10: =Z10*E10+($A$4-80)*AG10*$A$8/1000 -> 17.9757085 | AO10: =AA10*G10+($A$4-80)*AH10*$A$8/1000 -> 18.07287449 | AP10: 17.00404858 | AQ10: 16.03238866 | AR10: 14.86639676 | AS10: 13.70040486
B11: 57 | C11: 21.5708502 | D11: 21.08502024 | E11: 20.59919028 | F11: 20.11336032 | G11: 19.53036437 | H11: 19.1417004 | I11: 18.17004049 | J11: 17.78137652 | K11: =V11*$K$13 -> 16.8097166 | L11: 16.42105263 | M11: 15.06072874 | N11: 14.76923077 | O11: 13.40890688 | P11: 13.11740891 | R11: 0.8987854251 | S11: 0.8582995951 | T11: 0.8137651822 | U11: 0.7570850202 | V11: 0.7004048583 | W11: 0.6275303644 | X11: 0.5587044534 | Y11: 0.9774774775 | Z11: 0.9764150943 | AA11: 0.9800995025 | AB11: 0.9786096257 | AC11: 0.9768786127 | AD11: 0.9806451613 | AE11: 0.9782608696 | AF11: 1.06 | AG11: 1.06 | AH11: 1.06 | AI11: 1.06 | AJ11: 1.06 | AK11: 1.06 | AL11: 1.06 | AM11: 21.08502024 | AN11: =Z11*E11+($A$4-80)*AG11*$A$8/1000 -> 20.11336032 | AO11: =AA11*G11+($A$4-80)*AH11*$A$8/1000 -> 19.1417004 | AP11: =AB11*I11+($A$4-80)*AI11*$A$8/1000 -> 17.78137652 | AQ11: 16.42105263 | AR11: 14.76923077 | AS11: 13.11740891
A12: 800 | B12: 72 | C12: 25.45748988 | D12: 13.2145749 | E12: 25.84615385 | F12: 13.40890688 | G12: 26.23481781 | H12: 13.60323887 | I12: 25.55465587 | J12: 13.60323887 | K12: =V12*$K$13 -> 24.97165992 | L12: 13.60323887 | M12: 22.93117409 | N12: 12.92307692 | O12: 20.79352227 | P12: 12.24291498 | R12: 1.060728745 | S12: 1.076923077 | T12: 1.093117409 | U12: 1.064777328 | V12: 1.04048583 | W12: 0.955465587 | X12: 0.8663967611 | Y12: 0.5190839695 | Z12: 0.5187969925 | AA12: 0.5185185185 | AB12: 0.5323193916 | AC12: 0.5447470817 | AD12: 0.563559322 | AE12: 0.5887850467 | AF12: 1.06 | AG12: 1.06 | AH12: 1.06 | AI12: 1.06 | AJ12: 1.06 | AK12: 1.06 | AL12: 1.06 | AM12: =Y12*C12+($A$4-80)*AF12*$A$12/1000 -> 13.2145749 | AN12: =Z12*E12+($A$4-80)*AG12*$A$12/1000 -> 13.40890688 | AO12: =AA12*G12+($A$4-80)*AH12*$A$12/1000 -> 13.60323887 | AP12: =AB12*I12+($A$4-80)*AI12*$A$12/1000 -> 13.60323887 | AQ12: =AC12*K12+($A$4-80)*AJ12*$A$12/1000 -> 13.60323887 | AR12: =AD12*M12+($A$4-80)*AK12*$A$12/1000 -> 12.92307692 | AS12: =AE12*O12+($A$4-80)*AL12*$A$12/1000 -> 12.24291498
B13: 67 | C13: 25.45748988 | D13: 16.51821862 | E13: 25.26315789 | F13: 16.61538462 | G13: 25.1659919 | H13: 16.8097166 | I13: 24 | J13: 16.90688259 | K13: =B2 -> 24 | L13: 17.69491525 | M13: 20.01619433 | N13: 15.83805668 | O13: 17.19838057 | P13: 14.67206478 | R13: 1.060728745 | S13: 1.052631579 | T13: 1.048582996 | U13: 1 | V13: 0.955465587 | W13: 0.8340080972 | X13: 0.7165991903 | Y13: 0.6488549618 | Z13: 0.6576923077 | AA13: 0.667953668 | AB13: 0.7044534413 | AC13: 0.7372881356 | AD13: 0.7912621359 | AE13: 0.8531073446 | AF13: 1.06 | AG13: 1.06 | AH13: 1.06 | AI13: 1.06 | AJ13: 1.06 | AK13: 1.06 | AL13: 1.06 | AM13: =Y13*C13+($A$4-80)*AF13*$A$12/1000 -> 16.51821862 | AN13: =Z13*E13+($A$4-80)*AG13*$A$12/1000 -> 16.61538462 | AO13: =AA13*G13+($A$4-80)*AH13*$A$12/1000 -> 16.8097166 | AP13: =AB13*I13+($A$4-80)*AI13*$A$12/1000 -> 16.90688259 | AQ13: =AC13*K13+($A$4-80)*AJ13*$A$12/1000 -> 17.69491525 | AR13: =AD13*M13+($A$4-80)*AK13*$A$12/1000 -> 15.83805668 | AS13: =AE13*O13+($A$4-80)*AL13*$A$12/1000 -> 14.67206478
B14: 62 | C14: 19.1417004 | D14: 18.65587045 | E14: 19.62753036 | F14: 19.2388664 | G14: 20.21052632 | H14: 19.82186235 | I14: 19.53036437 | J14: 19.04453441 | K14: =V14*$K$13 -> 18.75303644 | L14: 18.36437247 | M14: 17.29554656 | N14: 16.90688259 | O14: 15.83805668 | P14: 15.44939271 | R14: 0.7975708502 | S14: 0.8178137652 | T14: 0.8421052632 | U14: 0.8137651822 | V14: 0.7813765182 | W14: 0.7206477733 | X14: 0.6599190283 | Y14: 0.9746192893 | Z14: 0.9801980198 | AA14: 0.9807692308 | AB14: 0.9751243781 | AC14: 0.9792746114 | AD14: 0.9775280899 | AE14: 0.9754601227 | AF14: 1.06 | AG14: 1.06 | AH14: 1.06 | AI14: 1.06 | AJ14: 1.06 | AK14: 1.06 | AL14: 1.06 | AM14: 18.65587045 | AN14: =Z14*E14+($A$4-80)*AG14*$A$12/1000 -> 19.2388664 | AO14: =AA14*G14+($A$4-80)*AH14*$A$12/1000 -> 19.82186235 | AP14: 19.04453441 | AQ14: 18.36437247 | AR14: 16.90688259 | AS14: 15.44939271
B15: 57 | C15: 22.44534413 | D15: 21.95951417 | E15: 21.76518219 | F15: 21.27935223 | G15: 21.18218623 | H15: 20.69635628 | I15: 20.01619433 | J15: 19.53036437 | K15: 18.85020243 | L15: 18.36437247 | M15: 16.90688259 | N15: 16.51821862 | O15: 15.06072874 | P15: 14.67206478 | R15: 0.9352226721 | S15: 0.9068825911 | T15: 0.8825910931 | U15: 0.8340080972 | V15: 0.7854251012 | W15: 0.7044534413 | X15: 0.6275303644 | Y15: 0.9783549784 | Z15: 0.9776785714 | AA15: 0.9770642202 | AB15: 0.9757281553 | AC15: 0.9742268041 | AD15: 0.9770114943 | AE15: 0.9741935484 | AF15: 1.06 | AG15: 1.06 | AH15: 1.06 | AI15: 1.06 | AJ15: 1.06 | AK15: 1.06 | AL15: 1.06 | AM15: 21.95951417 | AN15: =Z15*E15+($A$4-80)*AG15*$A$12/1000 -> 21.27935223 | AO15: =AA15*G15+($A$4-80)*AH15*$A$12/1000 -> 20.69635628 | AP15: 19.53036437 | AQ15: 18.36437247 | AR15: 16.51821862 | AS15: 14.67206478
A16: 1000 | B16: 72 | C16: 25.74898785 | D16: 13.60323887 | E16: 26.13765182 | F16: 13.89473684 | G16: 26.52631579 | H16: 14.18623482 | I16: 26.13765182 | J16: 14.47773279 | K16: 25.65182186 | L16: 14.76923077 | M16: 23.80566802 | N16: 14.3805668 | O16: 21.86234818 | P16: 13.99190283 | R16: 1.072874494 | S16: 1.089068826 | T16: 1.105263158 | U16: 1.089068826 | V16: 1.068825911 | W16: 0.991902834 | X16: 0.9109311741 | Y16: 0.5283018868 | Z16: 0.531598513 | AA16: 0.5347985348 | AB16: 0.5539033457 | AC16: 0.5757575758 | AD16: 0.6040816327 | AE16: 0.64 | AF16: 1.06 | AG16: 1.06 | AH16: 1.06 | AI16: 1.06 | AJ16: 1.06 | AK16: 1.06 | AL16: 1.06 | AM16: =Y16*C16+($A$4-80)*AF16*$A$16/1000 -> 13.60323887 | AN16: =Z16*E16+($A$4-80)*AG16*$A$16/1000 -> 13.89473684 | AO16: =AA16*G16+($A$4-80)*AH16*$A$16/1000 -> 14.18623482 | AP16: =AB16*I16+($A$4-80)*AI16*$A$16/1000 -> 14.47773279 | AQ16: =AC16*K16+($A$4-80)*AJ16*$A$16/1000 -> 14.76923077 | AR16: =AD16*M16+($A$4-80)*AK16*$A$16/1000 -> 14.3805668 | AS16: =AE16*O16+($A$4-80)*AL16*$A$16/1000 -> 13.99190283
B17: 67 | C17: 25.94331984 | D17: 17.29554656 | E17: 25.94331984 | F17: 17.68421053 | G17: 25.94331984 | H17: 18.07287449 | I17: 25.06882591 | J17: 18.55870445 | K17: 24.09716599 | L17: 19.1417004 | M17: 21.27935223 | N17: 18.07287449 | O17: 18.36437247 | P17: 17.00404858 | R17: 1.08097166 | S17: 1.08097166 | T17: 1.08097166 | U17: 1.044534413 | V17: 1.004048583 | W17: 0.8866396761 | X17: 0.7651821862 | Y17: 0.6666666667 | Z17: 0.6816479401 | AA17: 0.6966292135 | AB17: 0.7403100775 | AC17: 0.7943548387 | AD17: 0.8493150685 | AE17: 0.9259259259 | AF17: 1.06 | AG17: 1.06 | AH17: 1.06 | AI17: 1.06 | AJ17: 1.06 | AK17: 1.06 | AL17: 1.06 | AM17: =Y17*C17+($A$4-80)*AF17*$A$16/1000 -> 17.29554656 | AN17: =Z17*E17+($A$4-80)*AG17*$A$16/1000 -> 17.68421053 | AO17: =AA17*G17+($A$4-80)*AH17*$A$16/1000 -> 18.07287449 | AP17: =AB17*I17+($A$4-80)*AI17*$A$16/1000 -> 18.55870445 | AQ17: =AC17*K17+($A$4-80)*AJ17*$A$16/1000 -> 19.1417004 | AR17: =AD17*M17+($A$4-80)*AK17*$A$16/1000 -> 18.07287449 | AS17: =AE17*O17+($A$4-80)*AL17*$A$16/1000 -> 17.00404858
B18: 62 | C18: 19.91902834 | D18: 19.53036437 | E18: 20.98785425 | F18: 20.50202429 | G18: 21.95951417 | H18: 21.47368421 | I18: 21.5708502 | J18: 21.08502024 | K18: 21.08502024 | L18: 20.59919028 | M18: 19.43319838 | N18: 18.94736842 | O18: 17.68421053 | P18: 17.29554656 | R18: 0.8299595142 | S18: 0.8744939271 | T18: 0.9149797571 | U18: 0.8987854251 | V18: 0.8785425101 | W18: 0.8097165992 | X18: 0.7368421053 | Y18: 0.9804878049 | Z18: 0.9768518519 | AA18: 0.9778761062 | AB18: 0.9774774775 | AC18: 0.9769585253 | AD18: 0.975 | AE18: 0.978021978 | AF18: 1.06 | AG18: 1.06 | AH18: 1.06 | AI18: 1.06 | AJ18: 1.06 | AK18: 1.06 | AL18: 1.06 | AM18: 19.53036437 | AN18: =Z18*E18+($A$4-80)*AG18*$A$16/1000 -> 20.50202429 | AO18: =AA18*G18+($A$4-80)*AH18*$A$16/1000 -> 21.47368421 | AP18: 21.08502024 | AQ18: 20.59919028 | AR18: 18.94736842 | AS18: 17.29554656
B19: 57 | C19: 23.31983806 | D19: 22.8340081 | E19: 23.02834008 | F19: 22.54251012 | G19: 22.73684211 | H19: 22.25101215 | I19: 21.76518219 | J19: 21.27935223 | K19: 20.89068826 | L19: 20.4048583 | M19: 18.75303644 | N19: 18.36437247 | O19: 16.71255061 | P19: 16.32388664 | R19: 0.971659919 | S19: 0.95951417 | T19: 0.9473684211 | U19: 0.9068825911 | V19: 0.8704453441 | W19: 0.7813765182 | X19: 0.6963562753 | Y19: 0.9791666667 | Z19: 0.9789029536 | AA19: 0.9786324786 | AB19: 0.9776785714 | AC19: 0.976744186 | AD19: 0.9792746114 | AE19: 0.976744186 | AF19: 1.06 | AG19: 1.06 | AH19: 1.06 | AI19: 1.06 | AJ19: 1.06 | AK19: 1.06 | AL19: 1.06 | AM19: 22.8340081 | AN19: =Z19*E19+($A$4-80)*AG19*$A$16/1000 -> 22.54251012 | AO19: =AA19*G19+($A$4-80)*AH19*$A$16/1000 -> 22.25101215 | AP19: 21.27935223 | AQ19: 20.4048583 | AR19: 18.36437247 | AS19: 16.32388664

Sheet YCD_30 (hidden)
A2: YCD_30
A3: Evaporator Air | C3: Condenser Entering Air Temperature ˚F
A4: 80 | B4: °F DB | C4: 55 | E4: 65 | G4: 75 | I4: 85 | K4: 95 | M4: 105 | O4: 115
A5: CFM | B5: EWB† ˚F | C5: Capacity Mbtuh | E5: Capacity Mbtuh | G5: Capacity Mbtuh | I5: Capacity Mbtuh | K5: Capacity Mbtuh | M5: Capacity Mbtuh | O5: Capacity Mbtuh
C6: Total | D6: Sens. | E6: Total | F6: Sens. | G6: Total | H6: Sens. | I6: Total | J6: Sens. | K6: Total | L6: Sens. | M6: Total | N6: Sens. | O6: Total | P6: Sens.
R7: Total Factors | Y7: Sens. % | AF7: IDB Adj | AM7: Sens Calc
A8: 800 | B8: 72 | C8: =R8*$K$13 -> 0 | D8: =IF(AM8>C8,C8,AM8) -> 0 | E8: =S8*$K$13 -> 0 | F8: =IF(AN8>E8,E8,AN8) -> 0 | G8: =T8*$K$13 -> 0 | H8: =IF(AO8>G8,G8,AO8) -> 0 | I8: =U8*$K$13 -> 0 | J8: =IF(AP8>I8,I8,AP8) -> 0 | K8: =V8*$K$13 -> 0 | L8: =IF(AQ8>K8,K8,AQ8) -> 0 | M8: =W8*$K$13 -> 0 | N8: =IF(AR8>M8,M8,AR8) -> 0 | O8: =X8*$K$13 -> 0 | P8: =IF(AS8>O8,O8,AS8) -> 0 | R8: 1.091205212 | S8: 1.094462541 | T8: 1.100977199 | U8: 1.058631922 | V8: 1.019543974 | W8: 0.9250814332 | X8: 0.8306188925 | Y8: 0.4776119403 | Z8: 0.4791666667 | AA8: 0.4763313609 | AB8: 0.4892307692 | AC8: 0.4984025559 | AD8: 0.514084507 | AE8: 0.5333333333 | AF8: 1.06 | AG8: 1.06 | AH8: 1.06 | AI8: 1.06 | AJ8: 1.06 | AK8: 1.06 | AL8: 1.06 | AM8: =Y8*C8+($A$4-80)*AF8*$A$8/1000 -> 0 | AN8: =Z8*E8+($A$4-80)*AG8*$A$8/1000 -> 0 | AO8: =AA8*G8+($A$4-80)*AH8*$A$8/1000 -> 0 | AP8: =AB8*I8+($A$4-80)*AI8*$A$8/1000 -> 0 | AQ8: =AC8*K8+($A$4-80)*AJ8*$A$8/1000 -> 0 | AR8: =AD8*M8+($A$4-80)*AK8*$A$8/1000 -> 0 | AS8: =AE8*O8+($A$4-80)*AL8*$A$8/1000 -> 0
B9: 67 | C9: 0 | D9: 0 | E9: 0 | F9: =IF(AN9>E9,E9,AN9) -> 0 | G9: 0 | H9: =IF(AO9>G9,G9,AO9) -> 0 | I9: 0 | J9: =IF(AP9>I9,I9,AP9) -> 0 | K9: =V9*$K$13 -> 0 | L9: =IF(AQ9>K9,K9,AQ9) -> 0 | M9: 0 | N9: =IF(AR9>M9,M9,AR9) -> 0 | O9: 0 | P9: =IF(AS9>O9,O9,AS9) -> 0 | R9: 1.068403909 | S9: 1.052117264 | T9: 1.035830619 | U9: 0.9739413681 | V9: 0.9153094463 | W9: 0.8045602606 | X9: 0.6970684039 | Y9: 0.612804878 | Z9: 0.6253869969 | AA9: 0.6352201258 | AB9: 0.6555183946 | AC9: 0.6797153025 | AD9: 0.7246963563 | AE9: 0.7803738318 | AF9: 1.06 | AG9: 1.06 | AH9: 1.06 | AI9: 1.06 | AJ9: 1.06 | AK9: 1.06 | AL9: 1.06 | AM9: =Y9*C9+($A$4-80)*AF9*$A$8/1000 -> 0 | AN9: =Z9*E9+($A$4-80)*AG9*$A$8/1000 -> 0 | AO9: =AA9*G9+($A$4-80)*AH9*$A$8/1000 -> 0 | AP9: =AB9*I9+($A$4-80)*AI9*$A$8/1000 -> 0 | AQ9: =AC9*K9+($A$4-80)*AJ9*$A$8/1000 -> 0 | AR9: =AD9*M9+($A$4-80)*AK9*$A$8/1000 -> 0 | AS9: =AE9*O9+($A$4-80)*AL9*$A$8/1000 -> 0
B10: 62 | C10: 0 | D10: 0 | E10: 0 | F10: 0 | G10: 0 | H10: 0 | I10: 0 | J10: 0 | K10: =V10*$K$13 -> 0 | L10: 0 | M10: 0 | N10: 0 | O10: 0 | P10: 0 | R10: 1.022801303 | S10: 0.990228013 | T10: 0.9576547231 | U10: 0.8697068404 | V10: 0.7785016287 | W10: 0.7003257329 | X10: 0.6188925081 | Y10: 0.7643312102 | Z10: 0.7927631579 | AA10: 0.8231292517 | AB10: 0.8576779026 | AC10: 0.9037656904 | AD10: 0.911627907 | AE10: 0.9315789474 | AF10: 1.06 | AG10: 1.06 | AH10: 1.06 | AI10: 1.06 | AJ10: 1.06 | AK10: 1.06 | AL10: 1.06 | AM10: 0 | AN10: =Z10*E10+($A$4-80)*AG10*$A$8/1000 -> 0 | AO10: =AA10*G10+($A$4-80)*AH10*$A$8/1000 -> 0 | AP10: 0 | AQ10: 0 | AR10: 0 | AS10: 0
B11: 57 | C11: 0 | D11: 0 | E11: 0 | F11: 0 | G11: 0 | H11: 0 | I11: 0 | J11: 0 | K11: =V11*$K$13 -> 0 | L11: 0 | M11: 0 | N11: 0 | O11: 0 | P11: 0 | R11: 0.9348534202 | S11: 0.9022801303 | T11: 0.8697068404 | U11: 0.8045602606 | V11: 0.7394136808 | W11: 0.671009772 | X11: 0.6026058632 | Y11: 0.9268292683 | Z11: 0.9277978339 | AA11: 0.9288389513 | AB11: 0.9271255061 | AC11: 0.9295154185 | AD11: 0.927184466 | AE11: 0.9243243243 | AF11: 1.06 | AG11: 1.06 | AH11: 1.06 | AI11: 1.06 | AJ11: 1.06 | AK11: 1.06 | AL11: 1.06 | AM11: 0 | AN11: =Z11*E11+($A$4-80)*AG11*$A$8/1000 -> 0 | AO11: =AA11*G11+($A$4-80)*AH11*$A$8/1000 -> 0 | AP11: =AB11*I11+($A$4-80)*AI11*$A$8/1000 -> 0 | AQ11: 0 | AR11: 0 | AS11: 0
A12: 1000 | B12: 72 | C12: 0 | D12: 0 | E12: 0 | F12: 0 | G12: 0 | H12: 0 | I12: 0 | J12: 0 | K12: =V12*$K$13 -> 0 | L12: 0 | M12: 0 | N12: 0 | O12: 0 | P12: 0 | R12: 1.09771987 | S12: 1.107491857 | T12: 1.114006515 | U12: 1.074918567 | V12: 1.039087948 | W12: 0.9478827362 | X12: 0.8599348534 | Y12: 0.4955489614 | Z12: 0.4941176471 | AA12: 0.4970760234 | AB12: 0.5121212121 | AC12: 0.5297805643 | AD12: 0.5498281787 | AE12: 0.571969697 | AF12: 1.06 | AG12: 1.06 | AH12: 1.06 | AI12: 1.06 | AJ12: 1.06 | AK12: 1.06 | AL12: 1.06 | AM12: =Y12*C12+($A$4-80)*AF12*$A$12/1000 -> 0 | AN12: =Z12*E12+($A$4-80)*AG12*$A$12/1000 -> 0 | AO12: =AA12*G12+($A$4-80)*AH12*$A$12/1000 -> 0 | AP12: =AB12*I12+($A$4-80)*AI12*$A$12/1000 -> 0 | AQ12: =AC12*K12+($A$4-80)*AJ12*$A$12/1000 -> 0 | AR12: =AD12*M12+($A$4-80)*AK12*$A$12/1000 -> 0 | AS12: =AE12*O12+($A$4-80)*AL12*$A$12/1000 -> 0
B13: 67 | C13: 0 | D13: 0 | E13: 0 | F13: 0 | G13: 0 | H13: 0 | I13: 0 | J13: 0 | K13: =B2 -> 0 | L13: 0 | M13: 0 | N13: 0 | O13: 0 | P13: 0 | R13: 1.078175896 | S13: 1.06514658 | T13: 1.055374593 | U13: 1 | V13: 0.9446254072 | W13: 0.8371335505 | X13: 0.7296416938 | Y13: 0.6314199396 | Z13: 0.6513761468 | AA13: 0.6697530864 | AB13: 0.7003257329 | AC13: 0.7310344828 | AD13: 0.7859922179 | AE13: 0.8526785714 | AF13: 1.06 | AG13: 1.06 | AH13: 1.06 | AI13: 1.06 | AJ13: 1.06 | AK13: 1.06 | AL13: 1.06 | AM13: =Y13*C13+($A$4-80)*AF13*$A$12/1000 -> 0 | AN13: =Z13*E13+($A$4-80)*AG13*$A$12/1000 -> 0 | AO13: =AA13*G13+($A$4-80)*AH13*$A$12/1000 -> 0 | AP13: =AB13*I13+($A$4-80)*AI13*$A$12/1000 -> 0 | AQ13: =AC13*K13+($A$4-80)*AJ13*$A$12/1000 -> 0 | AR13: =AD13*M13+($A$4-80)*AK13*$A$12/1000 -> 0 | AS13: =AE13*O13+($A$4-80)*AL13*$A$12/1000 -> 0
B14: 62 | C14: 0 | D14: 0 | E14: 0 | F14: 0 | G14: 0 | H14: 0 | I14: 0 | J14: 0 | K14: =V14*$K$13 -> 0 | L14: 0 | M14: 0 | N14: 0 | O14: 0 | P14: 0 | R14: 1.03257329 | S14: 1.009771987 | T14: 0.986970684 | U14: 0.9055374593 | V14: 0.8273615635 | W14: 0.7426710098 | X14: 0.654723127 | Y14: 0.7981072555 | Z14: 0.8322580645 | AA14: 0.8712871287 | AB14: 0.8920863309 | AC14: 0.9173228346 | AD14: 0.9210526316 | AE14: 0.9303482587 | AF14: 1.06 | AG14: 1.06 | AH14: 1.06 | AI14: 1.06 | AJ14: 1.06 | AK14: 1.06 | AL14: 1.06 | AM14: 0 | AN14: =Z14*E14+($A$4-80)*AG14*$A$12/1000 -> 0 | AO14: =AA14*G14+($A$4-80)*AH14*$A$12/1000 -> 0 | AP14: 0 | AQ14: 0 | AR14: 0 | AS14: 0
B15: 57 | C15: 0 | D15: 0 | E15: 0 | F15: 0 | G15: 0 | H15: 0 | I15: 0 | J15: 0 | K15: 0 | L15: 0 | M15: 0 | N15: 0 | O15: 0 | P15: 0 | R15: 0.9478827362 | S15: 0.9250814332 | T15: 0.9022801303 | U15: 0.8534201954 | V15: 0.8045602606 | W15: 0.7296416938 | X15: 0.657980456 | Y15: 0.9278350515 | Z15: 0.9295774648 | AA15: 0.9277978339 | AB15: 0.927480916 | AC15: 0.9271255061 | AD15: 0.9285714286 | AE15: 0.9257425743 | AF15: 1.06 | AG15: 1.06 | AH15: 1.06 | AI15: 1.06 | AJ15: 1.06 | AK15: 1.06 | AL15: 1.06 | AM15: 0 | AN15: =Z15*E15+($A$4-80)*AG15*$A$12/1000 -> 0 | AO15: =AA15*G15+($A$4-80)*AH15*$A$12/1000 -> 0 | AP15: 0 | AQ15: 0 | AR15: 0 | AS15: 0
A16: 1200 | B16: 72 | C16: 0 | D16: 0 | E16: 0 | F16: 0 | G16: 0 | H16: 0 | I16: 0 | J16: 0 | K16: 0 | L16: 0 | M16: 0 | N16: 0 | O16: 0 | P16: 0 | R16: 1.107491857 | S16: 1.117263844 | T16: 1.127035831 | U16: 1.094462541 | V16: 1.058631922 | W16: 0.9739413681 | X16: 0.8892508143 | Y16: 0.5117647059 | Z16: 0.5131195335 | AA16: 0.5144508671 | AB16: 0.5357142857 | AC16: 0.5569230769 | AD16: 0.5819397993 | AE16: 0.6117216117 | AF16: 1.06 | AG16: 1.06 | AH16: 1.06 | AI16: 1.06 | AJ16: 1.06 | AK16: 1.06 | AL16: 1.06 | AM16: =Y16*C16+($A$4-80)*AF16*$A$16/1000 -> 0 | AN16: =Z16*E16+($A$4-80)*AG16*$A$16/1000 -> 0 | AO16: =AA16*G16+($A$4-80)*AH16*$A$16/1000 -> 0 | AP16: =AB16*I16+($A$4-80)*AI16*$A$16/1000 -> 0 | AQ16: =AC16*K16+($A$4-80)*AJ16*$A$16/1000 -> 0 | AR16: =AD16*M16+($A$4-80)*AK16*$A$16/1000 -> 0 | AS16: =AE16*O16+($A$4-80)*AL16*$A$16/1000 -> 0
B17: 67 | C17: 0 | D17: 0 | E17: 0 | F17: 0 | G17: 0 | H17: 0 | I17: 0 | J17: 0 | K17: 0 | L17: 0 | M17: 0 | N17: 0 | O17: 0 | P17: 0 | R17: 1.087947883 | S17: 1.081433225 | T17: 1.074918567 | U17: 1.026058632 | V17: 0.9739413681 | W17: 0.8697068404 | X17: 0.7654723127 | Y17: 0.6497005988 | Z17: 0.6746987952 | AA17: 0.703030303 | AB17: 0.7396825397 | AC17: 0.779264214 | AD17: 0.8389513109 | AE17: 0.914893617 | AF17: 1.06 | AG17: 1.06 | AH17: 1.06 | AI17: 1.06 | AJ17: 1.06 | AK17: 1.06 | AL17: 1.06 | AM17: =Y17*C17+($A$4-80)*AF17*$A$16/1000 -> 0 | AN17: =Z17*E17+($A$4-80)*AG17*$A$16/1000 -> 0 | AO17: =AA17*G17+($A$4-80)*AH17*$A$16/1000 -> 0 | AP17: =AB17*I17+($A$4-80)*AI17*$A$16/1000 -> 0 | AQ17: =AC17*K17+($A$4-80)*AJ17*$A$16/1000 -> 0 | AR17: =AD17*M17+($A$4-80)*AK17*$A$16/1000 -> 0 | AS17: =AE17*O17+($A$4-80)*AL17*$A$16/1000 -> 0
B18: 62 | C18: 0 | D18: 0 | E18: 0 | F18: 0 | G18: 0 | H18: 0 | I18: 0 | J18: 0 | K18: 0 | L18: 0 | M18: 0 | N18: 0 | O18: 0 | P18: 0 | R18: 1.042345277 | S18: 1.029315961 | T18: 1.013029316 | U18: 0.9446254072 | V18: 0.8762214984 | W18: 0.7817589577 | X18: 0.6905537459 | Y18: 0.828125 | Z18: 0.8734177215 | AA18: 0.9196141479 | AB18: 0.924137931 | AC18: 0.9293680297 | AD18: 0.9291666667 | AE18: 0.929245283 | AF18: 1.06 | AG18: 1.06 | AH18: 1.06 | AI18: 1.06 | AJ18: 1.06 | AK18: 1.06 | AL18: 1.06 | AM18: 0 | AN18: =Z18*E18+($A$4-80)*AG18*$A$16/1000 -> 0 | AO18: =AA18*G18+($A$4-80)*AH18*$A$16/1000 -> 0 | AP18: 0 | AQ18: 0 | AR18: 0 | AS18: 0
B19: 57 | C19: 0 | D19: 0 | E19: 0 | F19: 0 | G19: 0 | H19: 0 | I19: 0 | J19: 0 | K19: 0 | L19: 0 | M19: 0 | N19: 0 | O19: 0 | P19: 0 | R19: 0.9609120521 | S19: 0.9478827362 | T19: 0.9348534202 | U19: 0.9022801303 | V19: 0.8697068404 | W19: 0.7915309446 | X19: 0.7133550489 | Y19: 0.9288135593 | Z19: 0.9278350515 | AA19: 0.9268292683 | AB19: 0.9277978339 | AC19: 0.9288389513 | AD19: 0.9300411523 | AE19: 0.9269406393 | AF19: 1.06 | AG19: 1.06 | AH19: 1.06 | AI19: 1.06 | AJ19: 1.06 | AK19: 1.06 | AL19: 1.06 | AM19: 0 | AN19: =Z19*E19+($A$4-80)*AG19*$A$16/1000 -> 0 | AO19: =AA19*G19+($A$4-80)*AH19*$A$16/1000 -> 0 | AP19: 0 | AQ19: 0 | AR19: 0 | AS19: 0

Sheet YCD_36 (hidden)
A2: YCD_36 | B2: 36
A3: Evaporator Air | C3: Condenser Entering Air Temperature ˚F
A4: 80 | B4: °F DB | C4: 55 | E4: 65 | G4: 75 | I4: 85 | K4: 95 | M4: 105 | O4: 115
A5: CFM | B5: EWB† ˚F | C5: Capacity Mbtuh | E5: Capacity Mbtuh | G5: Capacity Mbtuh | I5: Capacity Mbtuh | K5: Capacity Mbtuh | M5: Capacity Mbtuh | O5: Capacity Mbtuh
C6: Total | D6: Sens. | E6: Total | F6: Sens. | G6: Total | H6: Sens. | I6: Total | J6: Sens. | K6: Total | L6: Sens. | M6: Total | N6: Sens. | O6: Total | P6: Sens.
R7: Total Factors | Y7: Sens. % | AF7: IDB Adj | AM7: Sens Calc
A8: 1000 | B8: 72 | C8: =R8*$K$13 -> 39.42857143 | D8: =IF(AM8>C8,C8,AM8) -> 18.85714286 | E8: =S8*$K$13 -> 38.62184874 | F8: =IF(AN8>E8,E8,AN8) -> 19.05882353 | G8: =T8*$K$13 -> 37.81512605 | H8: =IF(AO8>G8,G8,AO8) -> 19.2605042 | I8: =U8*$K$13 -> 36.60504202 | J8: =IF(AP8>I8,I8,AP8) -> 18.85714286 | K8: =V8*$K$13 -> 35.39495798 | L8: =IF(AQ8>K8,K8,AQ8) -> 18.55462185 | M8: =W8*$K$13 -> 33.37815126 | N8: =IF(AR8>M8,M8,AR8) -> 17.54621849 | O8: =X8*$K$13 -> 31.36134454 | P8: =IF(AS8>O8,O8,AS8) -> 16.63865546 | R8: 1.095238095 | S8: 1.072829132 | T8: 1.050420168 | U8: 1.016806723 | V8: 0.9831932773 | W8: 0.9271708683 | X8: 0.8711484594 | Y8: 0.4782608696 | Z8: 0.4934725849 | AA8: 0.5093333333 | AB8: 0.5151515152 | AC8: 0.5242165242 | AD8: 0.5256797583 | AE8: 0.5305466238 | AF8: 1.06 | AG8: 1.06 | AH8: 1.06 | AI8: 1.06 | AJ8: 1.06 | AK8: 1.06 | AL8: 1.06 | AM8: =Y8*C8+($A$4-80)*AF8*$A$8/1000 -> 18.85714286 | AN8: =Z8*E8+($A$4-80)*AG8*$A$8/1000 -> 19.05882353 | AO8: =AA8*G8+($A$4-80)*AH8*$A$8/1000 -> 19.2605042 | AP8: =AB8*I8+($A$4-80)*AI8*$A$8/1000 -> 18.85714286 | AQ8: =AC8*K8+($A$4-80)*AJ8*$A$8/1000 -> 18.55462185 | AR8: =AD8*M8+($A$4-80)*AK8*$A$8/1000 -> 17.54621849 | AS8: =AE8*O8+($A$4-80)*AL8*$A$8/1000 -> 16.63865546
B9: 67 | C9: 36.60504202 | D9: 23.39495798 | E9: 37.00840336 | F9: =IF(AN9>E9,E9,AN9) -> 23.89915966 | G9: 37.31092437 | H9: =IF(AO9>G9,G9,AO9) -> 24.30252101 | I9: 35.79831933 | J9: =IF(AP9>I9,I9,AP9) -> 24.10084034 | K9: =V9*$K$13 -> 34.38655462 | L9: =IF(AQ9>K9,K9,AQ9) -> 23.79831933 | M9: 30.85714286 | N9: =IF(AR9>M9,M9,AR9) -> 22.58823529 | O9: 27.32773109 | P9: =IF(AS9>O9,O9,AS9) -> 21.27731092 | R9: 1.016806723 | S9: 1.028011204 | T9: 1.036414566 | U9: 0.9943977591 | V9: 0.9551820728 | W9: 0.8571428571 | X9: 0.7591036415 | Y9: 0.6391184573 | Z9: 0.6457765668 | AA9: 0.6513513514 | AB9: 0.6732394366 | AC9: 0.6920821114 | AD9: 0.7320261438 | AE9: 0.778597786 | AF9: 1.06 | AG9: 1.06 | AH9: 1.06 | AI9: 1.06 | AJ9: 1.06 | AK9: 1.06 | AL9: 1.06 | AM9: =Y9*C9+($A$4-80)*AF9*$A$8/1000 -> 23.39495798 | AN9: =Z9*E9+($A$4-80)*AG9*$A$8/1000 -> 23.89915966 | AO9: =AA9*G9+($A$4-80)*AH9*$A$8/1000 -> 24.30252101 | AP9: =AB9*I9+($A$4-80)*AI9*$A$8/1000 -> 24.10084034 | AQ9: =AC9*K9+($A$4-80)*AJ9*$A$8/1000 -> 23.79831933 | AR9: =AD9*M9+($A$4-80)*AK9*$A$8/1000 -> 22.58823529 | AS9: =AE9*O9+($A$4-80)*AL9*$A$8/1000 -> 21.27731092
B10: 62 | C10: 36.40336134 | D10: 27.52941176 | E10: 35.79831933 | F10: 28.63865546 | G10: 35.09243697 | H10: 29.8487395 | I10: 32.47058824 | J10: 28.94117647 | K10: =V10*$K$13 -> 29.74789916 | L10: 28.03361345 | M10: 26.42016807 | N10: 25.81512605 | O10: 22.99159664 | P10: 22.99159664 | R10: 1.011204482 | S10: 0.9943977591 | T10: 0.974789916 | U10: 0.9019607843 | V10: 0.8263305322 | W10: 0.7338935574 | X10: 0.6386554622 | Y10: 0.756232687 | Z10: 0.8 | AA10: 0.8505747126 | AB10: 0.8913043478 | AC10: 0.9423728814 | AD10: 0.9770992366 | AE10: 1 | AF10: 1.06 | AG10: 1.06 | AH10: 1.06 | AI10: 1.06 | AJ10: 1.06 | AK10: 1.06 | AL10: 1.06 | AM10: 27.52941176 | AN10: =Z10*E10+($A$4-80)*AG10*$A$8/1000 -> 28.63865546 | AO10: =AA10*G10+($A$4-80)*AH10*$A$8/1000 -> 29.8487395 | AP10: 28.94117647 | AQ10: 28.03361345 | AR10: 25.81512605 | AS10: 22.99159664
B11: 57 | C11: 35.19327731 | D11: 35.19327731 | E11: 34.38655462 | F11: 34.38655462 | G11: 33.4789916 | H11: 33.4789916 | I11: 30.55462185 | J11: 30.55462185 | K11: =V11*$K$13 -> 27.73109244 | L11: 27.73109244 | M11: 25.1092437 | N11: 25.1092437 | O11: 22.48739496 | P11: 22.48739496 | R11: 0.9775910364 | S11: 0.9551820728 | T11: 0.9299719888 | U11: 0.8487394958 | V11: 0.7703081232 | W11: 0.6974789916 | X11: 0.6246498599 | Y11: 1 | Z11: 1 | AA11: 1 | AB11: 1 | AC11: 1 | AD11: 1 | AE11: 1 | AF11: 1.06 | AG11: 1.06 | AH11: 1.06 | AI11: 1.06 | AJ11: 1.06 | AK11: 1.06 | AL11: 1.06 | AM11: 35.19327731 | AN11: =Z11*E11+($A$4-80)*AG11*$A$8/1000 -> 34.38655462 | AO11: =AA11*G11+($A$4-80)*AH11*$A$8/1000 -> 33.4789916 | AP11: =AB11*I11+($A$4-80)*AI11*$A$8/1000 -> 30.55462185 | AQ11: 27.73109244 | AR11: 25.1092437 | AS11: 22.48739496
A12: 1200 | B12: 72 | C12: 38.72268908 | D12: 19.05882353 | E12: 38.62184874 | F12: 19.15966387 | G12: 38.62184874 | H12: 19.15966387 | I12: 37.1092437 | J12: 19.15966387 | K12: =V12*$K$13 -> 35.59663866 | L12: 19.2605042 | M12: 33.78151261 | N12: 18.45378151 | O12: 31.86554622 | P12: 17.64705882 | R12: 1.075630252 | S12: 1.072829132 | T12: 1.072829132 | U12: 1.030812325 | V12: 0.9887955182 | W12: 0.9383753501 | X12: 0.8851540616 | Y12: 0.4921875 | Z12: 0.4960835509 | AA12: 0.4960835509 | AB12: 0.5163043478 | AC12: 0.5410764873 | AD12: 0.5462686567 | AE12: 0.5537974684 | AF12: 1.06 | AG12: 1.06 | AH12: 1.06 | AI12: 1.06 | AJ12: 1.06 | AK12: 1.06 | AL12: 1.06 | AM12: =Y12*C12+($A$4-80)*AF12*$A$12/1000 -> 19.05882353 | AN12: =Z12*E12+($A$4-80)*AG12*$A$12/1000 -> 19.15966387 | AO12: =AA12*G12+($A$4-80)*AH12*$A$12/1000 -> 19.15966387 | AP12: =AB12*I12+($A$4-80)*AI12*$A$12/1000 -> 19.15966387 | AQ12: =AC12*K12+($A$4-80)*AJ12*$A$12/1000 -> 19.2605042 | AR12: =AD12*M12+($A$4-80)*AK12*$A$12/1000 -> 18.45378151 | AS12: =AE12*O12+($A$4-80)*AL12*$A$12/1000 -> 17.64705882
B13: 67 | C13: 37.00840336 | D13: 23.69747899 | E13: 37.1092437 | F13: 24.30252101 | G13: 37.21008403 | H13: 24.90756303 | I13: 36 | J13: 25.00840336 | K13: =B2 -> 36 | L13: 26.1627907 | M13: 31.2605042 | N13: 24.30252101 | O13: 27.83193277 | P13: 23.39495798 | R13: 1.028011204 | S13: 1.030812325 | T13: 1.033613445 | U13: 1 | V13: 0.9635854342 | W13: 0.8683473389 | X13: 0.7731092437 | Y13: 0.6403269755 | Z13: 0.6548913043 | AA13: 0.6693766938 | AB13: 0.6946778711 | AC13: 0.726744186 | AD13: 0.7774193548 | AE13: 0.8405797101 | AF13: 1.06 | AG13: 1.06 | AH13: 1.06 | AI13: 1.06 | AJ13: 1.06 | AK13: 1.06 | AL13: 1.06 | AM13: =Y13*C13+($A$4-80)*AF13*$A$12/1000 -> 23.69747899 | AN13: =Z13*E13+($A$4-80)*AG13*$A$12/1000 -> 24.30252101 | AO13: =AA13*G13+($A$4-80)*AH13*$A$12/1000 -> 24.90756303 | AP13: =AB13*I13+($A$4-80)*AI13*$A$12/1000 -> 25.00840336 | AQ13: =AC13*K13+($A$4-80)*AJ13*$A$12/1000 -> 26.1627907 | AR13: =AD13*M13+($A$4-80)*AK13*$A$12/1000 -> 24.30252101 | AS13: =AE13*O13+($A$4-80)*AL13*$A$12/1000 -> 23.39495798
B14: 62 | C14: 36.70588235 | D14: 28.53781513 | E14: 36.20168067 | F14: 29.94957983 | G14: 35.79831933 | H14: 31.2605042 | I14: 33.17647059 | J14: 30.75630252 | K14: =V14*$K$13 -> 30.65546218 | L14: 30.1512605 | M14: 27.73109244 | N14: 27.73109244 | O14: 24.80672269 | P14: 24.80672269 | R14: 1.019607843 | S14: 1.005602241 | T14: 0.9943977591 | U14: 0.9215686275 | V14: 0.8515406162 | W14: 0.7703081232 | X14: 0.6890756303 | Y14: 0.7774725275 | Z14: 0.8272980501 | AA14: 0.8732394366 | AB14: 0.9270516717 | AC14: 0.9835526316 | AD14: 1 | AE14: 1 | AF14: 1.06 | AG14: 1.06 | AH14: 1.06 | AI14: 1.06 | AJ14: 1.06 | AK14: 1.06 | AL14: 1.06 | AM14: 28.53781513 | AN14: =Z14*E14+($A$4-80)*AG14*$A$12/1000 -> 29.94957983 | AO14: =AA14*G14+($A$4-80)*AH14*$A$12/1000 -> 31.2605042 | AP14: 30.75630252 | AQ14: 30.1512605 | AR14: 27.73109244 | AS14: 24.80672269
B15: 57 | C15: 35.69747899 | D15: 35.69747899 | E15: 35.29411765 | F15: 35.29411765 | G15: 34.78991597 | H15: 34.78991597 | I15: 32.06722689 | J15: 32.06722689 | K15: 29.34453782 | L15: 29.34453782 | M15: 26.62184874 | N15: 26.62184874 | O15: 24 | P15: 24 | R15: 0.9915966387 | S15: 0.9803921569 | T15: 0.9663865546 | U15: 0.8907563025 | V15: 0.8151260504 | W15: 0.7394957983 | X15: 0.6666666667 | Y15: 1 | Z15: 1 | AA15: 1 | AB15: 1 | AC15: 1 | AD15: 1 | AE15: 1 | AF15: 1.06 | AG15: 1.06 | AH15: 1.06 | AI15: 1.06 | AJ15: 1.06 | AK15: 1.06 | AL15: 1.06 | AM15: 35.69747899 | AN15: =Z15*E15+($A$4-80)*AG15*$A$12/1000 -> 35.29411765 | AO15: =AA15*G15+($A$4-80)*AH15*$A$12/1000 -> 34.78991597 | AP15: 32.06722689 | AQ15: 29.34453782 | AR15: 26.62184874 | AS15: 24
A16: 1400 | B16: 72 | C16: 38.01680672 | D16: 19.36134454 | E16: 38.72268908 | F16: 19.2605042 | G16: 39.32773109 | H16: 19.15966387 | I16: 37.61344538 | J16: 19.56302521 | K16: 35.79831933 | L16: 19.96638655 | M16: 34.08403361 | N16: 19.36134454 | O16: 32.3697479 | P16: 18.75630252 | R16: 1.056022409 | S16: 1.075630252 | T16: 1.092436975 | U16: 1.044817927 | V16: 0.9943977591 | W16: 0.9467787115 | X16: 0.8991596639 | Y16: 0.5092838196 | Z16: 0.4973958333 | AA16: 0.4871794872 | AB16: 0.5201072386 | AC16: 0.5577464789 | AD16: 0.5680473373 | AE16: 0.5794392523 | AF16: 1.06 | AG16: 1.06 | AH16: 1.06 | AI16: 1.06 | AJ16: 1.06 | AK16: 1.06 | AL16: 1.06 | AM16: =Y16*C16+($A$4-80)*AF16*$A$16/1000 -> 19.36134454 | AN16: =Z16*E16+($A$4-80)*AG16*$A$16/1000 -> 19.2605042 | AO16: =AA16*G16+($A$4-80)*AH16*$A$16/1000 -> 19.15966387 | AP16: =AB16*I16+($A$4-80)*AI16*$A$16/1000 -> 19.56302521 | AQ16: =AC16*K16+($A$4-80)*AJ16*$A$16/1000 -> 19.96638655 | AR16: =AD16*M16+($A$4-80)*AK16*$A$16/1000 -> 19.36134454 | AS16: =AE16*O16+($A$4-80)*AL16*$A$16/1000 -> 18.75630252
B17: 67 | C17: 37.41176471 | D17: 24 | E17: 37.31092437 | F17: 24.70588235 | G17: 37.1092437 | H17: 25.51260504 | I17: 36.10084034 | J17: 26.01680672 | K17: 34.99159664 | L17: 26.62184874 | M17: 31.66386555 | N17: 26.11764706 | O17: 28.33613445 | P17: 25.61344538 | R17: 1.039215686 | S17: 1.036414566 | T17: 1.030812325 | U17: 1.00280112 | V17: 0.9719887955 | W17: 0.8795518207 | X17: 0.7871148459 | Y17: 0.641509434 | Z17: 0.6621621622 | AA17: 0.6875 | AB17: 0.7206703911 | AC17: 0.7608069164 | AD17: 0.8248407643 | AE17: 0.9039145907 | AF17: 1.06 | AG17: 1.06 | AH17: 1.06 | AI17: 1.06 | AJ17: 1.06 | AK17: 1.06 | AL17: 1.06 | AM17: =Y17*C17+($A$4-80)*AF17*$A$16/1000 -> 24 | AN17: =Z17*E17+($A$4-80)*AG17*$A$16/1000 -> 24.70588235 | AO17: =AA17*G17+($A$4-80)*AH17*$A$16/1000 -> 25.51260504 | AP17: =AB17*I17+($A$4-80)*AI17*$A$16/1000 -> 26.01680672 | AQ17: =AC17*K17+($A$4-80)*AJ17*$A$16/1000 -> 26.62184874 | AR17: =AD17*M17+($A$4-80)*AK17*$A$16/1000 -> 26.11764706 | AS17: =AE17*O17+($A$4-80)*AL17*$A$16/1000 -> 25.61344538
B18: 62 | C18: 36.90756303 | D18: 29.54621849 | E18: 36.70588235 | F18: 31.15966387 | G18: 36.40336134 | H18: 32.77310924 | I18: 33.98319328 | J18: 32.47058824 | K18: 31.56302521 | L18: 31.56302521 | M18: 29.04201681 | N18: 29.04201681 | O18: 26.5210084 | P18: 26.5210084 | R18: 1.025210084 | S18: 1.019607843 | T18: 1.011204482 | U18: 0.943977591 | V18: 0.8767507003 | W18: 0.8067226891 | X18: 0.7366946779 | Y18: 0.8005464481 | Z18: 0.8489010989 | AA18: 0.9002770083 | AB18: 0.9554896142 | AC18: 1 | AD18: 1 | AE18: 1 | AF18: 1.06 | AG18: 1.06 | AH18: 1.06 | AI18: 1.06 | AJ18: 1.06 | AK18: 1.06 | AL18: 1.06 | AM18: 29.54621849 | AN18: =Z18*E18+($A$4-80)*AG18*$A$16/1000 -> 31.15966387 | AO18: =AA18*G18+($A$4-80)*AH18*$A$16/1000 -> 32.77310924 | AP18: 32.47058824 | AQ18: 31.56302521 | AR18: 29.04201681 | AS18: 26.5210084
B19: 57 | C19: 36.20168067 | D19: 36.20168067 | E19: 36.20168067 | F19: 36.20168067 | G19: 36.10084034 | H19: 36 | I19: 33.57983193 | J19: 33.57983193 | K19: 30.95798319 | L19: 30.95798319 | M19: 28.13445378 | N19: 28.13445378 | O19: 25.41176471 | P19: 25.41176471 | R19: 1.005602241 | S19: 1.005602241 | T19: 1.00280112 | U19: 0.9327731092 | V19: 0.8599439776 | W19: 0.781512605 | X19: 0.7058823529 | Y19: 1 | Z19: 1 | AA19: 0.9972067039 | AB19: 1 | AC19: 1 | AD19: 1 | AE19: 1 | AF19: 1.06 | AG19: 1.06 | AH19: 1.06 | AI19: 1.06 | AJ19: 1.06 | AK19: 1.06 | AL19: 1.06 | AM19: 36.20168067 | AN19: =Z19*E19+($A$4-80)*AG19*$A$16/1000 -> 36.20168067 | AO19: =AA19*G19+($A$4-80)*AH19*$A$16/1000 -> 36 | AP19: 33.57983193 | AQ19: 30.95798319 | AR19: 28.13445378 | AS19: 25.41176471

Sheet YCD_42 (hidden)
A2: YCD_42 | B2: 42
A3: Evaporator Air | C3: Condenser Entering Air Temperature ˚F
A4: 80 | B4: °F DB | C4: 55 | E4: 65 | G4: 75 | I4: 85 | K4: 95 | M4: 105 | O4: 115
A5: CFM | B5: EWB† ˚F | C5: Capacity Mbtuh | E5: Capacity Mbtuh | G5: Capacity Mbtuh | I5: Capacity Mbtuh | K5: Capacity Mbtuh | M5: Capacity Mbtuh | O5: Capacity Mbtuh
C6: Total | D6: Sens. | E6: Total | F6: Sens. | G6: Total | H6: Sens. | I6: Total | J6: Sens. | K6: Total | L6: Sens. | M6: Total | N6: Sens. | O6: Total | P6: Sens.
R7: Total Factors | Y7: Sens. % | AF7: IDB Adj | AM7: Sens Calc
A8: 1200 | B8: 72 | C8: =R8*$K$13 -> 46.74193548 | D8: =IF(AM8>C8,C8,AM8) -> 22.83870968 | E8: =S8*$K$13 -> 46.93548387 | F8: =IF(AN8>E8,E8,AN8) -> 22.83870968 | G8: =T8*$K$13 -> 47.12903226 | H8: =IF(AO8>G8,G8,AO8) -> 22.74193548 | I8: =U8*$K$13 -> 45.29032258 | J8: =IF(AP8>I8,I8,AP8) -> 22.35483871 | K8: =V8*$K$13 -> 43.35483871 | L8: =IF(AQ8>K8,K8,AQ8) -> 22.06451613 | M8: =W8*$K$13 -> 40.16129032 | N8: =IF(AR8>M8,M8,AR8) -> 21.09677419 | O8: =X8*$K$13 -> 36.87096774 | P8: =IF(AS8>O8,O8,AS8) -> 20.03225806 | R8: 1.112903226 | S8: 1.117511521 | T8: 1.122119816 | U8: 1.078341014 | V8: 1.032258065 | W8: 0.9562211982 | X8: 0.8778801843 | Y8: 0.4886128364 | Z8: 0.4865979381 | AA8: 0.4825462012 | AB8: 0.4935897436 | AC8: 0.5089285714 | AD8: 0.5253012048 | AE8: 0.5433070866 | AF8: 1.06 | AG8: 1.06 | AH8: 1.06 | AI8: 1.06 | AJ8: 1.06 | AK8: 1.06 | AL8: 1.06 | AM8: =Y8*C8+($A$4-80)*AF8*$A$8/1000 -> 22.83870968 | AN8: =Z8*E8+($A$4-80)*AG8*$A$8/1000 -> 22.83870968 | AO8: =AA8*G8+($A$4-80)*AH8*$A$8/1000 -> 22.74193548 | AP8: =AB8*I8+($A$4-80)*AI8*$A$8/1000 -> 22.35483871 | AQ8: =AC8*K8+($A$4-80)*AJ8*$A$8/1000 -> 22.06451613 | AR8: =AD8*M8+($A$4-80)*AK8*$A$8/1000 -> 21.09677419 | AS8: =AE8*O8+($A$4-80)*AL8*$A$8/1000 -> 20.03225806
B9: 67 | C9: 45.96774194 | D9: 28.25806452 | E9: 44.80645161 | F9: =IF(AN9>E9,E9,AN9) -> 28.64516129 | G9: 43.74193548 | H9: =IF(AO9>G9,G9,AO9) -> 28.93548387 | I9: 41.32258065 | J9: =IF(AP9>I9,I9,AP9) -> 28.4516129 | K9: =V9*$K$13 -> 38.90322581 | L9: =IF(AQ9>K9,K9,AQ9) -> 27.87096774 | M9: 34.93548387 | N9: =IF(AR9>M9,M9,AR9) -> 26.32258065 | O9: 30.87096774 | P9: =IF(AS9>O9,O9,AS9) -> 24.87096774 | R9: 1.094470046 | S9: 1.066820276 | T9: 1.041474654 | U9: 0.9838709677 | V9: 0.9262672811 | W9: 0.831797235 | X9: 0.7350230415 | Y9: 0.6147368421 | Z9: 0.6393088553 | AA9: 0.6615044248 | AB9: 0.6885245902 | AC9: 0.7164179104 | AD9: 0.7534626039 | AE9: 0.8056426332 | AF9: 1.06 | AG9: 1.06 | AH9: 1.06 | AI9: 1.06 | AJ9: 1.06 | AK9: 1.06 | AL9: 1.06 | AM9: =Y9*C9+($A$4-80)*AF9*$A$8/1000 -> 28.25806452 | AN9: =Z9*E9+($A$4-80)*AG9*$A$8/1000 -> 28.64516129 | AO9: =AA9*G9+($A$4-80)*AH9*$A$8/1000 -> 28.93548387 | AP9: =AB9*I9+($A$4-80)*AI9*$A$8/1000 -> 28.4516129 | AQ9: =AC9*K9+($A$4-80)*AJ9*$A$8/1000 -> 27.87096774 | AR9: =AD9*M9+($A$4-80)*AK9*$A$8/1000 -> 26.32258065 | AS9: =AE9*O9+($A$4-80)*AL9*$A$8/1000 -> 24.87096774
B10: 62 | C10: 42.96774194 | D10: 34.64516129 | E10: 41.32258065 | F10: 34.74193548 | G10: 39.58064516 | H10: 34.83870968 | I10: 36.87096774 | J10: 34.25806452 | K10: =V10*$K$13 -> 34.16129032 | L10: 33.67741935 | M10: 30.38709677 | N10: 30.29032258 | O10: 26.51612903 | P10: 26.51612903 | R10: 1.023041475 | S10: 0.9838709677 | T10: 0.9423963134 | U10: 0.8778801843 | V10: 0.8133640553 | W10: 0.7235023041 | X10: 0.6313364055 | Y10: 0.8063063063 | Z10: 0.8407494145 | AA10: 0.880195599 | AB10: 0.9291338583 | AC10: 0.9858356941 | AD10: 0.9968152866 | AE10: 1 | AF10: 1.06 | AG10: 1.06 | AH10: 1.06 | AI10: 1.06 | AJ10: 1.06 | AK10: 1.06 | AL10: 1.06 | AM10: 34.64516129 | AN10: =Z10*E10+($A$4-80)*AG10*$A$8/1000 -> 34.74193548 | AO10: =AA10*G10+($A$4-80)*AH10*$A$8/1000 -> 34.83870968 | AP10: 34.25806452 | AQ10: 33.67741935 | AR10: 30.29032258 | AS10: 26.51612903
B11: 57 | C11: 40.16129032 | D11: 40.16129032 | E11: 39 | F11: 39 | G11: 37.93548387 | H11: 37.93548387 | I11: 35.70967742 | J11: 35.70967742 | K11: =V11*$K$13 -> 33.48387097 | L11: 33.48387097 | M11: 30.67741935 | N11: 30.67741935 | O11: 27.87096774 | P11: 27.87096774 | R11: 0.9562211982 | S11: 0.9285714286 | T11: 0.9032258065 | U11: 0.8502304147 | V11: 0.797235023 | W11: 0.7304147465 | X11: 0.66359447 | Y11: 1 | Z11: 1 | AA11: 1 | AB11: 1 | AC11: 1 | AD11: 1 | AE11: 1 | AF11: 1.06 | AG11: 1.06 | AH11: 1.06 | AI11: 1.06 | AJ11: 1.06 | AK11: 1.06 | AL11: 1.06 | AM11: 40.16129032 | AN11: =Z11*E11+($A$4-80)*AG11*$A$8/1000 -> 39 | AO11: =AA11*G11+($A$4-80)*AH11*$A$8/1000 -> 37.93548387 | AP11: =AB11*I11+($A$4-80)*AI11*$A$8/1000 -> 35.70967742 | AQ11: 33.48387097 | AR11: 30.67741935 | AS11: 27.87096774
A12: 1400 | B12: 72 | C12: 47.12903226 | D12: 23.03225806 | E12: 47.12903226 | F12: 23.03225806 | G12: 47.03225806 | H12: 23.12903226 | I12: 45.38709677 | J12: 22.93548387 | K12: =V12*$K$13 -> 43.64516129 | L12: 22.74193548 | M12: 40.25806452 | N12: 21.87096774 | O12: 36.87096774 | P12: 21.09677419 | R12: 1.122119816 | S12: 1.122119816 | T12: 1.119815668 | U12: 1.080645161 | V12: 1.039170507 | W12: 0.9585253456 | X12: 0.8778801843 | Y12: 0.4887063655 | Z12: 0.4887063655 | AA12: 0.4917695473 | AB12: 0.5053304904 | AC12: 0.5210643016 | AD12: 0.5432692308 | AE12: 0.5721784777 | AF12: 1.06 | AG12: 1.06 | AH12: 1.06 | AI12: 1.06 | AJ12: 1.06 | AK12: 1.06 | AL12: 1.06 | AM12: =Y12*C12+($A$4-80)*AF12*$A$12/1000 -> 23.03225806 | AN12: =Z12*E12+($A$4-80)*AG12*$A$12/1000 -> 23.03225806 | AO12: =AA12*G12+($A$4-80)*AH12*$A$12/1000 -> 23.12903226 | AP12: =AB12*I12+($A$4-80)*AI12*$A$12/1000 -> 22.93548387 | AQ12: =AC12*K12+($A$4-80)*AJ12*$A$12/1000 -> 22.74193548 | AR12: =AD12*M12+($A$4-80)*AK12*$A$12/1000 -> 21.87096774 | AS12: =AE12*O12+($A$4-80)*AL12*$A$12/1000 -> 21.09677419
B13: 67 | C13: 46.5483871 | D13: 29.32258065 | E13: 45.48387097 | F13: 29.70967742 | G13: 44.41935484 | H13: 30 | I13: 42 | J13: 29.70967742 | K13: =B2 -> 42 | L13: 31.24390244 | M13: 35.61290323 | N13: 28.35483871 | O13: 31.64516129 | P13: 27.19354839 | R13: 1.108294931 | S13: 1.082949309 | T13: 1.057603687 | U13: 1 | V13: 0.9447004608 | W13: 0.8479262673 | X13: 0.7534562212 | Y13: 0.6299376299 | Z13: 0.6531914894 | AA13: 0.6753812636 | AB13: 0.7073732719 | AC13: 0.743902439 | AD13: 0.7961956522 | AE13: 0.8593272171 | AF13: 1.06 | AG13: 1.06 | AH13: 1.06 | AI13: 1.06 | AJ13: 1.06 | AK13: 1.06 | AL13: 1.06 | AM13: =Y13*C13+($A$4-80)*AF13*$A$12/1000 -> 29.32258065 | AN13: =Z13*E13+($A$4-80)*AG13*$A$12/1000 -> 29.70967742 | AO13: =AA13*G13+($A$4-80)*AH13*$A$12/1000 -> 30 | AP13: =AB13*I13+($A$4-80)*AI13*$A$12/1000 -> 29.70967742 | AQ13: =AC13*K13+($A$4-80)*AJ13*$A$12/1000 -> 31.24390244 | AR13: =AD13*M13+($A$4-80)*AK13*$A$12/1000 -> 28.35483871 | AS13: =AE13*O13+($A$4-80)*AL13*$A$12/1000 -> 27.19354839
B14: 62 | C14: 41.70967742 | D14: 35.80645161 | E14: 41.03225806 | F14: 36.19354839 | G14: 40.35483871 | H14: 36.58064516 | I14: 37.83870968 | J14: 36 | K14: =V14*$K$13 -> 35.32258065 | L14: 35.32258065 | M14: 31.64516129 | N14: 31.64516129 | O14: 27.96774194 | P14: 27.96774194 | R14: 0.9930875576 | S14: 0.9769585253 | T14: 0.9608294931 | U14: 0.900921659 | V14: 0.8410138249 | W14: 0.7534562212 | X14: 0.6658986175 | Y14: 0.8584686775 | Z14: 0.8820754717 | AA14: 0.9064748201 | AB14: 0.9514066496 | AC14: 1 | AD14: 1 | AE14: 1 | AF14: 1.06 | AG14: 1.06 | AH14: 1.06 | AI14: 1.06 | AJ14: 1.06 | AK14: 1.06 | AL14: 1.06 | AM14: 35.80645161 | AN14: =Z14*E14+($A$4-80)*AG14*$A$12/1000 -> 36.19354839 | AO14: =AA14*G14+($A$4-80)*AH14*$A$12/1000 -> 36.58064516 | AP14: 36 | AQ14: 35.32258065 | AR14: 31.64516129 | AS14: 27.96774194
B15: 57 | C15: 40.64516129 | D15: 40.64516129 | E15: 39.77419355 | F15: 39.77419355 | G15: 38.80645161 | H15: 38.80645161 | I15: 37.35483871 | J15: 37.35483871 | K15: 35.80645161 | L15: 35.80645161 | M15: 32.51612903 | N15: 32.51612903 | O15: 29.32258065 | P15: 29.32258065 | R15: 0.9677419355 | S15: 0.9470046083 | T15: 0.9239631336 | U15: 0.8894009217 | V15: 0.8525345622 | W15: 0.7741935484 | X15: 0.698156682 | Y15: 1 | Z15: 1 | AA15: 1 | AB15: 1 | AC15: 1 | AD15: 1 | AE15: 1 | AF15: 1.06 | AG15: 1.06 | AH15: 1.06 | AI15: 1.06 | AJ15: 1.06 | AK15: 1.06 | AL15: 1.06 | AM15: 40.64516129 | AN15: =Z15*E15+($A$4-80)*AG15*$A$12/1000 -> 39.77419355 | AO15: =AA15*G15+($A$4-80)*AH15*$A$12/1000 -> 38.80645161 | AP15: 37.35483871 | AQ15: 35.80645161 | AR15: 32.51612903 | AS15: 29.32258065
A16: 1600 | B16: 72 | C16: 47.61290323 | D16: 23.22580645 | E16: 47.32258065 | F16: 23.32258065 | G16: 47.03225806 | H16: 23.41935484 | I16: 45.48387097 | J16: 23.41935484 | K16: 43.83870968 | L16: 23.32258065 | M16: 40.4516129 | N16: 22.74193548 | O16: 36.96774194 | P16: 22.06451613 | R16: 1.133640553 | S16: 1.126728111 | T16: 1.119815668 | U16: 1.082949309 | V16: 1.043778802 | W16: 0.9631336406 | X16: 0.8801843318 | Y16: 0.487804878 | Z16: 0.4928425358 | AA16: 0.4979423868 | AB16: 0.514893617 | AC16: 0.53200883 | AD16: 0.5622009569 | AE16: 0.5968586387 | AF16: 1.06 | AG16: 1.06 | AH16: 1.06 | AI16: 1.06 | AJ16: 1.06 | AK16: 1.06 | AL16: 1.06 | AM16: =Y16*C16+($A$4-80)*AF16*$A$16/1000 -> 23.22580645 | AN16: =Z16*E16+($A$4-80)*AG16*$A$16/1000 -> 23.32258065 | AO16: =AA16*G16+($A$4-80)*AH16*$A$16/1000 -> 23.41935484 | AP16: =AB16*I16+($A$4-80)*AI16*$A$16/1000 -> 23.41935484 | AQ16: =AC16*K16+($A$4-80)*AJ16*$A$16/1000 -> 23.32258065 | AR16: =AD16*M16+($A$4-80)*AK16*$A$16/1000 -> 22.74193548 | AS16: =AE16*O16+($A$4-80)*AL16*$A$16/1000 -> 22.06451613
B17: 67 | C17: 47.12903226 | D17: 30.48387097 | E17: 46.06451613 | F17: 30.67741935 | G17: 45.09677419 | H17: 30.96774194 | I17: 42.77419355 | J17: 31.06451613 | K17: 40.4516129 | L17: 31.16129032 | M17: 36.38709677 | N17: 30.38709677 | O17: 32.41935484 | P17: 29.61290323 | R17: 1.122119816 | S17: 1.096774194 | T17: 1.073732719 | U17: 1.01843318 | V17: 0.9631336406 | W17: 0.866359447 | X17: 0.7718894009 | Y17: 0.6468172485 | Z17: 0.6659663866 | AA17: 0.686695279 | AB17: 0.7262443439 | AC17: 0.7703349282 | AD17: 0.835106383 | AE17: 0.9134328358 | AF17: 1.06 | AG17: 1.06 | AH17: 1.06 | AI17: 1.06 | AJ17: 1.06 | AK17: 1.06 | AL17: 1.06 | AM17: =Y17*C17+($A$4-80)*AF17*$A$16/1000 -> 30.48387097 | AN17: =Z17*E17+($A$4-80)*AG17*$A$16/1000 -> 30.67741935 | AO17: =AA17*G17+($A$4-80)*AH17*$A$16/1000 -> 30.96774194 | AP17: =AB17*I17+($A$4-80)*AI17*$A$16/1000 -> 31.06451613 | AQ17: =AC17*K17+($A$4-80)*AJ17*$A$16/1000 -> 31.16129032 | AR17: =AD17*M17+($A$4-80)*AK17*$A$16/1000 -> 30.38709677 | AS17: =AE17*O17+($A$4-80)*AL17*$A$16/1000 -> 29.61290323
B18: 62 | C18: 40.5483871 | D18: 36.87096774 | E18: 40.74193548 | F18: 37.5483871 | G18: 41.03225806 | H18: 38.32258065 | I18: 38.70967742 | J18: 37.64516129 | K18: 36.48387097 | L18: 36.48387097 | M18: 32.90322581 | N18: 32.90322581 | O18: 29.41935484 | P18: 29.41935484 | R18: 0.965437788 | S18: 0.9700460829 | T18: 0.9769585253 | U18: 0.9216589862 | V18: 0.8686635945 | W18: 0.7834101382 | X18: 0.7004608295 | Y18: 0.9093078759 | Z18: 0.9216152019 | AA18: 0.9339622642 | AB18: 0.9725 | AC18: 1 | AD18: 1 | AE18: 1 | AF18: 1.06 | AG18: 1.06 | AH18: 1.06 | AI18: 1.06 | AJ18: 1.06 | AK18: 1.06 | AL18: 1.06 | AM18: 36.87096774 | AN18: =Z18*E18+($A$4-80)*AG18*$A$16/1000 -> 37.5483871 | AO18: =AA18*G18+($A$4-80)*AH18*$A$16/1000 -> 38.32258065 | AP18: 37.64516129 | AQ18: 36.48387097 | AR18: 32.90322581 | AS18: 29.41935484
B19: 57 | C19: 41.12903226 | D19: 41.12903226 | E19: 40.4516129 | F19: 40.4516129 | G19: 39.77419355 | H19: 39.77419355 | I19: 38.90322581 | J19: 38.90322581 | K19: 38.12903226 | L19: 37.5483871 | M19: 34.4516129 | N19: 34.35483871 | O19: 30.67741935 | P19: 30.67741935 | R19: 0.9792626728 | S19: 0.9631336406 | T19: 0.9470046083 | U19: 0.9262672811 | V19: 0.9078341014 | W19: 0.8202764977 | X19: 0.7304147465 | Y19: 1 | Z19: 1 | AA19: 1 | AB19: 1 | AC19: 0.9847715736 | AD19: 0.9971910112 | AE19: 1 | AF19: 1.06 | AG19: 1.06 | AH19: 1.06 | AI19: 1.06 | AJ19: 1.06 | AK19: 1.06 | AL19: 1.06 | AM19: 41.12903226 | AN19: =Z19*E19+($A$4-80)*AG19*$A$16/1000 -> 40.4516129 | AO19: =AA19*G19+($A$4-80)*AH19*$A$16/1000 -> 39.77419355 | AP19: 38.90322581 | AQ19: 37.5483871 | AR19: 34.35483871 | AS19: 30.67741935

Sheet YCD_48 (hidden)
A2: YCD_48 | B2: 48
A3: Evaporator Air | C3: Condenser Entering Air Temperature ˚F
A4: 80 | B4: °F DB | C4: 55 | E4: 65 | G4: 75 | I4: 85 | K4: 95 | M4: 105 | O4: 115
A5: CFM | B5: EWB† ˚F | C5: Capacity Mbtuh | E5: Capacity Mbtuh | G5: Capacity Mbtuh | I5: Capacity Mbtuh | K5: Capacity Mbtuh | M5: Capacity Mbtuh | O5: Capacity Mbtuh
C6: Total | D6: Sens. | E6: Total | F6: Sens. | G6: Total | H6: Sens. | I6: Total | J6: Sens. | K6: Total | L6: Sens. | M6: Total | N6: Sens. | O6: Total | P6: Sens.
R7: Total Factors | Y7: Sens. % | AF7: IDB Adj | AM7: Sens Calc
A8: 1400 | B8: 72 | C8: =R8*$K$13 -> 51.53684211 | D8: =IF(AM8>C8,C8,AM8) -> 24.05052632 | E8: =S8*$K$13 -> 52.04210526 | F8: =IF(AN8>E8,E8,AN8) -> 24.45473684 | G8: =T8*$K$13 -> 52.44631579 | H8: =IF(AO8>G8,G8,AO8) -> 24.85894737 | I8: =U8*$K$13 -> 51.33473684 | J8: =IF(AP8>I8,I8,AP8) -> 24.45473684 | K8: =V8*$K$13 -> 50.22315789 | L8: =IF(AQ8>K8,K8,AQ8) -> 24.15157895 | M8: =W8*$K$13 -> 47.29263158 | N8: =IF(AR8>M8,M8,AR8) -> 23.14105263 | O8: =X8*$K$13 -> 44.26105263 | P8: =IF(AS8>O8,O8,AS8) -> 22.13052632 | R8: 1.073684211 | S8: 1.084210526 | T8: 1.092631579 | U8: 1.069473684 | V8: 1.046315789 | W8: 0.9852631579 | X8: 0.9221052632 | Y8: 0.4666666667 | Z8: 0.4699029126 | AA8: 0.4739884393 | AB8: 0.4763779528 | AC8: 0.4808853119 | AD8: 0.4893162393 | AE8: 0.5 | AF8: 1.06 | AG8: 1.06 | AH8: 1.06 | AI8: 1.06 | AJ8: 1.06 | AK8: 1.06 | AL8: 1.06 | AM8: =Y8*C8+($A$4-80)*AF8*$A$8/1000 -> 24.05052632 | AN8: =Z8*E8+($A$4-80)*AG8*$A$8/1000 -> 24.45473684 | AO8: =AA8*G8+($A$4-80)*AH8*$A$8/1000 -> 24.85894737 | AP8: =AB8*I8+($A$4-80)*AI8*$A$8/1000 -> 24.45473684 | AQ8: =AC8*K8+($A$4-80)*AJ8*$A$8/1000 -> 24.15157895 | AR8: =AD8*M8+($A$4-80)*AK8*$A$8/1000 -> 23.14105263 | AS8: =AE8*O8+($A$4-80)*AL8*$A$8/1000 -> 22.13052632
B9: 67 | C9: 49.61684211 | D9: 30.82105263 | E9: 49.31368421 | F9: =IF(AN9>E9,E9,AN9) -> 31.42736842 | G9: 48.90947368 | H9: =IF(AO9>G9,G9,AO9) -> 32.03368421 | I9: 47.69684211 | J9: =IF(AP9>I9,I9,AP9) -> 31.93263158 | K9: =V9*$K$13 -> 46.38315789 | L9: =IF(AQ9>K9,K9,AQ9) -> 31.83157895 | M9: 42.74526316 | N9: =IF(AR9>M9,M9,AR9) -> 30.61894737 | O9: 39.00631579 | P9: =IF(AS9>O9,O9,AS9) -> 29.40631579 | R9: 1.033684211 | S9: 1.027368421 | T9: 1.018947368 | U9: 0.9936842105 | V9: 0.9663157895 | W9: 0.8905263158 | X9: 0.8126315789 | Y9: 0.6211812627 | Z9: 0.637295082 | AA9: 0.6549586777 | AB9: 0.6694915254 | AC9: 0.6862745098 | AD9: 0.7163120567 | AE9: 0.7538860104 | AF9: 1.06 | AG9: 1.06 | AH9: 1.06 | AI9: 1.06 | AJ9: 1.06 | AK9: 1.06 | AL9: 1.06 | AM9: =Y9*C9+($A$4-80)*AF9*$A$8/1000 -> 30.82105263 | AN9: =Z9*E9+($A$4-80)*AG9*$A$8/1000 -> 31.42736842 | AO9: =AA9*G9+($A$4-80)*AH9*$A$8/1000 -> 32.03368421 | AP9: =AB9*I9+($A$4-80)*AI9*$A$8/1000 -> 31.93263158 | AQ9: =AC9*K9+($A$4-80)*AJ9*$A$8/1000 -> 31.83157895 | AR9: =AD9*M9+($A$4-80)*AK9*$A$8/1000 -> 30.61894737 | AS9: =AE9*O9+($A$4-80)*AL9*$A$8/1000 -> 29.40631579
B10: 62 | C10: 46.98947368 | D10: 37.08631579 | E10: 46.48421053 | F10: 37.89473684 | G10: 45.97894737 | H10: 38.80421053 | I10: 43.95789474 | J10: 38.50105263 | K10: =V10*$K$13 -> 41.83578947 | L10: 38.29894737 | M10: 38.70315789 | N10: 36.68210526 | O10: 35.57052632 | P10: 35.06526316 | R10: 0.9789473684 | S10: 0.9684210526 | T10: 0.9578947368 | U10: 0.9157894737 | V10: 0.8715789474 | W10: 0.8063157895 | X10: 0.7410526316 | Y10: 0.7892473118 | Z10: 0.8152173913 | AA10: 0.843956044 | AB10: 0.875862069 | AC10: 0.9154589372 | AD10: 0.9477806789 | AE10: 0.9857954545 | AF10: 1.06 | AG10: 1.06 | AH10: 1.06 | AI10: 1.06 | AJ10: 1.06 | AK10: 1.06 | AL10: 1.06 | AM10: 37.08631579 | AN10: =Z10*E10+($A$4-80)*AG10*$A$8/1000 -> 37.89473684 | AO10: =AA10*G10+($A$4-80)*AH10*$A$8/1000 -> 38.80421053 | AP10: 38.50105263 | AQ10: 38.29894737 | AR10: 36.68210526 | AS10: 35.06526316
B11: 57 | C11: 43.75578947 | D11: 43.14947368 | E11: 43.65473684 | F11: 43.04842105 | G11: 43.55368421 | H11: 42.94736842 | I11: 41.93684211 | J11: 41.33052632 | K11: =V11*$K$13 -> 40.32 | L11: 39.81473684 | M11: 37.99578947 | N11: 37.49052632 | O11: 35.57052632 | P11: 35.06526316 | R11: 0.9115789474 | S11: 0.9094736842 | T11: 0.9073684211 | U11: 0.8736842105 | V11: 0.84 | W11: 0.7915789474 | X11: 0.7410526316 | Y11: 0.9861431871 | Z11: 0.9861111111 | AA11: 0.9860788863 | AB11: 0.9855421687 | AC11: 0.9874686717 | AD11: 0.9867021277 | AE11: 0.9857954545 | AF11: 1.06 | AG11: 1.06 | AH11: 1.06 | AI11: 1.06 | AJ11: 1.06 | AK11: 1.06 | AL11: 1.06 | AM11: 43.14947368 | AN11: =Z11*E11+($A$4-80)*AG11*$A$8/1000 -> 43.04842105 | AO11: =AA11*G11+($A$4-80)*AH11*$A$8/1000 -> 42.94736842 | AP11: =AB11*I11+($A$4-80)*AI11*$A$8/1000 -> 41.33052632 | AQ11: 39.81473684 | AR11: 37.49052632 | AS11: 35.06526316
A12: 1600 | B12: 72 | C12: 51.53684211 | D12: 24.45473684 | E12: 52.04210526 | F12: 24.96 | G12: 52.64842105 | H12: 25.46526316 | I12: 51.13263158 | J12: 25.26315789 | K12: =V12*$K$13 -> 49.71789474 | L12: 25.06105263 | M12: 46.88842105 | N12: 24.25263158 | O12: 44.16 | P12: 23.54526316 | R12: 1.073684211 | S12: 1.084210526 | T12: 1.096842105 | U12: 1.065263158 | V12: 1.035789474 | W12: 0.9768421053 | X12: 0.92 | Y12: 0.4745098039 | Z12: 0.4796116505 | AA12: 0.4836852207 | AB12: 0.4940711462 | AC12: 0.5040650407 | AD12: 0.5172413793 | AE12: 0.533180778 | AF12: 1.06 | AG12: 1.06 | AH12: 1.06 | AI12: 1.06 | AJ12: 1.06 | AK12: 1.06 | AL12: 1.06 | AM12: =Y12*C12+($A$4-80)*AF12*$A$12/1000 -> 24.45473684 | AN12: =Z12*E12+($A$4-80)*AG12*$A$12/1000 -> 24.96 | AO12: =AA12*G12+($A$4-80)*AH12*$A$12/1000 -> 25.46526316 | AP12: =AB12*I12+($A$4-80)*AI12*$A$12/1000 -> 25.26315789 | AQ12: =AC12*K12+($A$4-80)*AJ12*$A$12/1000 -> 25.06105263 | AR12: =AD12*M12+($A$4-80)*AK12*$A$12/1000 -> 24.25263158 | AS12: =AE12*O12+($A$4-80)*AL12*$A$12/1000 -> 23.54526316
B13: 67 | C13: 50.02105263 | D13: 31.62947368 | E13: 49.71789474 | F13: 32.43789474 | G13: 49.51578947 | H13: 33.24631579 | I13: 48 | J13: 33.54947368 | K13: =B2 -> 48 | L13: 34.95652174 | M13: 43.14947368 | N13: 32.74105263 | O13: 39.81473684 | P13: 31.52842105 | R13: 1.042105263 | S13: 1.035789474 | T13: 1.031578947 | U13: 1 | V13: 0.9684210526 | W13: 0.8989473684 | X13: 0.8294736842 | Y13: 0.6323232323 | Z13: 0.6524390244 | AA13: 0.6714285714 | AB13: 0.6989473684 | AC13: 0.7282608696 | AD13: 0.7587822014 | AE13: 0.7918781726 | AF13: 1.06 | AG13: 1.06 | AH13: 1.06 | AI13: 1.06 | AJ13: 1.06 | AK13: 1.06 | AL13: 1.06 | AM13: =Y13*C13+($A$4-80)*AF13*$A$12/1000 -> 31.62947368 | AN13: =Z13*E13+($A$4-80)*AG13*$A$12/1000 -> 32.43789474 | AO13: =AA13*G13+($A$4-80)*AH13*$A$12/1000 -> 33.24631579 | AP13: =AB13*I13+($A$4-80)*AI13*$A$12/1000 -> 33.54947368 | AQ13: =AC13*K13+($A$4-80)*AJ13*$A$12/1000 -> 34.95652174 | AR13: =AD13*M13+($A$4-80)*AK13*$A$12/1000 -> 32.74105263 | AS13: =AE13*O13+($A$4-80)*AL13*$A$12/1000 -> 31.52842105
B14: 62 | C14: 47.29263158 | D14: 38.4 | E14: 46.88842105 | F14: 39.51157895 | G14: 46.58526316 | H14: 40.62315789 | I14: 44.46315789 | J14: 40.42105263 | K14: =V14*$K$13 -> 42.34105263 | L14: 40.21894737 | M14: 39.71368421 | N14: 38.50105263 | O14: 37.18736842 | P14: 36.68210526 | R14: 0.9852631579 | S14: 0.9768421053 | T14: 0.9705263158 | U14: 0.9263157895 | V14: 0.8821052632 | W14: 0.8273684211 | X14: 0.7747368421 | Y14: 0.811965812 | Z14: 0.8426724138 | AA14: 0.8720173536 | AB14: 0.9090909091 | AC14: 0.9498806683 | AD14: 0.9694656489 | AE14: 0.9864130435 | AF14: 1.06 | AG14: 1.06 | AH14: 1.06 | AI14: 1.06 | AJ14: 1.06 | AK14: 1.06 | AL14: 1.06 | AM14: 38.4 | AN14: =Z14*E14+($A$4-80)*AG14*$A$12/1000 -> 39.51157895 | AO14: =AA14*G14+($A$4-80)*AH14*$A$12/1000 -> 40.62315789 | AP14: 40.42105263 | AQ14: 40.21894737 | AR14: 38.50105263 | AS14: 36.68210526
B15: 57 | C15: 44.46315789 | D15: 43.85684211 | E15: 44.56421053 | F15: 43.95789474 | G15: 44.76631579 | H15: 44.16 | I15: 43.55368421 | J15: 42.94736842 | K15: 42.34105263 | L15: 41.73473684 | M15: 39.71368421 | N15: 39.10736842 | O15: 37.08631579 | P15: 36.58105263 | R15: 0.9263157895 | S15: 0.9284210526 | T15: 0.9326315789 | U15: 0.9073684211 | V15: 0.8821052632 | W15: 0.8273684211 | X15: 0.7726315789 | Y15: 0.9863636364 | Z15: 0.9863945578 | AA15: 0.9864559819 | AB15: 0.9860788863 | AC15: 0.9856801909 | AD15: 0.9847328244 | AE15: 0.9863760218 | AF15: 1.06 | AG15: 1.06 | AH15: 1.06 | AI15: 1.06 | AJ15: 1.06 | AK15: 1.06 | AL15: 1.06 | AM15: 43.85684211 | AN15: =Z15*E15+($A$4-80)*AG15*$A$12/1000 -> 43.95789474 | AO15: =AA15*G15+($A$4-80)*AH15*$A$12/1000 -> 44.16 | AP15: 42.94736842 | AQ15: 41.73473684 | AR15: 39.10736842 | AS15: 36.58105263
A16: 1800 | B16: 72 | C16: 51.43578947 | D16: 24.85894737 | E16: 52.14315789 | F16: 25.46526316 | G16: 52.74947368 | H16: 26.17263158 | I16: 51.03157895 | J16: 26.07157895 | K16: 49.21263158 | L16: 25.97052632 | M16: 46.58526316 | N16: 25.46526316 | O16: 43.95789474 | P16: 24.96 | R16: 1.071578947 | S16: 1.086315789 | T16: 1.098947368 | U16: 1.063157895 | V16: 1.025263158 | W16: 0.9705263158 | X16: 0.9157894737 | Y16: 0.4833005894 | Z16: 0.488372093 | AA16: 0.4961685824 | AB16: 0.5108910891 | AC16: 0.5277207392 | AD16: 0.546637744 | AE16: 0.567816092 | AF16: 1.06 | AG16: 1.06 | AH16: 1.06 | AI16: 1.06 | AJ16: 1.06 | AK16: 1.06 | AL16: 1.06 | AM16: =Y16*C16+($A$4-80)*AF16*$A$16/1000 -> 24.85894737 | AN16: =Z16*E16+($A$4-80)*AG16*$A$16/1000 -> 25.46526316 | AO16: =AA16*G16+($A$4-80)*AH16*$A$16/1000 -> 26.17263158 | AP16: =AB16*I16+($A$4-80)*AI16*$A$16/1000 -> 26.07157895 | AQ16: =AC16*K16+($A$4-80)*AJ16*$A$16/1000 -> 25.97052632 | AR16: =AD16*M16+($A$4-80)*AK16*$A$16/1000 -> 25.46526316 | AS16: =AE16*O16+($A$4-80)*AL16*$A$16/1000 -> 24.96
B17: 67 | C17: 50.32421053 | D17: 32.53894737 | E17: 50.22315789 | F17: 33.54947368 | G17: 50.12210526 | H17: 34.45894737 | I17: 48.40421053 | J17: 35.16631579 | K17: 46.58526316 | L17: 35.87368421 | M17: 43.55368421 | N17: 34.76210526 | O17: 40.52210526 | P17: 33.75157895 | R17: 1.048421053 | S17: 1.046315789 | T17: 1.044210526 | U17: 1.008421053 | V17: 0.9705263158 | W17: 0.9073684211 | X17: 0.8442105263 | Y17: 0.6465863454 | Z17: 0.6680080483 | AA17: 0.6875 | AB17: 0.7265135699 | AC17: 0.7700650759 | AD17: 0.7981438515 | AE17: 0.8329177057 | AF17: 1.06 | AG17: 1.06 | AH17: 1.06 | AI17: 1.06 | AJ17: 1.06 | AK17: 1.06 | AL17: 1.06 | AM17: =Y17*C17+($A$4-80)*AF17*$A$16/1000 -> 32.53894737 | AN17: =Z17*E17+($A$4-80)*AG17*$A$16/1000 -> 33.54947368 | AO17: =AA17*G17+($A$4-80)*AH17*$A$16/1000 -> 34.45894737 | AP17: =AB17*I17+($A$4-80)*AI17*$A$16/1000 -> 35.16631579 | AQ17: =AC17*K17+($A$4-80)*AJ17*$A$16/1000 -> 35.87368421 | AR17: =AD17*M17+($A$4-80)*AK17*$A$16/1000 -> 34.76210526 | AS17: =AE17*O17+($A$4-80)*AL17*$A$16/1000 -> 33.75157895
B18: 62 | C18: 47.49473684 | D18: 39.81473684 | E18: 47.29263158 | F18: 41.12842105 | G18: 47.09052632 | H18: 42.34105263 | I18: 44.96842105 | J18: 42.24 | K18: 42.74526316 | L18: 42.13894737 | M18: 40.82526316 | N18: 40.21894737 | O18: 38.80421053 | P18: 38.29894737 | R18: 0.9894736842 | S18: 0.9852631579 | T18: 0.9810526316 | U18: 0.9368421053 | V18: 0.8905263158 | W18: 0.8505263158 | X18: 0.8084210526 | Y18: 0.8382978723 | Z18: 0.8696581197 | AA18: 0.8991416309 | AB18: 0.9393258427 | AC18: 0.9858156028 | AD18: 0.9851485149 | AE18: 0.9869791667 | AF18: 1.06 | AG18: 1.06 | AH18: 1.06 | AI18: 1.06 | AJ18: 1.06 | AK18: 1.06 | AL18: 1.06 | AM18: 39.81473684 | AN18: =Z18*E18+($A$4-80)*AG18*$A$16/1000 -> 41.12842105 | AO18: =AA18*G18+($A$4-80)*AH18*$A$16/1000 -> 42.34105263 | AP18: 42.24 | AQ18: 42.13894737 | AR18: 40.21894737 | AS18: 38.29894737
B19: 57 | C19: 45.06947368 | D19: 44.46315789 | E19: 45.47368421 | F19: 44.86736842 | G19: 45.87789474 | H19: 45.27157895 | I19: 45.17052632 | J19: 44.46315789 | K19: 44.36210526 | L19: 43.65473684 | M19: 41.43157895 | N19: 40.82526316 | O19: 38.50105263 | P19: 37.99578947 | R19: 0.9389473684 | S19: 0.9473684211 | T19: 0.9557894737 | U19: 0.9410526316 | V19: 0.9242105263 | W19: 0.8631578947 | X19: 0.8021052632 | Y19: 0.9865470852 | Z19: 0.9866666667 | AA19: 0.986784141 | AB19: 0.9843400447 | AC19: 0.9840546697 | AD19: 0.9853658537 | AE19: 0.9868766404 | AF19: 1.06 | AG19: 1.06 | AH19: 1.06 | AI19: 1.06 | AJ19: 1.06 | AK19: 1.06 | AL19: 1.06 | AM19: 44.46315789 | AN19: =Z19*E19+($A$4-80)*AG19*$A$16/1000 -> 44.86736842 | AO19: =AA19*G19+($A$4-80)*AH19*$A$16/1000 -> 45.27157895 | AP19: 44.46315789 | AQ19: 43.65473684 | AR19: 40.82526316 | AS19: 37.99578947

Sheet YCD_60 (hidden)
A2: YCD_60 | B2: 60
A3: Evaporator Air | C3: Condenser Entering Air Temperature ˚F
A4: 80 | B4: °F DB | C4: 55 | E4: 65 | G4: 75 | I4: 85 | K4: 95 | M4: 105 | O4: 115
A5: CFM | B5: EWB† ˚F | C5: Capacity Mbtuh | E5: Capacity Mbtuh | G5: Capacity Mbtuh | I5: Capacity Mbtuh | K5: Capacity Mbtuh | M5: Capacity Mbtuh | O5: Capacity Mbtuh
C6: Total | D6: Sens. | E6: Total | F6: Sens. | G6: Total | H6: Sens. | I6: Total | J6: Sens. | K6: Total | L6: Sens. | M6: Total | N6: Sens. | O6: Total | P6: Sens.
R7: Total Factors | Y7: Sens. % | AF7: IDB Adj | AM7: Sens Calc
A8: 1520 | B8: 72 | C8: =R8*$K$13 -> 63.57894737 | D8: =IF(AM8>C8,C8,AM8) -> 32.52631579 | E8: =S8*$K$13 -> 63.15789474 | F8: =IF(AN8>E8,E8,AN8) -> 32.10526316 | G8: =T8*$K$13 -> 62.63157895 | H8: =IF(AO8>G8,G8,AO8) -> 31.78947368 | I8: =U8*$K$13 -> 62.84210526 | J8: =IF(AP8>I8,I8,AP8) -> 31.89473684 | K8: =V8*$K$13 -> 63.15789474 | L8: =IF(AQ8>K8,K8,AQ8) -> 32.10526316 | M8: =W8*$K$13 -> 59.68421053 | N8: =IF(AR8>M8,M8,AR8) -> 30.52631579 | O8: =X8*$K$13 -> 56.31578947 | P8: =IF(AS8>O8,O8,AS8) -> 28.84210526 | R8: 1.059649123 | S8: 1.052631579 | T8: 1.043859649 | U8: 1.047368421 | V8: 1.052631579 | W8: 0.9947368421 | X8: 0.9385964912 | Y8: 0.511589404 | Z8: 0.5083333333 | AA8: 0.5075630252 | AB8: 0.5075376884 | AC8: 0.5083333333 | AD8: 0.5114638448 | AE8: 0.5121495327 | AF8: 1.06 | AG8: 1.06 | AH8: 1.06 | AI8: 1.06 | AJ8: 1.06 | AK8: 1.06 | AL8: 1.06 | AM8: =Y8*C8+($A$4-80)*AF8*$A$8/1000 -> 32.52631579 | AN8: =Z8*E8+($A$4-80)*AG8*$A$8/1000 -> 32.10526316 | AO8: =AA8*G8+($A$4-80)*AH8*$A$8/1000 -> 31.78947368 | AP8: =AB8*I8+($A$4-80)*AI8*$A$8/1000 -> 31.89473684 | AQ8: =AC8*K8+($A$4-80)*AJ8*$A$8/1000 -> 32.10526316 | AR8: =AD8*M8+($A$4-80)*AK8*$A$8/1000 -> 30.52631579 | AS8: =AE8*O8+($A$4-80)*AL8*$A$8/1000 -> 28.84210526
B9: 67 | C9: 60.52631579 | D9: 40.73684211 | E9: 61.05263158 | F9: =IF(AN9>E9,E9,AN9) -> 40.94736842 | G9: 61.47368421 | H9: =IF(AO9>G9,G9,AO9) -> 41.15789474 | I9: 60 | J9: =IF(AP9>I9,I9,AP9) -> 40.94736842 | K9: =V9*$K$13 -> 58.63157895 | L9: =IF(AQ9>K9,K9,AQ9) -> 40.63157895 | M9: 54.31578947 | N9: =IF(AR9>M9,M9,AR9) -> 38.63157895 | O9: 49.89473684 | P9: =IF(AS9>O9,O9,AS9) -> 36.73684211 | R9: 1.00877193 | S9: 1.01754386 | T9: 1.024561404 | U9: 1 | V9: 0.9771929825 | W9: 0.9052631579 | X9: 0.8315789474 | Y9: 0.6730434783 | Z9: 0.6706896552 | AA9: 0.6695205479 | AB9: 0.6824561404 | AC9: 0.6929982047 | AD9: 0.7112403101 | AE9: 0.7362869198 | AF9: 1.06 | AG9: 1.06 | AH9: 1.06 | AI9: 1.06 | AJ9: 1.06 | AK9: 1.06 | AL9: 1.06 | AM9: =Y9*C9+($A$4-80)*AF9*$A$8/1000 -> 40.73684211 | AN9: =Z9*E9+($A$4-80)*AG9*$A$8/1000 -> 40.94736842 | AO9: =AA9*G9+($A$4-80)*AH9*$A$8/1000 -> 41.15789474 | AP9: =AB9*I9+($A$4-80)*AI9*$A$8/1000 -> 40.94736842 | AQ9: =AC9*K9+($A$4-80)*AJ9*$A$8/1000 -> 40.63157895 | AR9: =AD9*M9+($A$4-80)*AK9*$A$8/1000 -> 38.63157895 | AS9: =AE9*O9+($A$4-80)*AL9*$A$8/1000 -> 36.73684211
B10: 62 | C10: 57.89473684 | D10: 47.68421053 | E10: 57.78947368 | F10: 48.73684211 | G10: 57.68421053 | H10: 49.68421053 | I10: 55.15789474 | J10: 48.84210526 | K10: =V10*$K$13 -> 52.52631579 | L10: 47.89473684 | M10: 47.89473684 | N10: 46 | O10: 43.26315789 | P10: 43.26315789 | R10: 0.9649122807 | S10: 0.9631578947 | T10: 0.9614035088 | U10: 0.9192982456 | V10: 0.8754385965 | W10: 0.798245614 | X10: 0.7210526316 | Y10: 0.8236363636 | Z10: 0.8433515483 | AA10: 0.8613138686 | AB10: 0.8854961832 | AC10: 0.9118236473 | AD10: 0.9604395604 | AE10: 1 | AF10: 1.06 | AG10: 1.06 | AH10: 1.06 | AI10: 1.06 | AJ10: 1.06 | AK10: 1.06 | AL10: 1.06 | AM10: 47.68421053 | AN10: =Z10*E10+($A$4-80)*AG10*$A$8/1000 -> 48.73684211 | AO10: =AA10*G10+($A$4-80)*AH10*$A$8/1000 -> 49.68421053 | AP10: 48.84210526 | AQ10: 47.89473684 | AR10: 46 | AS10: 43.26315789
B11: 57 | C11: 53.05263158 | D11: 53.05263158 | E11: 53.47368421 | F11: 53.47368421 | G11: 53.78947368 | H11: 53.78947368 | I11: 51.68421053 | J11: 51.68421053 | K11: =V11*$K$13 -> 49.47368421 | L11: 49.47368421 | M11: 46.42105263 | N11: 46.42105263 | O11: 43.36842105 | P11: 43.36842105 | R11: 0.8842105263 | S11: 0.8912280702 | T11: 0.8964912281 | U11: 0.8614035088 | V11: 0.8245614035 | W11: 0.7736842105 | X11: 0.7228070175 | Y11: 1 | Z11: 1 | AA11: 1 | AB11: 1 | AC11: 1 | AD11: 1 | AE11: 1 | AF11: 1.06 | AG11: 1.06 | AH11: 1.06 | AI11: 1.06 | AJ11: 1.06 | AK11: 1.06 | AL11: 1.06 | AM11: 53.05263158 | AN11: =Z11*E11+($A$4-80)*AG11*$A$8/1000 -> 53.47368421 | AO11: =AA11*G11+($A$4-80)*AH11*$A$8/1000 -> 53.78947368 | AP11: =AB11*I11+($A$4-80)*AI11*$A$8/1000 -> 51.68421053 | AQ11: 49.47368421 | AR11: 46.42105263 | AS11: 43.36842105
A12: 1720 | B12: 72 | C12: 62.31578947 | D12: 32.63157895 | E12: 62.63157895 | F12: 32.73684211 | G12: 62.94736842 | H12: 32.84210526 | I12: 62.31578947 | J12: 32.73684211 | K12: =V12*$K$13 -> 61.68421053 | L12: 32.63157895 | M12: 58.73684211 | N12: 31.15789474 | O12: 55.78947368 | P12: 29.78947368 | R12: 1.038596491 | S12: 1.043859649 | T12: 1.049122807 | U12: 1.038596491 | V12: 1.028070175 | W12: 0.9789473684 | X12: 0.9298245614 | Y12: 0.5236486486 | Z12: 0.5226890756 | AA12: 0.5217391304 | AB12: 0.5253378378 | AC12: 0.5290102389 | AD12: 0.5304659498 | AE12: 0.5339622642 | AF12: 1.06 | AG12: 1.06 | AH12: 1.06 | AI12: 1.06 | AJ12: 1.06 | AK12: 1.06 | AL12: 1.06 | AM12: =Y12*C12+($A$4-80)*AF12*$A$12/1000 -> 32.63157895 | AN12: =Z12*E12+($A$4-80)*AG12*$A$12/1000 -> 32.73684211 | AO12: =AA12*G12+($A$4-80)*AH12*$A$12/1000 -> 32.84210526 | AP12: =AB12*I12+($A$4-80)*AI12*$A$12/1000 -> 32.73684211 | AQ12: =AC12*K12+($A$4-80)*AJ12*$A$12/1000 -> 32.63157895 | AR12: =AD12*M12+($A$4-80)*AK12*$A$12/1000 -> 31.15789474 | AS12: =AE12*O12+($A$4-80)*AL12*$A$12/1000 -> 29.78947368
B13: 67 | C13: 61.89473684 | D13: 41.89473684 | E13: 62 | F13: 42.42105263 | G13: 62.21052632 | H13: 42.84210526 | I13: 60 | J13: 42.52631579 | K13: =B2 -> 60 | L13: 43.63636364 | M13: 54.21052632 | N13: 40.63157895 | O13: 50.63157895 | P13: 39.15789474 | R13: 1.031578947 | S13: 1.033333333 | T13: 1.036842105 | U13: 1 | V13: 0.9649122807 | W13: 0.9035087719 | X13: 0.8438596491 | Y13: 0.6768707483 | Z13: 0.6842105263 | AA13: 0.6886632826 | AB13: 0.7087719298 | AC13: 0.7272727273 | AD13: 0.7495145631 | AE13: 0.7733887734 | AF13: 1.06 | AG13: 1.06 | AH13: 1.06 | AI13: 1.06 | AJ13: 1.06 | AK13: 1.06 | AL13: 1.06 | AM13: =Y13*C13+($A$4-80)*AF13*$A$12/1000 -> 41.89473684 | AN13: =Z13*E13+($A$4-80)*AG13*$A$12/1000 -> 42.42105263 | AO13: =AA13*G13+($A$4-80)*AH13*$A$12/1000 -> 42.84210526 | AP13: =AB13*I13+($A$4-80)*AI13*$A$12/1000 -> 42.52631579 | AQ13: =AC13*K13+($A$4-80)*AJ13*$A$12/1000 -> 43.63636364 | AR13: =AD13*M13+($A$4-80)*AK13*$A$12/1000 -> 40.63157895 | AS13: =AE13*O13+($A$4-80)*AL13*$A$12/1000 -> 39.15789474
B14: 62 | C14: 58.84210526 | D14: 49.47368421 | E14: 58.42105263 | F14: 51.05263158 | G14: 58 | H14: 52.73684211 | I14: 55.78947368 | J14: 51.89473684 | K14: =V14*$K$13 -> 53.57894737 | L14: 51.05263158 | M14: 48.94736842 | N14: 48.21052632 | O14: 44.31578947 | P14: 44.31578947 | R14: 0.9807017544 | S14: 0.9736842105 | T14: 0.9666666667 | U14: 0.9298245614 | V14: 0.8929824561 | W14: 0.8157894737 | X14: 0.7385964912 | Y14: 0.8407871199 | Z14: 0.8738738739 | AA14: 0.9092558984 | AB14: 0.9301886792 | AC14: 0.952848723 | AD14: 0.9849462366 | AE14: 1 | AF14: 1.06 | AG14: 1.06 | AH14: 1.06 | AI14: 1.06 | AJ14: 1.06 | AK14: 1.06 | AL14: 1.06 | AM14: 49.47368421 | AN14: =Z14*E14+($A$4-80)*AG14*$A$12/1000 -> 51.05263158 | AO14: =AA14*G14+($A$4-80)*AH14*$A$12/1000 -> 52.73684211 | AP14: 51.89473684 | AQ14: 51.05263158 | AR14: 48.21052632 | AS14: 44.31578947
B15: 57 | C15: 55.78947368 | D15: 55.36842105 | E15: 55.36842105 | F15: 55.36842105 | G15: 55.05263158 | H15: 55.05263158 | I15: 53.15789474 | J15: 53.15789474 | K15: 51.26315789 | L15: 51.26315789 | M15: 48.31578947 | N15: 48.31578947 | O15: 45.26315789 | P15: 45.26315789 | R15: 0.9298245614 | S15: 0.9228070175 | T15: 0.9175438596 | U15: 0.8859649123 | V15: 0.8543859649 | W15: 0.8052631579 | X15: 0.7543859649 | Y15: 0.9924528302 | Z15: 1 | AA15: 1 | AB15: 1 | AC15: 1 | AD15: 1 | AE15: 1 | AF15: 1.06 | AG15: 1.06 | AH15: 1.06 | AI15: 1.06 | AJ15: 1.06 | AK15: 1.06 | AL15: 1.06 | AM15: 55.36842105 | AN15: =Z15*E15+($A$4-80)*AG15*$A$12/1000 -> 55.36842105 | AO15: =AA15*G15+($A$4-80)*AH15*$A$12/1000 -> 55.05263158 | AP15: 53.15789474 | AQ15: 51.26315789 | AR15: 48.31578947 | AS15: 45.26315789
A16: 1920 | B16: 72 | C16: 60.94736842 | D16: 32.73684211 | E16: 62.10526316 | F16: 33.36842105 | G16: 63.26315789 | H16: 33.89473684 | I16: 61.68421053 | J16: 33.57894737 | K16: 60.21052632 | L16: 33.15789474 | M16: 57.68421053 | N16: 31.89473684 | O16: 55.15789474 | P16: 30.63157895 | R16: 1.015789474 | S16: 1.035087719 | T16: 1.054385965 | U16: 1.028070175 | V16: 1.003508772 | W16: 0.9614035088 | X16: 0.9192982456 | Y16: 0.5371329879 | Z16: 0.5372881356 | AA16: 0.5357737105 | AB16: 0.5443686007 | AC16: 0.5506993007 | AD16: 0.552919708 | AE16: 0.5553435115 | AF16: 1.06 | AG16: 1.06 | AH16: 1.06 | AI16: 1.06 | AJ16: 1.06 | AK16: 1.06 | AL16: 1.06 | AM16: =Y16*C16+($A$4-80)*AF16*$A$16/1000 -> 32.73684211 | AN16: =Z16*E16+($A$4-80)*AG16*$A$16/1000 -> 33.36842105 | AO16: =AA16*G16+($A$4-80)*AH16*$A$16/1000 -> 33.89473684 | AP16: =AB16*I16+($A$4-80)*AI16*$A$16/1000 -> 33.57894737 | AQ16: =AC16*K16+($A$4-80)*AJ16*$A$16/1000 -> 33.15789474 | AR16: =AD16*M16+($A$4-80)*AK16*$A$16/1000 -> 31.89473684 | AS16: =AE16*O16+($A$4-80)*AL16*$A$16/1000 -> 30.63157895
B17: 67 | C17: 63.26315789 | D17: 43.15789474 | E17: 63.05263158 | F17: 43.78947368 | G17: 62.94736842 | H17: 44.52631579 | I17: 60 | J17: 44 | K17: 57.15789474 | L17: 43.57894737 | M17: 54.21052632 | N17: 42.52631579 | O17: 51.26315789 | P17: 41.47368421 | R17: 1.054385965 | S17: 1.050877193 | T17: 1.049122807 | U17: 1 | V17: 0.9526315789 | W17: 0.9035087719 | X17: 0.8543859649 | Y17: 0.6821963394 | Z17: 0.694490818 | AA17: 0.7073578595 | AB17: 0.7333333333 | AC17: 0.7624309392 | AD17: 0.7844660194 | AE17: 0.8090349076 | AF17: 1.06 | AG17: 1.06 | AH17: 1.06 | AI17: 1.06 | AJ17: 1.06 | AK17: 1.06 | AL17: 1.06 | AM17: =Y17*C17+($A$4-80)*AF17*$A$16/1000 -> 43.15789474 | AN17: =Z17*E17+($A$4-80)*AG17*$A$16/1000 -> 43.78947368 | AO17: =AA17*G17+($A$4-80)*AH17*$A$16/1000 -> 44.52631579 | AP17: =AB17*I17+($A$4-80)*AI17*$A$16/1000 -> 44 | AQ17: =AC17*K17+($A$4-80)*AJ17*$A$16/1000 -> 43.57894737 | AR17: =AD17*M17+($A$4-80)*AK17*$A$16/1000 -> 42.52631579 | AS17: =AE17*O17+($A$4-80)*AL17*$A$16/1000 -> 41.47368421
B18: 62 | C18: 59.78947368 | D18: 51.15789474 | E18: 59.05263158 | F18: 53.47368421 | G18: 58.31578947 | H18: 55.89473684 | I18: 56.42105263 | J18: 54.94736842 | K18: 54.63157895 | L18: 54.10526316 | M18: 50 | N18: 50 | O18: 45.26315789 | P18: 45.26315789 | R18: 0.9964912281 | S18: 0.9842105263 | T18: 0.9719298246 | U18: 0.9403508772 | V18: 0.9105263158 | W18: 0.8333333333 | X18: 0.7543859649 | Y18: 0.8556338028 | Z18: 0.9055258467 | AA18: 0.9584837545 | AB18: 0.973880597 | AC18: 0.9903660886 | AD18: 1 | AE18: 1 | AF18: 1.06 | AG18: 1.06 | AH18: 1.06 | AI18: 1.06 | AJ18: 1.06 | AK18: 1.06 | AL18: 1.06 | AM18: 51.15789474 | AN18: =Z18*E18+($A$4-80)*AG18*$A$16/1000 -> 53.47368421 | AO18: =AA18*G18+($A$4-80)*AH18*$A$16/1000 -> 55.89473684 | AP18: 54.94736842 | AQ18: 54.10526316 | AR18: 50 | AS18: 45.26315789
B19: 57 | C19: 58.42105263 | D19: 55.26315789 | E19: 57.36842105 | F19: 56.84210526 | G19: 56.21052632 | H19: 56.21052632 | I19: 54.63157895 | J19: 54.63157895 | K19: 52.94736842 | L19: 52.94736842 | M19: 50.10526316 | N19: 50.10526316 | O19: 47.26315789 | P19: 47.26315789 | R19: 0.9736842105 | S19: 0.9561403509 | T19: 0.9368421053 | U19: 0.9105263158 | V19: 0.8824561404 | W19: 0.8350877193 | X19: 0.7877192982 | Y19: 0.9459459459 | Z19: 0.9908256881 | AA19: 1 | AB19: 1 | AC19: 1 | AD19: 1 | AE19: 1 | AF19: 1.06 | AG19: 1.06 | AH19: 1.06 | AI19: 1.06 | AJ19: 1.06 | AK19: 1.06 | AL19: 1.06 | AM19: 55.26315789 | AN19: =Z19*E19+($A$4-80)*AG19*$A$16/1000 -> 56.84210526 | AO19: =AA19*G19+($A$4-80)*AH19*$A$16/1000 -> 56.21052632 | AP19: 54.63157895 | AQ19: 52.94736842 | AR19: 50.10526316 | AS19: 47.26315789

Sheet YCE_18 (hidden)
A2: YCE_18 | B2: 18
A3: Evaporator Air | C3: Condenser Entering Air Temperature ˚F
A4: 80 | B4: °F DB | C4: 65 | E4: 75 | G4: 85 | I4: 95 | K4: 105 | M4: 115 | O4: 125
A5: CFM | B5: EWB† ˚F | C5: Capacity Mbtuh | E5: Capacity Mbtuh | G5: Capacity Mbtuh | I5: Capacity Mbtuh | K5: Capacity Mbtuh | M5: Capacity Mbtuh | O5: Capacity Mbtuh
C6: Total | D6: Sens. | E6: Total | F6: Sens. | G6: Total | H6: Sens. | I6: Total | J6: Sens. | K6: Total | L6: Sens. | M6: Total | N6: Sens. | O6: Total | P6: Sens.
R7: Total Factors | Y7: Sens. % | AF7: IDB Adj | AM7: Sens Calc
A8: 450 | B8: 72 | C8: =R8*$I$13 -> 24.8 | D8: =IF(AM8>C8,C8,AM8) -> 10.4 | E8: =S8*$I$13 -> 23.3 | F8: =IF(AN8>E8,E8,AN8) -> 9.9 | G8: =T8*$I$13 -> 21.5 | H8: =IF(AO8>G8,G8,AO8) -> 9.3 | I8: =U8*$I$13 -> 19.7 | J8: =IF(AP8>I8,I8,AP8) -> 8.6 | K8: =V8*$I$13 -> 17.5 | L8: =IF(AQ8>K8,K8,AQ8) -> 7.9 | M8: =W8*$I$13 -> 15.5 | N8: =IF(AR8>M8,M8,AR8) -> 7.3 | O8: =X8*$I$13 -> 13.4 | P8: =IF(AS8>O8,O8,AS8) -> 6.6 | R8: 1.377777778 | S8: 1.294444444 | T8: 1.194444444 | U8: 1.094444444 | V8: 0.9722222222 | W8: 0.8611111111 | X8: 0.7444444444 | Y8: 0.4193548387 | Z8: 0.4248927039 | AA8: 0.4325581395 | AB8: 0.4365482234 | AC8: 0.4514285714 | AD8: 0.4709677419 | AE8: 0.4925373134 | AF8: 1.06 | AG8: 1.06 | AH8: 1.06 | AI8: 1.06 | AJ8: 1.06 | AK8: 1.06 | AL8: 1.06 | AM8: =Y8*C8+($A$4-80)*AF8*$A$8/1000 -> 10.4 | AN8: =Z8*E8+($A$4-80)*AG8*$A$8/1000 -> 9.9 | AO8: =AA8*G8+($A$4-80)*AH8*$A$8/1000 -> 9.3 | AP8: =AB8*I8+($A$4-80)*AI8*$A$8/1000 -> 8.6 | AQ8: =AC8*K8+($A$4-80)*AJ8*$A$8/1000 -> 7.9 | AR8: =AD8*M8+($A$4-80)*AK8*$A$8/1000 -> 7.3 | AS8: =AE8*O8+($A$4-80)*AL8*$A$8/1000 -> 6.6
B9: 67 | C9: =R9*$I$13 -> 21.9 | D9: 12.7 | E9: 20.8 | F9: =IF(AN9>E9,E9,AN9) -> 12.1 | G9: 19.2 | H9: =IF(AO9>G9,G9,AO9) -> 11.5 | I9: =U9*$I$13 -> 17.5 | J9: =IF(AP9>I9,I9,AP9) -> 10.8 | K9: 15.3 | L9: =IF(AQ9>K9,K9,AQ9) -> 9.9 | M9: 13.3 | N9: =IF(AR9>M9,M9,AR9) -> 9.1 | O9: 11.2 | P9: =IF(AS9>O9,O9,AS9) -> 8.2 | R9: 1.216666667 | S9: 1.155555556 | T9: 1.066666667 | U9: 0.9722222222 | V9: 0.85 | W9: 0.7388888889 | X9: 0.6222222222 | Y9: 0.5799086758 | Z9: 0.5817307692 | AA9: 0.5989583333 | AB9: 0.6171428571 | AC9: 0.6470588235 | AD9: 0.6842105263 | AE9: 0.7321428571 | AF9: 1.06 | AG9: 1.06 | AH9: 1.06 | AI9: 1.06 | AJ9: 1.06 | AK9: 1.06 | AL9: 1.06 | AM9: =Y9*C9+($A$4-80)*AF9*$A$8/1000 -> 12.7 | AN9: =Z9*E9+($A$4-80)*AG9*$A$8/1000 -> 12.1 | AO9: =AA9*G9+($A$4-80)*AH9*$A$8/1000 -> 11.5 | AP9: =AB9*I9+($A$4-80)*AI9*$A$8/1000 -> 10.8 | AQ9: =AC9*K9+($A$4-80)*AJ9*$A$8/1000 -> 9.9 | AR9: =AD9*M9+($A$4-80)*AK9*$A$8/1000 -> 9.1 | AS9: =AE9*O9+($A$4-80)*AL9*$A$8/1000 -> 8.2
B10: 62 | C10: 20.1 | D10: 14.8 | E10: 18.7 | F10: 14.1 | G10: 17.1 | H10: 13.5 | I10: =U10*$I$13 -> 15.4 | J10: 12.8 | K10: 13.6 | L10: 11.8 | M10: 11.9 | N10: 10.8 | O10: 10.3 | P10: 9.8 | R10: 1.116666667 | S10: 1.038888889 | T10: 0.95 | U10: 0.8555555556 | V10: 0.7555555556 | W10: 0.6611111111 | X10: 0.5722222222 | Y10: 0.736318408 | Z10: 0.7540106952 | AA10: 0.7894736842 | AB10: 0.8311688312 | AC10: 0.8676470588 | AD10: 0.9075630252 | AE10: 0.9514563107 | AF10: 1.06 | AG10: 1.06 | AH10: 1.06 | AI10: 1.06 | AJ10: 1.06 | AK10: 1.06 | AL10: 1.06 | AM10: 14.8 | AN10: =Z10*E10+($A$4-80)*AG10*$A$8/1000 -> 14.1 | AO10: =AA10*G10+($A$4-80)*AH10*$A$8/1000 -> 13.5 | AP10: 12.8 | AQ10: 11.8 | AR10: 10.8 | AS10: 9.8
B11: 57 | C11: 18.2 | D11: 15.9 | E11: 16.5 | F11: 15.7 | G11: 15.3 | H11: 14.5 | I11: =U11*$I$13 -> 14.1 | J11: 13.2 | K11: 13.2 | L11: 12.2 | M11: 12.4 | N11: 11.2 | O11: 11.5 | P11: 10.2 | R11: 1.011111111 | S11: 0.9166666667 | T11: 0.85 | U11: 0.7833333333 | V11: 0.7333333333 | W11: 0.6888888889 | X11: 0.6388888889 | Y11: 0.8736263736 | Z11: 0.9515151515 | AA11: 0.9477124183 | AB11: 0.9361702128 | AC11: 0.9242424242 | AD11: 0.9032258065 | AE11: 0.8869565217 | AF11: 1.06 | AG11: 1.06 | AH11: 1.06 | AI11: 1.06 | AJ11: 1.06 | AK11: 1.06 | AL11: 1.06 | AM11: 15.9 | AN11: =Z11*E11+($A$4-80)*AG11*$A$8/1000 -> 15.7 | AO11: =AA11*G11+($A$4-80)*AH11*$A$8/1000 -> 14.5 | AP11: =AB11*I11+($A$4-80)*AI11*$A$8/1000 -> 13.2 | AQ11: 12.2 | AR11: 11.2 | AS11: 10.2
A12: 600 | B12: 72 | C12: 25.1 | D12: 11.4 | E12: 23.3 | F12: 11 | G12: 21.7 | H12: 10.3 | I12: =U12*$I$13 -> 20.1 | J12: 9.7 | K12: 17.9 | L12: 8.9 | M12: 15.6 | N12: 8.2 | O12: 13.4 | P12: 7.5 | R12: 1.394444444 | S12: 1.294444444 | T12: 1.205555556 | U12: 1.116666667 | V12: 0.9944444444 | W12: 0.8666666667 | X12: 0.7444444444 | Y12: 0.4541832669 | Z12: 0.4721030043 | AA12: 0.4746543779 | AB12: 0.4825870647 | AC12: 0.4972067039 | AD12: 0.5256410256 | AE12: 0.5597014925 | AF12: 1.06 | AG12: 1.06 | AH12: 1.06 | AI12: 1.06 | AJ12: 1.06 | AK12: 1.06 | AL12: 1.06 | AM12: =Y12*C12+($A$4-80)*AF12*$A$12/1000 -> 11.4 | AN12: =Z12*E12+($A$4-80)*AG12*$A$12/1000 -> 11 | AO12: =AA12*G12+($A$4-80)*AH12*$A$12/1000 -> 10.3 | AP12: =AB12*I12+($A$4-80)*AI12*$A$12/1000 -> 9.7 | AQ12: =AC12*K12+($A$4-80)*AJ12*$A$12/1000 -> 8.9 | AR12: =AD12*M12+($A$4-80)*AK12*$A$12/1000 -> 8.2 | AS12: =AE12*O12+($A$4-80)*AL12*$A$12/1000 -> 7.5
B13: 67 | C13: 22.8 | D13: 14.6 | E13: 21.1 | F13: 14 | G13: 19.6 | H13: 13.3 | I13: =B2 -> 18 | J13: 12.6 | K13: 15.8 | L13: 11.7 | M13: 13.7 | N13: 10.8 | O13: 11.6 | P13: 9.9 | R13: 1.266666667 | S13: 1.172222222 | T13: 1.088888889 | U13: 1 | V13: 0.8777777778 | W13: 0.7611111111 | X13: 0.6444444444 | Y13: 0.6403508772 | Z13: 0.663507109 | AA13: 0.6785714286 | AB13: 0.7 | AC13: 0.7405063291 | AD13: 0.7883211679 | AE13: 0.8534482759 | AF13: 1.06 | AG13: 1.06 | AH13: 1.06 | AI13: 1.06 | AJ13: 1.06 | AK13: 1.06 | AL13: 1.06 | AM13: =Y13*C13+($A$4-80)*AF13*$A$12/1000 -> 14.6 | AN13: =Z13*E13+($A$4-80)*AG13*$A$12/1000 -> 14 | AO13: =AA13*G13+($A$4-80)*AH13*$A$12/1000 -> 13.3 | AP13: =AB13*I13+($A$4-80)*AI13*$A$12/1000 -> 12.6 | AQ13: =AC13*K13+($A$4-80)*AJ13*$A$12/1000 -> 11.7 | AR13: =AD13*M13+($A$4-80)*AK13*$A$12/1000 -> 10.8 | AS13: =AE13*O13+($A$4-80)*AL13*$A$12/1000 -> 9.9
B14: 62 | C14: 21.4 | D14: 17.2 | E14: 19.9 | F14: 16.5 | G14: 18.1 | H14: 15.5 | I14: =U14*$I$13 -> 16.2 | J14: 14.6 | K14: 14.5 | L14: 13.2 | M14: 12.9 | N14: 12 | O14: 11.2 | P14: 10.7 | R14: 1.188888889 | S14: 1.105555556 | T14: 1.005555556 | U14: 0.9 | V14: 0.8055555556 | W14: 0.7166666667 | X14: 0.6222222222 | Y14: 0.8037383178 | Z14: 0.8291457286 | AA14: 0.8563535912 | AB14: 0.9012345679 | AC14: 0.9103448276 | AD14: 0.9302325581 | AE14: 0.9553571429 | AF14: 1.06 | AG14: 1.06 | AH14: 1.06 | AI14: 1.06 | AJ14: 1.06 | AK14: 1.06 | AL14: 1.06 | AM14: 17.2 | AN14: =Z14*E14+($A$4-80)*AG14*$A$12/1000 -> 16.5 | AO14: =AA14*G14+($A$4-80)*AH14*$A$12/1000 -> 15.5 | AP14: 14.6 | AQ14: 13.2 | AR14: 12 | AS14: 10.7
B15: 57 | C15: 20 | D15: 18.1 | E15: 18.8 | F15: 17.3 | G15: 17.6 | H15: 16.1 | I15: 16.4 | J15: 14.9 | K15: 15.2 | L15: 13.7 | M15: 14 | N15: 12.5 | O15: 12.8 | P15: 11.3 | R15: 1.111111111 | S15: 1.044444444 | T15: 0.9777777778 | U15: 0.9111111111 | V15: 0.8444444444 | W15: 0.7777777778 | X15: 0.7111111111 | Y15: 0.905 | Z15: 0.920212766 | AA15: 0.9147727273 | AB15: 0.9085365854 | AC15: 0.9013157895 | AD15: 0.8928571429 | AE15: 0.8828125 | AF15: 1.06 | AG15: 1.06 | AH15: 1.06 | AI15: 1.06 | AJ15: 1.06 | AK15: 1.06 | AL15: 1.06 | AM15: 18.1 | AN15: =Z15*E15+($A$4-80)*AG15*$A$12/1000 -> 17.3 | AO15: =AA15*G15+($A$4-80)*AH15*$A$12/1000 -> 16.1 | AP15: 14.9 | AQ15: 13.7 | AR15: 12.5 | AS15: 11.3
A16: 750 | B16: 72 | C16: 25.4 | D16: 12.5 | E16: 23.3 | F16: 12 | G16: 22 | H16: 11.4 | I16: 20.6 | J16: 10.7 | K16: 18.2 | L16: 9.9 | M16: 15.8 | N16: 9.1 | O16: 13.4 | P16: 8.3 | R16: 1.411111111 | S16: 1.294444444 | T16: 1.222222222 | U16: 1.144444444 | V16: 1.011111111 | W16: 0.8777777778 | X16: 0.7444444444 | Y16: 0.4921259843 | Z16: 0.5150214592 | AA16: 0.5181818182 | AB16: 0.5194174757 | AC16: 0.543956044 | AD16: 0.5759493671 | AE16: 0.6194029851 | AF16: 1.06 | AG16: 1.06 | AH16: 1.06 | AI16: 1.06 | AJ16: 1.06 | AK16: 1.06 | AL16: 1.06 | AM16: =Y16*C16+($A$4-80)*AF16*$A$16/1000 -> 12.5 | AN16: =Z16*E16+($A$4-80)*AG16*$A$16/1000 -> 12 | AO16: =AA16*G16+($A$4-80)*AH16*$A$16/1000 -> 11.4 | AP16: =AB16*I16+($A$4-80)*AI16*$A$16/1000 -> 10.7 | AQ16: =AC16*K16+($A$4-80)*AJ16*$A$16/1000 -> 9.9 | AR16: =AD16*M16+($A$4-80)*AK16*$A$16/1000 -> 9.1 | AS16: =AE16*O16+($A$4-80)*AL16*$A$16/1000 -> 8.3
B17: 67 | C17: 23.7 | D17: 16.4 | E17: 21.5 | F17: 15.9 | G17: 20 | H17: 15.2 | I17: 18.5 | J17: 14.4 | K17: 16.3 | L17: 13.4 | M17: 14.2 | N17: 12.5 | O17: 12 | P17: 11.5 | R17: 1.316666667 | S17: 1.194444444 | T17: 1.111111111 | U17: 1.027777778 | V17: 0.9055555556 | W17: 0.7888888889 | X17: 0.6666666667 | Y17: 0.6919831224 | Z17: 0.7395348837 | AA17: 0.76 | AB17: 0.7783783784 | AC17: 0.8220858896 | AD17: 0.8802816901 | AE17: 0.9583333333 | AF17: 1.06 | AG17: 1.06 | AH17: 1.06 | AI17: 1.06 | AJ17: 1.06 | AK17: 1.06 | AL17: 1.06 | AM17: =Y17*C17+($A$4-80)*AF17*$A$16/1000 -> 16.4 | AN17: =Z17*E17+($A$4-80)*AG17*$A$16/1000 -> 15.9 | AO17: =AA17*G17+($A$4-80)*AH17*$A$16/1000 -> 15.2 | AP17: =AB17*I17+($A$4-80)*AI17*$A$16/1000 -> 14.4 | AQ17: =AC17*K17+($A$4-80)*AJ17*$A$16/1000 -> 13.4 | AR17: =AD17*M17+($A$4-80)*AK17*$A$16/1000 -> 12.5 | AS17: =AE17*O17+($A$4-80)*AL17*$A$16/1000 -> 11.5
B18: 62 | C18: 22.6 | D18: 19.6 | E18: 21 | F18: 18.9 | G18: 19 | H18: 17.6 | I18: 17.1 | J18: 16.3 | K18: 15.4 | L18: 14.7 | M18: 13.8 | N18: 13.2 | O18: 12.1 | P18: 11.6 | R18: 1.255555556 | S18: 1.166666667 | T18: 1.055555556 | U18: 0.95 | V18: 0.8555555556 | W18: 0.7666666667 | X18: 0.6722222222 | Y18: 0.8672566372 | Z18: 0.9 | AA18: 0.9263157895 | AB18: 0.9532163743 | AC18: 0.9545454545 | AD18: 0.9565217391 | AE18: 0.958677686 | AF18: 1.06 | AG18: 1.06 | AH18: 1.06 | AI18: 1.06 | AJ18: 1.06 | AK18: 1.06 | AL18: 1.06 | AM18: 19.6 | AN18: =Z18*E18+($A$4-80)*AG18*$A$16/1000 -> 18.9 | AO18: =AA18*G18+($A$4-80)*AH18*$A$16/1000 -> 17.6 | AP18: 16.3 | AQ18: 14.7 | AR18: 13.2 | AS18: 11.6
B19: 57 | C19: 21.8 | D19: 20.3 | E19: 21 | F19: 18.9 | G19: 19.9 | H19: 17.8 | I19: 18.7 | J19: 16.6 | K19: 17.2 | L19: 15.1 | M19: 15.6 | N19: 13.7 | O19: 14.1 | P19: 12.3 | R19: 1.211111111 | S19: 1.166666667 | T19: 1.105555556 | U19: 1.038888889 | V19: 0.9555555556 | W19: 0.8666666667 | X19: 0.7833333333 | Y19: 0.9311926606 | Z19: 0.9 | AA19: 0.8944723618 | AB19: 0.8877005348 | AC19: 0.8779069767 | AD19: 0.8782051282 | AE19: 0.8723404255 | AF19: 1.06 | AG19: 1.06 | AH19: 1.06 | AI19: 1.06 | AJ19: 1.06 | AK19: 1.06 | AL19: 1.06 | AM19: 20.3 | AN19: =Z19*E19+($A$4-80)*AG19*$A$16/1000 -> 18.9 | AO19: =AA19*G19+($A$4-80)*AH19*$A$16/1000 -> 17.8 | AP19: 16.6 | AQ19: 15.1 | AR19: 13.7 | AS19: 12.3

Sheet YCE_24 (hidden)
A2: YCE_24 | B2: 30
A3: Evaporator Air | C3: Condenser Entering Air Temperature ˚F
A4: 80 | B4: °F DB | C4: 65 | E4: 75 | G4: 85 | I4: 95 | K4: 105 | M4: 115 | O4: 125
A5: CFM | B5: EWB† ˚F | C5: Capacity Mbtuh | E5: Capacity Mbtuh | G5: Capacity Mbtuh | I5: Capacity Mbtuh | K5: Capacity Mbtuh | M5: Capacity Mbtuh | O5: Capacity Mbtuh
C6: Total | D6: Sens. | E6: Total | F6: Sens. | G6: Total | H6: Sens. | I6: Total | J6: Sens. | K6: Total | L6: Sens. | M6: Total | N6: Sens. | O6: Total | P6: Sens.
R7: Total Factors | Y7: Sens. % | AF7: IDB Adj | AM7: Sens Calc
A8: 600 | B8: 72 | C8: =R8*$I$13 -> 38.2173913 | D8: =IF(AM8>C8,C8,AM8) -> 16.95652174 | E8: =S8*$I$13 -> 36.52173913 | F8: =IF(AN8>E8,E8,AN8) -> 16.04347826 | G8: =T8*$I$13 -> 34.30434783 | H8: =IF(AO8>G8,G8,AO8) -> 15.26086957 | I8: =U8*$I$13 -> 32.08695652 | J8: =IF(AP8>I8,I8,AP8) -> 14.34782609 | K8: =V8*$I$13 -> 29.34782609 | L8: =IF(AQ8>K8,K8,AQ8) -> 13.43478261 | M8: =W8*$I$13 -> 26.73913043 | N8: =IF(AR8>M8,M8,AR8) -> 12.65217391 | O8: =X8*$I$13 -> 24.13043478 | P8: =IF(AS8>O8,O8,AS8) -> 11.86956522 | R8: 1.273913043 | S8: 1.217391304 | T8: 1.143478261 | U8: 1.069565217 | V8: 0.9782608696 | W8: 0.8913043478 | X8: 0.8043478261 | Y8: 0.4436860068 | Z8: 0.4392857143 | AA8: 0.4448669202 | AB8: 0.4471544715 | AC8: 0.4577777778 | AD8: 0.4731707317 | AE8: 0.4918918919 | AF8: 1.06 | AG8: 1.06 | AH8: 1.06 | AI8: 1.06 | AJ8: 1.06 | AK8: 1.06 | AL8: 1.06 | AM8: =Y8*C8+($A$4-80)*AF8*$A$8/1000 -> 16.95652174 | AN8: =Z8*E8+($A$4-80)*AG8*$A$8/1000 -> 16.04347826 | AO8: =AA8*G8+($A$4-80)*AH8*$A$8/1000 -> 15.26086957 | AP8: =AB8*I8+($A$4-80)*AI8*$A$8/1000 -> 14.34782609 | AQ8: =AC8*K8+($A$4-80)*AJ8*$A$8/1000 -> 13.43478261 | AR8: =AD8*M8+($A$4-80)*AK8*$A$8/1000 -> 12.65217391 | AS8: =AE8*O8+($A$4-80)*AL8*$A$8/1000 -> 11.86956522
B9: 67 | C9: =R9*$I$13 -> 34.69565217 | D9: 20.60869565 | E9: 33 | F9: =IF(AN9>E9,E9,AN9) -> 19.95652174 | G9: 30.7826087 | H9: =IF(AO9>G9,G9,AO9) -> 19.04347826 | I9: =U9*$I$13 -> 28.69565217 | J9: =IF(AP9>I9,I9,AP9) -> 18.13043478 | K9: 25.82608696 | L9: =IF(AQ9>K9,K9,AQ9) -> 16.95652174 | M9: 23.08695652 | N9: =IF(AR9>M9,M9,AR9) -> 15.7826087 | O9: 20.34782609 | P9: =IF(AS9>O9,O9,AS9) -> 14.73913043 | R9: 1.156521739 | S9: 1.1 | T9: 1.026086957 | U9: 0.9565217391 | V9: 0.8608695652 | W9: 0.7695652174 | X9: 0.6782608696 | Y9: 0.5939849624 | Z9: 0.604743083 | AA9: 0.6186440678 | AB9: 0.6318181818 | AC9: 0.6565656566 | AD9: 0.6836158192 | AE9: 0.7243589744 | AF9: 1.06 | AG9: 1.06 | AH9: 1.06 | AI9: 1.06 | AJ9: 1.06 | AK9: 1.06 | AL9: 1.06 | AM9: =Y9*C9+($A$4-80)*AF9*$A$8/1000 -> 20.60869565 | AN9: =Z9*E9+($A$4-80)*AG9*$A$8/1000 -> 19.95652174 | AO9: =AA9*G9+($A$4-80)*AH9*$A$8/1000 -> 19.04347826 | AP9: =AB9*I9+($A$4-80)*AI9*$A$8/1000 -> 18.13043478 | AQ9: =AC9*K9+($A$4-80)*AJ9*$A$8/1000 -> 16.95652174 | AR9: =AD9*M9+($A$4-80)*AK9*$A$8/1000 -> 15.7826087 | AS9: =AE9*O9+($A$4-80)*AL9*$A$8/1000 -> 14.73913043
B10: 62 | C10: 30.7826087 | D10: 23.86956522 | E10: 28.95652174 | F10: 22.95652174 | G10: 26.86956522 | H10: 21.91304348 | I10: =U10*$I$13 -> 24.7826087 | J10: 20.73913043 | K10: 22.30434783 | L10: 19.43478261 | M10: 20.08695652 | N10: 18.26086957 | O10: 17.73913043 | P10: 16.95652174 | R10: 1.026086957 | S10: 0.9652173913 | T10: 0.8956521739 | U10: 0.8260869565 | V10: 0.7434782609 | W10: 0.6695652174 | X10: 0.5913043478 | Y10: 0.7754237288 | Z10: 0.7927927928 | AA10: 0.8155339806 | AB10: 0.8368421053 | AC10: 0.8713450292 | AD10: 0.9090909091 | AE10: 0.9558823529 | AF10: 1.06 | AG10: 1.06 | AH10: 1.06 | AI10: 1.06 | AJ10: 1.06 | AK10: 1.06 | AL10: 1.06 | AM10: 23.86956522 | AN10: =Z10*E10+($A$4-80)*AG10*$A$8/1000 -> 22.95652174 | AO10: =AA10*G10+($A$4-80)*AH10*$A$8/1000 -> 21.91304348 | AP10: 20.73913043 | AQ10: 19.43478261 | AR10: 18.26086957 | AS10: 16.95652174
B11: 57 | C11: 26.86956522 | D11: 26.2173913 | E11: 25.82608696 | F11: 25.17391304 | G11: 24.39130435 | H11: 23.60869565 | I11: =U11*$I$13 -> 22.82608696 | J11: 22.04347826 | K11: 21 | L11: 20.34782609 | M11: 19.17391304 | N11: 18.65217391 | O11: 17.34782609 | P11: 17.08695652 | R11: 0.8956521739 | S11: 0.8608695652 | T11: 0.8130434783 | U11: 0.7608695652 | V11: 0.7 | W11: 0.6391304348 | X11: 0.5782608696 | Y11: 0.9757281553 | Z11: 0.9747474747 | AA11: 0.9679144385 | AB11: 0.9657142857 | AC11: 0.9689440994 | AD11: 0.9727891156 | AE11: 0.984962406 | AF11: 1.06 | AG11: 1.06 | AH11: 1.06 | AI11: 1.06 | AJ11: 1.06 | AK11: 1.06 | AL11: 1.06 | AM11: 26.2173913 | AN11: =Z11*E11+($A$4-80)*AG11*$A$8/1000 -> 25.17391304 | AO11: =AA11*G11+($A$4-80)*AH11*$A$8/1000 -> 23.60869565 | AP11: =AB11*I11+($A$4-80)*AI11*$A$8/1000 -> 22.04347826 | AQ11: 20.34782609 | AR11: 18.65217391 | AS11: 17.08695652
A12: 800 | B12: 72 | C12: 39.26086957 | D12: 18.26086957 | E12: 37.69565217 | F12: 17.73913043 | G12: 35.47826087 | H12: 16.95652174 | I12: =U12*$I$13 -> 33.26086957 | J12: 16.17391304 | K12: 30.52173913 | L12: 15.13043478 | M12: 27.7826087 | N12: 14.2173913 | O12: 25.04347826 | P12: 13.30434783 | R12: 1.308695652 | S12: 1.256521739 | T12: 1.182608696 | U12: 1.108695652 | V12: 1.017391304 | W12: 0.9260869565 | X12: 0.8347826087 | Y12: 0.4651162791 | Z12: 0.4705882353 | AA12: 0.4779411765 | AB12: 0.4862745098 | AC12: 0.4957264957 | AD12: 0.5117370892 | AE12: 0.53125 | AF12: 1.06 | AG12: 1.06 | AH12: 1.06 | AI12: 1.06 | AJ12: 1.06 | AK12: 1.06 | AL12: 1.06 | AM12: =Y12*C12+($A$4-80)*AF12*$A$12/1000 -> 18.26086957 | AN12: =Z12*E12+($A$4-80)*AG12*$A$12/1000 -> 17.73913043 | AO12: =AA12*G12+($A$4-80)*AH12*$A$12/1000 -> 16.95652174 | AP12: =AB12*I12+($A$4-80)*AI12*$A$12/1000 -> 16.17391304 | AQ12: =AC12*K12+($A$4-80)*AJ12*$A$12/1000 -> 15.13043478 | AR12: =AD12*M12+($A$4-80)*AK12*$A$12/1000 -> 14.2173913 | AS12: =AE12*O12+($A$4-80)*AL12*$A$12/1000 -> 13.30434783
B13: 67 | C13: 36 | D13: 23.08695652 | E13: 34.30434783 | F13: 22.69565217 | G13: 32.2173913 | H13: 21.7826087 | I13: =B2 -> 30 | J13: 20.86956522 | K13: 27.13043478 | L13: 19.56521739 | M13: 24.39130435 | N13: 18.39130435 | O13: 21.65217391 | P13: 17.2173913 | R13: 1.2 | S13: 1.143478261 | T13: 1.073913043 | U13: 1 | V13: 0.9043478261 | W13: 0.8130434783 | X13: 0.7217391304 | Y13: 0.6413043478 | Z13: 0.6615969582 | AA13: 0.6761133603 | AB13: 0.6956521739 | AC13: 0.7211538462 | AD13: 0.7540106952 | AE13: 0.7951807229 | AF13: 1.06 | AG13: 1.06 | AH13: 1.06 | AI13: 1.06 | AJ13: 1.06 | AK13: 1.06 | AL13: 1.06 | AM13: =Y13*C13+($A$4-80)*AF13*$A$12/1000 -> 23.08695652 | AN13: =Z13*E13+($A$4-80)*AG13*$A$12/1000 -> 22.69565217 | AO13: =AA13*G13+($A$4-80)*AH13*$A$12/1000 -> 21.7826087 | AP13: =AB13*I13+($A$4-80)*AI13*$A$12/1000 -> 20.86956522 | AQ13: =AC13*K13+($A$4-80)*AJ13*$A$12/1000 -> 19.56521739 | AR13: =AD13*M13+($A$4-80)*AK13*$A$12/1000 -> 18.39130435 | AS13: =AE13*O13+($A$4-80)*AL13*$A$12/1000 -> 17.2173913
B14: 62 | C14: 32.34782609 | D14: 27.26086957 | E14: 30.52173913 | F14: 26.2173913 | G14: 28.43478261 | H14: 25.04347826 | I14: =U14*$I$13 -> 26.34782609 | J14: 23.86956522 | K14: 24.13043478 | L14: 22.17391304 | M14: 21.91304348 | N14: 20.60869565 | O14: 19.69565217 | P14: 19.04347826 | R14: 1.07826087 | S14: 1.017391304 | T14: 0.947826087 | U14: 0.8782608696 | V14: 0.8043478261 | W14: 0.7304347826 | X14: 0.6565217391 | Y14: 0.8427419355 | Z14: 0.858974359 | AA14: 0.880733945 | AB14: 0.9059405941 | AC14: 0.9189189189 | AD14: 0.9404761905 | AE14: 0.9668874172 | AF14: 1.06 | AG14: 1.06 | AH14: 1.06 | AI14: 1.06 | AJ14: 1.06 | AK14: 1.06 | AL14: 1.06 | AM14: 27.26086957 | AN14: =Z14*E14+($A$4-80)*AG14*$A$12/1000 -> 26.2173913 | AO14: =AA14*G14+($A$4-80)*AH14*$A$12/1000 -> 25.04347826 | AP14: 23.86956522 | AQ14: 22.17391304 | AR14: 20.60869565 | AS14: 19.04347826
B15: 57 | C15: 29.86956522 | D15: 29.2173913 | E15: 28.82608696 | F15: 27.91304348 | G15: 27.13043478 | H15: 26.2173913 | I15: 25.43478261 | J15: 24.52173913 | K15: 23.34782609 | L15: 22.69565217 | M15: 21.39130435 | N15: 20.73913043 | O15: 19.30434783 | P15: 18.91304348 | R15: 0.9956521739 | S15: 0.9608695652 | T15: 0.9043478261 | U15: 0.847826087 | V15: 0.7782608696 | W15: 0.7130434783 | X15: 0.6434782609 | Y15: 0.9781659389 | Z15: 0.9683257919 | AA15: 0.9663461538 | AB15: 0.9641025641 | AC15: 0.9720670391 | AD15: 0.9695121951 | AE15: 0.9797297297 | AF15: 1.06 | AG15: 1.06 | AH15: 1.06 | AI15: 1.06 | AJ15: 1.06 | AK15: 1.06 | AL15: 1.06 | AM15: 29.2173913 | AN15: =Z15*E15+($A$4-80)*AG15*$A$12/1000 -> 27.91304348 | AO15: =AA15*G15+($A$4-80)*AH15*$A$12/1000 -> 26.2173913 | AP15: 24.52173913 | AQ15: 22.69565217 | AR15: 20.73913043 | AS15: 18.91304348
A16: 1000 | B16: 72 | C16: 40.43478261 | D16: 19.69565217 | E16: 39 | F16: 19.30434783 | G16: 36.7826087 | H16: 18.65217391 | I16: 34.56521739 | J16: 18 | K16: 31.56521739 | L16: 16.95652174 | M16: 28.82608696 | N16: 15.91304348 | O16: 25.95652174 | P16: 14.86956522 | R16: 1.347826087 | S16: 1.3 | T16: 1.226086957 | U16: 1.152173913 | V16: 1.052173913 | W16: 0.9608695652 | X16: 0.8652173913 | Y16: 0.4870967742 | Z16: 0.4949832776 | AA16: 0.5070921986 | AB16: 0.520754717 | AC16: 0.5371900826 | AD16: 0.5520361991 | AE16: 0.5728643216 | AF16: 1.06 | AG16: 1.06 | AH16: 1.06 | AI16: 1.06 | AJ16: 1.06 | AK16: 1.06 | AL16: 1.06 | AM16: =Y16*C16+($A$4-80)*AF16*$A$16/1000 -> 19.69565217 | AN16: =Z16*E16+($A$4-80)*AG16*$A$16/1000 -> 19.30434783 | AO16: =AA16*G16+($A$4-80)*AH16*$A$16/1000 -> 18.65217391 | AP16: =AB16*I16+($A$4-80)*AI16*$A$16/1000 -> 18 | AQ16: =AC16*K16+($A$4-80)*AJ16*$A$16/1000 -> 16.95652174 | AR16: =AD16*M16+($A$4-80)*AK16*$A$16/1000 -> 15.91304348 | AS16: =AE16*O16+($A$4-80)*AL16*$A$16/1000 -> 14.86956522
B17: 67 | C17: 37.30434783 | D17: 25.69565217 | E17: 35.60869565 | F17: 25.43478261 | G17: 33.52173913 | H17: 24.52173913 | I17: 31.30434783 | J17: 23.60869565 | K17: 28.43478261 | L17: 22.30434783 | M17: 25.69565217 | N17: 21 | O17: 22.95652174 | P17: 19.56521739 | R17: 1.243478261 | S17: 1.186956522 | T17: 1.117391304 | U17: 1.043478261 | V17: 0.947826087 | W17: 0.8565217391 | X17: 0.7652173913 | Y17: 0.6888111888 | Z17: 0.7142857143 | AA17: 0.7315175097 | AB17: 0.7541666667 | AC17: 0.7844036697 | AD17: 0.8172588832 | AE17: 0.8522727273 | AF17: 1.06 | AG17: 1.06 | AH17: 1.06 | AI17: 1.06 | AJ17: 1.06 | AK17: 1.06 | AL17: 1.06 | AM17: =Y17*C17+($A$4-80)*AF17*$A$16/1000 -> 25.69565217 | AN17: =Z17*E17+($A$4-80)*AG17*$A$16/1000 -> 25.43478261 | AO17: =AA17*G17+($A$4-80)*AH17*$A$16/1000 -> 24.52173913 | AP17: =AB17*I17+($A$4-80)*AI17*$A$16/1000 -> 23.60869565 | AQ17: =AC17*K17+($A$4-80)*AJ17*$A$16/1000 -> 22.30434783 | AR17: =AD17*M17+($A$4-80)*AK17*$A$16/1000 -> 21 | AS17: =AE17*O17+($A$4-80)*AL17*$A$16/1000 -> 19.56521739
B18: 62 | C18: 34.04347826 | D18: 30.7826087 | E18: 32.08695652 | F18: 29.60869565 | G18: 30 | H18: 28.30434783 | I18: 28.04347826 | J18: 27 | K18: 25.82608696 | L18: 24.91304348 | M18: 23.73913043 | N18: 22.95652174 | O18: 21.65217391 | P18: 21 | R18: 1.134782609 | S18: 1.069565217 | T18: 1 | U18: 0.9347826087 | V18: 0.8608695652 | W18: 0.7913043478 | X18: 0.7217391304 | Y18: 0.9042145594 | Z18: 0.9227642276 | AA18: 0.9434782609 | AB18: 0.9627906977 | AC18: 0.9646464646 | AD18: 0.967032967 | AE18: 0.9698795181 | AF18: 1.06 | AG18: 1.06 | AH18: 1.06 | AI18: 1.06 | AJ18: 1.06 | AK18: 1.06 | AL18: 1.06 | AM18: 30.7826087 | AN18: =Z18*E18+($A$4-80)*AG18*$A$16/1000 -> 29.60869565 | AO18: =AA18*G18+($A$4-80)*AH18*$A$16/1000 -> 28.30434783 | AP18: 27 | AQ18: 24.91304348 | AR18: 22.95652174 | AS18: 21
B19: 57 | C19: 32.86956522 | D19: 32.2173913 | E19: 31.69565217 | F19: 30.7826087 | G19: 29.86956522 | H19: 28.95652174 | I19: 28.04347826 | J19: 27.13043478 | K19: 25.69565217 | L19: 24.91304348 | M19: 23.47826087 | N19: 22.82608696 | O19: 21.26086957 | P19: 20.60869565 | R19: 1.095652174 | S19: 1.056521739 | T19: 0.9956521739 | U19: 0.9347826087 | V19: 0.8565217391 | W19: 0.7826086957 | X19: 0.7086956522 | Y19: 0.9801587302 | Z19: 0.9711934156 | AA19: 0.9694323144 | AB19: 0.9674418605 | AC19: 0.9695431472 | AD19: 0.9722222222 | AE19: 0.9693251534 | AF19: 1.06 | AG19: 1.06 | AH19: 1.06 | AI19: 1.06 | AJ19: 1.06 | AK19: 1.06 | AL19: 1.06 | AM19: 32.2173913 | AN19: =Z19*E19+($A$4-80)*AG19*$A$16/1000 -> 30.7826087 | AO19: =AA19*G19+($A$4-80)*AH19*$A$16/1000 -> 28.95652174 | AP19: 27.13043478 | AQ19: 24.91304348 | AR19: 22.82608696 | AS19: 20.60869565

Sheet YCE_30 (hidden)
A2: YCE_30 | B2: 30
A3: Evaporator Air | C3: Condenser Entering Air Temperature ˚F
A4: 80 | B4: °F DB | C4: 65 | E4: 75 | G4: 85 | I4: 95 | K4: 105 | M4: 115 | O4: 125
A5: CFM | B5: EWB† ˚F | C5: Capacity Mbtuh | E5: Capacity Mbtuh | G5: Capacity Mbtuh | I5: Capacity Mbtuh | K5: Capacity Mbtuh | M5: Capacity Mbtuh | O5: Capacity Mbtuh
C6: Total | D6: Sens. | E6: Total | F6: Sens. | G6: Total | H6: Sens. | I6: Total | J6: Sens. | K6: Total | L6: Sens. | M6: Total | N6: Sens. | O6: Total | P6: Sens.
R7: Total Factors | Y7: Sens. % | AF7: IDB Adj | AM7: Sens Calc
A8: 800 | B8: 72 | C8: =R8*$I$13 -> 37.14285714 | D8: =IF(AM8>C8,C8,AM8) -> 17.34693878 | E8: =S8*$I$13 -> 36.93877551 | F8: =IF(AN8>E8,E8,AN8) -> 17.34693878 | G8: =T8*$I$13 -> 35.20408163 | H8: =IF(AO8>G8,G8,AO8) -> 16.42857143 | I8: =U8*$I$13 -> 33.57142857 | J8: =IF(AP8>I8,I8,AP8) -> 15.51020408 | K8: =V8*$I$13 -> 30.71428571 | L8: =IF(AQ8>K8,K8,AQ8) -> 14.69387755 | M8: =W8*$I$13 -> 27.95918367 | N8: =IF(AR8>M8,M8,AR8) -> 13.87755102 | O8: =X8*$I$13 -> 25.20408163 | P8: =IF(AS8>O8,O8,AS8) -> 13.06122449 | R8: 1.238095238 | S8: 1.231292517 | T8: 1.173469388 | U8: 1.119047619 | V8: 1.023809524 | W8: 0.9319727891 | X8: 0.8401360544 | Y8: 0.467032967 | Z8: 0.4696132597 | AA8: 0.4666666667 | AB8: 0.462006079 | AC8: 0.4784053156 | AD8: 0.496350365 | AE8: 0.5182186235 | AF8: 1.06 | AG8: 1.06 | AH8: 1.06 | AI8: 1.06 | AJ8: 1.06 | AK8: 1.06 | AL8: 1.06 | AM8: =Y8*C8+($A$4-80)*AF8*$A$8/1000 -> 17.34693878 | AN8: =Z8*E8+($A$4-80)*AG8*$A$8/1000 -> 17.34693878 | AO8: =AA8*G8+($A$4-80)*AH8*$A$8/1000 -> 16.42857143 | AP8: =AB8*I8+($A$4-80)*AI8*$A$8/1000 -> 15.51020408 | AQ8: =AC8*K8+($A$4-80)*AJ8*$A$8/1000 -> 14.69387755 | AR8: =AD8*M8+($A$4-80)*AK8*$A$8/1000 -> 13.87755102 | AS8: =AE8*O8+($A$4-80)*AL8*$A$8/1000 -> 13.06122449
B9: 67 | C9: =R9*$I$13 -> 34.69387755 | D9: 21.42857143 | E9: 33.7755102 | F9: =IF(AN9>E9,E9,AN9) -> 21.32653061 | G9: 31.63265306 | H9: =IF(AO9>G9,G9,AO9) -> 20.30612245 | I9: =U9*$I$13 -> 29.48979592 | J9: =IF(AP9>I9,I9,AP9) -> 19.28571429 | K9: 26.93877551 | L9: =IF(AQ9>K9,K9,AQ9) -> 18.26530612 | M9: 24.3877551 | N9: =IF(AR9>M9,M9,AR9) -> 17.24489796 | O9: 21.83673469 | P9: =IF(AS9>O9,O9,AS9) -> 16.2244898 | R9: 1.156462585 | S9: 1.12585034 | T9: 1.054421769 | U9: 0.9829931973 | V9: 0.8979591837 | W9: 0.8129251701 | X9: 0.7278911565 | Y9: 0.6176470588 | Z9: 0.6314199396 | AA9: 0.6419354839 | AB9: 0.6539792388 | AC9: 0.678030303 | AD9: 0.7071129707 | AE9: 0.7429906542 | AF9: 1.06 | AG9: 1.06 | AH9: 1.06 | AI9: 1.06 | AJ9: 1.06 | AK9: 1.06 | AL9: 1.06 | AM9: =Y9*C9+($A$4-80)*AF9*$A$8/1000 -> 21.42857143 | AN9: =Z9*E9+($A$4-80)*AG9*$A$8/1000 -> 21.32653061 | AO9: =AA9*G9+($A$4-80)*AH9*$A$8/1000 -> 20.30612245 | AP9: =AB9*I9+($A$4-80)*AI9*$A$8/1000 -> 19.28571429 | AQ9: =AC9*K9+($A$4-80)*AJ9*$A$8/1000 -> 18.26530612 | AR9: =AD9*M9+($A$4-80)*AK9*$A$8/1000 -> 17.24489796 | AS9: =AE9*O9+($A$4-80)*AL9*$A$8/1000 -> 16.2244898
B10: 62 | C10: 31.83673469 | D10: 25.40816327 | E10: 30.10204082 | F10: 24.69387755 | G10: 28.16326531 | H10: 23.87755102 | I10: =U10*$I$13 -> 26.2244898 | J10: 22.95918367 | K10: 23.67346939 | L10: 21.53061224 | M10: 21.2244898 | N10: 20.20408163 | O10: 18.67346939 | P10: 18.67346939 | R10: 1.06122449 | S10: 1.003401361 | T10: 0.9387755102 | U10: 0.8741496599 | V10: 0.7891156463 | W10: 0.7074829932 | X10: 0.6224489796 | Y10: 0.7980769231 | Z10: 0.8203389831 | AA10: 0.847826087 | AB10: 0.8754863813 | AC10: 0.9094827586 | AD10: 0.9519230769 | AE10: 1 | AF10: 1.06 | AG10: 1.06 | AH10: 1.06 | AI10: 1.06 | AJ10: 1.06 | AK10: 1.06 | AL10: 1.06 | AM10: 25.40816327 | AN10: =Z10*E10+($A$4-80)*AG10*$A$8/1000 -> 24.69387755 | AO10: =AA10*G10+($A$4-80)*AH10*$A$8/1000 -> 23.87755102 | AP10: 22.95918367 | AQ10: 21.53061224 | AR10: 20.20408163 | AS10: 18.67346939
B11: 57 | C11: 28.87755102 | D11: 28.87755102 | E11: 27.44897959 | F11: 27.44897959 | G11: 26.12244898 | H11: 26.02040816 | I11: =U11*$I$13 -> 24.79591837 | J11: 24.69387755 | K11: 22.65306122 | L11: 22.65306122 | M11: 20.6122449 | N11: 20.6122449 | O11: 18.57142857 | P11: 18.57142857 | R11: 0.962585034 | S11: 0.9149659864 | T11: 0.8707482993 | U11: 0.8265306122 | V11: 0.7551020408 | W11: 0.6870748299 | X11: 0.619047619 | Y11: 1 | Z11: 1 | AA11: 0.99609375 | AB11: 0.9958847737 | AC11: 1 | AD11: 1 | AE11: 1 | AF11: 1.06 | AG11: 1.06 | AH11: 1.06 | AI11: 1.06 | AJ11: 1.06 | AK11: 1.06 | AL11: 1.06 | AM11: 28.87755102 | AN11: =Z11*E11+($A$4-80)*AG11*$A$8/1000 -> 27.44897959 | AO11: =AA11*G11+($A$4-80)*AH11*$A$8/1000 -> 26.02040816 | AP11: =AB11*I11+($A$4-80)*AI11*$A$8/1000 -> 24.69387755 | AQ11: 22.65306122 | AR11: 20.6122449 | AS11: 18.57142857
A12: 1000 | B12: 72 | C12: 37.44897959 | D12: 17.85714286 | E12: 37.34693878 | F12: 18.06122449 | G12: 35.81632653 | H12: 17.34693878 | I12: =U12*$I$13 -> 34.28571429 | J12: 16.63265306 | K12: 31.32653061 | L12: 15.81632653 | M12: 28.46938776 | N12: 15 | O12: 25.6122449 | P12: 14.18367347 | R12: 1.24829932 | S12: 1.244897959 | T12: 1.193877551 | U12: 1.142857143 | V12: 1.044217687 | W12: 0.9489795918 | X12: 0.8537414966 | Y12: 0.4768392371 | Z12: 0.4836065574 | AA12: 0.4843304843 | AB12: 0.4851190476 | AC12: 0.5048859935 | AD12: 0.5268817204 | AE12: 0.5537848606 | AF12: 1.06 | AG12: 1.06 | AH12: 1.06 | AI12: 1.06 | AJ12: 1.06 | AK12: 1.06 | AL12: 1.06 | AM12: =Y12*C12+($A$4-80)*AF12*$A$12/1000 -> 17.85714286 | AN12: =Z12*E12+($A$4-80)*AG12*$A$12/1000 -> 18.06122449 | AO12: =AA12*G12+($A$4-80)*AH12*$A$12/1000 -> 17.34693878 | AP12: =AB12*I12+($A$4-80)*AI12*$A$12/1000 -> 16.63265306 | AQ12: =AC12*K12+($A$4-80)*AJ12*$A$12/1000 -> 15.81632653 | AR12: =AD12*M12+($A$4-80)*AK12*$A$12/1000 -> 15 | AS12: =AE12*O12+($A$4-80)*AL12*$A$12/1000 -> 14.18367347
B13: 67 | C13: 35 | D13: 22.55102041 | E13: 34.3877551 | F13: 22.75510204 | G13: 32.14285714 | H13: 22.14285714 | I13: =B2 -> 30 | J13: 21.42857143 | K13: 27.44897959 | L13: 20.20408163 | M13: 24.89795918 | N13: 18.97959184 | O13: 22.44897959 | P13: 17.75510204 | R13: 1.166666667 | S13: 1.146258503 | T13: 1.071428571 | U13: 1 | V13: 0.9149659864 | W13: 0.8299319728 | X13: 0.7482993197 | Y13: 0.6443148688 | Z13: 0.6617210682 | AA13: 0.6888888889 | AB13: 0.7142857143 | AC13: 0.7360594796 | AD13: 0.762295082 | AE13: 0.7909090909 | AF13: 1.06 | AG13: 1.06 | AH13: 1.06 | AI13: 1.06 | AJ13: 1.06 | AK13: 1.06 | AL13: 1.06 | AM13: =Y13*C13+($A$4-80)*AF13*$A$12/1000 -> 22.55102041 | AN13: =Z13*E13+($A$4-80)*AG13*$A$12/1000 -> 22.75510204 | AO13: =AA13*G13+($A$4-80)*AH13*$A$12/1000 -> 22.14285714 | AP13: =AB13*I13+($A$4-80)*AI13*$A$12/1000 -> 21.42857143 | AQ13: =AC13*K13+($A$4-80)*AJ13*$A$12/1000 -> 20.20408163 | AR13: =AD13*M13+($A$4-80)*AK13*$A$12/1000 -> 18.97959184 | AS13: =AE13*O13+($A$4-80)*AL13*$A$12/1000 -> 17.75510204
B14: 62 | C14: 32.55102041 | D14: 27.44897959 | E14: 31.02040816 | F14: 27.44897959 | G14: 28.97959184 | H14: 26.42857143 | I14: =U14*$I$13 -> 26.93877551 | J14: 25.40816327 | K14: 24.59183673 | L14: 23.57142857 | M14: 22.14285714 | N14: 21.73469388 | O14: 19.79591837 | P14: 19.79591837 | R14: 1.085034014 | S14: 1.034013605 | T14: 0.9659863946 | U14: 0.8979591837 | V14: 0.8197278912 | W14: 0.7380952381 | X14: 0.6598639456 | Y14: 0.8432601881 | Z14: 0.8848684211 | AA14: 0.911971831 | AB14: 0.9431818182 | AC14: 0.9585062241 | AD14: 0.9815668203 | AE14: 1 | AF14: 1.06 | AG14: 1.06 | AH14: 1.06 | AI14: 1.06 | AJ14: 1.06 | AK14: 1.06 | AL14: 1.06 | AM14: 27.44897959 | AN14: =Z14*E14+($A$4-80)*AG14*$A$12/1000 -> 27.44897959 | AO14: =AA14*G14+($A$4-80)*AH14*$A$12/1000 -> 26.42857143 | AP14: 25.40816327 | AQ14: 23.57142857 | AR14: 21.73469388 | AS14: 19.79591837
B15: 57 | C15: 30.40816327 | D15: 30.40816327 | E15: 29.28571429 | F15: 29.28571429 | G15: 27.75510204 | H15: 27.75510204 | I15: 26.32653061 | J15: 26.32653061 | K15: 24.08163265 | L15: 24.08163265 | M15: 21.93877551 | N15: 21.93877551 | O15: 19.89795918 | P15: 19.89795918 | R15: 1.013605442 | S15: 0.9761904762 | T15: 0.925170068 | U15: 0.8775510204 | V15: 0.8027210884 | W15: 0.731292517 | X15: 0.6632653061 | Y15: 1 | Z15: 1 | AA15: 1 | AB15: 1 | AC15: 1 | AD15: 1 | AE15: 1 | AF15: 1.06 | AG15: 1.06 | AH15: 1.06 | AI15: 1.06 | AJ15: 1.06 | AK15: 1.06 | AL15: 1.06 | AM15: 30.40816327 | AN15: =Z15*E15+($A$4-80)*AG15*$A$12/1000 -> 29.28571429 | AO15: =AA15*G15+($A$4-80)*AH15*$A$12/1000 -> 27.75510204 | AP15: 26.32653061 | AQ15: 24.08163265 | AR15: 21.93877551 | AS15: 19.89795918
A16: 1200 | B16: 72 | C16: 37.65306122 | D16: 18.36734694 | E16: 37.85714286 | F16: 18.7755102 | G16: 36.42857143 | H16: 18.26530612 | I16: 34.89795918 | J16: 17.65306122 | K16: 31.93877551 | L16: 16.93877551 | M16: 28.97959184 | N16: 16.12244898 | O16: 26.02040816 | P16: 15.40816327 | R16: 1.255102041 | S16: 1.261904762 | T16: 1.214285714 | U16: 1.163265306 | V16: 1.06462585 | W16: 0.9659863946 | X16: 0.8673469388 | Y16: 0.487804878 | Z16: 0.4959568733 | AA16: 0.5014005602 | AB16: 0.5058479532 | AC16: 0.5303514377 | AD16: 0.5563380282 | AE16: 0.5921568627 | AF16: 1.06 | AG16: 1.06 | AH16: 1.06 | AI16: 1.06 | AJ16: 1.06 | AK16: 1.06 | AL16: 1.06 | AM16: =Y16*C16+($A$4-80)*AF16*$A$16/1000 -> 18.36734694 | AN16: =Z16*E16+($A$4-80)*AG16*$A$16/1000 -> 18.7755102 | AO16: =AA16*G16+($A$4-80)*AH16*$A$16/1000 -> 18.26530612 | AP16: =AB16*I16+($A$4-80)*AI16*$A$16/1000 -> 17.65306122 | AQ16: =AC16*K16+($A$4-80)*AJ16*$A$16/1000 -> 16.93877551 | AR16: =AD16*M16+($A$4-80)*AK16*$A$16/1000 -> 16.12244898 | AS16: =AE16*O16+($A$4-80)*AL16*$A$16/1000 -> 15.40816327
B17: 67 | C17: 35.30612245 | D17: 23.7755102 | E17: 34.89795918 | F17: 24.28571429 | G17: 32.65306122 | H17: 23.87755102 | I17: 30.51020408 | J17: 23.57142857 | K17: 27.95918367 | L17: 22.14285714 | M17: 25.40816327 | N17: 20.71428571 | O17: 22.95918367 | P17: 19.28571429 | R17: 1.176870748 | S17: 1.163265306 | T17: 1.088435374 | U17: 1.017006803 | V17: 0.9319727891 | W17: 0.8469387755 | X17: 0.7653061224 | Y17: 0.6734104046 | Z17: 0.6959064327 | AA17: 0.73125 | AB17: 0.7725752508 | AC17: 0.7919708029 | AD17: 0.8152610442 | AE17: 0.84 | AF17: 1.06 | AG17: 1.06 | AH17: 1.06 | AI17: 1.06 | AJ17: 1.06 | AK17: 1.06 | AL17: 1.06 | AM17: =Y17*C17+($A$4-80)*AF17*$A$16/1000 -> 23.7755102 | AN17: =Z17*E17+($A$4-80)*AG17*$A$16/1000 -> 24.28571429 | AO17: =AA17*G17+($A$4-80)*AH17*$A$16/1000 -> 23.87755102 | AP17: =AB17*I17+($A$4-80)*AI17*$A$16/1000 -> 23.57142857 | AQ17: =AC17*K17+($A$4-80)*AJ17*$A$16/1000 -> 22.14285714 | AR17: =AD17*M17+($A$4-80)*AK17*$A$16/1000 -> 20.71428571 | AS17: =AE17*O17+($A$4-80)*AL17*$A$16/1000 -> 19.28571429
B18: 62 | C18: 33.26530612 | D18: 29.59183673 | E18: 32.04081633 | F18: 30.10204082 | G18: 29.89795918 | H18: 28.97959184 | I18: 27.75510204 | J18: 27.75510204 | K18: 25.40816327 | L18: 25.40816327 | M18: 23.16326531 | N18: 23.16326531 | O18: 20.91836735 | P18: 20.91836735 | R18: 1.108843537 | S18: 1.068027211 | T18: 0.9965986395 | U18: 0.925170068 | V18: 0.8469387755 | W18: 0.7721088435 | X18: 0.6972789116 | Y18: 0.8895705521 | Z18: 0.9394904459 | AA18: 0.9692832765 | AB18: 1 | AC18: 1 | AD18: 1 | AE18: 1 | AF18: 1.06 | AG18: 1.06 | AH18: 1.06 | AI18: 1.06 | AJ18: 1.06 | AK18: 1.06 | AL18: 1.06 | AM18: 29.59183673 | AN18: =Z18*E18+($A$4-80)*AG18*$A$16/1000 -> 30.10204082 | AO18: =AA18*G18+($A$4-80)*AH18*$A$16/1000 -> 28.97959184 | AP18: 27.75510204 | AQ18: 25.40816327 | AR18: 23.16326531 | AS18: 20.91836735
B19: 57 | C19: 31.83673469 | D19: 31.83673469 | E19: 31.12244898 | F19: 31.12244898 | G19: 29.48979592 | H19: 29.48979592 | I19: 27.85714286 | J19: 27.85714286 | K19: 25.6122449 | L19: 25.6122449 | M19: 23.36734694 | N19: 23.36734694 | O19: 21.12244898 | P19: 21.12244898 | R19: 1.06122449 | S19: 1.037414966 | T19: 0.9829931973 | U19: 0.9285714286 | V19: 0.8537414966 | W19: 0.7789115646 | X19: 0.7040816327 | Y19: 1 | Z19: 1 | AA19: 1 | AB19: 1 | AC19: 1 | AD19: 1 | AE19: 1 | AF19: 1.06 | AG19: 1.06 | AH19: 1.06 | AI19: 1.06 | AJ19: 1.06 | AK19: 1.06 | AL19: 1.06 | AM19: 31.83673469 | AN19: =Z19*E19+($A$4-80)*AG19*$A$16/1000 -> 31.12244898 | AO19: =AA19*G19+($A$4-80)*AH19*$A$16/1000 -> 29.48979592 | AP19: 27.85714286 | AQ19: 25.6122449 | AR19: 23.36734694 | AS19: 21.12244898

Sheet YCE_36 (hidden)
A2: YCE_36 | B2: 36
A3: Evaporator Air | C3: Condenser Entering Air Temperature ˚F
A4: 80 | B4: °F DB | C4: 65 | E4: 75 | G4: 85 | I4: 95 | K4: 105 | M4: 115 | O4: 125
A5: CFM | B5: EWB† ˚F | C5: Capacity Mbtuh | E5: Capacity Mbtuh | G5: Capacity Mbtuh | I5: Capacity Mbtuh | K5: Capacity Mbtuh | M5: Capacity Mbtuh | O5: Capacity Mbtuh
C6: Total | D6: Sens. | E6: Total | F6: Sens. | G6: Total | H6: Sens. | I6: Total | J6: Sens. | K6: Total | L6: Sens. | M6: Total | N6: Sens. | O6: Total | P6: Sens.
R7: Total Factors | Y7: Sens. % | AF7: IDB Adj | AM7: Sens Calc
A8: 1000 | B8: 72 | C8: =R8*$I$13 -> 46.92485549 | D8: =IF(AM8>C8,C8,AM8) -> 21.6416185 | E8: =S8*$I$13 -> 45.88439306 | F8: =IF(AN8>E8,E8,AN8) -> 21.12138728 | G8: =T8*$I$13 -> 42.65895954 | H8: =IF(AO8>G8,G8,AO8) -> 19.97687861 | I8: =U8*$I$13 -> 39.53757225 | J8: =IF(AP8>I8,I8,AP8) -> 18.83236994 | K8: =V8*$I$13 -> 36 | L8: =IF(AQ8>K8,K8,AQ8) -> 17.68786127 | M8: =W8*$I$13 -> 32.56647399 | N8: =IF(AR8>M8,M8,AR8) -> 16.5433526 | O8: =X8*$I$13 -> 29.13294798 | P8: =IF(AS8>O8,O8,AS8) -> 15.39884393 | R8: 1.303468208 | S8: 1.274566474 | T8: 1.184971098 | U8: 1.098265896 | V8: 1 | W8: 0.9046242775 | X8: 0.8092485549 | Y8: 0.4611973392 | Z8: 0.4603174603 | AA8: 0.4682926829 | AB8: 0.4763157895 | AC8: 0.4913294798 | AD8: 0.5079872204 | AE8: 0.5285714286 | AF8: 1.06 | AG8: 1.06 | AH8: 1.06 | AI8: 1.06 | AJ8: 1.06 | AK8: 1.06 | AL8: 1.06 | AM8: =Y8*C8+($A$4-80)*AF8*$A$8/1000 -> 21.6416185 | AN8: =Z8*E8+($A$4-80)*AG8*$A$8/1000 -> 21.12138728 | AO8: =AA8*G8+($A$4-80)*AH8*$A$8/1000 -> 19.97687861 | AP8: =AB8*I8+($A$4-80)*AI8*$A$8/1000 -> 18.83236994 | AQ8: =AC8*K8+($A$4-80)*AJ8*$A$8/1000 -> 17.68786127 | AR8: =AD8*M8+($A$4-80)*AK8*$A$8/1000 -> 16.5433526 | AS8: =AE8*O8+($A$4-80)*AL8*$A$8/1000 -> 15.39884393
B9: 67 | C9: =R9*$I$13 -> 43.38728324 | D9: 27.15606936 | E9: 41.30635838 | F9: =IF(AN9>E9,E9,AN9) -> 26.11560694 | G9: 38.08092486 | H9: =IF(AO9>G9,G9,AO9) -> 24.65895954 | I9: =U9*$I$13 -> 34.75144509 | J9: =IF(AP9>I9,I9,AP9) -> 23.20231214 | K9: 31.6300578 | L9: =IF(AQ9>K9,K9,AQ9) -> 22.16184971 | M9: 28.71676301 | N9: =IF(AR9>M9,M9,AR9) -> 21.22543353 | O9: 25.69942197 | P9: =IF(AS9>O9,O9,AS9) -> 20.1849711 | R9: 1.205202312 | S9: 1.147398844 | T9: 1.057803468 | U9: 0.9653179191 | V9: 0.8786127168 | W9: 0.7976878613 | X9: 0.7138728324 | Y9: 0.6258992806 | Z9: 0.6322418136 | AA9: 0.6475409836 | AB9: 0.6676646707 | AC9: 0.7006578947 | AD9: 0.7391304348 | AE9: 0.7854251012 | AF9: 1.06 | AG9: 1.06 | AH9: 1.06 | AI9: 1.06 | AJ9: 1.06 | AK9: 1.06 | AL9: 1.06 | AM9: =Y9*C9+($A$4-80)*AF9*$A$8/1000 -> 27.15606936 | AN9: =Z9*E9+($A$4-80)*AG9*$A$8/1000 -> 26.11560694 | AO9: =AA9*G9+($A$4-80)*AH9*$A$8/1000 -> 24.65895954 | AP9: =AB9*I9+($A$4-80)*AI9*$A$8/1000 -> 23.20231214 | AQ9: =AC9*K9+($A$4-80)*AJ9*$A$8/1000 -> 22.16184971 | AR9: =AD9*M9+($A$4-80)*AK9*$A$8/1000 -> 21.22543353 | AS9: =AE9*O9+($A$4-80)*AL9*$A$8/1000 -> 20.1849711
B10: 62 | C10: 39.12138728 | D10: 31.73410405 | E10: 36.10404624 | F10: 29.75722543 | G10: 33.39884393 | H10: 28.40462428 | I10: =U10*$I$13 -> 30.69364162 | J10: 27.15606936 | K10: 28.09248555 | L10: 25.69942197 | M10: 25.49132948 | N10: 24.24277457 | O10: 22.99421965 | P10: 22.89017341 | R10: 1.086705202 | S10: 1.002890173 | T10: 0.9277456647 | U10: 0.8526011561 | V10: 0.7803468208 | W10: 0.7080924855 | X10: 0.6387283237 | Y10: 0.8111702128 | Z10: 0.8242074928 | AA10: 0.8504672897 | AB10: 0.8847457627 | AC10: 0.9148148148 | AD10: 0.9510204082 | AE10: 0.9954751131 | AF10: 1.06 | AG10: 1.06 | AH10: 1.06 | AI10: 1.06 | AJ10: 1.06 | AK10: 1.06 | AL10: 1.06 | AM10: 31.73410405 | AN10: =Z10*E10+($A$4-80)*AG10*$A$8/1000 -> 29.75722543 | AO10: =AA10*G10+($A$4-80)*AH10*$A$8/1000 -> 28.40462428 | AP10: 27.15606936 | AQ10: 25.69942197 | AR10: 24.24277457 | AS10: 22.89017341
B11: 57 | C11: 35.37572254 | D11: 35.2716763 | E11: 33.19075145 | F11: 32.98265896 | G11: 30.79768786 | H11: 30.69364162 | I11: =U11*$I$13 -> 28.50867052 | J11: 28.30057803 | K11: 26.73988439 | L11: 26.63583815 | M11: 25.17919075 | N11: 25.07514451 | O11: 23.51445087 | P11: 23.41040462 | R11: 0.9826589595 | S11: 0.9219653179 | T11: 0.8554913295 | U11: 0.7919075145 | V11: 0.7427745665 | W11: 0.6994219653 | X11: 0.6531791908 | Y11: 0.9970588235 | Z11: 0.9937304075 | AA11: 0.9966216216 | AB11: 0.9927007299 | AC11: 0.9961089494 | AD11: 0.9958677686 | AE11: 0.9955752212 | AF11: 1.06 | AG11: 1.06 | AH11: 1.06 | AI11: 1.06 | AJ11: 1.06 | AK11: 1.06 | AL11: 1.06 | AM11: 35.2716763 | AN11: =Z11*E11+($A$4-80)*AG11*$A$8/1000 -> 32.98265896 | AO11: =AA11*G11+($A$4-80)*AH11*$A$8/1000 -> 30.69364162 | AP11: =AB11*I11+($A$4-80)*AI11*$A$8/1000 -> 28.30057803 | AQ11: 26.63583815 | AR11: 25.07514451 | AS11: 23.41040462
